Workbook

Sheet TDPrimas_ (hidden)
A3: periodo | B3: 2023-Q3
A4: Ramo_ | B4: 10 Total General
A6: jerarquia | B6: nombre_compania | C6: Suma de Prima_DirectaAct | D6: Suma de Prima_DirectaAnt | E6: Suma de Part_Mercado_Act | F6: Suma de Part_Mercado_Ant | G6: Suma de PD_IncreAbs | H6: Suma de PD_IncreRel | I6: Suma de Part_Operacion_Act | J6: Suma de Part_Cartera_Act | K6: Suma de Part_Sector_Act
A7: 1 | B7: G.N.P. | C7: 73374373.46 | D7: 64173691.33 | E7: 12.48977276 | F7: 12.48429606 | G7: 9200682.121 | H7: 14.33715582 | I7: 100 | J7: 100 | K7: 12.48977276
A8: 2 | B8: Metlife México | C8: 58609536.35 | D8: 54187451.58 | E8: 9.976504825 | F8: 10.54158136 | G8: 4422084.773 | H8: 8.160717369 | I8: 100 | J8: 100 | K8: 9.976504825
A9: 3 | B9: BBVA Bancomer | C9: 52224009.6 | D9: 43568790.65 | E9: 8.889561601 | F9: 8.47583597 | G9: 8655218.952 | H9: 19.86563965 | I9: 100 | J9: 100 | K9: 8.889561601
A10: 4 | B10: AXA Seguros | C10: 41806699.47 | D10: 36252985.89 | E10: 7.116328928 | F10: 7.052625451 | G10: 5553713.585 | H10: 15.31932736 | I10: 100 | J10: 100 | K10: 7.116328928
A11: 5 | B11: Quálitas | C11: 34917926.45 | D11: 26956119.4 | E11: 5.943723212 | F11: 5.244020846 | G11: 7961807.046 | H11: 29.53617666 | I11: 100 | J11: 100 | K11: 5.943723212
A12: 5.1 | B12: TOTAL GRANDES | C12: 260932545.3 | D12: 225139038.9 | E12: 44.41589133 | F12: 43.79835968 | G12: 35793506.48 | H12: 15.89840068 | I12: 100 | J12: 100 | K12: 44.41589133
A13: 6 | B13: Banorte | C13: 28721849.16 | D13: 23159092.69 | E13: 4.889028042 | F13: 4.505350457 | G13: 5562756.473 | H13: 24.01975132 | I13: 100 | J13: 100 | K13: 4.889028042
A14: 7 | B14: Monterrey New York Life | C14: 28072029.51 | D14: 27266941.53 | E14: 4.778415857 | F14: 5.304487924 | G14: 805087.9774 | H14: 2.95261563 | I14: 100 | J14: 100 | K14: 4.778415857
A15: 8 | B15: Citibanamex Seguros | C15: 24659912.83 | D15: 12807317.38 | E15: 4.197605964 | F15: 2.491524775 | G15: 11852595.45 | H15: 92.54549648 | I15: 100 | J15: 100 | K15: 4.197605964
A16: 9 | B16: Mapfre México | C16: 22376637.89 | D16: 17630605.92 | E16: 3.808947311 | F16: 3.42984328 | G16: 4746031.972 | H16: 26.91927885 | I16: 100 | J16: 100 | K16: 3.808947311
A17: 10 | B17: Inbursa | C17: 20930115.53 | D17: 18372239.08 | E17: 3.562720533 | F17: 3.574119972 | G17: 2557876.45 | H17: 13.92250797 | I17: 100 | J17: 100 | K17: 3.562720533
A18: 11 | B18: Chubb Seguros México | C18: 17720859.14 | D18: 16513848.83 | E18: 3.016441482 | F18: 3.212590293 | G18: 1207010.307 | H18: 7.309079305 | I18: 100 | J18: 100 | K18: 3.016441482
A19: 12 | B19: Zurich Santander | C19: 15536856.45 | D19: 11004873.66 | E19: 2.644680934 | F19: 2.140878886 | G19: 4531982.794 | H19: 41.18159767 | I19: 100 | J19: 100 | K19: 2.644680934
A20: 13 | B20: Atlas | C20: 15095885.72 | D20: 13447900.98 | E20: 2.569618976 | F20: 2.616143371 | G20: 1647984.747 | H20: 12.25458717 | I20: 100 | J20: 100 | K20: 2.569618976
A21: 14 | B21: Allianz México | C21: 15031312.09 | D21: 14258839.23 | E21: 2.558627262 | F21: 2.773902618 | G21: 772472.8551 | H21: 5.417501682 | I21: 100 | J21: 100 | K21: 2.558627262
A22: 15 | B22: Pensiones Banorte | C22: 12749688.2 | D22: 15140589.79 | E22: 2.170249651 | F22: 2.945437631 | G22: -2390901.592 | H22: -15.79133723 | I22: 100 | J22: 100 | K22: 2.170249651
A23: 15.1 | B23: TOTAL MEDIANAS | C23: 200895146.5 | D23: 169602249.1 | E23: 34.19633601 | F23: 32.99427921 | G23: 31292897.44 | H23: 18.45075617 | I23: 100 | J23: 100 | K23: 34.19633601
A24: 16 | B24: Pensiones BBVA Bancomer | C24: 10006895.61 | D24: 9346393.565 | E24: 1.703371986 | F24: 1.818239561 | G24: 660502.0478 | H24: 7.066918841 | I24: 100 | J24: 100 | K24: 1.703371986
A25: 17 | B25: GMX Seguros | C25: 9804093.929 | D25: 10619077.69 | E25: 1.66885112 | F25: 2.065826462 | G25: -814983.7599 | H25: -7.674713226 | I25: 100 | J25: 100 | K25: 1.66885112
A26: 18 | B26: HDI Seguros | C26: 8672700.526 | D26: 6937182.147 | E26: 1.476265537 | F26: 1.349553593 | G26: 1735518.379 | H26: 25.01762736 | I26: 100 | J26: 100 | K26: 1.476265537
A27: 19 | B27: Zurich Aseguradora Mexicana | C27: 8533878.9 | D27: 2761368.283 | E27: 1.452635344 | F27: 0.5371942684 | G27: 5772510.617 | H27: 209.0453002 | I27: 100 | J27: 100 | K27: 1.452635344
A28: 20 | B28: Agroasemex | C28: 8513094.41 | D28: 6874534.11 | E28: 1.449097412 | F28: 1.337366097 | G28: 1638560.3 | H28: 23.83521958 | I28: 100 | J28: 100 | K28: 1.449097412
A29: 21 | B29: ProFuturo G.N.P. | C29: 6397672.835 | D29: 7777037.097 | E29: 1.089010729 | F29: 1.51293827 | G29: -1379364.262 | H29: -17.7363724 | I29: 100 | J29: 100 | K29: 1.089010729
A30: 22 | B30: AIG Seguros | C30: 6304657.663 | D30: 5126170.01 | E30: 1.073177703 | F30: 0.9972408119 | G30: 1178487.652 | H30: 22.98963261 | I30: 100 | J30: 100 | K30: 1.073177703
A31: 23 | B31: HSBC Seguros | C31: 6120455.987 | D31: 4630757.462 | E31: 1.041822927 | F31: 0.9008636704 | G31: 1489698.526 | H31: 32.16965125 | I31: 100 | J31: 100 | K31: 1.041822927
A32: 24 | B32: Afirme | C32: 5692551.025 | D32: 5607417.762 | E32: 0.9689850203 | F32: 1.090862346 | G32: 85133.26361 | H32: 1.518225808 | I32: 100 | J32: 100 | K32: 0.9689850203
A33: 25 | B33: Seguros SURA | C33: 4306787.997 | D33: 5306404.113 | E33: 0.7331006847 | F33: 1.032303403 | G33: -999616.1166 | H33: -18.83791915 | I33: 100 | J33: 100 | K33: 0.7331006847
A34: 26 | B34: Seguros Azteca | C34: 3540235.016 | D34: 3157216.237 | E34: 0.6026181731 | F34: 0.6142021971 | G34: 383018.7796 | H34: 12.13153458 | I34: 100 | J34: 100 | K34: 0.6026181731
A35: 27 | B35: Hir Seguros | C35: 3256773.907 | D35: 2675564.433 | E35: 0.5543674735 | F35: 0.5205020594 | G35: 581209.4736 | H35: 21.72287337 | I35: 100 | J35: 100 | K35: 0.5543674735
A36: 28 | B36: BUPA México | C36: 3098553.801 | D36: 2813660.554 | E36: 0.5274352753 | F36: 0.547367163 | G36: 284893.2466 | H36: 10.12535951 | I36: 100 | J36: 100 | K36: 0.5274352753
A37: 29 | B37: Ve Por Más | C37: 2931433.719 | D37: 2414387.37 | E37: 0.4989881249 | F37: 0.4696928927 | G37: 517046.3499 | H37: 21.4152193 | I37: 100 | J37: 100 | K37: 0.4989881249
A38: 30 | B38: FM Global | C38: 2851934.331 | D38: 2720564.875 | E38: 0.4854557531 | F38: 0.5292564077 | G38: 131369.4559 | H38: 4.828756597 | I38: 100 | J38: 100 | K38: 0.4854557531
A39: 31 | B39: Seguros Argos | C39: 2824083.374 | D39: 2440808.703 | E39: 0.4807149682 | F39: 0.4748328768 | G39: 383274.6704 | H39: 15.70277383 | I39: 100 | J39: 100 | K39: 0.4807149682
A40: 32 | B40: ANA | C40: 2392641.08 | D40: 2218461.756 | E40: 0.4072749378 | F40: 0.4315776884 | G40: 174179.3231 | H40: 7.851355679 | I40: 100 | J40: 100 | K40: 0.4072749378
A41: 33 | B41: Plan Seguro | C41: 2011777.375 | D41: 2297238.449 | E41: 0.342444386 | F41: 0.4469028401 | G41: -285461.0745 | H41: -12.42627097 | I41: 100 | J41: 100 | K41: 0.342444386
A42: 34 | B42: General de Seguros | C42: 1971809.215 | D42: 1927344.375 | E42: 0.335641013 | F42: 0.3749439573 | G42: 44464.84012 | H42: 2.307052164 | I42: 100 | J42: 100 | K42: 0.335641013
A43: 35 | B43: Cardif Vida | C43: 1796205.071 | D43: 2297569.831 | E43: 0.3057497068 | F43: 0.4469673069 | G43: -501364.7605 | H43: -21.82152436 | I43: 100 | J43: 100 | K43: 0.3057497068
A44: 36 | B44: Seguros Azteca Daños | C44: 1661194.535 | D44: 2353425.752 | E44: 0.2827682375 | F44: 0.4578334707 | G44: -692231.2167 | H44: -29.41376911 | I44: 100 | J44: 100 | K44: 0.2827682375
A45: 37 | B45: Cardif Seguros Generales | C45: 1656218.03 | D45: 1437113.442 | E45: 0.2819211377 | F45: 0.279574843 | G45: 219104.5879 | H45: 15.24615813 | I45: 100 | J45: 100 | K45: 0.2819211377
A46: 38 | B46: El Potosí | C46: 1612866.846 | D46: 1545104.905 | E46: 0.2745419068 | F46: 0.3005834115 | G46: 67761.94108 | H46: 4.385588375 | I46: 100 | J46: 100 | K46: 0.2745419068
A47: 39 | B47: HDI Global Seguros | C47: 1569411.918 | D47: 917084.848 | E47: 0.2671450168 | F47: 0.1784089167 | G47: 652327.07 | H47: 71.13050351 | I47: 100 | J47: 100 | K47: 0.2671450168
A48: 40 | B48: BBVA Bancomer Salud | C48: 1544159.25 | D48: 1038359.191 | E48: 0.2628465122 | F48: 0.2020015255 | G48: 505800.0595 | H48: 48.71147327 | I48: 100 | J48: 100 | K48: 0.2628465122
A49: 41 | B49: Prudential | C49: 1351465.835 | D49: 1131408.34 | E49: 0.2300462734 | F49: 0.220103229 | G49: 220057.4948 | H49: 19.44987384 | I49: 100 | J49: 100 | K49: 0.2300462734
A50: 42 | B50: Insignia Life | C50: 1239121.683 | D50: 1114612.179 | E50: 0.210923072 | F50: 0.2168357179 | G50: 124509.5045 | H50: 11.1706571 | I50: 100 | J50: 100 | K50: 0.210923072
A51: 43 | B51: El Águila | C51: 1212681.111 | D51: 979590.2102 | E51: 0.2064223625 | F51: 0.1905686574 | G51: 233090.901 | H51: 23.79473565 | I51: 100 | J51: 100 | K51: 0.2064223625
A52: 44 | B52: Primero Seguros | C52: 1040269.574 | D52: 701519.2663 | E52: 0.1770745014 | F52: 0.1364729693 | G52: 338750.3077 | H52: 48.28809756 | I52: 100 | J52: 100 | K52: 0.1770745014
A53: 45 | B53: La Latinoamericana | C53: 957883.8902 | D53: 958536.2177 | E53: 0.163050825 | F53: 0.1864728314 | G53: -652.32742 | H53: -0.06805454066 | I53: 100 | J53: 100 | K53: 0.163050825
A54: 46 | B54: General de Salud | C54: 939209.7296 | D54: 835821.0441 | E54: 0.1598721127 | F54: 0.1625999245 | G54: 103388.6855 | H54: 12.36971553 | I54: 100 | J54: 100 | K54: 0.1598721127
A55: 47 | B55: Pan-American México | C55: 799499.2227 | D55: 684641.8948 | E55: 0.1360906151 | F55: 0.1331896597 | G55: 114857.3279 | H55: 16.77626344 | I55: 100 | J55: 100 | K55: 0.1360906151
A56: 48 | B56: Tokio Marine | C56: 787883.6976 | D56: 1108402.218 | E56: 0.1341134225 | F56: 0.2156276374 | G56: -320518.5207 | H56: -28.91716702 | I56: 100 | J56: 100 | K56: 0.1341134225
A57: 49 | B57: Swiss Re Corporate Solutions | C57: 654924.3793 | D57: 440535.6134 | E57: 0.111481111 | F57: 0.08570142853 | G57: 214388.7659 | H57: 48.66547887 | I57: 100 | J57: 100 | K57: 0.111481111
A58: 50 | B58: Atradius | C58: 609310.5625 | D58: 658409.0898 | E58: 0.1037167353 | F58: 0.1280863518 | G58: -49098.52728 | H58: -7.457146026 | I58: 100 | J58: 100 | K58: 0.1037167353
A59: 51 | B59: Assurant Vida | C59: 598107.3176 | D59: 970628.4561 | E59: 0.1018097209 | F59: 0.1888252453 | G59: -372521.1385 | H59: -38.37937536 | I59: 100 | J59: 100 | K59: 0.1018097209
A60: 52 | B60: Berkley Seguros | C60: 570550.3757 | D60: 445437.8514 | E60: 0.09711898319 | F60: 0.0866551058 | G60: 125112.5243 | H60: 28.08753766 | I60: 100 | J60: 100 | K60: 0.09711898319
A61: 53 | B61: AXA Salud | C61: 569036.8629 | D61: 550201.6028 | E61: 0.09686135332 | F61: 0.1070357581 | G61: 18835.26006 | H61: 3.423337912 | I61: 100 | J61: 100 | K61: 0.09686135332
A62: 54 | B62: Sompo Japan | C62: 538831.8908 | D62: 617465.5557 | E62: 0.09171986835 | F62: 0.120121231 | G62: -78633.66496 | H62: -12.73490711 | I62: 100 | J62: 100 | K62: 0.09171986835
A63: 55 | B63: Patrimonial Vida | C63: 531626.2864 | D63: 2312178.076 | E63: 0.09049333166 | F63: 0.4498091825 | G63: -1780551.79 | H63: -77.00755439 | I63: 100 | J63: 100 | K63: 0.09049333166
A64: 56 | B64: Solunion Crédito | C64: 488652.4583 | D64: 544250.0983 | E64: 0.0831783343 | F64: 0.1058779574 | G64: -55597.63998 | H64: -10.21545796 | I64: 100 | J64: 100 | K64: 0.0831783343
A65: 57 | B65: Patrimonial Inbursa | C65: 476051.1423 | D65: 516299.3422 | E65: 0.08103334054 | F65: 0.1004404408 | G65: -40248.19997 | H65: -7.795516414 | I65: 100 | J65: 100 | K65: 0.08103334054
A66: 58 | B66: PREVEM Seguros | C66: 445468.8725 | D66: 399237.9814 | E66: 0.07582763202 | F66: 0.07766742185 | G66: 46230.89111 | H66: 11.5797828 | I66: 100 | J66: 100 | K66: 0.07582763202
A67: 59 | B67: Dentegra | C67: 407667.881 | D67: 363244.9645 | E67: 0.069393154 | F67: 0.07066537056 | G67: 44422.91652 | H67: 12.2294652 | I67: 100 | J67: 100 | K67: 0.069393154
A68: 60 | B68: SHF Cred Vivienda | C68: 383722.2222 | D68: 283822.5376 | E68: 0.06531712823 | F68: 0.05521459828 | G68: 99899.68458 | H68: 35.19793932 | I68: 100 | J68: 100 | K68: 0.06531712823
A69: 61 | B69: Coface | C69: 312582.4004 | D69: 310673.9387 | E69: 0.05320772045 | F69: 0.06043824731 | G69: 1908.46173 | H69: 0.6142973363 | I69: 100 | J69: 100 | K69: 0.05320772045
A70: 62 | B70: Skandia Life | C70: 280734.2574 | D70: 345769.4366 | E70: 0.04778653522 | F70: 0.06726569603 | G70: -65035.17926 | H70: -18.80882819 | I70: 100 | J70: 100 | K70: 0.04778653522
A71: 63 | B71: Patrimonial Daños | C71: 231199.6199 | D71: 188268.496 | E71: 0.03935475806 | F71: 0.03662559521 | G71: 42931.12393 | H71: 22.80313746 | I71: 100 | J71: 100 | K71: 0.03935475806
A72: 64 | B72: Centauro | C72: 217174.4571 | D72: 112760.1684 | E72: 0.03696739735 | F72: 0.02193626854 | G72: 104414.2887 | H72: 92.59855686 | I72: 100 | J72: 100 | K72: 0.03696739735
A73: 65 | B73: MediAccess | C73: 209673.7863 | D73: 185978.6929 | E73: 0.03569063451 | F73: 0.03618013885 | G73: 23695.09339 | H73: 12.74075703 | I73: 100 | J73: 100 | K73: 0.03569063451
A74: 66 | B74: Assurant Daños | C74: 198386.6924 | D74: 167165.5292 | E74: 0.0337693474 | F74: 0.03252024176 | G74: 31221.1632 | H74: 18.676795 | I74: 100 | J74: 100 | K74: 0.0337693474
A75: 67 | B75: Odontoprev | C75: 106585.7348 | D75: 68622.05742 | E75: 0.01814300476 | F75: 0.01334967746 | G75: 37963.67735 | H75: 55.32284921 | I75: 100 | J75: 100 | K75: 0.01814300476
A76: 68 | B76: Virginia Surety | C76: 93997.07677 | D76: 77349.98663 | E76: 0.01600016564 | F76: 0.01504760149 | G76: 16647.09014 | H76: 21.52177507 | I76: 100 | J76: 100 | K76: 0.01600016564
A77: 69 | B77: Genworth Seg. de Crédito | C77: 84326.68807 | D77: 49751.01884 | E77: 0.0143540738 | F77: 0.009678521454 | G77: 34575.66923 | H77: 69.49740937 | I77: 100 | J77: 100 | K77: 0.0143540738
A78: 70 | B78: Crabi | C78: 60704.47976 | D78: 20106.53554 | E78: 0.01033310572 | F78: 0.00391150855 | G78: 40597.94422 | H78: 201.9141693 | I78: 100 | J78: 100 | K78: 0.01033310572
A79: 71 | B79: SPP Seguros | C79: 54230.54129 | D79: 39785.98031 | E79: 0.009231113067 | F79: 0.007739931221 | G79: 14444.56098 | H79: 36.30565558 | I79: 100 | J79: 100 | K79: 0.009231113067
A80: 72 | B80: Metlife Pensiones | C80: 37040.9753 | D80: 17873.45007 | E80: 0.006305108209 | F80: 0.003477085977 | G80: 19167.52523 | H80: 107.2402091 | I80: 100 | J80: 100 | K80: 0.006305108209
A81: 73 | B81: Metlife Más | C81: 34905.85634 | D81: 27590.89299 | E81: 0.005941668641 | F81: 0.005367509168 | G81: 7314.96335 | H81: 26.51223849 | I81: 100 | J81: 100 | K81: 0.005941668641
A82: 74 | B82: SPT | C82: 32331.35817 | D82: 21801.08078 | E82: 0.005503438021 | F82: 0.004241163959 | G82: 10530.27739 | H82: 48.30163007 | I82: 100 | J82: 100 | K82: 0.005503438021
A83: 75 | B83: Quálitas Salud | C83: 12852.04491 | D83: 15724.5065 | E83: 0.002187672792 | F83: 0.003059032298 | G83: -2872.46159 | H83: -18.26741965 | I83: 100 | J83: 100 | K83: 0.002187672792
A84: 76 | B84: Citibanamex Pensiones | C84: 6207.07364 | D84: 16251.42186 | E84: 0.001056566968 | F84: 0.00316153797 | G84: -10044.34822 | H84: -61.8059657 | I84: 100 | J84: 100 | K84: 0.001056566968
A85: 77 | B85: Pensiones Inbursa | C85: 502.70093 | D85: 1186.17977 | E85: 8.556966265e-05 | F85: 0.000230758417 | G85: -683.47884 | H85: -57.62017337 | I85: 100 | J85: 100 | K85: 8.556966265e-05
A86: 78 | B86: Momento Seguros | C86: 468.89204 | D86: 0 | E86: 7.981471942e-05 | F86: 0 | G86: 0 | H86: 0 | I86: 100 | J86: 100 | K86: 7.981471942e-05
A87: 79 | B87: Aserta Seguros de Vida | C87: 0 | D87: 596.24644 | E87: 0 | F87: 0.0001159932821 | G87: 0 | H87: 0 | I87: 0 | J87: 0 | K87: 0
A88: 79 | B88: Zurich Daños | C88: 0 | D88: 4063560.402 | E88: 0 | F88: 0.7905216305 | G88: 0 | H88: 0 | I88: 0 | J88: 0 | K88: 0
A89: 79 | B89: Zurich Vida | C89: 0 | D89: 706727.7084 | E89: 0 | F89: 0.1374862153 | G89: 0 | H89: 0 | I89: 0 | J89: 0 | K89: 0
A90: 150.1 | B90: TOTAL RESTO | C90: 125647956 | D90: 119294033.2 | E90: 21.38777266 | F90: 23.20736111 | G90: 6353922.754 | H90: 5.326270378 | I90: 100 | J90: 100 | K90: 21.38777266
A91: 200 | B91: Patria | C91: 0 | D91: 0 | E91: 0 | F91: 0 | G91: 0 | H91: 0 | I91: 0 | J91: 0 | K91: 0
A92: 201.1 | B92: TOTAL | C92: 587475647.8 | D92: 514035321.2 | E92: 100 | F92: 100 | G92: 73440326.67 | H92: 14.28701952 | I92: 100 | J92: 100 | K92: 100

Sheet TD Siniestros_ (hidden)
A2: periodo | B2: 2023-Q3
A3: Ramo_ | B3: 10 Total General
A5: jerarquia | B5: nombre_compania | C5: Suma de CostoSin_Act | D5: Suma de CostoSin_Ant | E5: Suma de SIN_IncreRel | F5: Suma de IncResvDivAct | G5: Suma de SINvsPRIM_ACT | H5: Suma de SINvsPRIM_ANT | I5: Suma de PartSIN_Merc_Act
A6: 1 | B6: G.N.P. | C6: 45612532.9 | D6: 42018793.54 | E6: 8.552695244 | F6: 205015.3468 | G6: 62.1641191 | H6: 65.47666602 | I6: 13.82322468
A7: 2 | B7: Metlife México | C7: 40022840.24 | D7: 36303404.43 | E7: 10.24541877 | F7: 101995.4338 | G7: 68.28724936 | H7: 66.99596192 | I7: 12.12922585
A8: 3 | B8: BBVA Bancomer | C8: 25601627.5 | D8: 20963635.67 | E8: 22.12398603 | F8: 0 | G8: 49.02271521 | H8: 48.11617527 | I8: 7.758767747
A9: 4 | B9: AXA Seguros | C9: 26588553.59 | D9: 24382622.64 | E9: 9.047143834 | F9: 305789.9512 | G9: 63.59878661 | H9: 67.25686739 | I9: 8.057863196
A10: 5 | B10: Quálitas | C10: 23308919.18 | D10: 18390335.15 | E10: 26.74548341 | F10: 68561.22548 | G10: 66.75344602 | H10: 68.22322929 | I10: 7.06394507
A11: 5.1 | B11: TOTAL GRANDES | C11: 161134473.4 | D11: 142058791.4 | E11: 13.42801933 | F11: 681361.9573 | G11: 61.75330609 | H11: 63.09824905 | I11: 48.83302654
A12: 6 | B12: Banorte | C12: 13363853.59 | D12: 12909105.83 | E12: 3.522689896 | F12: 248778.3986 | G12: 46.52852787 | H12: 55.74098259 | I12: 4.050017376
A13: 7 | B13: Monterrey New York Life | C13: 18189477.93 | D13: 18161196.55 | E13: 0.1557242063 | F13: 30288.24346 | G13: 64.79573527 | H13: 66.60518388 | I13: 5.512459497
A14: 8 | B14: Citibanamex Seguros | C14: 19475883.15 | D14: 21843432.07 | E14: -10.83872221 | F14: 0 | G14: 78.97790752 | H14: 170.5543123 | I14: 5.902314376
A15: 9 | B15: Mapfre México | C15: 10792790.83 | D15: 10637862.66 | E15: 1.456384361 | F15: 359312.0947 | G15: 48.23240594 | H15: 60.33747623 | I15: 3.270837268
A16: 10 | B16: Inbursa | C16: 11007442.21 | D16: 8707650.568 | E16: 26.41116133 | F16: 147246.6088 | G16: 52.59140683 | H16: 47.39569592 | I16: 3.335889001
A17: 11 | B17: Chubb Seguros México | C17: 9432791.094 | D17: 8763074.979 | E17: 7.642478426 | F17: 51627.68894 | G17: 53.22987458 | H17: 53.06500664 | I17: 2.858679016
A18: 12 | B18: Zurich Santander | C18: 3013393.588 | D18: 2346331.049 | E18: 28.43002648 | F18: 0 | G18: 19.39513052 | H18: 21.32083586 | I18: 0.9132318239
A19: 13 | B19: Atlas | C19: 7799893.442 | D19: 6904341.295 | E19: 12.97085572 | F19: 23400.09523 | G19: 51.66900164 | H19: 51.34140492 | I19: 2.363816975
A20: 14 | B20: Allianz México | C20: 7911204.236 | D20: 8892244.904 | E20: -11.03254217 | F20: 20739.56244 | G20: 52.63149478 | H20: 62.36303503 | I20: 2.397550557
A21: 15 | B21: Pensiones Banorte | C21: 9832201.48 | D21: 8783080.758 | E21: 11.94479193 | F21: 0 | G21: 77.11719165 | H21: 58.01016263 | I21: 2.979723368
A22: 15.1 | B22: TOTAL MEDIANAS | C22: 110818931.5 | D22: 107948320.7 | E22: 2.659245523 | F22: 881392.6922 | G22: 55.16257284 | H22: 63.64792993 | I22: 33.58451926
A23: 16 | B23: Pensiones BBVA Bancomer | C23: 6564723.815 | D23: 5707463.1 | E23: 15.01999576 | F23: 0 | G23: 65.60200155 | H23: 61.06594014 | I23: 1.989489434
A24: 17 | B24: GMX Seguros | C24: 2866637.128 | D24: 3734911.343 | E24: -23.24751875 | F24: 0 | G24: 29.23918466 | H24: 35.17171126 | I24: 0.8687561637
A25: 18 | B25: HDI Seguros | C25: 5116539.382 | D25: 4277802.656 | E25: 19.60671854 | F25: 0 | G25: 58.99591905 | H25: 61.66484554 | I25: 1.550606138
A26: 19 | B26: Zurich Aseguradora Mexicana | C26: 3361605.828 | D26: 2826435.777 | E26: 18.93444939 | F26: 12368.66383 | G26: 39.39129987 | H26: 102.3563497 | I26: 1.018760189
A27: 20 | B27: Agroasemex | C27: 2580444.365 | D27: 812253.2129 | E27: 217.689647 | F27: -1704.4324 | G27: 30.3114736 | H27: 11.81539287 | I27: 0.7820232721
A28: 21 | B28: ProFuturo G.N.P. | C28: 4219744.461 | D28: 3577190.095 | E28: 17.9625446 | F28: 0 | G28: 65.95749063 | H28: 45.99682437 | I28: 1.278825622
A29: 22 | B29: AIG Seguros | C29: 825718.0328 | D29: 918426.8869 | E29: -10.09430967 | F29: 5150.30019 | G29: 13.09695271 | H29: 17.91643439 | I29: 0.250240124
A30: 23 | B30: HSBC Seguros | C30: 2198253.286 | D30: 2114375.786 | E30: 3.96701008 | F30: 0 | G30: 35.91649528 | H30: 45.6593938 | I30: 0.6661973617
A31: 24 | B31: Afirme | C31: 3485614.467 | D31: 4592937.379 | E31: -24.10925341 | F31: 3918.72589 | G31: 61.23115017 | H31: 81.90824322 | I31: 1.056341949
A32: 25 | B32: Seguros SURA | C32: 1827817.331 | D32: 0 | E32: 0 | F32: 15648.3316 | G32: 42.44038323 | H32: 0 | I32: 0.5539339306
A33: 26 | B33: Seguros Azteca | C33: 1626123.391 | D33: 2265684.971 | E33: -28.22817771 | F33: 0 | G33: 45.93263959 | H33: 71.76210942 | I33: 0.4928090496
A34: 27 | B34: Hir Seguros | C34: 1381357.46 | D34: 1132979.811 | E34: 21.92251319 | F34: 270345.7653 | G34: 42.41490197 | H34: 42.34545046 | I34: 0.4186308744
A35: 28 | B35: BUPA México | C35: 2168246.161 | D35: 2040958.121 | E35: 6.236680655 | F35: 0 | G35: 69.97606951 | H35: 72.53746789 | I35: 0.6571034745
A36: 29 | B36: Ve Por Más | C36: 1740872.777 | D36: 1530453.234 | E36: 13.74883845 | F36: 12395.94402 | G36: 59.38639395 | H36: 63.38888505 | I36: 0.527584723
A37: 30 | B37: FM Global | C37: 396493.0612 | D37: 252394.0775 | E37: 57.09285463 | F37: 0 | G37: 13.90260137 | H37: 9.277267372 | I37: 0.1201602349
A38: 31 | B38: Seguros Argos | C38: 1886421.353 | D38: 1959058.326 | E38: -3.70774938 | F38: -841.98502 | G38: 66.79765091 | H38: 80.26267375 | I38: 0.5716943251
A39: 32 | B39: ANA | C39: 1753553.625 | D39: 1473639.081 | E39: 18.99478288 | F39: 22014.20797 | G39: 73.28945574 | H39: 66.42616565 | I39: 0.5314277504
A40: 33 | B40: Plan Seguro | C40: 1258580.958 | D40: 1388345.317 | E40: -9.346691893 | F40: 0 | G40: 62.56064779 | H40: 60.4354031 | I40: 0.3814225225
A41: 34 | B41: General de Seguros | C41: 1310649.923 | D41: 1536300.784 | E41: -14.68793498 | F41: -10340.45652 | G41: 66.46940856 | H41: 79.71075659 | I41: 0.3972024182
A42: 35 | B42: Cardif Vida | C42: 564636.7317 | D42: 688451.9226 | E42: -17.9845806 | F42: -28392.7131 | G42: 31.43498149 | H42: 29.96435247 | I42: 0.1711174519
A43: 36 | B43: Seguros Azteca Daños | C43: 683175.5898 | D43: 514118.3545 | E43: 32.88294104 | F43: 0.00183 | G43: 41.12556209 | H43: 21.8455311 | I43: 0.2070415536
A44: 37 | B44: Cardif Seguros Generales | C44: 127678.0244 | D44: 134843.2314 | E44: -5.313731277 | F44: 0 | G44: 7.709010653 | H44: 9.382921862 | I44: 0.03869379545
A45: 38 | B45: El Potosí | C45: 745106.8141 | D45: 957908.2706 | E45: -22.2152228 | F45: 912.05034 | G45: 46.19766449 | H45: 61.9963258 | I45: 0.2258102817
A46: 39 | B46: HDI Global Seguros | C46: 433804.2159 | D46: 205366.5969 | E46: 111.2340675 | F46: 0 | G46: 27.64119547 | H46: 22.39341293 | I46: 0.1314676639
A47: 40 | B47: BBVA Bancomer Salud | C47: 680258.9154 | D47: 517717.2 | E47: 31.39584997 | F47: 0 | G47: 44.05367616 | H47: 49.85916287 | I47: 0.2061576332
A48: 41 | B48: Prudential | C48: 207228.612 | D48: 127354.5266 | E48: 62.71790055 | F48: 0 | G48: 15.33361826 | H48: 11.25628318 | I48: 0.06280220548
A49: 42 | B49: Insignia Life | C49: 589783.5249 | D49: 563440.6437 | E49: 4.675360476 | F49: 16887.89866 | G49: 47.59690132 | H49: 50.55037567 | I49: 0.1787383787
A50: 43 | B50: El Águila | C50: 647739.0533 | D50: 428620.916 | E50: 51.12166232 | F50: 0 | G50: 53.41379918 | H50: 43.7551245 | I50: 0.1963022419
A51: 44 | B51: Primero Seguros | C51: 458116.5386 | D51: 393778.7473 | E51: 16.33856367 | F51: 0 | G51: 44.03825221 | H51: 56.13227836 | I51: 0.138835698
A52: 45 | B52: La Latinoamericana | C52: 636604.3344 | D52: 631729.6592 | E52: 0.7716394314 | F52: 2465.41248 | G52: 66.45944679 | H52: 65.90566403 | I52: 0.1929277807
A53: 46 | B53: General de Salud | C53: 619673.0267 | D53: 435666.3875 | E53: 42.23567491 | F53: 0 | G53: 65.97813109 | H53: 52.1243621 | I53: 0.1877966193
A54: 47 | B54: Pan-American México | C54: 434309.9573 | D54: 413094.6195 | E54: 5.135709062 | F54: 41178.09444 | G54: 54.32274916 | H54: 60.33732709 | I54: 0.1316209326
A55: 48 | B55: Tokio Marine | C55: 287009.7817 | D55: 428281.5365 | E55: -32.98572148 | F55: 1072.08484 | G55: 36.4279376 | H55: 38.63954162 | I55: 0.08698049517
A56: 49 | B56: Swiss Re Corporate Solutions | C56: 76226.916 | D56: 50071.59601 | E56: 52.23584242 | F56: 765.66129 | G56: 11.63904084 | H56: 11.36607223 | I56: 0.0231011461
A57: 50 | B57: Atradius | C57: 218272.8151 | D57: 100396.2734 | E57: 117.411272 | F57: 12336.25758 | G57: 35.82291668 | H57: 15.24831218 | I57: 0.06614923517
A58: 51 | B58: Assurant Vida | C58: 166640.9272 | D58: 197486.8974 | E58: -15.61924894 | F58: 488.22853 | G58: 27.86137577 | H58: 20.34629174 | I58: 0.05050179921
A59: 52 | B59: Berkley Seguros | C59: 184059.9079 | D59: 322683.4703 | E59: -42.95961062 | F59: 3570.21345 | G59: 32.26006253 | H59: 72.44186126 | I59: 0.05578075367
A60: 53 | B60: AXA Salud | C60: 536351.1186 | D60: 353196.8348 | E60: 51.85615095 | F60: 0 | G60: 94.25595311 | H60: 64.19407596 | I60: 0.1625452819
A61: 54 | B61: Sompo Japan | C61: 104283.0903 | D61: 10382.03129 | E61: 904.4574843 | F61: 2.56884 | G61: 19.35354831 | H61: 1.681394402 | I61: 0.03160378291
A62: 55 | B62: Patrimonial Vida | C62: 1066316.712 | D62: 1236859.232 | E62: -13.78835322 | F62: 6383.86239 | G62: 200.5763709 | H62: 53.49325143 | I62: 0.323155382
A63: 56 | B63: Solunion Crédito | C63: 98226.97451 | D63: 83479.23446 | E63: 17.66635756 | F63: 517.20687 | G63: 20.10160245 | H63: 15.33839585 | I63: 0.029768431
A64: 57 | B64: Patrimonial Inbursa | C64: 29121.33298 | D64: 45561.86404 | E64: -36.08397375 | F64: 0 | G64: 6.117269846 | H64: 8.824699222 | I64: 0.008825441237
A65: 58 | B65: PREVEM Seguros | C65: 344275.9081 | D65: 262766.6901 | E65: 31.01961589 | F65: 0 | G65: 77.28394268 | H65: 65.81705708 | I65: 0.1043354299
A66: 59 | B66: Dentegra | C66: 139240.4076 | D66: 0 | E66: 0 | F66: 92.98029 | G66: 34.15535392 | H66: 0 | I66: 0.04219786353
A67: 60 | B67: SHF Cred Vivienda | C67: -170063.9653 | D67: 9932.02904 | E67: -1812.278173 | F67: 0 | G67: -44.31955084 | H67: 3.499379973 | I67: -0.05153917692
A68: 61 | B68: Coface | C68: 45837.32632 | D68: 31702.56358 | E68: 44.58555127 | F68: 438.96096 | G68: 14.66407778 | H68: 10.20444898 | I68: 0.01389135003
A69: 62 | B69: Skandia Life | C69: 116386.4606 | D69: 51987.61366 | E69: 123.8734429 | F69: 0 | G69: 41.4578761 | H69: 15.03534094 | I69: 0.03527180124
A70: 63 | B70: Patrimonial Daños | C70: 56710.89757 | D70: 30157.43547 | E70: 88.04947001 | F70: 0 | G70: 24.52897526 | H70: 16.01831221 | I70: 0.01718666842
A71: 64 | B71: Centauro | C71: 87856.00109 | D71: 68053.62107 | E71: 29.09820184 | F71: 175.47428 | G71: 40.45411337 | H71: 60.35253585 | I71: 0.0266254287
A72: 65 | B72: MediAccess | C72: 157398.2656 | D72: 98335.53276 | E72: 60.06245269 | F72: 0 | G72: 75.06816582 | H72: 52.874623 | I72: 0.04770074037
A73: 66 | B73: Assurant Daños | C73: 34063.67107 | D73: 44370.74896 | E73: -23.22944312 | F73: -740.3987 | G73: 17.17034074 | H73: 26.54300152 | I73: 0.01032325435
A74: 67 | B74: Odontoprev | C74: 20635.93421 | D74: 15993.89622 | E74: 29.02380962 | F74: 0 | G74: 19.36087813 | H74: 23.30722339 | I74: 0.006253876664
A75: 68 | B75: Virginia Surety | C75: 31675.19506 | D75: 19707.68882 | E75: 60.72506193 | F75: 0 | G75: 33.69806397 | H75: 25.4785937 | I75: 0.009599408546
A76: 69 | B76: Genworth Seg. de Crédito | C76: 17318.47091 | D76: 6708.07594 | E76: 158.1734474 | F76: 0 | G76: 20.53735455 | H76: 13.4832936 | I76: 0.005248494203
A77: 70 | B77: Crabi | C77: 41685.98071 | D77: 25384.25469 | E77: 64.2198332 | F77: 0 | G77: 68.67035328 | H77: 126.2487744 | I77: 0.0126332532
A78: 71 | B78: SPP Seguros | C78: 1158.59548 | D78: 0 | E78: 0 | F78: 0 | G78: 2.136426177 | H78: 0 | I78: 0.0003511211638
A79: 72 | B79: Metlife Pensiones | C79: 279636.7298 | D79: 264832.646 | E79: 5.589976936 | F79: 0 | G79: 754.9388955 | H79: 1481.709714 | I79: 0.08474603578
A80: 73 | B80: Metlife Más | C80: 2177.79826 | D80: 2797.09654 | E80: -22.14075457 | F80: 0 | G80: 6.239062691 | H80: 10.13775285 | I80: 0.0006599983106
A81: 74 | B81: SPT | C81: 19594.39173 | D81: 12788.65709 | E81: 53.21696087 | F81: 0 | G81: 60.60491374 | H81: 58.66065641 | I81: 0.005938229301
A82: 75 | B82: Quálitas Salud | C82: 11814.66581 | D82: 1050.98125 | E82: 1024.155717 | F82: 0 | G82: 91.9282954 | H82: 6.68371532 | I82: 0.003580524247
A83: 76 | B83: Citibanamex Pensiones | C83: 596238.7648 | D83: 568884.1496 | E83: 4.808468508 | F83: 0 | G83: 9605.794926 | H83: 3500.519244 | I83: 0.1806946882
A84: 77 | B84: Pensiones Inbursa | C84: 20801.92086 | D84: 18252.59121 | E84: 13.9669465 | F84: 0 | G84: 4138.031107 | H84: 1538.771076 | I84: 0.006304180179
A85: 78 | B85: Momento Seguros | C85: 97.46623 | D85: 0 | E85: 0 | F85: 0 | G85: 20.78649704 | H85: 0 | I85: 2.953788159e-05
A86: 79 | B86: Aserta Seguros de Vida | C86: -1689.60261 | D86: 24921.08431 | E86: -106.7798118 | F86: -296.49778 | G86: 0 | H86: 4179.661737 | I86: -0.0005120469093
A87: 79 | B87: Zurich Daños | C87: 0 | D87: 0 | E87: 0 | F87: 0 | G87: 0 | H87: 0 | I87: 0
A88: 79 | B88: Zurich Vida | C88: 0 | D88: 0 | E88: 0 | F88: 0 | G88: 0 | H88: 0 | I88: 0
A89: 150.1 | B89: TOTAL RESTO | C89: 58016873 | D89: 52540727.36 | E89: 10.42266813 | F89: 386812.4124 | G89: 46.17414788 | H89: 44.0430472 | I89: 17.5824542
A90: 200 | B90: Patria | C90: 0 | D90: 0 | E90: 0 | F90: 0 | G90: 0 | H90: 0 | I90: 0
A91: 201.1 | B91: TOTAL | C91: 329970278 | D91: 302547839.5 | E91: 9.063835509 | F91: 1949567.062 | G91: 56.16748186 | H91: 58.85740279 | I91: 100

Sheet TDPrimas (hidden)
A3: periodo | B3: 2023-Q3
A4: Ramo_ | B4: 10 Total General
A6: Jerarquia 2 | B6: nombre_compania | C6: Suma de Prima_DirectaAct | D6: Suma de Prima_DirectaAnt | E6: Suma de %CARTERA | F6: Suma de %SECTOR
A7: 1 | B7: G.N.P. | C7: 73374373.46 | D7: 64173691.33 | E7: 0 | F7: 0
A8: 2 | B8: Metlife México | C8: 58609536.35 | D8: 54187451.58 | E8: 0 | F8: 0
A9: 3 | B9: BBVA Bancomer | C9: 52224009.6 | D9: 43568790.65 | E9: 0 | F9: 0
A10: 4 | B10: AXA Seguros | C10: 41806699.47 | D10: 36252985.89 | E10: 0 | F10: 0
A11: 5 | B11: Quálitas | C11: 34917926.45 | D11: 26956119.4 | E11: 0 | F11: 0
A12: 5.1 | B12: TOTAL GRANDES | C12: 260932545.3 | D12: 225139038.9 | E12: 0 | F12: 0
A13: 6 | B13: Banorte | C13: 28721849.16 | D13: 23159092.69 | E13: 0 | F13: 0
A14: 7 | B14: Monterrey New York Life | C14: 28072029.51 | D14: 27266941.53 | E14: 0 | F14: 0
A15: 8 | B15: Citibanamex Seguros | C15: 24659912.83 | D15: 12807317.38 | E15: 0 | F15: 0
A16: 9 | B16: Mapfre México | C16: 22376637.89 | D16: 17630605.92 | E16: 0 | F16: 0
A17: 10 | B17: Inbursa | C17: 20930115.53 | D17: 18372239.08 | E17: 0 | F17: 0
A18: 11 | B18: Chubb Seguros México | C18: 17720859.14 | D18: 16513848.83 | E18: 0 | F18: 0
A19: 12 | B19: Zurich Santander | C19: 15536856.45 | D19: 11004873.66 | E19: 0 | F19: 0
A20: 13 | B20: Atlas | C20: 15095885.72 | D20: 13447900.98 | E20: 0 | F20: 0
A21: 14 | B21: Allianz México | C21: 15031312.09 | D21: 14258839.23 | E21: 0 | F21: 0
A22: 15 | B22: Pensiones Banorte | C22: 12749688.2 | D22: 15140589.79 | E22: 0 | F22: 0
A23: 15.1 | B23: TOTAL MEDIANAS | C23: 200895146.5 | D23: 169602249.1 | E23: 0 | F23: 0
A24: 16 | B24: Pensiones BBVA Bancomer | C24: 10006895.61 | D24: 9346393.565 | E24: 0 | F24: 0
A25: 17 | B25: GMX Seguros | C25: 9804093.929 | D25: 10619077.69 | E25: 0 | F25: 0
A26: 18 | B26: HDI Seguros | C26: 8672700.526 | D26: 6937182.147 | E26: 0 | F26: 0
A27: 19 | B27: Zurich Aseguradora Mexicana | C27: 8533878.9 | D27: 2761368.283 | E27: 0 | F27: 0
A28: 20 | B28: Agroasemex | C28: 8513094.41 | D28: 6874534.11 | E28: 0 | F28: 0
A29: 21 | B29: ProFuturo G.N.P. | C29: 6397672.835 | D29: 7777037.097 | E29: 0 | F29: 0
A30: 22 | B30: AIG Seguros | C30: 6304657.663 | D30: 5126170.01 | E30: 0 | F30: 0
A31: 23 | B31: HSBC Seguros | C31: 6120455.987 | D31: 4630757.462 | E31: 0 | F31: 0
A32: 24 | B32: Afirme | C32: 5692551.025 | D32: 5607417.762 | E32: 0 | F32: 0
A33: 25 | B33: Seguros SURA | C33: 4306787.997 | D33: 5306404.113 | E33: 0 | F33: 0
A34: 26 | B34: Seguros Azteca | C34: 3540235.016 | D34: 3157216.237 | E34: 0 | F34: 0
A35: 27 | B35: Hir Seguros | C35: 3256773.907 | D35: 2675564.433 | E35: 0 | F35: 0
A36: 28 | B36: BUPA México | C36: 3098553.801 | D36: 2813660.554 | E36: 0 | F36: 0
A37: 29 | B37: Ve Por Más | C37: 2931433.719 | D37: 2414387.37 | E37: 0 | F37: 0
A38: 30 | B38: FM Global | C38: 2851934.331 | D38: 2720564.875 | E38: 0 | F38: 0
A39: 31 | B39: Seguros Argos | C39: 2824083.374 | D39: 2440808.703 | E39: 0 | F39: 0
A40: 32 | B40: ANA | C40: 2392641.08 | D40: 2218461.756 | E40: 0 | F40: 0
A41: 33 | B41: Plan Seguro | C41: 2011777.375 | D41: 2297238.449 | E41: 0 | F41: 0
A42: 34 | B42: General de Seguros | C42: 1971809.215 | D42: 1927344.375 | E42: 0 | F42: 0
A43: 35 | B43: Cardif Vida | C43: 1796205.071 | D43: 2297569.831 | E43: 0 | F43: 0
A44: 36 | B44: Seguros Azteca Daños | C44: 1661194.535 | D44: 2353425.752 | E44: 0 | F44: 0
A45: 37 | B45: Cardif Seguros Generales | C45: 1656218.03 | D45: 1437113.442 | E45: 0 | F45: 0
A46: 38 | B46: El Potosí | C46: 1612866.846 | D46: 1545104.905 | E46: 0 | F46: 0
A47: 39 | B47: HDI Global Seguros | C47: 1569411.918 | D47: 917084.848 | E47: 0 | F47: 0
A48: 40 | B48: BBVA Bancomer Salud | C48: 1544159.25 | D48: 1038359.191 | E48: 0 | F48: 0
A49: 41 | B49: Prudential | C49: 1351465.835 | D49: 1131408.34 | E49: 0 | F49: 0
A50: 42 | B50: Insignia Life | C50: 1239121.683 | D50: 1114612.179 | E50: 0 | F50: 0
A51: 43 | B51: El Águila | C51: 1212681.111 | D51: 979590.2102 | E51: 0 | F51: 0
A52: 44 | B52: Primero Seguros | C52: 1040269.574 | D52: 701519.2663 | E52: 0 | F52: 0
A53: 45 | B53: La Latinoamericana | C53: 957883.8902 | D53: 958536.2177 | E53: 0 | F53: 0
A54: 46 | B54: General de Salud | C54: 939209.7296 | D54: 835821.0441 | E54: 0 | F54: 0
A55: 47 | B55: Pan-American México | C55: 799499.2227 | D55: 684641.8948 | E55: 0 | F55: 0
A56: 48 | B56: Tokio Marine | C56: 787883.6976 | D56: 1108402.218 | E56: 0 | F56: 0
A57: 49 | B57: Swiss Re Corporate Solutions | C57: 654924.3793 | D57: 440535.6134 | E57: 0 | F57: 0
A58: 50 | B58: Atradius | C58: 609310.5625 | D58: 658409.0898 | E58: 0 | F58: 0
A59: 51 | B59: Assurant Vida | C59: 598107.3176 | D59: 970628.4561 | E59: 0 | F59: 0
A60: 52 | B60: Berkley Seguros | C60: 570550.3757 | D60: 445437.8514 | E60: 0 | F60: 0
A61: 53 | B61: AXA Salud | C61: 569036.8629 | D61: 550201.6028 | E61: 0 | F61: 0
A62: 54 | B62: Sompo Japan | C62: 538831.8908 | D62: 617465.5557 | E62: 0 | F62: 0
A63: 55 | B63: Patrimonial Vida | C63: 531626.2864 | D63: 2312178.076 | E63: 0 | F63: 0
A64: 56 | B64: Solunion Crédito | C64: 488652.4583 | D64: 544250.0983 | E64: 0 | F64: 0
A65: 57 | B65: Patrimonial Inbursa | C65: 476051.1423 | D65: 516299.3422 | E65: 0 | F65: 0
A66: 58 | B66: PREVEM Seguros | C66: 445468.8725 | D66: 399237.9814 | E66: 0 | F66: 0
A67: 59 | B67: Dentegra | C67: 407667.881 | D67: 363244.9645 | E67: 0 | F67: 0
A68: 60 | B68: SHF Cred Vivienda | C68: 383722.2222 | D68: 283822.5376 | E68: 0 | F68: 0
A69: 61 | B69: Coface | C69: 312582.4004 | D69: 310673.9387 | E69: 0 | F69: 0
A70: 62 | B70: Skandia Life | C70: 280734.2574 | D70: 345769.4366 | E70: 0 | F70: 0
A71: 63 | B71: Patrimonial Daños | C71: 231199.6199 | D71: 188268.496 | E71: 0 | F71: 0
A72: 64 | B72: Centauro | C72: 217174.4571 | D72: 112760.1684 | E72: 0 | F72: 0
A73: 65 | B73: MediAccess | C73: 209673.7863 | D73: 185978.6929 | E73: 0 | F73: 0
A74: 66 | B74: Assurant Daños | C74: 198386.6924 | D74: 167165.5292 | E74: 0 | F74: 0
A75: 67 | B75: Odontoprev | C75: 106585.7348 | D75: 68622.05742 | E75: 0 | F75: 0
A76: 68 | B76: Virginia Surety | C76: 93997.07677 | D76: 77349.98663 | E76: 0 | F76: 0
A77: 69 | B77: Genworth Seg. de Crédito | C77: 84326.68807 | D77: 49751.01884 | E77: 0 | F77: 0
A78: 70 | B78: Crabi | C78: 60704.47976 | D78: 20106.53554 | E78: 0 | F78: 0
A79: 71 | B79: SPP Seguros | C79: 54230.54129 | D79: 39785.98031 | E79: 0 | F79: 0
A80: 72 | B80: Metlife Pensiones | C80: 37040.9753 | D80: 17873.45007 | E80: 0 | F80: 0
A81: 73 | B81: Metlife Más | C81: 34905.85634 | D81: 27590.89299 | E81: 0 | F81: 0
A82: 74 | B82: SPT | C82: 32331.35817 | D82: 21801.08078 | E82: 0 | F82: 0
A83: 75 | B83: Quálitas Salud | C83: 12852.04491 | D83: 15724.5065 | E83: 0 | F83: 0
A84: 76 | B84: Citibanamex Pensiones | C84: 6207.07364 | D84: 16251.42186 | E84: 0 | F84: 0
A85: 77 | B85: Pensiones Inbursa | C85: 502.70093 | D85: 1186.17977 | E85: 0 | F85: 0
A86: 78 | B86: Momento Seguros | C86: 468.89204 | D86: 0 | E86: 0 | F86: 0
A87: 79 | B87: Aserta Seguros de Vida | C87: 0 | D87: 596.24644 | E87: 0 | F87: 0
A88: 79 | B88: Zurich Daños | C88: 0 | D88: 4063560.402 | E88: 0 | F88: 0
A89: 79 | B89: Zurich Vida | C89: 0 | D89: 706727.7084 | E89: 0 | F89: 0
A90: 150.1 | B90: TOTAL RESTO | C90: 125647956 | D90: 119294033.2 | E90: 0 | F90: 0

Sheet TDPrimas Vida (hidden)
A2: periodo | B2: 2023-Q3
A3: Ramo2 | B3: 12 Vida Total
A4: subramo | B4: (Varios elementos)
A6: Jerarquia 2 | B6: nombre_compania | C6: Suma de Prima_DirectaAct | D6: Suma de Prima_DirectaAnt | E6: Suma de %CARTERA | F6: Suma de Prima_Directa_Act1anio | G6: Suma de Prima_Directa_Ant1anio | H6: Suma de %CARTERA_1anio | I6: Suma de PrimaDirectaAct_Renov | J6: Suma de PrimaDirectaAnt_Renov | K6: Suma de %CARTERA_Renov | L6: Suma de PrimaDirectaAct_Unica | M6: Suma de PrimaDirectaAnt_Unica | N6: Suma de %CARTERA_uni
A7: 1 | B7: BBVA Bancomer | C7: 41267678.08 | D7: 35057662.31 | E7: 0 | F7: 35729321.52 | G7: 30724108.5 | H7: 0 | I7: 3722413.174 | J7: 2699290.781 | K7: 0 | L7: 1815943.386 | M7: 1634263.024 | N7: 0
A8: 2 | B8: Metlife México | C8: 39227155.83 | D8: 37640049.23 | E8: 0 | F8: 7346891.272 | G8: 6841571.384 | H8: 0 | I8: 26487530.93 | J8: 25829171.54 | K8: 0 | L8: 5392733.63 | M8: 4969306.315 | N8: 0
A9: 3 | B9: G.N.P. | C9: 26297045.35 | D9: 24345185.57 | E9: 0 | F9: 7228265.317 | G9: 5810559.518 | H9: 0 | I9: 12920964 | J9: 12826316.06 | K9: 0 | L9: 6147816.036 | M9: 5708309.994 | N9: 0
A10: 4 | B10: Citibanamex Seguros | C10: 24036154.06 | D10: 12114763.92 | E10: 0 | F10: 13383060.37 | G10: 7097320.929 | H10: 0 | I10: 10653093.69 | J10: 5017442.991 | K10: 0 | L10: 0 | M10: 0 | N10: 0
A11: 5 | B11: Monterrey New York Life | C11: 18624780.16 | D11: 18430517.94 | E11: 0 | F11: 1907241.134 | G11: 1671923.476 | H11: 0 | I11: 12176277.46 | J11: 12108435.42 | K11: 0 | L11: 4541261.568 | M11: 4650159.044 | N11: 0
A12: 5.1 | B12: TOTAL GRANDES | C12: 149452813.5 | D12: 127588179 | E12: 0 | F12: 65594779.61 | G12: 52145483.81 | H12: 0 | I12: 65960279.25 | J12: 58480656.79 | K12: 0 | L12: 17897754.62 | M12: 16962038.38 | N12: 0
A13: 6 | B13: Banorte | C13: 17792711.93 | D13: 13859190.94 | E13: 0 | F13: 3941434.754 | G13: 4048059.029 | H13: 0 | I13: 8957597.782 | J13: 7755195.251 | K13: 0 | L13: 4893679.396 | M13: 2055936.66 | N13: 0
A14: 7 | B14: Zurich Santander | C14: 11872659.72 | D14: 7465284.196 | E14: 0 | F14: 6643921.136 | G14: 2967066.487 | H14: 0 | I14: 1070122.955 | J14: 1030190.774 | K14: 0 | L14: 4158615.629 | M14: 3468026.935 | N14: 0
A15: 8 | B15: Allianz México | C15: 8022515.088 | D15: 7691525.384 | E15: 0 | F15: 4323169.687 | G15: 3379146.298 | H15: 0 | I15: 3699345.4 | J15: 4312379.086 | K15: 0 | L15: 0 | M15: 0 | N15: 0
A16: 9 | B16: HSBC Seguros | C16: 5777868.473 | D16: 4345336.402 | E16: 0 | F16: 4351416.92 | G16: 2657947.876 | H16: 0 | I16: 1426451.552 | J16: 1687388.525 | K16: 0 | L16: 0 | M16: 0 | N16: 0
A17: 10 | B17: Mapfre México | C17: 4515190.906 | D17: 4232465.331 | E17: 0 | F17: 3895125.88 | G17: 3597860.675 | H17: 0 | I17: 610219.4248 | J17: 631236.1286 | K17: 0 | L17: 9845.60125 | M17: 3368.52744 | N17: 0
A18: 11 | B18: AXA Seguros | C18: 4432978.375 | D18: 4020917.33 | E18: 0 | F18: 969378.1962 | G18: 837883.561 | H18: 0 | I18: 3454818.439 | J18: 3176990.606 | K18: 0 | L18: 8781.73951 | M18: 6043.16297 | N18: 0
A19: 12 | B19: Inbursa | C19: 3925225.845 | D19: 4233175.385 | E19: 0 | F19: 2195424.889 | G19: 2539822.621 | H19: 0 | I19: 1729800.956 | J19: 1693352.764 | K19: 0 | L19: 0 | M19: 0 | N19: 0
A20: 13 | B20: Seguros Azteca | C20: 3210392.082 | D20: 3037397.68 | E20: 0 | F20: 3118270.423 | G20: 2965811.633 | H20: 0 | I20: 6877.13085 | J20: 6546.9306 | K20: 0 | L20: 85244.52769 | M20: 65039.11662 | N20: 0
A21: 14 | B21: Hir Seguros | C21: 3195969.609 | D21: 2648757.616 | E21: 0 | F21: 1898344.369 | G21: 980249.7552 | H21: 0 | I21: 1297625.24 | J21: 1668507.861 | K21: 0 | L21: 0 | M21: 0 | N21: 0
A22: 15 | B22: Seguros Argos | C22: 2824083.374 | D22: 2440808.703 | E22: 0 | F22: 1338268.666 | G22: 780011.6509 | H22: 0 | I22: 1319175.685 | J22: 1441795.811 | K22: 0 | L22: 166639.0236 | M22: 219001.2417 | N22: 0
A23: 15.1 | B23: TOTAL MEDIANAS | C23: 65569595.4 | D23: 53974858.97 | E23: 0 | F23: 32674754.92 | G23: 24753859.59 | H23: 0 | I23: 23572034.57 | J23: 23403583.74 | K23: 0 | L23: 9322805.918 | M23: 5817415.644 | N23: 0
A24: 16 | B24: Cardif Vida | C24: 1950834.362 | D24: 2104536.276 | E24: 0 | F24: 17191.98246 | G24: 268641.3552 | H24: 0 | I24: 1440545.229 | J24: 1332520.062 | K24: 0 | L24: 493097.1512 | M24: 503374.8579 | N24: 0
A25: 17 | B25: Atlas | C25: 1807604.948 | D25: 2208728.085 | E25: 0 | F25: 1207668.685 | G25: 1646009.501 | H25: 0 | I25: 519261.1819 | J25: 509813.278 | K25: 0 | L25: 80675.08166 | M25: 52905.30627 | N25: 0
A26: 18 | B26: Afirme | C26: 1727627.465 | D26: 1880411.977 | E26: 0 | F26: 1727627.465 | G26: 1880411.977 | H26: 0 | I26: 0 | J26: 0 | K26: 0 | L26: 0 | M26: 0 | N26: 0
A27: 19 | B27: Prudential | C27: 1351465.835 | D27: 1131408.34 | E27: 0 | F27: 380060.0356 | G27: 405909.3829 | H27: 0 | I27: 957224.3301 | J27: 702765.733 | K27: 0 | L27: 14181.46932 | M27: 22733.22425 | N27: 0
A28: 20 | B28: Insignia Life | C28: 1239121.683 | D28: 1114612.179 | E28: 0 | F28: 428336.9709 | G28: 343327.1446 | H28: 0 | I28: 813430.7463 | J28: 773380.9238 | K28: 0 | L28: -2646.03375 | M28: -2095.88951 | N28: 0
A29: 21 | B29: Seguros SURA | C29: 995730.0311 | D29: 1418532.228 | E29: 0 | F29: 753065.772 | G29: 1222694.706 | H29: 0 | I29: 241811.9028 | J29: 194558.4478 | K29: 0 | L29: 852.35628 | M29: 1279.07477 | N29: 0
A30: 22 | B30: Chubb Seguros México | C30: 813211.67 | D30: 756970.1439 | E30: 0 | F30: 813211.67 | G30: 756970.1439 | H30: 0 | I30: 0 | J30: 0 | K30: 0 | L30: 0 | M30: 0 | N30: 0
A31: 23 | B31: Assurant Vida | C31: 598107.3176 | D31: 970628.4561 | E31: 0 | F31: 590521.6749 | G31: 962132.0209 | H31: 0 | I31: 7585.64265 | J31: 8496.43517 | K31: 0 | L31: 0 | M31: 0 | N31: 0
A32: 24 | B32: Zurich Aseguradora Mexicana | C32: 559315.226 | D32: 321987.7557 | E32: 0 | F32: 226701.4988 | G32: 173074.8356 | H32: 0 | I32: 113001.0524 | J32: 60207.0165 | K32: 0 | L32: 219618.9542 | M32: 88705.90351 | N32: 0
A33: 25 | B33: Patrimonial Vida | C33: 531626.2864 | D33: 2312178.076 | E33: 0 | F33: 531626.2864 | G33: 2312178.076 | H33: 0 | I33: 0 | J33: 0 | K33: 0 | L33: 0 | M33: 0 | N33: 0
A34: 26 | B34: Ve Por Más | C34: 482017.0341 | D34: 494207.2547 | E34: 0 | F34: 170956.7738 | G34: 142693.6824 | H34: 0 | I34: 281368.9494 | J34: 273122.5723 | K34: 0 | L34: 29691.311 | M34: 78391 | N34: 0
A35: 27 | B35: General de Seguros | C35: 407027.622 | D35: 473649.8034 | E35: 0 | F35: 110084.0507 | G35: 148507.6637 | H35: 0 | I35: 296943.5712 | J35: 325142.1397 | K35: 0 | L35: 0 | M35: 0 | N35: 0
A36: 28 | B36: Pan-American México | C36: 358347.9962 | D36: 331684.1063 | E36: 0 | F36: 182645.6981 | G36: 64144.27781 | H36: 0 | I36: 140631.9901 | J36: 199511.0571 | K36: 0 | L36: 35070.308 | M36: 68028.7714 | N36: 0
A37: 29 | B37: Patrimonial Inbursa | C37: 288195.2289 | D37: 344189.195 | E37: 0 | F37: 288195.2289 | G37: 344189.195 | H37: 0 | I37: 0 | J37: 0 | K37: 0 | L37: 0 | M37: 0 | N37: 0
A38: 30 | B38: Skandia Life | C38: 280734.2574 | D38: 345769.4366 | E38: 0 | F38: 100319.0433 | G38: 170200.6237 | H38: 0 | I38: 180415.2141 | J38: 175568.8129 | K38: 0 | L38: 0 | M38: 0 | N38: 0
A39: 31 | B39: El Potosí | C39: 261093.6252 | D39: 215099.9713 | E39: 0 | F39: 107219.4187 | G39: 63273.80232 | H39: 0 | I39: 153425.0065 | J39: 151717.3328 | K39: 0 | L39: 449.2 | M39: 108.83614 | N39: 0
A40: 32 | B40: La Latinoamericana | C40: 189005.1773 | D40: 255210.8954 | E40: 0 | F40: 1883.61761 | G40: 109295.559 | H40: 0 | I40: 187121.5597 | J40: 145915.3364 | K40: 0 | L40: 0 | M40: 0 | N40: 0
A41: 33 | B41: Tokio Marine | C41: 73118.54378 | D41: 60690.9937 | E41: 0 | F41: 36079.12968 | G41: 23236.6148 | H41: 0 | I41: 37039.4141 | J41: 37454.3789 | K41: 0 | L41: 0 | M41: 0 | N41: 0
A42: 34 | B42: Agroasemex | C42: 58195.67978 | D42: 56430.65034 | E42: 0 | F42: 58195.67978 | G42: 56430.65034 | H42: 0 | I42: 0 | J42: 0 | K42: 0 | L42: 0 | M42: 0 | N42: 0
A43: 35 | B43: HDI Seguros | C43: 1016.02262 | D43: 1424.02306 | E43: 0 | F43: 0 | G43: 0 | H43: 0 | I43: 1016.02262 | J43: 1424.02306 | K43: 0 | L43: 0 | M43: 0 | N43: 0
A44: 36 | B44: Aserta Seguros de Vida | C44: 0 | D44: 596.24644 | E44: 0 | F44: 0 | G44: 616.71188 | H44: 0 | I44: 0 | J44: -3.13534 | K44: 0 | L44: 0 | M44: -17.3301 | N44: 0
A45: 36 | B45: Zurich Vida | C45: 0 | D45: 240159.4534 | E45: 0 | F45: 0 | G45: 0 | H45: 0 | I45: 0 | J45: 0 | K45: 0 | L45: 0 | M45: 0 | N45: 0
A46: 150.1 | B46: TOTAL RESTO | C46: 13973396.01 | D46: 17039105.55 | E46: 0 | F46: 7731590.681 | G46: 11093937.92 | H46: 0 | I46: 5370821.812 | J46: 4891594.414 | K46: 0 | L46: 870989.7979 | M46: 813413.7547 | N46: 0
A47: 201.1 | B47: TOTAL | C47: 228995804.9 | D47: 198602143.5 | E47: 0 | F47: 106001125.2 | G47: 87993281.32 | H47: 0 | I47: 94903135.63 | J47: 86775834.94 | K47: 0 | L47: 28091550.34 | M47: 23592867.78 | N47: 0

Sheet TD Siniestros (hidden)
A3: periodo | B3: 2023-Q3
A4: Ramo_ | B4: 10 Total General
A6: Jerarquia 2 | B6: nombre_compania | C6: Suma de CostoSin_Act | D6: Suma de IncSin | E6: Suma de IncResvDivAct | F6: Suma de %SinvsPrm_Act | G6: Suma de %SinvsPrm_Ant | H6: Suma de Costo_Sin_RetAct | I6: Suma de IncSin_Ret | J6: Suma de Prima_DevengadaAct | K6: Suma de IncSin_PDev | L6: Suma de %SinvsPDev_Act | M6: Suma de %SinvsPDev_Ant
A7: 1 | B7: G.N.P. | C7: 45612532.9 | D7: 8.552695244 | E7: 205015.3468 | F7: 62.1641191 | G7: 65.47666602 | H7: 44114194.39 | I7: 12.19933329 | J7: 59607189.39 | K7: 15.55837931 | L7: 74.00817728 | M7: 76.22384885
A8: 2 | B8: Metlife México | C8: 40022840.24 | D8: 10.24541877 | E8: 101995.4338 | F8: 68.28724936 | G8: 66.99596192 | H8: 38193952.84 | I8: 9.803038969 | J8: 50697528.44 | K8: 8.267710923 | L8: 75.33691289 | M8: 74.28350966
A9: 3 | B9: BBVA Bancomer | C9: 25601627.5 | D9: 22.12398603 | E9: 0 | F9: 49.02271521 | G9: 48.11617527 | H9: 25355312.67 | I9: 21.45906187 | J9: 29498037.37 | K9: 1.987540841 | L9: 85.95593106 | M9: 72.17603936
A10: 4 | B10: AXA Seguros | C10: 26588553.59 | D10: 9.047143834 | E10: 305789.9512 | F10: 63.59878661 | G10: 67.25686739 | H10: 25431387.71 | I10: 14.51808437 | J10: 32884973.33 | K10: 12.62962274 | L10: 77.33437231 | M10: 76.05908906
A11: 5 | B11: Quálitas | C11: 23308919.18 | D11: 26.74548341 | E11: 68561.22548 | F11: 66.75344602 | G11: 68.22322929 | H11: 23331011.34 | I11: 26.89592695 | J11: 33390337.9 | K11: 23.10637209 | L11: 69.87354068 | M11: 67.78687311
A12: 5.1 | B12: TOTAL GRANDES | C12: 161134473.4 | D12: 13.42801933 | E12: 681361.9573 | F12: 61.75330609 | G12: 63.09824905 | H12: 156425858.9 | I12: 15.38330893 | J12: 206078066.4 | K12: 12.21132702 | L12: 75.90611735 | M12: 73.81939585
A13: 6 | B13: Banorte | C13: 13363853.59 | D13: 3.522689896 | E13: 248778.3986 | F13: 46.52852787 | G13: 55.74098259 | H13: 11892830.82 | I13: 6.823965171 | J13: 18148401.81 | K13: 8.945809539 | L13: 65.53100899 | M13: 66.83265139
A14: 7 | B14: Monterrey New York Life | C14: 18189477.93 | D14: 0.1557242063 | E14: 30288.24346 | F14: 64.79573527 | G14: 66.60518388 | H14: 17057184.14 | I14: 0.007974803869 | J14: 23160728.69 | K14: -7.884555332 | L14: 73.64700984 | M14: 67.8348609
A15: 8 | B15: Citibanamex Seguros | C15: 19475883.15 | D15: -10.83872221 | E15: 0 | F15: 78.97790752 | G15: 170.5543123 | H15: 19448545.28 | I15: -10.84733609 | J15: 14629904.06 | K15: -51.41003281 | L15: 132.9369298 | M15: 72.45325907
A16: 9 | B16: Mapfre México | C16: 10792790.83 | D16: 1.456384361 | E16: 359312.0947 | F16: 48.23240594 | G16: 60.33747623 | H16: 7614988.217 | I16: 4.170638324 | J16: 11948835.87 | K16: 2.133552968 | L16: 63.72995914 | M16: 62.48370234
A17: 10 | B17: Inbursa | C17: 11007442.21 | D17: 26.41116133 | E17: 147246.6088 | F17: 52.59140683 | G17: 47.39569592 | H17: 9107122.431 | I17: 15.73018004 | J17: 12313132.79 | K17: 6.946532988 | L17: 73.96267533 | M17: 68.34908314
A18: 11 | B18: Chubb Seguros México | C18: 9432791.094 | D18: 7.642478426 | E18: 51627.68894 | F18: 53.22987458 | G18: 53.06500664 | H18: 4721284.556 | I18: 12.91529163 | J18: 6866701.967 | K18: -2.750150251 | L18: 68.75621775 | M18: 59.2172393
A19: 12 | B19: Zurich Santander | C19: 3013393.588 | D19: 28.43002648 | E19: 0 | F19: 19.39513052 | G19: 21.32083586 | H19: 2769564.049 | I19: 25.78547864 | J19: 8912052.061 | K19: 8.912873113 | L19: 31.07661435 | M19: 26.90806118
A20: 13 | B20: Atlas | C20: 7799893.442 | D20: 12.97085572 | E20: 23400.09523 | F20: 51.66900164 | G20: 51.34140492 | H20: 6175509.334 | I20: 14.5080322 | J20: 8636143.322 | K20: 12.9876823 | L20: 71.50772171 | M20: 70.55829699
A21: 14 | B21: Allianz México | C21: 7911204.236 | D21: -11.03254217 | E21: 20739.56244 | F21: 52.63149478 | G21: 62.36303503 | H21: 6943509.423 | I21: 7.381701806 | J21: 6481486.384 | K21: -43.70031067 | L21: 107.1283501 | M21: 56.16685829
A22: 15 | B22: Pensiones Banorte | C22: 9832201.48 | D22: 11.94479193 | E22: 0 | F22: 77.11719165 | G22: 58.01016263 | H22: 9832201.48 | I22: 11.94479193 | J22: -1045525.698 | K22: -83.84525719 | L22: -940.4074426 | M22: -135.710113
A23: 15.1 | B23: TOTAL MEDIANAS | C23: 110818931.5 | D23: 2.659245523 | E23: 881392.6922 | F23: 55.16257284 | G23: 63.64792993 | H23: 95562739.73 | I23: 3.637525095 | J23: 110051861.3 | K23: -10.5636007 | L23: 86.83427853 | M23: 74.93564904
A24: 16 | B24: Pensiones BBVA Bancomer | C24: 6564723.815 | D24: 15.01999576 | E24: 0 | F24: 65.60200155 | G24: 61.06594014 | H24: 6564723.815 | I24: 15.01999576 | J24: -761480.8665 | K24: -82.8013152 | L24: -862.0996409 | M24: -128.9078468
A25: 17 | B25: GMX Seguros | C25: 2866637.128 | D25: -23.24751875 | E25: 0 | F25: 29.23918466 | G25: 35.17171126 | H25: 796279.5686 | I25: 28.2310371 | J25: 2029854.238 | K25: 0.9834552009 | L25: 39.22841127 | M25: 30.89283688
A26: 18 | B26: HDI Seguros | C26: 5116539.382 | D26: 19.60671854 | E26: 0 | F26: 58.99591905 | G26: 61.66484554 | H26: 5059367.6 | I26: 25.07240672 | J26: 7642962.777 | K26: 11.16512917 | L26: 66.19641817 | M26: 58.83578616
A27: 19 | B27: Zurich Aseguradora Mexicana | C27: 3361605.828 | D27: 18.93444939 | E27: 12368.66383 | F27: 39.39129987 | G27: 102.3563497 | H27: 2717400.718 | I27: 161.9143763 | J27: 4965029.273 | K27: 189.304331 | L27: 54.7308096 | M27: 60.45433809
A28: 20 | B28: Agroasemex | C28: 2580444.365 | D28: 217.689647 | E28: -1704.4324 | F28: 30.3114736 | G28: 11.81539287 | H28: 1195996.261 | I28: 30.8723335 | J28: 2074504.111 | K28: -69.43895069 | L28: 57.6521519 | M28: 13.46281685
A29: 21 | B29: ProFuturo G.N.P. | C29: 4219744.461 | D29: 17.9625446 | E29: 0 | F29: 65.95749063 | G29: 45.99682437 | H29: 4219744.461 | I29: 17.9625446 | J29: -825479.4471 | K29: -72.88694353 | L29: -511.1871017 | M29: -117.4936061
A30: 22 | B30: AIG Seguros | C30: 825718.0328 | D30: -10.09430967 | E30: 5150.30019 | F30: 13.09695271 | G30: 17.91643439 | H30: 405669.9329 | I30: 3.57677931 | J30: 791251.3898 | K30: 0.6577032247 | L30: 51.26941173 | M30: 49.8244999
A31: 23 | B31: HSBC Seguros | C31: 2198253.286 | D31: 3.96701008 | E31: 0 | F31: 35.91649528 | G31: 45.6593938 | H31: 2164705.152 | I31: 3.845072863 | J31: 3543498.691 | K31: 6.218213364 | L31: 61.08948643 | M31: 62.48554626
A32: 24 | B32: Afirme | C32: 3485614.467 | D32: -24.10925341 | E32: 3918.72589 | F32: 61.23115017 | G32: 81.90824322 | H32: 2855456.879 | I32: -10.56827866 | J32: 3401234.27 | K32: -2.050950596 | L32: 83.95354897 | M32: 91.94914503
A33: 25 | B33: Seguros SURA | C33: 1827817.331 | D33: 0 | E33: 15648.3316 | F33: 42.44038323 | G33: 0 | H33: 1851836.619 | I33: -8.96566586 | J33: 3204492.577 | K33: -23.37303741 | L33: 57.78876293 | M33: 48.64293694
A34: 26 | B34: Seguros Azteca | C34: 1626123.391 | D34: -28.22817771 | E34: 0 | F34: 45.93263959 | G34: 71.76210942 | H34: 867524.2949 | I34: -19.80002366 | J34: 2384329.385 | K34: 11.68643695 | L34: 36.38441486 | M34: 50.6689134
A35: 27 | B35: Hir Seguros | C35: 1381357.46 | D35: 21.92251319 | E35: 270345.7653 | F35: 42.41490197 | G35: 42.34545046 | H35: 755244.7024 | I35: -16.26343969 | J35: 1541132.162 | K35: 27.61976103 | L35: 49.00583616 | M35: 74.68796277
A36: 28 | B36: BUPA México | C36: 2168246.161 | D36: 6.236680655 | E36: 0 | F36: 69.97606951 | G36: 72.53746789 | H36: 1976736.703 | I36: 5.747635885 | J36: 3251469.664 | K36: 10.74823557 | L36: 60.79517595 | M36: 63.67006138
A37: 29 | B37: Ve Por Más | C37: 1740872.777 | D37: 13.74883845 | E37: 12395.94402 | F37: 59.38639395 | G37: 63.38888505 | H37: 1457799.137 | I37: 32.2977237 | J37: 2048435.532 | K37: 6.184139518 | L37: 71.16646406 | M37: 57.11927264
A38: 30 | B38: FM Global | C38: 396493.0612 | D38: 57.09285463 | E38: 0 | F38: 13.90260137 | G38: 9.277267372 | H38: -2829.28535 | I38: -239.6640323 | J38: -8212.44557 | K38: 44.98833683 | L38: 34.4511915 | M38: -35.76454778
A39: 31 | B39: Seguros Argos | C39: 1886421.353 | D39: -3.70774938 | E39: -841.98502 | F39: 66.79765091 | G39: 80.26267375 | H39: 1428342.646 | I39: -1.984845901 | J39: 2168809.748 | K39: 11.61340949 | L39: 65.8583653 | M39: 74.99530824
A40: 32 | B40: ANA | C40: 1753553.625 | D40: 18.99478288 | E40: 22014.20797 | F40: 73.28945574 | G40: 66.42616565 | H40: 1358888.133 | I40: 20.05875204 | J40: 1851649.967 | K40: 7.891742831 | L40: 73.38795978 | M40: 65.95066789
A41: 33 | B41: Plan Seguro | C41: 1258580.958 | D41: -9.346691893 | E41: 0 | F41: 62.56064779 | G41: 60.4354031 | H41: 932660.6885 | I41: -9.263528365 | J41: 1492387.041 | K41: -8.753639653 | L41: 62.49455822 | M41: 62.84574302
A42: 34 | B42: General de Seguros | C42: 1310649.923 | D42: -14.68793498 | E42: -10340.45652 | F42: 66.46940856 | G42: 79.71075659 | H42: 1153068.691 | I42: -14.6535957 | J42: 1669044.662 | K42: 5.831768944 | L42: 69.08555039 | M42: 85.66788568
A43: 35 | B43: Cardif Vida | C43: 564636.7317 | D43: -17.9845806 | E43: -28392.7131 | F43: 31.43498149 | G43: 29.96435247 | H43: 412270.6061 | I43: -21.56345256 | J43: 1350596.652 | K43: -22.93598724 | L43: 30.52507243 | M43: 29.99092448
A44: 36 | B44: Seguros Azteca Daños | C44: 683175.5898 | D44: 32.88294104 | E44: 0.00183 | F44: 41.12556209 | G44: 21.8455311 | H44: 93505.80148 | I44: 0.4806021821 | J44: 260859.8472 | K44: -6.752329455 | L44: 35.84522588 | M44: 33.26496599
A45: 37 | B45: Cardif Seguros Generales | C45: 127678.0244 | D45: -5.313731277 | E45: 0 | F45: 7.709010653 | G45: 9.382921862 | H45: 78941.03488 | I45: -57.00063349 | J45: 1102610.97 | K45: -13.09660289 | L45: 7.159463946 | M45: 14.46955592
A46: 38 | B46: El Potosí | C46: 745106.8141 | D46: -22.2152228 | E46: 912.05034 | F46: 46.19766449 | G46: 61.9963258 | H46: 696821.398 | I46: -14.01666321 | J46: 1195260.379 | K46: 6.538555475 | L46: 58.29871135 | M46: 72.23562988
A47: 39 | B47: HDI Global Seguros | C47: 433804.2159 | D47: 111.2340675 | E47: 0 | F47: 27.64119547 | G47: 22.39341293 | H47: 5156.86875 | I47: -937.0534763 | J47: -5077.32128 | K47: -12.26397186 | L47: -101.5667212 | M47: 10.64574841
A48: 40 | B48: BBVA Bancomer Salud | C48: 680258.9154 | D48: 31.39584997 | E48: 0 | F48: 44.05367616 | G48: 49.85916287 | H48: 608960.4149 | I48: 32.30909666 | J48: 858422.2073 | K48: 17.55104647 | L48: 70.9394992 | M48: 63.02675008
A49: 41 | B49: Prudential | C49: 207228.612 | D49: 62.71790055 | E49: 0 | F49: 15.33361826 | G49: 11.25628318 | H49: 410702.1714 | I49: 24.32708989 | J49: 1625840.679 | K49: -2.986188193 | L49: 25.26091127 | M49: 19.71137018
A50: 42 | B50: Insignia Life | C50: 589783.5249 | D50: 4.675360476 | E50: 16887.89866 | F50: 47.59690132 | G50: 50.55037567 | H50: 550286.276 | I50: 10.08103188 | J50: 921433.0428 | K50: 12.41969263 | L50: 59.72070139 | M50: 60.98946185
A51: 43 | B51: El Águila | C51: 647739.0533 | D51: 51.12166232 | E51: 0 | F51: 53.41379918 | G51: 43.7551245 | H51: 440501.2514 | I51: 28.28693023 | J51: 886067.6518 | K51: 18.57970541 | L51: 49.71417821 | M51: 45.95240213
A52: 44 | B52: Primero Seguros | C52: 458116.5386 | D52: 16.33856367 | E52: 0 | F52: 44.03825221 | G52: 56.13227836 | H52: 376540.1875 | I52: 10.72582124 | J52: 651225.933 | K52: 21.51572547 | L52: 57.82020776 | M52: 63.45461622
A53: 45 | B53: La Latinoamericana | C53: 636604.3344 | D53: 0.7716394314 | E53: 2465.41248 | F53: 66.45944679 | G53: 65.90566403 | H53: 368119.0597 | I53: -1.395942618 | J53: 625596.6306 | K53: 7.046995032 | L53: 58.84287761 | M53: 63.88127826
A54: 46 | B54: General de Salud | C54: 619673.0267 | D54: 42.23567491 | E54: 0 | F54: 65.97813109 | G54: 52.1243621 | H54: 424953.1899 | I54: 3.810593932 | J54: 527832.3609 | K54: 13.29318191 | L54: 80.50912021 | M54: 87.86323299
A55: 47 | B55: Pan-American México | C55: 434309.9573 | D55: 5.135709062 | E55: 41178.09444 | F55: 54.32274916 | G55: 60.33732709 | H55: 367684.5148 | I55: 26.92347593 | J55: 633544.0433 | K55: 19.94115488 | L55: 58.03614108 | M55: 54.84345379
A56: 48 | B56: Tokio Marine | C56: 287009.7817 | D56: -32.98572148 | E56: 1072.08484 | F56: 36.4279376 | G56: 38.63954162 | H56: 78625.34401 | I56: -11.39524524 | J56: 188114.4954 | K56: 13.30288379 | L56: 41.79653665 | M56: 53.44711068
A57: 49 | B57: Swiss Re Corporate Solutions | C57: 76226.916 | D57: 52.23584242 | E57: 765.66129 | F57: 11.63904084 | G57: 11.36607223 | H57: -855.1327 | I57: -123.7532024 | J57: -3960.67149 | K57: -11.78482917 | L57: 21.59059902 | M57: -80.18364634
A58: 50 | B58: Atradius | C58: 218272.8151 | D58: 117.411272 | E58: 12336.25758 | F58: 35.82291668 | G58: 15.24831218 | H58: 76366.58577 | I58: 90.48109911 | J58: 146974.7558 | K58: -7.928337437 | L58: 51.95898122 | M58: 25.11508915
A59: 51 | B59: Assurant Vida | C59: 166640.9272 | D59: -15.61924894 | E59: 488.22853 | F59: 27.86137577 | G59: 20.34629174 | H59: 23451.05318 | I59: -21.94186626 | J59: 122877.0762 | K59: 9.13600412 | L59: 19.08497005 | M59: 26.68341235
A60: 52 | B60: Berkley Seguros | C60: 184059.9079 | D60: -42.95961062 | E60: 3570.21345 | F60: 32.26006253 | G60: 72.44186126 | H60: 15221.9515 | I60: 3.028590919 | J60: 23100.33845 | K60: 40.90854475 | L60: 65.89492848 | M60: 90.12215343
A61: 53 | B61: AXA Salud | C61: 536351.1186 | D61: 51.85615095 | E61: 0 | F61: 94.25595311 | G61: 64.19407596 | H61: 86264.38209 | I61: 88.77604803 | J61: 38337.33583 | K61: -31.53367739 | L61: 225.0140241 | M61: 81.60930864
A62: 54 | B62: Sompo Japan | C62: 104283.0903 | D62: 904.4574843 | E62: 2.56884 | F62: 19.35354831 | G62: 1.681394402 | H62: 15751.3987 | I62: 1189.301528 | J62: -5359.64411 | K62: -104.7370022 | L62: -293.8888922 | M62: 1.079772506
A63: 55 | B63: Patrimonial Vida | C63: 1066316.712 | D63: -13.78835322 | E63: 6383.86239 | F63: 200.5763709 | G63: 53.49325143 | H63: 479843.6434 | I63: 12.82580161 | J63: 495867.9261 | K63: -9.900756609 | L63: 96.76843735 | M63: 77.27632213
A64: 56 | B64: Solunion Crédito | C64: 98226.97451 | D64: 17.66635756 | E64: 517.20687 | F64: 20.10160245 | G64: 15.33839585 | H64: 12933.10699 | I64: 40.63544239 | J64: 30215.16894 | K64: 127.8388023 | L64: 42.80335819 | M64: 69.34429685
A65: 57 | B65: Patrimonial Inbursa | C65: 29121.33298 | D65: -36.08397375 | E65: 0 | F65: 6.117269846 | G65: 8.824699222 | H65: 29064.60715 | I65: -36.02460047 | J65: 435771.5276 | K65: -8.279034183 | L65: 6.669689346 | M65: 9.562274764
A66: 58 | B66: PREVEM Seguros | C66: 344275.9081 | D66: 31.01961589 | E66: 0 | F66: 77.28394268 | G66: 65.81705708 | H66: 278833.1116 | I66: 27.46547524 | J66: 440270.7926 | K66: 7.502862406 | L66: 63.33218472 | M66: 53.41360966
A67: 59 | B67: Dentegra | C67: 139240.4076 | D67: 0 | E67: 92.98029 | F67: 34.15535392 | G67: 0 | H67: 139240.4076 | I67: 11.80366228 | J67: 408965.8396 | K67: 12.63283696 | L67: 34.0469531 | M67: 34.2994571
A68: 60 | B68: SHF Cred Vivienda | C68: -170063.9653 | D68: -1812.278173 | E68: 0 | F68: -44.31955084 | G68: 3.499379973 | H68: -159400.6799 | I68: -3273.651499 | J68: 369401.6501 | K68: 31.07863969 | L68: -43.15104707 | M68: 1.782231147
A69: 61 | B69: Coface | C69: 45837.32632 | D69: 44.58555127 | E69: 438.96096 | F69: 14.66407778 | G69: 10.20444898 | H69: 10496.21925 | I69: -32.41755067 | J69: 55476.76837 | K69: 3.604904788 | L69: 18.92002645 | M69: 29.0046833
A70: 62 | B70: Skandia Life | C70: 116386.4606 | D70: 123.8734429 | E70: 0 | F70: 41.4578761 | G70: 15.03534094 | H70: 106001.8566 | I70: 129.0559844 | J70: 315788.9839 | K70: 5.60428414 | L70: 33.56730666 | M70: 15.47591694
A71: 63 | B71: Patrimonial Daños | C71: 56710.89757 | D71: 88.04947001 | E71: 0 | F71: 24.52897526 | G71: 16.01831221 | H71: 46108.95377 | I71: 99.95329309 | J71: 222347.7503 | K71: 20.05661844 | L71: 20.73731518 | M71: 12.45116746
A72: 64 | B72: Centauro | C72: 87856.00109 | D72: 29.09820184 | E72: 175.47428 | F72: 40.45411337 | G72: 60.35253585 | H72: 87856.00109 | I72: 29.09820184 | J72: 197416.0114 | K72: 57.83585492 | L72: 44.50297646 | M72: 54.40947462
A73: 65 | B73: MediAccess | C73: 157398.2656 | D73: 60.06245269 | E73: 0 | F73: 75.06816582 | G73: 52.874623 | H73: 147894.9287 | I73: 68.5326131 | J73: 225526.3048 | K73: 32.32636234 | L73: 65.57768456 | M73: 51.48947903
A74: 66 | B74: Assurant Daños | C74: 34063.67107 | D74: -23.22944312 | E74: -740.3987 | F74: 17.17034074 | G74: 26.54300152 | H74: 5830.58669 | I74: -55.44462684 | J74: 30533.61997 | K74: -28.47398805 | L74: 19.09562867 | M74: 30.65475761
A75: 67 | B75: Odontoprev | C75: 20635.93421 | D75: 29.02380962 | E75: 0 | F75: 19.36087813 | G75: 23.30722339 | H75: 20383.43421 | I75: 28.44897293 | J75: 89732.59592 | K75: 66.73247789 | L75: 22.71575229 | M75: 29.48605644
A76: 68 | B76: Virginia Surety | C76: 31675.19506 | D76: 60.72506193 | E76: 0 | F76: 33.69806397 | G76: 25.4785937 | H76: 18977.46629 | I76: 44.41446579 | J76: 46174.74557 | K76: 42.55794488 | L76: 41.09923305 | M76: 40.57088164
A77: 69 | B77: Genworth Seg. de Crédito | C77: 17318.47091 | D77: 158.1734474 | E77: 0 | F77: 20.53735455 | G77: 13.4832936 | H77: 13082.06354 | I77: 2973.467652 | J77: 118421.2939 | K77: -2.706420118 | L77: 11.04705337 | M77: 0.3497051185
A78: 70 | B78: Crabi | C78: 41685.98071 | D78: 64.2198332 | E78: 0 | F78: 68.67035328 | G78: 126.2487744 | H78: 19419.49761 | I78: 183.127204 | J78: 22077.07189 | K78: 263.089611 | L78: 87.96228824 | M78: 112.8051016
A79: 71 | B79: SPP Seguros | C79: 1158.59548 | D79: 0 | E79: 0 | F79: 2.136426177 | G79: 0 | H79: 340.36422 | I79: -94.50652852 | J79: 42913.9263 | K79: 242.3391666 | L79: 0.7931323217 | M79: 49.42598843
A80: 72 | B80: Metlife Pensiones | C80: 279636.7298 | D80: 5.589976936 | E80: 0 | F80: 754.9388955 | G80: 1481.709714 | H80: 279636.7298 | I80: 5.589976936 | J80: 33851.45499 | K80: -148.9533888 | L80: 826.070046 | M80: -382.9807463
A81: 73 | B81: Metlife Más | C81: 2177.79826 | D81: -22.14075457 | E81: 0 | F81: 6.239062691 | G81: 10.13775285 | H81: 2345.8842 | I81: -15.52929737 | J81: 30201.92663 | K81: 28.73641512 | L81: 7.767332954 | M81: 11.8376972
A82: 74 | B82: SPT | C82: 19594.39173 | D82: 53.21696087 | E82: 0 | F82: 60.60491374 | G82: 58.66065641 | H82: 19594.39173 | I82: 53.21696087 | J82: 25267.41923 | K82: 8.301687733 | L82: 77.54805329 | M82: 54.81498265
A83: 75 | B83: Quálitas Salud | C83: 11814.66581 | D83: 1024.155717 | E83: 0 | F83: 91.9282954 | G83: 6.68371532 | H83: 11506.30377 | I83: 994.8153233 | J83: 22062.51152 | K83: 2754.457633 | L83: 52.15319099 | M83: 135.9764254
A84: 76 | B84: Citibanamex Pensiones | C84: 596238.7648 | D84: 4.808468508 | E84: 0 | F84: 9605.794926 | G84: 3500.519244 | H84: 596238.7648 | I84: 4.808468508 | J84: 43696.32431 | K84: -116.8883547 | L84: 1364.505537 | M84: -219.8701487
A85: 77 | B85: Pensiones Inbursa | C85: 20801.92086 | D85: 13.9669465 | E85: 0 | F85: 4138.031107 | G85: 1538.771076 | H85: 20801.92086 | I85: 13.9669465 | J85: 2048.28002 | K85: -124.8020226 | L85: 1015.579933 | M85: -221.0152784
A86: 78 | B86: Momento Seguros | C86: 97.46623 | D86: 0 | E86: 0 | F86: 20.78649704 | G86: 0 | H86: 94.78929 | I86: 0 | J86: -430.71763 | K86: 0 | L86: -22.00729281 | M86: 0
A87: 79 | B87: Aserta Seguros de Vida | C87: -1689.60261 | D87: -106.7798118 | E87: -296.49778 | F87: 0 | G87: 4179.661737 | H87: -4840.08833 | I87: -212.9083092 | J87: 1066.27875 | K87: -90.11751604 | L87: -453.9233601 | M87: 39.73038261
A88: 79 | B88: Zurich Daños | C88: 0 | D88: 0 | E88: 0 | F88: 0 | G88: 0 | H88: 0 | I88: -100 | J88: 0 | K88: -100 | L88: 0 | M88: 55.34134657
A89: 79 | B89: Zurich Vida | C89: 0 | D89: 0 | E89: 0 | F89: 0 | G89: 0 | H89: 0 | I89: -100 | J89: 0 | K89: -100 | L89: 0 | M89: 55.48204797
A90: 150.1 | B90: TOTAL RESTO | C90: 58016873 | D90: 10.42266813 | E90: 386812.4124 | F90: 46.17414788 | G90: 44.0430472 | H90: 45070169.34 | I90: 7.222723195 | J90: 57313874.94 | K90: 6.646524978 | L90: 78.63744928 | M90: 78.21486387
A91: 200 | B91: Patria | C91: 0 | D91: 0 | E91: 0 | F91: 0 | G91: 0 | H91: 2944789.308 | I91: 0.7924961301 | J91: 6701736.826 | K91: 1.992392 | L91: 43.94068858 | M91: 44.46378556
A92: 201.1 | B92: TOTAL | C92: 329970278 | D92: 9.063835509 | E92: 1949567.062 | F92: 56.16748186 | G92: 58.85740279 | H92: 297058768 | I92: 10.09785621 | J92: 373443802.6 | K92: 3.606587389 | L92: 79.54577527 | M92: 74.85582917

Sheet TD Operación (hidden)
B4: periodo | C4: 2023-Q3
B6: nombre_compania | C6: Ramo_ | D6: Suma de Prima_DirectaAct
A7: =B7&"|"&C7 -> Afirme|10 Total General | B7: Afirme | C7: 10 Total General | D7: 5692551.025
A8: =B8&"|"&C8 -> Afirme|11 Total General Sin Pensiones | B8: Afirme | C8: 11 Total General Sin Pensiones | D8: 5692551.025
A9: Afirme|12 Vida Total | B9: Afirme | C9: 12 Vida Total | D9: 1727627.465
A10: Afirme|13 Vida Individual | B10: Afirme | C10: 13 Vida Individual | D10: 852728.916
A11: Afirme|14 Vida Gpo y Col | B11: Afirme | C11: 14 Vida Gpo y Col | D11: 874898.5488
A12: Afirme|38 Daños Total | B12: Afirme | C12: 38 Daños Total | D12: 3964923.56
A13: Afirme|39 Automoviles Total | B13: Afirme | C13: 39 Automoviles Total | D13: 1750660.362
A14: Afirme|41 Automoviles Residentes | B14: Afirme | C14: 41 Automoviles Residentes | D14: 1124540.433
A15: Afirme|42 Camiones | B15: Afirme | C15: 42 Camiones | D15: 596874.242
A16: Afirme|44 Otros Automoviles y Obligatorios | B16: Afirme | C16: 44 Otros Automoviles y Obligatorios | D16: 29245.6869
A17: Afirme|46 Daños Sin Autos Total | B17: Afirme | C17: 46 Daños Sin Autos Total | D17: 2214263.199
A18: Afirme|46 Responsabilidad Civil y Riesgos Profesionales | B18: Afirme | C18: 46 Responsabilidad Civil y Riesgos Profesionales | D18: 393713.4013
A19: Afirme|47 RC General | B19: Afirme | C19: 47 RC General | D19: 224329.2588
A20: Afirme|48 RC Aviones y Barcos | B20: Afirme | C20: 48 RC Aviones y Barcos | D20: 64998.31894
A21: Afirme|49 RC Viajero | B21: Afirme | C21: 49 RC Viajero | D21: 3843.69858
A22: Afirme|50 RC Otros | B22: Afirme | C22: 50 RC Otros | D22: 100542.125
A23: Afirme|51 Maritimo y Transportes | B23: Afirme | C23: 51 Maritimo y Transportes | D23: 259828.5133
A24: Afirme|52 MyT Carga | B24: Afirme | C24: 52 MyT Carga | D24: 92075.00858
A25: Afirme|53 MyT Cascos | B25: Afirme | C25: 53 MyT Cascos | D25: 167753.5047
A26: Afirme|54 Incendio | B26: Afirme | C26: 54 Incendio | D26: 437841.7949
A27: Afirme|55 Riesgos Catastroficos | B27: Afirme | C27: 55 Riesgos Catastroficos | D27: 396676.6014
A28: Afirme|56 Terremoto y Erupcion Volcanica | B28: Afirme | C28: 56 Terremoto y Erupcion Volcanica | D28: 183330.7035
A29: Afirme|57 Huracan y Otros Riesgos Hidrometeorologicos | B29: Afirme | C29: 57 Huracan y Otros Riesgos Hidrometeorologicos | D29: 213345.8979
A30: Afirme|63 Diversos | B30: Afirme | C30: 63 Diversos | D30: 726202.8877
A31: Afirme|64 Miscelaneos | B31: Afirme | C31: 64 Miscelaneos | D31: 135090.1911
A32: Afirme|65 Tecnicos | B32: Afirme | C32: 65 Tecnicos | D32: 591112.6966
A33: Agroasemex|10 Total General | B33: Agroasemex | C33: 10 Total General | D33: 8513094.41
A34: Agroasemex|11 Total General Sin Pensiones | B34: Agroasemex | C34: 11 Total General Sin Pensiones | D34: 8513094.41
A35: Agroasemex|12 Vida Total | B35: Agroasemex | C35: 12 Vida Total | D35: 58195.67978
A36: Agroasemex|14 Vida Gpo y Col | B36: Agroasemex | C36: 14 Vida Gpo y Col | D36: 58195.67978
A37: Agroasemex|28 Accidentes y Enfermedades Total | B37: Agroasemex | C37: 28 Accidentes y Enfermedades Total | D37: 0
A38: Agroasemex|29 Accidentes Personales | B38: Agroasemex | C38: 29 Accidentes Personales | D38: 0
A39: Agroasemex|31 AP Gpo y Col | B39: Agroasemex | C39: 31 AP Gpo y Col | D39: 0
A40: Agroasemex|38 Daños Total | B40: Agroasemex | C40: 38 Daños Total | D40: 8454898.73
A41: Agroasemex|46 Daños Sin Autos Total | B41: Agroasemex | C41: 46 Daños Sin Autos Total | D41: 8454898.73
A42: Agroasemex|46 Responsabilidad Civil y Riesgos Profesionales | B42: Agroasemex | C42: 46 Responsabilidad Civil y Riesgos Profesionales | D42: 694668.6845
A43: Agroasemex|47 RC General | B43: Agroasemex | C43: 47 RC General | D43: 668278.1118
A44: Agroasemex|48 RC Aviones y Barcos | B44: Agroasemex | C44: 48 RC Aviones y Barcos | D44: 782.06535
A45: Agroasemex|49 RC Viajero | B45: Agroasemex | C45: 49 RC Viajero | D45: 11183.28709
A46: Agroasemex|50 RC Otros | B46: Agroasemex | C46: 50 RC Otros | D46: 14425.22022
A47: Agroasemex|51 Maritimo y Transportes | B47: Agroasemex | C47: 51 Maritimo y Transportes | D47: 439852.3512
A48: Agroasemex|52 MyT Carga | B48: Agroasemex | C48: 52 MyT Carga | D48: 343475.8843
A49: Agroasemex|53 MyT Cascos | B49: Agroasemex | C49: 53 MyT Cascos | D49: 96376.46681
A50: Agroasemex|54 Incendio | B50: Agroasemex | C50: 54 Incendio | D50: 1284244.257
A51: Agroasemex|55 Riesgos Catastroficos | B51: Agroasemex | C51: 55 Riesgos Catastroficos | D51: 4130457.707
A52: Agroasemex|56 Terremoto y Erupcion Volcanica | B52: Agroasemex | C52: 56 Terremoto y Erupcion Volcanica | D52: 879180.0906
A53: Agroasemex|57 Huracan y Otros Riesgos Hidrometeorologicos | B53: Agroasemex | C53: 57 Huracan y Otros Riesgos Hidrometeorologicos | D53: 3185489.369
A54: Agroasemex|58 Otros Riesgos Catastroficos | B54: Agroasemex | C54: 58 Otros Riesgos Catastroficos | D54: 65788.24687
A55: Agroasemex|59 Agricola y de Animales | B55: Agroasemex | C55: 59 Agricola y de Animales | D55: 119797.9565
A56: Agroasemex|60 AyA Agricola | B56: Agroasemex | C56: 60 AyA Agricola | D56: 55715.93583
A57: Agroasemex|61 AyA Otros | B57: Agroasemex | C57: 61 AyA Otros | D57: 0
A58: Agroasemex|62 AyA Pecuario | B58: Agroasemex | C58: 62 AyA Pecuario | D58: 64082.02067
A59: Agroasemex|63 Diversos | B59: Agroasemex | C59: 63 Diversos | D59: 1785877.774
A60: Agroasemex|64 Miscelaneos | B60: Agroasemex | C60: 64 Miscelaneos | D60: 889338.214
A61: Agroasemex|65 Tecnicos | B61: Agroasemex | C61: 65 Tecnicos | D61: 896539.5602
A62: AIG Seguros|10 Total General | B62: AIG Seguros | C62: 10 Total General | D62: 6304657.663
A63: AIG Seguros|11 Total General Sin Pensiones | B63: AIG Seguros | C63: 11 Total General Sin Pensiones | D63: 6304657.663
A64: AIG Seguros|28 Accidentes y Enfermedades Total | B64: AIG Seguros | C64: 28 Accidentes y Enfermedades Total | D64: 188164.9321
A65: AIG Seguros|29 Accidentes Personales | B65: AIG Seguros | C65: 29 Accidentes Personales | D65: 188164.9321
A66: AIG Seguros|30 AP Individual | B66: AIG Seguros | C66: 30 AP Individual | D66: 61523.30566
A67: AIG Seguros|31 AP Gpo y Col | B67: AIG Seguros | C67: 31 AP Gpo y Col | D67: 126641.6264
A68: AIG Seguros|38 Daños Total | B68: AIG Seguros | C68: 38 Daños Total | D68: 6116492.731
A69: AIG Seguros|39 Automoviles Total | B69: AIG Seguros | C69: 39 Automoviles Total | D69: 394640.6446
A70: AIG Seguros|41 Automoviles Residentes | B70: AIG Seguros | C70: 41 Automoviles Residentes | D70: 277299.9314
A71: AIG Seguros|42 Camiones | B71: AIG Seguros | C71: 42 Camiones | D71: 46930.97537
A72: =B72&"|"&C72 -> AIG Seguros|43 Automoviles Turistas | B72: AIG Seguros | C72: 43 Automoviles Turistas | D72: 59102.20525
A73: AIG Seguros|44 Otros Automoviles y Obligatorios | B73: AIG Seguros | C73: 44 Otros Automoviles y Obligatorios | D73: 11307.53251
A74: AIG Seguros|46 Daños Sin Autos Total | B74: AIG Seguros | C74: 46 Daños Sin Autos Total | D74: 5721852.086
A75: AIG Seguros|46 Responsabilidad Civil y Riesgos Profesionales | B75: AIG Seguros | C75: 46 Responsabilidad Civil y Riesgos Profesionales | D75: 1174795.219
A76: AIG Seguros|47 RC General | B76: AIG Seguros | C76: 47 RC General | D76: 1173151.025
A77: AIG Seguros|48 RC Aviones y Barcos | B77: AIG Seguros | C77: 48 RC Aviones y Barcos | D77: 1644.19336
A78: AIG Seguros|51 Maritimo y Transportes | B78: AIG Seguros | C78: 51 Maritimo y Transportes | D78: 712200.5405
A79: AIG Seguros|52 MyT Carga | B79: AIG Seguros | C79: 52 MyT Carga | D79: 711576.8006
A80: AIG Seguros|53 MyT Cascos | B80: AIG Seguros | C80: 53 MyT Cascos | D80: 623.73996
A81: AIG Seguros|54 Incendio | B81: AIG Seguros | C81: 54 Incendio | D81: 1928218.348
A82: AIG Seguros|55 Riesgos Catastroficos | B82: AIG Seguros | C82: 55 Riesgos Catastroficos | D82: 494555.8888
A83: AIG Seguros|56 Terremoto y Erupcion Volcanica | B83: AIG Seguros | C83: 56 Terremoto y Erupcion Volcanica | D83: 261336.047
A84: AIG Seguros|57 Huracan y Otros Riesgos Hidrometeorologicos | B84: AIG Seguros | C84: 57 Huracan y Otros Riesgos Hidrometeorologicos | D84: 233219.8418
A85: AIG Seguros|63 Diversos | B85: AIG Seguros | C85: 63 Diversos | D85: 1395307.785
A86: AIG Seguros|64 Miscelaneos | B86: AIG Seguros | C86: 64 Miscelaneos | D86: 186411.5279
A87: AIG Seguros|65 Tecnicos | B87: AIG Seguros | C87: 65 Tecnicos | D87: 1208896.257
A88: AIG Seguros|66 Credito | B88: AIG Seguros | C88: 66 Credito | D88: 16774.30468
A89: Allianz México|10 Total General | B89: Allianz México | C89: 10 Total General | D89: 15031312.09
A90: Allianz México|11 Total General Sin Pensiones | B90: Allianz México | C90: 11 Total General Sin Pensiones | D90: 15031312.09
A91: Allianz México|12 Vida Total | B91: Allianz México | C91: 12 Vida Total | D91: 8022515.088
A92: Allianz México|13 Vida Individual | B92: Allianz México | C92: 13 Vida Individual | D92: 7424679.202
A93: Allianz México|14 Vida Gpo y Col | B93: Allianz México | C93: 14 Vida Gpo y Col | D93: 597835.8861
A94: Allianz México|28 Accidentes y Enfermedades Total | B94: Allianz México | C94: 28 Accidentes y Enfermedades Total | D94: 2020110.939
A95: Allianz México|29 Accidentes Personales | B95: Allianz México | C95: 29 Accidentes Personales | D95: 13.32616
A96: Allianz México|30 AP Individual | B96: Allianz México | C96: 30 AP Individual | D96: 0
A97: Allianz México|31 AP Gpo y Col | B97: Allianz México | C97: 31 AP Gpo y Col | D97: 13.32616
A98: Allianz México|32 Gastos Medicos | B98: Allianz México | C98: 32 Gastos Medicos | D98: 2020097.613
A99: Allianz México|33 GMM. Individual | B99: Allianz México | C99: 33 GMM. Individual | D99: 1177892.363
A100: Allianz México|34 GMM. Gpo y Col | B100: Allianz México | C100: 34 GMM. Gpo y Col | D100: 842205.2497
A101: Allianz México|38 Daños Total | B101: Allianz México | C101: 38 Daños Total | D101: 4988686.059
A102: Allianz México|39 Automoviles Total | B102: Allianz México | C102: 39 Automoviles Total | D102: 107674.458
A103: Allianz México|41 Automoviles Residentes | B103: Allianz México | C103: 41 Automoviles Residentes | D103: 107674.458
A104: Allianz México|42 Camiones | B104: Allianz México | C104: 42 Camiones | D104: 0
A105: Allianz México|46 Daños Sin Autos Total | B105: Allianz México | C105: 46 Daños Sin Autos Total | D105: 4881011.601
A106: Allianz México|46 Responsabilidad Civil y Riesgos Profesionales | B106: Allianz México | C106: 46 Responsabilidad Civil y Riesgos Profesionales | D106: 237178.1557
A107: Allianz México|47 RC General | B107: Allianz México | C107: 47 RC General | D107: 220328.0927
A108: Allianz México|48 RC Aviones y Barcos | B108: Allianz México | C108: 48 RC Aviones y Barcos | D108: 16850.06302
A109: Allianz México|50 RC Otros | B109: Allianz México | C109: 50 RC Otros | D109: 0
A110: Allianz México|51 Maritimo y Transportes | B110: Allianz México | C110: 51 Maritimo y Transportes | D110: 217615.1244
A111: Allianz México|52 MyT Carga | B111: Allianz México | C111: 52 MyT Carga | D111: 171866.2418
A112: Allianz México|53 MyT Cascos | B112: Allianz México | C112: 53 MyT Cascos | D112: 45748.88264
A113: Allianz México|54 Incendio | B113: Allianz México | C113: 54 Incendio | D113: 767538.7424
A114: Allianz México|55 Riesgos Catastroficos | B114: Allianz México | C114: 55 Riesgos Catastroficos | D114: 374474.5807
A115: Allianz México|56 Terremoto y Erupcion Volcanica | B115: Allianz México | C115: 56 Terremoto y Erupcion Volcanica | D115: 162226.3031
A116: Allianz México|57 Huracan y Otros Riesgos Hidrometeorologicos | B116: Allianz México | C116: 57 Huracan y Otros Riesgos Hidrometeorologicos | D116: 212248.2776
A117: Allianz México|63 Diversos | B117: Allianz México | C117: 63 Diversos | D117: 3284204.998
A118: Allianz México|64 Miscelaneos | B118: Allianz México | C118: 64 Miscelaneos | D118: 77965.04079
A119: Allianz México|65 Tecnicos | B119: Allianz México | C119: 65 Tecnicos | D119: 3206239.957
A120: ANA|10 Total General | B120: ANA | C120: 10 Total General | D120: 2392641.08
A121: ANA|11 Total General Sin Pensiones | B121: ANA | C121: 11 Total General Sin Pensiones | D121: 2392641.08
A122: ANA|38 Daños Total | B122: ANA | C122: 38 Daños Total | D122: 2392641.08
A123: ANA|39 Automoviles Total | B123: ANA | C123: 39 Automoviles Total | D123: 2392641.08
A124: ANA|41 Automoviles Residentes | B124: ANA | C124: 41 Automoviles Residentes | D124: 1256508.103
A125: ANA|42 Camiones | B125: ANA | C125: 42 Camiones | D125: 1008074.34
A126: ANA|43 Automoviles Turistas | B126: ANA | C126: 43 Automoviles Turistas | D126: 90602.41162
A127: ANA|44 Otros Automoviles y Obligatorios | B127: ANA | C127: 44 Otros Automoviles y Obligatorios | D127: 37456.22471
A128: Aserta Seguros de Vida|10 Total General | B128: Aserta Seguros de Vida | C128: 10 Total General | D128: 0
A129: Aserta Seguros de Vida|11 Total General Sin Pensiones | B129: Aserta Seguros de Vida | C129: 11 Total General Sin Pensiones | D129: 0
A130: Aserta Seguros de Vida|12 Vida Total | B130: Aserta Seguros de Vida | C130: 12 Vida Total | D130: 0
A131: Aserta Seguros de Vida|13 Vida Individual | B131: Aserta Seguros de Vida | C131: 13 Vida Individual | D131: 0
A132: Aserta Seguros de Vida|14 Vida Gpo y Col | B132: Aserta Seguros de Vida | C132: 14 Vida Gpo y Col | D132: 0
A133: Aserta Seguros de Vida|28 Accidentes y Enfermedades Total | B133: Aserta Seguros de Vida | C133: 28 Accidentes y Enfermedades Total | D133: 0
A134: Aserta Seguros de Vida|29 Accidentes Personales | B134: Aserta Seguros de Vida | C134: 29 Accidentes Personales | D134: 0
A135: Aserta Seguros de Vida|30 AP Individual | B135: Aserta Seguros de Vida | C135: 30 AP Individual | D135: 0
A136: =B136&"|"&C136 -> Aserta Seguros de Vida|31 AP Gpo y Col | B136: Aserta Seguros de Vida | C136: 31 AP Gpo y Col | D136: 0
A137: Aserta Seguros de Vida|32 Gastos Medicos | B137: Aserta Seguros de Vida | C137: 32 Gastos Medicos | D137: 0
A138: Aserta Seguros de Vida|33 GMM. Individual | B138: Aserta Seguros de Vida | C138: 33 GMM. Individual | D138: 0
A139: Assurant Daños|10 Total General | B139: Assurant Daños | C139: 10 Total General | D139: 198386.6924
A140: Assurant Daños|11 Total General Sin Pensiones | B140: Assurant Daños | C140: 11 Total General Sin Pensiones | D140: 198386.6924
A141: Assurant Daños|38 Daños Total | B141: Assurant Daños | C141: 38 Daños Total | D141: 198386.6924
A142: Assurant Daños|39 Automoviles Total | B142: Assurant Daños | C142: 39 Automoviles Total | D142: 28767.39236
A143: Assurant Daños|41 Automoviles Residentes | B143: Assurant Daños | C143: 41 Automoviles Residentes | D143: 28767.39236
A144: Assurant Daños|46 Daños Sin Autos Total | B144: Assurant Daños | C144: 46 Daños Sin Autos Total | D144: 169619.3
A145: Assurant Daños|46 Responsabilidad Civil y Riesgos Profesionales | B145: Assurant Daños | C145: 46 Responsabilidad Civil y Riesgos Profesionales | D145: 0
A146: Assurant Daños|47 RC General | B146: Assurant Daños | C146: 47 RC General | D146: 0
A147: Assurant Daños|54 Incendio | B147: Assurant Daños | C147: 54 Incendio | D147: 0
A148: Assurant Daños|55 Riesgos Catastroficos | B148: Assurant Daños | C148: 55 Riesgos Catastroficos | D148: 0
A149: Assurant Daños|56 Terremoto y Erupcion Volcanica | B149: Assurant Daños | C149: 56 Terremoto y Erupcion Volcanica | D149: 0
A150: Assurant Daños|57 Huracan y Otros Riesgos Hidrometeorologicos | B150: Assurant Daños | C150: 57 Huracan y Otros Riesgos Hidrometeorologicos | D150: 0
A151: Assurant Daños|63 Diversos | B151: Assurant Daños | C151: 63 Diversos | D151: 169619.3
A152: Assurant Daños|64 Miscelaneos | B152: Assurant Daños | C152: 64 Miscelaneos | D152: 148896.7521
A153: Assurant Daños|65 Tecnicos | B153: Assurant Daños | C153: 65 Tecnicos | D153: 20722.54798
A154: Assurant Vida|10 Total General | B154: Assurant Vida | C154: 10 Total General | D154: 598107.3176
A155: Assurant Vida|11 Total General Sin Pensiones | B155: Assurant Vida | C155: 11 Total General Sin Pensiones | D155: 598107.3176
A156: Assurant Vida|12 Vida Total | B156: Assurant Vida | C156: 12 Vida Total | D156: 598107.3176
A157: Assurant Vida|14 Vida Gpo y Col | B157: Assurant Vida | C157: 14 Vida Gpo y Col | D157: 598107.3176
A158: Assurant Vida|28 Accidentes y Enfermedades Total | B158: Assurant Vida | C158: 28 Accidentes y Enfermedades Total | D158: 0
A159: Assurant Vida|29 Accidentes Personales | B159: Assurant Vida | C159: 29 Accidentes Personales | D159: 0
A160: Assurant Vida|30 AP Individual | B160: Assurant Vida | C160: 30 AP Individual | D160: 0
A161: Assurant Vida|31 AP Gpo y Col | B161: Assurant Vida | C161: 31 AP Gpo y Col | D161: 0
A162: Assurant Vida|32 Gastos Medicos | B162: Assurant Vida | C162: 32 Gastos Medicos | D162: 0
A163: Assurant Vida|33 GMM. Individual | B163: Assurant Vida | C163: 33 GMM. Individual | D163: 0
A164: Atlas|10 Total General | B164: Atlas | C164: 10 Total General | D164: 15095885.72
A165: Atlas|11 Total General Sin Pensiones | B165: Atlas | C165: 11 Total General Sin Pensiones | D165: 15095885.72
A166: Atlas|12 Vida Total | B166: Atlas | C166: 12 Vida Total | D166: 1807604.948
A167: Atlas|13 Vida Individual | B167: Atlas | C167: 13 Vida Individual | D167: 708664.2184
A168: Atlas|14 Vida Gpo y Col | B168: Atlas | C168: 14 Vida Gpo y Col | D168: 1098940.73
A169: Atlas|28 Accidentes y Enfermedades Total | B169: Atlas | C169: 28 Accidentes y Enfermedades Total | D169: 4595006.754
A170: Atlas|29 Accidentes Personales | B170: Atlas | C170: 29 Accidentes Personales | D170: 32926.31742
A171: Atlas|30 AP Individual | B171: Atlas | C171: 30 AP Individual | D171: 4882.65074
A172: Atlas|31 AP Gpo y Col | B172: Atlas | C172: 31 AP Gpo y Col | D172: 28043.66668
A173: Atlas|32 Gastos Medicos | B173: Atlas | C173: 32 Gastos Medicos | D173: 4562080.436
A174: Atlas|33 GMM. Individual | B174: Atlas | C174: 33 GMM. Individual | D174: 1101908.6
A175: Atlas|34 GMM. Gpo y Col | B175: Atlas | C175: 34 GMM. Gpo y Col | D175: 3460171.836
A176: Atlas|38 Daños Total | B176: Atlas | C176: 38 Daños Total | D176: 8693274.023
A177: Atlas|39 Automoviles Total | B177: Atlas | C177: 39 Automoviles Total | D177: 2944133.841
A178: Atlas|41 Automoviles Residentes | B178: Atlas | C178: 41 Automoviles Residentes | D178: 1733613.203
A179: Atlas|42 Camiones | B179: Atlas | C179: 42 Camiones | D179: 1156695.282
A180: Atlas|43 Automoviles Turistas | B180: Atlas | C180: 43 Automoviles Turistas | D180: 1314.94483
A181: Atlas|44 Otros Automoviles y Obligatorios | B181: Atlas | C181: 44 Otros Automoviles y Obligatorios | D181: 52510.41122
A182: Atlas|46 Daños Sin Autos Total | B182: Atlas | C182: 46 Daños Sin Autos Total | D182: 5749140.182
A183: Atlas|46 Responsabilidad Civil y Riesgos Profesionales | B183: Atlas | C183: 46 Responsabilidad Civil y Riesgos Profesionales | D183: 731154.4683
A184: Atlas|47 RC General | B184: Atlas | C184: 47 RC General | D184: 352934.4536
A185: Atlas|48 RC Aviones y Barcos | B185: Atlas | C185: 48 RC Aviones y Barcos | D185: 373425.1241
A186: Atlas|49 RC Viajero | B186: Atlas | C186: 49 RC Viajero | D186: 4794.89047
A187: Atlas|51 Maritimo y Transportes | B187: Atlas | C187: 51 Maritimo y Transportes | D187: 1990030.5
A188: Atlas|52 MyT Carga | B188: Atlas | C188: 52 MyT Carga | D188: 623732.1906
A189: Atlas|53 MyT Cascos | B189: Atlas | C189: 53 MyT Cascos | D189: 1366298.31
A190: Atlas|54 Incendio | B190: Atlas | C190: 54 Incendio | D190: 566669.7495
A191: Atlas|55 Riesgos Catastroficos | B191: Atlas | C191: 55 Riesgos Catastroficos | D191: 1033670.293
A192: Atlas|56 Terremoto y Erupcion Volcanica | B192: Atlas | C192: 56 Terremoto y Erupcion Volcanica | D192: 346590.8973
A193: Atlas|57 Huracan y Otros Riesgos Hidrometeorologicos | B193: Atlas | C193: 57 Huracan y Otros Riesgos Hidrometeorologicos | D193: 687079.3958
A194: Atlas|63 Diversos | B194: Atlas | C194: 63 Diversos | D194: 1427615.171
A195: Atlas|64 Miscelaneos | B195: Atlas | C195: 64 Miscelaneos | D195: 520072.859
A196: Atlas|65 Tecnicos | B196: Atlas | C196: 65 Tecnicos | D196: 907542.3119
A197: Atradius|10 Total General | B197: Atradius | C197: 10 Total General | D197: 609310.5625
A198: Atradius|11 Total General Sin Pensiones | B198: Atradius | C198: 11 Total General Sin Pensiones | D198: 609310.5625
A199: Atradius|38 Daños Total | B199: Atradius | C199: 38 Daños Total | D199: 609310.5625
A200: =B200&"|"&C200 -> Atradius|46 Daños Sin Autos Total | B200: Atradius | C200: 46 Daños Sin Autos Total | D200: 609310.5625
A201: Atradius|66 Credito | B201: Atradius | C201: 66 Credito | D201: 609310.5625
A202: AXA Salud|10 Total General | B202: AXA Salud | C202: 10 Total General | D202: 569036.8629
A203: AXA Salud|11 Total General Sin Pensiones | B203: AXA Salud | C203: 11 Total General Sin Pensiones | D203: 569036.8629
A204: AXA Salud|28 Accidentes y Enfermedades Total | B204: AXA Salud | C204: 28 Accidentes y Enfermedades Total | D204: 569036.8629
... 1412 more rows

Sheet TD Siniestros Daños (hidden)
A1: periodo | B1: 2023-Q3
A2: Ramo3 | B2: 38 Daños Total
A3: operacion | B3: (Varios elementos)
A4: ramo_complemento | B4: (Varios elementos)
A6: Jerarquia 2 | B6: nombre_compania | C6: Suma de CostoSin_Act | D6: Suma de IncSin | E6: Suma de IncResvDivAct | F6: Suma de %SinvsPrm_Act | G6: Suma de %SinvsPrm_Ant | H6: Suma de Costo_Sin_RetAct | I6: Suma de IncSin_Ret | J6: Suma de Prima_DevengadaAct | K6: Suma de IncSin_PDev | L6: Suma de %SinvsPDev_Act | M6: Suma de %SinvsPDev_Ant
A7: 1 | B7: Quálitas | C7: 23308919.18 | D7: 26.74548341 | E7: 68561.22548 | F7: 66.75344602 | G7: 68.22322929 | H7: 23331011.34 | I7: 26.89592695 | J7: 33390337.9 | K7: 23.10637209 | L7: 69.87354068 | M7: 67.78687311
A8: 2 | B8: G.N.P. | C8: 10644872.86 | D8: 10.65489565 | E8: 19444.81295 | F8: 56.10266287 | G8: 61.93232154 | H8: 9932442.31 | I8: 21.95858714 | J8: 14455161.96 | K8: 18.29928965 | L8: 68.71207905 | M8: 66.65041251
A9: 3 | B9: AXA Seguros | C9: 8245348.504 | D9: 3.679980052 | E9: 120326.8192 | F9: 48.53161094 | G9: 54.08621951 | H9: 7705205.068 | I9: 19.02905298 | J9: 11374694.85 | K9: 13.84750067 | L9: 67.73988376 | M9: 64.79104276
A10: 4 | B10: Chubb Seguros México | C10: 8838508.811 | D10: 9.983965745 | E10: 18291.50261 | F10: 55.91067976 | G10: 55.68022185 | H10: 4246091.764 | I10: 16.59637963 | J10: 5578514.549 | K10: -2.394674279 | L10: 76.11509707 | M10: 63.71757738
A11: 5 | B11: Mapfre México | C11: 5589995.687 | D11: -0.7654324908 | E11: 284041.3991 | F11: 39.48458888 | G11: 55.25802886 | H11: 2471822.006 | I11: 5.910466296 | J11: 3676961.3 | K11: -4.352923087 | L11: 67.22458586 | M11: 60.71010127
A12: 5.1 | B12: TOTAL GRANDES | C12: 56627645.04 | D12: 14.09456235 | E12: 510665.7594 | F12: 56.15194483 | G12: 60.66047024 | H12: 47686572.49 | I12: 22.33909244 | J12: 68475670.56 | K12: 16.27102199 | L12: 69.64016869 | M12: 66.18598703
A13: 6 | B13: Inbursa | C13: 5063992.14 | D13: 64.14950441 | E13: 0 | F13: 39.66737536 | G13: 30.48733133 | H13: 3203907.628 | I13: 27.43587105 | J13: 4679909.72 | K13: 15.79094189 | L13: 68.46088534 | M13: 62.20501599
A14: 7 | B14: BBVA Bancomer | C14: 5430972.104 | D14: 42.34496812 | E14: 0 | F14: 51.62284646 | G14: 47.2171045 | H14: 5211955.285 | I14: 37.90382474 | J14: 9616007.961 | K14: 41.78451189 | L14: 54.20082124 | M14: 55.72606124
A15: 8 | B15: GMX Seguros | C15: 2866637.128 | D15: -23.24751875 | E15: 0 | F15: 29.23918466 | G15: 35.17171126 | H15: 796279.5686 | I15: 28.2310371 | J15: 2029854.238 | K15: 0.9834552009 | L15: 39.22841127 | M15: 30.89283688
A16: 9 | B16: Banorte | C16: 3640113.638 | D16: 24.33696874 | E16: -9601.18148 | F16: 41.58559953 | G16: 40.08764369 | H16: 3460007.225 | I16: 32.75319417 | J16: 6137628.45 | K16: 17.77710405 | L16: 56.37368331 | M16: 50.0140822
A17: 10 | B17: Atlas | C17: 3232713.445 | D17: 20.32232572 | E17: 10602.62216 | F17: 37.18637462 | G17: 38.14615796 | H17: 2303749.457 | I17: 22.7824554 | J17: 3277225.428 | K17: 10.3366276 | L17: 70.29572751 | M17: 63.17021013
A18: 11 | B18: HDI Seguros | C18: 5091813.393 | D18: 19.47864294 | E18: 0 | F18: 59.08038931 | G18: 61.68347703 | H18: 5036673.842 | I18: 25.00922856 | J18: 7607386.116 | K18: 11.19924577 | L18: 66.20767982 | M18: 58.89360446
A19: 12 | B19: Agroasemex | C19: 2334628.614 | D19: 293.9330285 | E19: -1704.4324 | F19: 27.61273303 | G19: 8.692242265 | H19: 950477.6257 | I19: 36.72382593 | J19: 2037267.985 | K19: -70.69585456 | L19: 46.6545213 | M19: 9.999507167
A20: 13 | B20: Zurich Aseguradora Mexicana | C20: 2334581.2 | D20: -4.956277541 | E20: 13474.73047 | F20: 32.75385984 | G20: 119.5727743 | H20: 1895845.401 | I20: 162.3099323 | J20: 3497849.697 | K20: 211.0544101 | L20: 54.20031062 | M20: 64.27223514
A21: 14 | B21: AIG Seguros | C21: 763706.883 | D21: -10.95881948 | E21: 4613.35496 | F21: 12.48602617 | G21: 17.40570442 | H21: 350279.907 | I21: 4.182941311 | J21: 646561.2377 | K21: 2.004688373 | L21: 54.17582846 | M21: 53.04312231
A22: 15 | B22: Allianz México | C22: 1066357.221 | D22: -57.26162086 | E22: 7037.62997 | F22: 21.37551267 | G22: 52.82112497 | H22: 191217.5634 | I22: 8.356148188 | J22: 404862.1945 | K22: 1.150641609 | L22: 47.23028379 | M22: 44.08954719
A23: 15.1 | B23: TOTAL MEDIANAS | C23: 31825515.77 | D23: 18.25316892 | E23: 24422.72368 | F23: 37.07389225 | G23: 39.23333175 | H23: 23400393.5 | I23: 34.81966544 | J23: 39934553.03 | K23: 8.026612279 | L23: 58.59685843 | M23: 46.95175653
A24: 16 | B24: Afirme | C24: 2306873.575 | D24: -30.2601061 | E24: 115.90559 | F24: 58.1820441 | G24: 88.75287804 | H24: 1783108.958 | I24: -11.26281762 | J24: 2166711.593 | K24: -1.334959053 | L24: 82.29563009 | M24: 91.50281195
A25: 17 | B25: Zurich Santander | C25: 218245.3272 | D25: -0.2213642989 | E25: 0 | F25: 7.476009116 | G25: 7.850759508 | H25: 197941.5865 | I25: -4.514938095 | J25: 2119784.72 | K25: 3.628438106 | L25: 9.337815519 | M25: 10.13418453
A26: 18 | B26: FM Global | C26: 396493.0612 | D26: 57.09285463 | E26: 0 | F26: 13.90260137 | G26: 9.277267372 | H26: -2829.28535 | I26: -239.6640323 | J26: -8212.44557 | K26: 44.98833683 | L26: 34.4511915 | M26: -35.76454778
A27: 19 | B27: Seguros SURA | C27: 784742.3411 | D27: 0 | E27: 2448.73265 | F27: 28.67298166 | G27: 0 | H27: 1045312.252 | I27: -2.678083638 | J27: 1648897.301 | K27: -30.85688553 | L27: 63.39462449 | M27: 45.03920537
A28: 20 | B28: ANA | C28: 1753553.625 | D28: 18.99478288 | E28: 22014.20797 | F28: 73.28945574 | G28: 66.42616565 | H28: 1358888.133 | I28: 20.05875204 | J28: 1851649.967 | K28: 7.891742831 | L28: 73.38795978 | M28: 65.95066789
A29: 21 | B29: Seguros Azteca Daños | C29: 683175.5898 | D29: 32.88294104 | E29: 0.00183 | F29: 41.12556209 | G29: 21.8455311 | H29: 93505.80148 | I29: 0.4806021821 | J29: 260859.8472 | K29: -6.752329455 | L29: 35.84522588 | M29: 33.26496599
A30: 22 | B30: Cardif Seguros Generales | C30: 127678.0244 | D30: -5.313731277 | E30: 0 | F30: 7.709010653 | G30: 9.382921862 | H30: 78941.03488 | I30: -57.00063349 | J30: 1102610.97 | K30: -13.09660289 | L30: 7.159463946 | M30: 14.46955592
A31: 23 | B31: HDI Global Seguros | C31: 433804.2159 | D31: 111.2340675 | E31: 0 | F31: 27.64119547 | G31: 22.39341293 | H31: 5156.86875 | I31: -937.0534763 | J31: -5077.32128 | K31: -12.26397186 | L31: -101.5667212 | M31: 10.64574841
A32: 24 | B32: General de Seguros | C32: 1054668.404 | D32: -4.954215134 | E32: 467.31056 | F32: 69.48417856 | G32: 78.82471501 | H32: 923274.543 | I32: -5.079326273 | J32: 1240270.883 | K32: 13.56937128 | L32: 74.44136242 | M32: 89.06656891
A33: 25 | B33: El Potosí | C33: 593120.9559 | D33: -29.15066979 | E33: 0 | F33: 46.37619707 | G33: 66.94614869 | H33: 581573.0896 | I33: -17.21701367 | J33: 967536.3914 | K33: 0.8471498905 | L33: 60.10865273 | M33: 73.22502583
A34: 26 | B34: El Águila | C34: 647739.0533 | D34: 51.12166232 | E34: 0 | F34: 53.41379918 | G34: 43.7551245 | H34: 440501.2514 | I34: 28.28693023 | J34: 886067.6518 | K34: 18.57970541 | L34: 49.71417821 | M34: 45.95240213
A35: 27 | B35: Primero Seguros | C35: 458116.5386 | D35: 16.33856367 | E35: 0 | F35: 44.03825221 | G35: 56.13227836 | H35: 376540.1875 | I35: 10.72582124 | J35: 651225.933 | K35: 21.51572547 | L35: 57.82020776 | M35: 63.45461622
A36: 28 | B36: Ve Por Más | C36: 218439.1724 | D36: -9.571087302 | E36: 0 | F36: 28.09833783 | G36: 54.40238824 | H36: 138650.0034 | I36: 50.60542593 | J36: 220838.4539 | K36: 22.42764796 | L36: 62.78345139 | M36: 51.03687491
A37: 29 | B37: Tokio Marine | C37: 251426.2212 | D37: -37.5721341 | E37: 378.06522 | F37: 35.17606026 | G37: 38.44062876 | H37: 48726.83405 | I37: -29.06625733 | J37: 123551.7047 | K37: 8.862046877 | L37: 39.438415 | M37: 60.52615329
A38: 30 | B38: Swiss Re Corporate Solutions | C38: 76226.916 | D38: 52.23584242 | E38: 765.66129 | F38: 11.63904084 | G38: 11.36607223 | H38: -855.1327 | I38: -123.7532024 | J38: -3960.67149 | K38: -11.78482917 | L38: 21.59059902 | M38: -80.18364634
A39: 31 | B39: Atradius | C39: 218272.8151 | D39: 117.411272 | E39: 12336.25758 | F39: 35.82291668 | G39: 15.24831218 | H39: 76366.58577 | I39: 90.48109911 | J39: 146974.7558 | K39: -7.928337437 | L39: 51.95898122 | M39: 25.11508915
A40: 32 | B40: Berkley Seguros | C40: 184059.9079 | D40: -42.95961062 | E40: 3570.21345 | F40: 32.26006253 | G40: 72.44186126 | H40: 15221.9515 | I40: 3.028590919 | J40: 23100.33845 | K40: 40.90854475 | L40: 65.89492848 | M40: 90.12215343
A41: 33 | B41: Sompo Japan | C41: 104283.0903 | D41: 904.4574843 | E41: 2.56884 | F41: 19.35354831 | G41: 1.681394402 | H41: 15751.3987 | I41: 1189.301528 | J41: -5359.64411 | K41: -104.7370022 | L41: -293.8888922 | M41: 1.079772506
A42: 34 | B42: Solunion Crédito | C42: 98226.97451 | D42: 17.66635756 | E42: 517.20687 | F42: 20.10160245 | G42: 15.33839585 | H42: 12933.10699 | I42: 40.63544239 | J42: 30215.16894 | K42: 127.8388023 | L42: 42.80335819 | M42: 69.34429685
A43: 35 | B43: SHF Cred Vivienda | C43: -170063.9653 | D43: -1812.278173 | E43: 0 | F43: -44.31955084 | G43: 3.499379973 | H43: -159400.6799 | I43: -3273.651499 | J43: 369401.6501 | K43: 31.07863969 | L43: -43.15104707 | M43: 1.782231147
A44: 36 | B44: La Latinoamericana | C44: 210900.374 | D44: -13.66827584 | E44: 1091.12769 | F44: 55.49964874 | G44: 66.46067667 | H44: 92178.48072 | I44: -11.08357522 | J44: 186555.4155 | K44: 8.120713819 | L44: 49.4107772 | M44: 60.08258333
A45: 37 | B45: Coface | C45: 45837.32632 | D45: 44.58555127 | E45: 438.96096 | F45: 14.66407778 | G45: 10.20444898 | H45: 10496.21925 | I45: -32.41755067 | J45: 55476.76837 | K45: 3.604904788 | L45: 18.92002645 | M45: 29.0046833
A46: 38 | B46: Patrimonial Daños | C46: 56710.89757 | D46: 88.04947001 | E46: 0 | F46: 24.52897526 | G46: 16.01831221 | H46: 46108.95377 | I46: 99.95329309 | J46: 222347.7503 | K46: 20.05661844 | L46: 20.73731518 | M46: 12.45116746
A47: 39 | B47: Assurant Daños | C47: 34063.67107 | D47: -23.22944312 | E47: -740.3987 | F47: 17.17034074 | G47: 26.54300152 | H47: 5830.58669 | I47: -55.44462684 | J47: 30533.61997 | K47: -28.47398805 | L47: 19.09562867 | M47: 30.65475761
A48: 40 | B48: Patrimonial Inbursa | C48: 1049.32033 | D48: -39.87070544 | E48: 0 | F48: 0.7140406794 | G48: 1.222218242 | H48: 1024.24777 | I48: -39.93195432 | J48: 135851.7729 | K48: 7.707830288 | L48: 0.7539450892 | M48: 1.35189665
A49: 41 | B49: Virginia Surety | C49: 31675.19506 | D49: 60.72506193 | E49: 0 | F49: 33.69806397 | G49: 25.4785937 | H49: 18977.46629 | I49: 44.41446579 | J49: 46174.74557 | K49: 42.55794488 | L49: 41.09923305 | M49: 40.57088164
A50: 42 | B50: Genworth Seg. de Crédito | C50: 17318.47091 | D50: 158.1734474 | E50: 0 | F50: 20.53735455 | G50: 13.4832936 | H50: 13082.06354 | I50: 2973.467652 | J50: 118421.2939 | K50: -2.706420118 | L50: 11.04705337 | M50: 0.3497051185
A51: 43 | B51: Crabi | C51: 41685.98071 | D51: 64.2198332 | E51: 0 | F51: 68.67035328 | G51: 126.2487744 | H51: 19419.49761 | I51: 183.127204 | J51: 22077.07189 | K51: 263.089611 | L51: 87.96228824 | M51: 112.8051016
A52: 44 | B52: SPP Seguros | C52: 648.54868 | D52: 0 | E52: 0 | F52: 1.197332672 | G52: 0 | H52: -169.68258 | I52: -104.5615004 | J52: 42714.54448 | K52: 310.174878 | L52: -0.3972477807 | M52: 35.72093489
A53: 45 | B53: SPT | C53: 19594.39173 | D53: 53.21696087 | E53: 0 | F53: 60.60491374 | G53: 58.66065641 | H53: 19594.39173 | I53: 53.21696087 | J53: 25267.41923 | K53: 8.301687733 | L53: 77.54805329 | M53: 54.81498265
A54: 46 | B54: Citibanamex Seguros | C54: -1805.25203 | D54: -114.7590661 | E54: 0 | F54: -22.07129589 | G54: 11.5684222 | H54: -313.43668 | I54: -104.9394041 | J54: 553.65186 | K54: 984.4109376 | L54: -56.61259406 | M54: 12428.89113
A55: 47 | B55: Momento Seguros | C55: 97.46623 | D55: 0 | E55: 0 | F55: 20.78649704 | G55: 0 | H55: 94.78929 | I55: 0 | J55: -430.71763 | K55: 0 | L55: -22.00729281 | M55: 0
A56: 48 | B56: Zurich Daños | C56: 0 | D56: 0 | E56: 0 | F56: 0 | G56: 0 | H56: 0 | I56: -100 | J56: 0 | K56: -100 | L56: 0 | M56: 55.34134657
A57: 150.1 | B57: TOTAL RESTO | C57: 10896858.23 | D57: 3.518801976 | E57: 43405.8218 | F57: 34.98899193 | G57: 31.17171944 | H57: 7255632.066 | I57: -16.10976299 | J57: 14672630.58 | K57: -13.42737616 | L57: 49.4501107 | M57: 51.03127592
A58: 200 | B58: Patria | C58: 0 | D58: 0 | E58: 0 | F58: 0 | G58: 0 | H58: 2386770.303 | I58: 13.70598228 | J58: 6002126.937 | K58: 1.139314842 | L58: 39.76540862 | M58: 35.37057683
A59: 201.1 | B59: TOTAL | C59: 99350019.04 | D59: 14.10140124 | E59: 578494.3048 | F59: 45.60806694 | G59: 47.27370802 | H59: 78342598.06 | I59: 20.55529592 | J59: 123082854.2 | K59: 9.107463769 | L59: 63.65029361 | M59: 57.60611386

Sheet Cat (hidden)
B1: ramo
B2: Total General | C2: 1 | D2: =E2&F2&" "&B2 -> 10 Total General | E2: 1 | F2: 0 | H2: Automoviles Total | I2: 0 | K2: Pensiones Total | L2: 1 | N2: Q4 | O2: Cuarto Trimestre | R2: Ramo_
B3: Total General Sin Pensiones | C3: 2 | D3: =E3&F3&" "&B3 -> 11 Total General Sin Pensiones | E3: 1 | F3: 1 | H3: Automoviles Residentes | I3: 0 | K3: Pensiones IMSS | L3: 1 | N3: Q3 | O3: Tercer Trimestre | R3: 10 Total General | S3: 10 Total General | T3: 0
B4: Vida Total | C4: 3 | D4: 12 Vida Total | E4: 1 | F4: 2 | H4: Camiones | I4: 0 | K4: Pensiones ISSSTE | L4: 1 | N4: Q2 | O4: Segundo Trimestre | R4: 11 Total General Sin Pensiones | S4: 10 Total General | T4: 0
B5: Vida Individual | C5: 4 | D5: 13 Vida Individual | E5: 1 | F5: 3 | H5: Automoviles Turistas | I5: 0 | N5: Q1 | O5: Primer Trimestre | R5: 12 Vida Total | S5: 12 Vida Total | T5: 0
B6: Vida Gpo y Col | C6: 5 | D6: 14 Vida Gpo y Col | E6: 1 | F6: 4 | H6: Otros Automoviles y Obligatorios | I6: 0 | R6: 13 Vida Individual | S6: 12 Vida Total | T6: 0
B7: Pensiones Total | C7: 6 | D7: 15 Pensiones Total | E7: 1 | F7: 5 | H7: Total General | I7: 0 | R7: 14 Vida Gpo y Col | S7: 12 Vida Total | T7: 0
B8: Pensiones IMSS | C8: 7 | D8: 16 Pensiones IMSS | E8: 1 | F8: 6 | H8: Total General Sin Pensiones | I8: 0 | R8: 15 Pensiones Total | S8: 15 Pensiones Total | T8: 0
B9: IMSS Incapacidad Permanente RT | D9: 17 IMSS Incapacidad Permanente RT | E9: 1 | F9: 7 | H9: Vida Total | I9: 0 | R9: 16 Pensiones IMSS | S9: 15 Pensiones Total | T9: 0
B10: IMSS Invalidez (invalidez y vida) | D10: 18 IMSS Invalidez (invalidez y vida) | E10: 1 | F10: 8 | H10: Vida Individual | I10: 0 | R10: 17 Pensiones ISSSTE | S10: 15 Pensiones Total | T10: 0
B11: IMSS Jubilacion (retiro, cesantia y vejez) | D11: 19 IMSS Jubilacion (retiro, cesantia y vejez) | E11: 1 | F11: 9 | H11: Vida Gpo y Col | I11: 0 | R11: 18 Accidentes y Enfermedades Total | S11: 18 Accidentes y Enfermedades Total | T11: 0
B12: IMSS Muerte (invalidez y vida) | D12: 20 IMSS Muerte (invalidez y vida) | E12: 2 | F12: 0 | H12: Pensiones Total | I12: 1 | R12: 19 Accidentes Personales | S12: 18 Accidentes y Enfermedades Total | T12: 0
B13: IMSS Muerte (riesgos de trabajo) | D13: 21 IMSS Muerte (riesgos de trabajo) | E13: 2 | F13: 1 | H13: Pensiones IMSS | I13: 1 | R13: 20 AP Individual | S13: 18 Accidentes y Enfermedades Total | T13: 0
B14: Pensiones ISSSTE | C14: 8 | D14: 22 Pensiones ISSSTE | E14: 2 | F14: 2 | H14: Pensiones ISSSTE | I14: 1 | R14: 21 AP Gpo y Col | S14: 18 Accidentes y Enfermedades Total | T14: 0
B15: ISSSTE Incapacidad Permanente RT | D15: 23 ISSSTE Incapacidad Permanente RT | E15: 2 | F15: 3 | H15: Accidentes y Enfermedades Total | I15: 0 | R15: 22 Gastos Medicos | S15: 18 Accidentes y Enfermedades Total | T15: 0
B16: ISSSTE Invalidez (invalidez y vida) | D16: 24 ISSSTE Invalidez (invalidez y vida) | E16: 2 | F16: 4 | H16: Accidentes Personales | I16: 0 | R16: 23 GMM. Individual | S16: 18 Accidentes y Enfermedades Total | T16: 0
B17: ISSSTE Jubilacion (retiro, cesantia y vejez) | D17: 25 ISSSTE Jubilacion (retiro, cesantia y vejez) | E17: 2 | F17: 5 | H17: AP Individual | I17: 0 | R17: 24 GMM. Gpo y Col | S17: 18 Accidentes y Enfermedades Total | T17: 0
B18: ISSSTE Muerte (invalidez y vida) | D18: 26 ISSSTE Muerte (invalidez y vida) | E18: 2 | F18: 6 | H18: AP Gpo y Col | I18: 0 | R18: 25 Salud | S18: 18 Accidentes y Enfermedades Total | T18: 0
B19: ISSSTE Muerte (riesgos de trabajo) | D19: 27 ISSSTE Muerte (riesgos de trabajo) | E19: 2 | F19: 7 | H19: Gastos Medicos | I19: 0 | R19: 26 Salud Individual | S19: 18 Accidentes y Enfermedades Total | T19: 0
B20: Accidentes y Enfermedades Total | C20: 14 | D20: 28 Accidentes y Enfermedades Total | E20: 2 | F20: 8 | H20: GMM. Individual | I20: 0 | R20: 27 Salud Gpo y Col | S20: 18 Accidentes y Enfermedades Total | T20: 0
B21: Accidentes Personales | C21: 15 | D21: 29 Accidentes Personales | E21: 2 | F21: 9 | H21: GMM. Gpo y Col | I21: 0 | R21: 28 Daños Total | S21: 28 Daños Total | T21: 1
B22: AP Individual | C22: 16 | D22: 30 AP Individual | E22: 3 | F22: 0 | H22: Salud | I22: 0 | R22: 29 Automoviles Total | S22: 29 Automoviles Total | T22: 1
B23: AP Gpo y Col | C23: 17 | D23: 31 AP Gpo y Col | E23: 3 | F23: 1 | H23: Salud Individual | I23: 0 | R23: 30 Automoviles Residentes | S23: 29 Automoviles Total | T23: 1
B24: Gastos Medicos | C24: 18 | D24: 32 Gastos Medicos | E24: 3 | F24: 2 | H24: Salud Gpo y Col | I24: 0 | R24: 31 Camiones | S24: 29 Automoviles Total | T24: 1
B25: GMM. Individual | C25: 19 | D25: 33 GMM. Individual | E25: 3 | F25: 3 | H25: Daños Total | I25: 0 | R25: 32 Automoviles Turistas | S25: 29 Automoviles Total | T25: 1
B26: GMM. Gpo y Col | C26: 20 | D26: 34 GMM. Gpo y Col | E26: 3 | F26: 4 | H26: Daños Sin Autos Total | I26: 0 | R26: 33 Otros Automoviles y Obligatorios | S26: 29 Automoviles Total | T26: 1
B27: Salud | C27: 21 | D27: 35 Salud | E27: 3 | F27: 5 | H27: Responsabilidad Civil y Riesgos Profesionales | I27: 0 | R27: 34 Daños Sin Autos Total | S27: 28 Daños Total | T27: 1
B28: Salud Individual | C28: 22 | D28: 36 Salud Individual | E28: 3 | F28: 6 | H28: RC General | I28: 0 | R28: 35 Responsabilidad Civil y Riesgos Profesionales | S28: 35 Responsabilidad Civil y Riesgos Profesionales | T28: 1
B29: Salud Gpo y Col | C29: 23 | D29: 37 Salud Gpo y Col | E29: 3 | F29: 7 | H29: RC Aviones y Barcos | I29: 0 | R29: 36 RC General | S29: 35 Responsabilidad Civil y Riesgos Profesionales | T29: 1
B30: Daños Total | C30: 24 | D30: 38 Daños Total | E30: 3 | F30: 8 | H30: RC Viajero | I30: 0 | R30: 37 RC Aviones y Barcos | S30: 35 Responsabilidad Civil y Riesgos Profesionales | T30: 1
B31: Daños | D31: =D30 -> 38 Daños Total | H31: RC Otros | I31: 0 | R31: 38 RC Viajero | S31: 35 Responsabilidad Civil y Riesgos Profesionales | T31: 1
B32: Automoviles Total | C32: 25 | D32: 39 Automoviles Total | E32: 3 | F32: 9 | H32: Maritimo y Transportes | I32: 0 | R32: 39 RC Otros | S32: 35 Responsabilidad Civil y Riesgos Profesionales | T32: 1
B33: Automoviles | D33: 39 Automoviles Total | E33: 3 | F33: 9 | H33: MyT Carga | I33: 0 | R33: 40 Maritimo y Transportes | S33: 40 Maritimo y Transportes | T33: 1
B34: Automoviles Residentes | C34: 26 | D34: 41 Automoviles Residentes | E34: 4 | F34: 1 | H34: MyT Cascos | I34: 0 | R34: 41 MyT Carga | S34: 40 Maritimo y Transportes | T34: 1
B35: Camiones | C35: 27 | D35: 42 Camiones | E35: 4 | F35: 2 | H35: Incendio | I35: 0 | R35: 42 MyT Cascos | S35: 40 Maritimo y Transportes | T35: 1
B36: Automoviles Turistas | C36: 28 | D36: 43 Automoviles Turistas | E36: 4 | F36: 3 | H36: Riesgos Catastroficos | I36: 0 | R36: 43 Incendio | S36: 43 Incendio | T36: 1
B37: Otros Automoviles y Obligatorios | C37: 29 | D37: 44 Otros Automoviles y Obligatorios | E37: 4 | F37: 4 | H37: Terremoto y Erupcion Volcanica | I37: 0 | R37: 44 Riesgos Catastroficos | S37: 44 Riesgos Catastroficos | T37: 1
B38: Daños Sin Autos Total | C38: 30 | D38: 45 Daños Sin Autos Total | E38: 4 | F38: 5 | H38: Huracan y Otros Riesgos Hidrometeorologicos | I38: 0 | R38: 45 Terremoto y Erupcion Volcanica | S38: 44 Riesgos Catastroficos | T38: 1
B39: Daños Sin Autos | D39: 46 Daños Sin Autos Total | H39: Otros Riesgos Catastroficos | I39: 0 | R39: 46 Huracan y Otros Riesgos Hidrometeorologicos | S39: 44 Riesgos Catastroficos | T39: 1
B40: Responsabilidad Civil y Riesgos Profesionales | C40: 31 | D40: 46 Responsabilidad Civil y Riesgos Profesionales | E40: 4 | F40: 6 | H40: Agricola y de Animales | I40: 0 | R40: 47 Otros Riesgos Catastroficos | S40: 44 Riesgos Catastroficos | T40: 1
B41: RC General | C41: 32 | D41: 47 RC General | E41: 4 | F41: 7 | H41: AyA Agricola | I41: 0 | R41: 48 Agricola y de Animales | S41: 48 Agricola y de Animales | T41: 1
B42: RC Aviones y Barcos | C42: 33 | D42: 48 RC Aviones y Barcos | E42: 4 | F42: 8 | H42: AyA Otros | I42: 0 | R42: 49 AyA Agricola | S42: 48 Agricola y de Animales | T42: 1
B43: RC Viajero | C43: 34 | D43: 49 RC Viajero | E43: 4 | F43: 9 | H43: AyA Pecuario | I43: 0 | R43: 50 AyA Otros | S43: 48 Agricola y de Animales | T43: 1
B44: RC Otros | C44: 35 | D44: 50 RC Otros | E44: 5 | F44: 0 | H44: Diversos | I44: 0 | R44: 51 AyA Pecuario | S44: 48 Agricola y de Animales | T44: 1
B45: Maritimo y Transportes | C45: 36 | D45: 51 Maritimo y Transportes | E45: 5 | F45: 1 | H45: Miscelaneos | I45: 0 | R45: 52 Diversos | S45: 52 Diversos | T45: 1
B46: MyT Carga | C46: 37 | D46: 52 MyT Carga | E46: 5 | F46: 2 | H46: Tecnicos | I46: 0 | R46: 53 Miscelaneos | S46: 52 Diversos | T46: 1
B47: MyT Cascos | C47: 38 | D47: 53 MyT Cascos | E47: 5 | F47: 3 | H47: Credito | I47: 0 | R47: 54 Tecnicos | S47: 52 Diversos | T47: 1
B48: Incendio | C48: 39 | D48: 54 Incendio | E48: 5 | F48: 4 | H48: Credito a la Vivienda | I48: 0 | R48: 55 Credito | S48: 52 Diversos | T48: 1
B49: Riesgos Catastroficos | C49: 40 | D49: 55 Riesgos Catastroficos | E49: 5 | F49: 5 | R49: 56 Credito a la Vivienda | S49: 52 Diversos | T49: 1
B50: Terremoto y Erupcion Volcanica | C50: 41 | D50: 56 Terremoto y Erupcion Volcanica | E50: 5 | F50: 6
B51: Huracan y Otros Riesgos Hidrometeorologicos | C51: 42 | D51: 57 Huracan y Otros Riesgos Hidrometeorologicos | E51: 5 | F51: 7
B52: Otros Riesgos Catastroficos | C52: 43 | D52: 58 Otros Riesgos Catastroficos | E52: 5 | F52: 8
B53: Agricola y de Animales | C53: 44 | D53: 59 Agricola y de Animales | E53: 5 | F53: 9
B54: AyA Agricola | C54: 45 | D54: 60 AyA Agricola | E54: 6 | F54: 0
B55: AyA Otros | C55: 46 | D55: 61 AyA Otros | E55: 6 | F55: 1
B56: AyA Pecuario | C56: 47 | D56: 62 AyA Pecuario | E56: 6 | F56: 2
B57: Diversos | C57: 48 | D57: 63 Diversos | E57: 6 | F57: 3
B58: Miscelaneos | C58: 49 | D58: 64 Miscelaneos | E58: 6 | F58: 4
B59: Tecnicos | C59: 50 | D59: 65 Tecnicos | E59: 6 | F59: 5
B60: Credito | C60: 51 | D60: 66 Credito | E60: 6 | F60: 6
B61: Credito a la Vivienda | C61: 52 | D61: 67 Credito a la Vivienda | E61: 6 | F61: 7
B64: Automoviles
B65: Daños | D65: =E65&F65&" "&B65 -> Daños
B66: Daños Sin Autos
B67: IMSS Incapacidad Permanente RT | D67: =E67&F67&" "&B67 -> IMSS Incapacidad Permanente RT
B68: IMSS Invalidez (invalidez y vida) | D68: =E68&F68&" "&B68 -> IMSS Invalidez (invalidez y vida)
B69: IMSS Jubilacion (retiro, cesantia y vejez)
B70: IMSS Muerte (invalidez y vida) | D70: =E70&F70&" "&B70 -> IMSS Muerte (invalidez y vida)
B71: IMSS Muerte (riesgos de trabajo) | D71: =E71&F71&" "&B71 -> IMSS Muerte (riesgos de trabajo)
B72: ISSSTE Incapacidad Permanente RT
B73: ISSSTE Invalidez (invalidez y vida) | D73: =E73&F73&" "&B73 -> ISSSTE Invalidez (invalidez y vida)
B74: ISSSTE Jubilacion (retiro, cesantia y vejez) | D74: =E74&F74&" "&B74 -> ISSSTE Jubilacion (retiro, cesantia y vejez)
B75: ISSSTE Muerte (invalidez y vida) | D75: =E75&F75&" "&B75 -> ISSSTE Muerte (invalidez y vida)
B76: ISSSTE Muerte (riesgos de trabajo) | D76: =E76&F76&" "&B76 -> ISSSTE Muerte (riesgos de trabajo)

Sheet Inicio
J4: EstadisticAMIS Informe
D6: Con la finalidad de atender la solicitud de información, presentamos esta publicación comparando los datosprimas del periodo actual vs el mismo periodo del año anterior.
I10: Periodo: | J10: 2023-Q3
I11: Fecha de actualización: | J11: 2023-11-15
I12: Porcentaje de Participación: | J12: 0.9998
B14: ANÁLISIS DE PRIMAS DIRECTAS | G14: ANÁLISIS DE SINIESTROS
B20: NOTAS DE ACTUALIZACIÓN
B21: *Se adiciono la información de la compañía Patrimonial Daños
B22: *No se incluye la información de Agroasemex ni de Protección Agropecuaria en virtud de que a la fecha de esta publicación, no se recibió su información.
B25: DEFINICIÓN DE TÉRMINOS
B27: Participación de mercado
B28: Porcentaje que representa la participación de las compañías sobre el total del ramo o subramo que se está consultando.
B30: Participación por operación
B31: Porcentaje que representa la participación del subramo sobre el ramo de la compañía.
B33: Participación por cartera
B34: Porcentaje que representa la participación del ramo o subramos sobre el total general sin pensiones de la compañía.
B36: Participación por sector
B37: Porcentaje que representa la participación de la compañía del ramo o subramo(s) sobre la suma del total general sin pensiones.

Sheet Primas Directas
B1: PRIMAS DIRECTAS | L1: =VLOOKUP(RIGHT(TDPrimas_!B3,2),Cat!$N$2:$O$5,2,0)&" "&LEFT(TDPrimas_!B3,4) -> Tercer Trimestre 2023
B2: =UPPER(RIGHT(TDPrimas_!$B$4,LEN(TDPrimas_!$B$4)-3)) -> TOTAL GENERAL
L3: Cifras en miles
D4: 2 | E4: 3 | F4: 4 | G4: 5 | H4: 6 | I4: 7 | J4: 8 | K4: 9 | L4: 10
D5: Primas Directas | F5: % Part. en Merc. | H5: Incremento | J5: % de Cartera
B6: Compañías | D6: =LEFT(TDPrimas_!B3,4) -> 2023 | E6: =D6-1 -> 2022 | F6: =D6 -> 2023 | G6: =E6 -> 2022 | H6: Importe | I6: % | J6: Por | K6: Total | L6: Total
D7: Importe | E7: Importe | F7: =RIGHT(TDPrimas_!B3,2) -> Q3 | G7: =RIGHT(TDPrimas_!B3,2) -> Q3 | J7: Operación | K7: Cartera | L7: Sector
C8: TOTAL | D8: =VLOOKUP($C$8,$C$9:$L$125,D$4,0) -> 587475647.8 | E8: =VLOOKUP($C$8,$C$9:$L$125,E$4,0) -> 514035321.2 | F8: 100 | G8: 100 | H8: 73440326.67 | I8: 14.28701952 | J8: 100 | K8: 100 | L8: 100
B9: =IF(TDPrimas_!A7="","",TDPrimas_!A7) -> 1 | C9: =IF(TDPrimas_!B7="","",TDPrimas_!B7) -> G.N.P. | D9: =IF(TDPrimas_!C7="","",TDPrimas_!C7) -> 73374373.46 | E9: =IF(TDPrimas_!D7="","",TDPrimas_!D7) -> 64173691.33 | F9: =IF(TDPrimas_!E7="","",TDPrimas_!E7) -> 12.48977276 | G9: =IF(TDPrimas_!F7="","",TDPrimas_!F7) -> 12.48429606 | H9: =IF(TDPrimas_!G7="","",TDPrimas_!G7) -> 9200682.121 | I9: =IF(TDPrimas_!H7="","",TDPrimas_!H7) -> 14.33715582 | J9: =IF(TDPrimas_!I7="","",TDPrimas_!I7) -> 100 | K9: =IF(TDPrimas_!J7="","",TDPrimas_!J7) -> 100 | L9: =IF(TDPrimas_!K7="","",TDPrimas_!K7) -> 12.48977276
B10: =IF(TDPrimas_!A8="","",TDPrimas_!A8) -> 2 | C10: =IF(TDPrimas_!B8="","",TDPrimas_!B8) -> Metlife México | D10: =IF(TDPrimas_!C8="","",TDPrimas_!C8) -> 58609536.35 | E10: =IF(TDPrimas_!D8="","",TDPrimas_!D8) -> 54187451.58 | F10: =IF(TDPrimas_!E8="","",TDPrimas_!E8) -> 9.976504825 | G10: =IF(TDPrimas_!F8="","",TDPrimas_!F8) -> 10.54158136 | H10: =IF(TDPrimas_!G8="","",TDPrimas_!G8) -> 4422084.773 | I10: =IF(TDPrimas_!H8="","",TDPrimas_!H8) -> 8.160717369 | J10: =IF(TDPrimas_!I8="","",TDPrimas_!I8) -> 100 | K10: =IF(TDPrimas_!J8="","",TDPrimas_!J8) -> 100 | L10: =IF(TDPrimas_!K8="","",TDPrimas_!K8) -> 9.976504825
B11: =IF(TDPrimas_!A9="","",TDPrimas_!A9) -> 3 | C11: =IF(TDPrimas_!B9="","",TDPrimas_!B9) -> BBVA Bancomer | D11: =IF(TDPrimas_!C9="","",TDPrimas_!C9) -> 52224009.6 | E11: =IF(TDPrimas_!D9="","",TDPrimas_!D9) -> 43568790.65 | F11: =IF(TDPrimas_!E9="","",TDPrimas_!E9) -> 8.889561601 | G11: =IF(TDPrimas_!F9="","",TDPrimas_!F9) -> 8.47583597 | H11: =IF(TDPrimas_!G9="","",TDPrimas_!G9) -> 8655218.952 | I11: =IF(TDPrimas_!H9="","",TDPrimas_!H9) -> 19.86563965 | J11: =IF(TDPrimas_!I9="","",TDPrimas_!I9) -> 100 | K11: =IF(TDPrimas_!J9="","",TDPrimas_!J9) -> 100 | L11: =IF(TDPrimas_!K9="","",TDPrimas_!K9) -> 8.889561601
B12: =IF(TDPrimas_!A10="","",TDPrimas_!A10) -> 4 | C12: =IF(TDPrimas_!B10="","",TDPrimas_!B10) -> AXA Seguros | D12: =IF(TDPrimas_!C10="","",TDPrimas_!C10) -> 41806699.47 | E12: =IF(TDPrimas_!D10="","",TDPrimas_!D10) -> 36252985.89 | F12: =IF(TDPrimas_!E10="","",TDPrimas_!E10) -> 7.116328928 | G12: =IF(TDPrimas_!F10="","",TDPrimas_!F10) -> 7.052625451 | H12: =IF(TDPrimas_!G10="","",TDPrimas_!G10) -> 5553713.585 | I12: =IF(TDPrimas_!H10="","",TDPrimas_!H10) -> 15.31932736 | J12: =IF(TDPrimas_!I10="","",TDPrimas_!I10) -> 100 | K12: =IF(TDPrimas_!J10="","",TDPrimas_!J10) -> 100 | L12: =IF(TDPrimas_!K10="","",TDPrimas_!K10) -> 7.116328928
B13: =IF(TDPrimas_!A11="","",TDPrimas_!A11) -> 5 | C13: =IF(TDPrimas_!B11="","",TDPrimas_!B11) -> Quálitas | D13: =IF(TDPrimas_!C11="","",TDPrimas_!C11) -> 34917926.45 | E13: =IF(TDPrimas_!D11="","",TDPrimas_!D11) -> 26956119.4 | F13: =IF(TDPrimas_!E11="","",TDPrimas_!E11) -> 5.943723212 | G13: =IF(TDPrimas_!F11="","",TDPrimas_!F11) -> 5.244020846 | H13: =IF(TDPrimas_!G11="","",TDPrimas_!G11) -> 7961807.046 | I13: =IF(TDPrimas_!H11="","",TDPrimas_!H11) -> 29.53617666 | J13: =IF(TDPrimas_!I11="","",TDPrimas_!I11) -> 100 | K13: =IF(TDPrimas_!J11="","",TDPrimas_!J11) -> 100 | L13: =IF(TDPrimas_!K11="","",TDPrimas_!K11) -> 5.943723212
B14: =IF(TDPrimas_!A12="","",TDPrimas_!A12) -> 5.1 | C14: =IF(TDPrimas_!B12="","",TDPrimas_!B12) -> TOTAL GRANDES | D14: =IF(TDPrimas_!C12="","",TDPrimas_!C12) -> 260932545.3 | E14: =IF(TDPrimas_!D12="","",TDPrimas_!D12) -> 225139038.9 | F14: =IF(TDPrimas_!E12="","",TDPrimas_!E12) -> 44.41589133 | G14: =IF(TDPrimas_!F12="","",TDPrimas_!F12) -> 43.79835968 | H14: =IF(TDPrimas_!G12="","",TDPrimas_!G12) -> 35793506.48 | I14: =IF(TDPrimas_!H12="","",TDPrimas_!H12) -> 15.89840068 | J14: =IF(TDPrimas_!I12="","",TDPrimas_!I12) -> 100 | K14: =IF(TDPrimas_!J12="","",TDPrimas_!J12) -> 100 | L14: =IF(TDPrimas_!K12="","",TDPrimas_!K12) -> 44.41589133
B15: =IF(TDPrimas_!A13="","",TDPrimas_!A13) -> 6 | C15: =IF(TDPrimas_!B13="","",TDPrimas_!B13) -> Banorte | D15: =IF(TDPrimas_!C13="","",TDPrimas_!C13) -> 28721849.16 | E15: =IF(TDPrimas_!D13="","",TDPrimas_!D13) -> 23159092.69 | F15: =IF(TDPrimas_!E13="","",TDPrimas_!E13) -> 4.889028042 | G15: =IF(TDPrimas_!F13="","",TDPrimas_!F13) -> 4.505350457 | H15: =IF(TDPrimas_!G13="","",TDPrimas_!G13) -> 5562756.473 | I15: =IF(TDPrimas_!H13="","",TDPrimas_!H13) -> 24.01975132 | J15: =IF(TDPrimas_!I13="","",TDPrimas_!I13) -> 100 | K15: =IF(TDPrimas_!J13="","",TDPrimas_!J13) -> 100 | L15: =IF(TDPrimas_!K13="","",TDPrimas_!K13) -> 4.889028042
B16: =IF(TDPrimas_!A14="","",TDPrimas_!A14) -> 7 | C16: =IF(TDPrimas_!B14="","",TDPrimas_!B14) -> Monterrey New York Life | D16: =IF(TDPrimas_!C14="","",TDPrimas_!C14) -> 28072029.51 | E16: =IF(TDPrimas_!D14="","",TDPrimas_!D14) -> 27266941.53 | F16: =IF(TDPrimas_!E14="","",TDPrimas_!E14) -> 4.778415857 | G16: =IF(TDPrimas_!F14="","",TDPrimas_!F14) -> 5.304487924 | H16: =IF(TDPrimas_!G14="","",TDPrimas_!G14) -> 805087.9774 | I16: =IF(TDPrimas_!H14="","",TDPrimas_!H14) -> 2.95261563 | J16: =IF(TDPrimas_!I14="","",TDPrimas_!I14) -> 100 | K16: =IF(TDPrimas_!J14="","",TDPrimas_!J14) -> 100 | L16: =IF(TDPrimas_!K14="","",TDPrimas_!K14) -> 4.778415857
B17: =IF(TDPrimas_!A15="","",TDPrimas_!A15) -> 8 | C17: =IF(TDPrimas_!B15="","",TDPrimas_!B15) -> Citibanamex Seguros | D17: =IF(TDPrimas_!C15="","",TDPrimas_!C15) -> 24659912.83 | E17: =IF(TDPrimas_!D15="","",TDPrimas_!D15) -> 12807317.38 | F17: =IF(TDPrimas_!E15="","",TDPrimas_!E15) -> 4.197605964 | G17: =IF(TDPrimas_!F15="","",TDPrimas_!F15) -> 2.491524775 | H17: =IF(TDPrimas_!G15="","",TDPrimas_!G15) -> 11852595.45 | I17: =IF(TDPrimas_!H15="","",TDPrimas_!H15) -> 92.54549648 | J17: =IF(TDPrimas_!I15="","",TDPrimas_!I15) -> 100 | K17: =IF(TDPrimas_!J15="","",TDPrimas_!J15) -> 100 | L17: =IF(TDPrimas_!K15="","",TDPrimas_!K15) -> 4.197605964
B18: =IF(TDPrimas_!A16="","",TDPrimas_!A16) -> 9 | C18: =IF(TDPrimas_!B16="","",TDPrimas_!B16) -> Mapfre México | D18: =IF(TDPrimas_!C16="","",TDPrimas_!C16) -> 22376637.89 | E18: =IF(TDPrimas_!D16="","",TDPrimas_!D16) -> 17630605.92 | F18: =IF(TDPrimas_!E16="","",TDPrimas_!E16) -> 3.808947311 | G18: =IF(TDPrimas_!F16="","",TDPrimas_!F16) -> 3.42984328 | H18: =IF(TDPrimas_!G16="","",TDPrimas_!G16) -> 4746031.972 | I18: =IF(TDPrimas_!H16="","",TDPrimas_!H16) -> 26.91927885 | J18: =IF(TDPrimas_!I16="","",TDPrimas_!I16) -> 100 | K18: =IF(TDPrimas_!J16="","",TDPrimas_!J16) -> 100 | L18: =IF(TDPrimas_!K16="","",TDPrimas_!K16) -> 3.808947311
B19: =IF(TDPrimas_!A17="","",TDPrimas_!A17) -> 10 | C19: =IF(TDPrimas_!B17="","",TDPrimas_!B17) -> Inbursa | D19: =IF(TDPrimas_!C17="","",TDPrimas_!C17) -> 20930115.53 | E19: =IF(TDPrimas_!D17="","",TDPrimas_!D17) -> 18372239.08 | F19: =IF(TDPrimas_!E17="","",TDPrimas_!E17) -> 3.562720533 | G19: =IF(TDPrimas_!F17="","",TDPrimas_!F17) -> 3.574119972 | H19: =IF(TDPrimas_!G17="","",TDPrimas_!G17) -> 2557876.45 | I19: =IF(TDPrimas_!H17="","",TDPrimas_!H17) -> 13.92250797 | J19: =IF(TDPrimas_!I17="","",TDPrimas_!I17) -> 100 | K19: =IF(TDPrimas_!J17="","",TDPrimas_!J17) -> 100 | L19: =IF(TDPrimas_!K17="","",TDPrimas_!K17) -> 3.562720533
B20: =IF(TDPrimas_!A18="","",TDPrimas_!A18) -> 11 | C20: =IF(TDPrimas_!B18="","",TDPrimas_!B18) -> Chubb Seguros México | D20: =IF(TDPrimas_!C18="","",TDPrimas_!C18) -> 17720859.14 | E20: =IF(TDPrimas_!D18="","",TDPrimas_!D18) -> 16513848.83 | F20: =IF(TDPrimas_!E18="","",TDPrimas_!E18) -> 3.016441482 | G20: =IF(TDPrimas_!F18="","",TDPrimas_!F18) -> 3.212590293 | H20: =IF(TDPrimas_!G18="","",TDPrimas_!G18) -> 1207010.307 | I20: =IF(TDPrimas_!H18="","",TDPrimas_!H18) -> 7.309079305 | J20: =IF(TDPrimas_!I18="","",TDPrimas_!I18) -> 100 | K20: =IF(TDPrimas_!J18="","",TDPrimas_!J18) -> 100 | L20: =IF(TDPrimas_!K18="","",TDPrimas_!K18) -> 3.016441482
B21: =IF(TDPrimas_!A19="","",TDPrimas_!A19) -> 12 | C21: =IF(TDPrimas_!B19="","",TDPrimas_!B19) -> Zurich Santander | D21: =IF(TDPrimas_!C19="","",TDPrimas_!C19) -> 15536856.45 | E21: =IF(TDPrimas_!D19="","",TDPrimas_!D19) -> 11004873.66 | F21: =IF(TDPrimas_!E19="","",TDPrimas_!E19) -> 2.644680934 | G21: =IF(TDPrimas_!F19="","",TDPrimas_!F19) -> 2.140878886 | H21: =IF(TDPrimas_!G19="","",TDPrimas_!G19) -> 4531982.794 | I21: =IF(TDPrimas_!H19="","",TDPrimas_!H19) -> 41.18159767 | J21: =IF(TDPrimas_!I19="","",TDPrimas_!I19) -> 100 | K21: =IF(TDPrimas_!J19="","",TDPrimas_!J19) -> 100 | L21: =IF(TDPrimas_!K19="","",TDPrimas_!K19) -> 2.644680934
B22: =IF(TDPrimas_!A20="","",TDPrimas_!A20) -> 13 | C22: =IF(TDPrimas_!B20="","",TDPrimas_!B20) -> Atlas | D22: =IF(TDPrimas_!C20="","",TDPrimas_!C20) -> 15095885.72 | E22: =IF(TDPrimas_!D20="","",TDPrimas_!D20) -> 13447900.98 | F22: =IF(TDPrimas_!E20="","",TDPrimas_!E20) -> 2.569618976 | G22: =IF(TDPrimas_!F20="","",TDPrimas_!F20) -> 2.616143371 | H22: =IF(TDPrimas_!G20="","",TDPrimas_!G20) -> 1647984.747 | I22: =IF(TDPrimas_!H20="","",TDPrimas_!H20) -> 12.25458717 | J22: =IF(TDPrimas_!I20="","",TDPrimas_!I20) -> 100 | K22: =IF(TDPrimas_!J20="","",TDPrimas_!J20) -> 100 | L22: =IF(TDPrimas_!K20="","",TDPrimas_!K20) -> 2.569618976
B23: =IF(TDPrimas_!A21="","",TDPrimas_!A21) -> 14 | C23: =IF(TDPrimas_!B21="","",TDPrimas_!B21) -> Allianz México | D23: =IF(TDPrimas_!C21="","",TDPrimas_!C21) -> 15031312.09 | E23: =IF(TDPrimas_!D21="","",TDPrimas_!D21) -> 14258839.23 | F23: =IF(TDPrimas_!E21="","",TDPrimas_!E21) -> 2.558627262 | G23: =IF(TDPrimas_!F21="","",TDPrimas_!F21) -> 2.773902618 | H23: =IF(TDPrimas_!G21="","",TDPrimas_!G21) -> 772472.8551 | I23: =IF(TDPrimas_!H21="","",TDPrimas_!H21) -> 5.417501682 | J23: =IF(TDPrimas_!I21="","",TDPrimas_!I21) -> 100 | K23: =IF(TDPrimas_!J21="","",TDPrimas_!J21) -> 100 | L23: =IF(TDPrimas_!K21="","",TDPrimas_!K21) -> 2.558627262
B24: =IF(TDPrimas_!A22="","",TDPrimas_!A22) -> 15 | C24: =IF(TDPrimas_!B22="","",TDPrimas_!B22) -> Pensiones Banorte | D24: =IF(TDPrimas_!C22="","",TDPrimas_!C22) -> 12749688.2 | E24: =IF(TDPrimas_!D22="","",TDPrimas_!D22) -> 15140589.79 | F24: =IF(TDPrimas_!E22="","",TDPrimas_!E22) -> 2.170249651 | G24: =IF(TDPrimas_!F22="","",TDPrimas_!F22) -> 2.945437631 | H24: =IF(TDPrimas_!G22="","",TDPrimas_!G22) -> -2390901.592 | I24: =IF(TDPrimas_!H22="","",TDPrimas_!H22) -> -15.79133723 | J24: =IF(TDPrimas_!I22="","",TDPrimas_!I22) -> 100 | K24: =IF(TDPrimas_!J22="","",TDPrimas_!J22) -> 100 | L24: =IF(TDPrimas_!K22="","",TDPrimas_!K22) -> 2.170249651
B25: =IF(TDPrimas_!A23="","",TDPrimas_!A23) -> 15.1 | C25: =IF(TDPrimas_!B23="","",TDPrimas_!B23) -> TOTAL MEDIANAS | D25: =IF(TDPrimas_!C23="","",TDPrimas_!C23) -> 200895146.5 | E25: =IF(TDPrimas_!D23="","",TDPrimas_!D23) -> 169602249.1 | F25: =IF(TDPrimas_!E23="","",TDPrimas_!E23) -> 34.19633601 | G25: =IF(TDPrimas_!F23="","",TDPrimas_!F23) -> 32.99427921 | H25: =IF(TDPrimas_!G23="","",TDPrimas_!G23) -> 31292897.44 | I25: =IF(TDPrimas_!H23="","",TDPrimas_!H23) -> 18.45075617 | J25: =IF(TDPrimas_!I23="","",TDPrimas_!I23) -> 100 | K25: =IF(TDPrimas_!J23="","",TDPrimas_!J23) -> 100 | L25: =IF(TDPrimas_!K23="","",TDPrimas_!K23) -> 34.19633601
B26: =IF(TDPrimas_!A24="","",TDPrimas_!A24) -> 16 | C26: =IF(TDPrimas_!B24="","",TDPrimas_!B24) -> Pensiones BBVA Bancomer | D26: =IF(TDPrimas_!C24="","",TDPrimas_!C24) -> 10006895.61 | E26: =IF(TDPrimas_!D24="","",TDPrimas_!D24) -> 9346393.565 | F26: =IF(TDPrimas_!E24="","",TDPrimas_!E24) -> 1.703371986 | G26: =IF(TDPrimas_!F24="","",TDPrimas_!F24) -> 1.818239561 | H26: =IF(TDPrimas_!G24="","",TDPrimas_!G24) -> 660502.0478 | I26: =IF(TDPrimas_!H24="","",TDPrimas_!H24) -> 7.066918841 | J26: =IF(TDPrimas_!I24="","",TDPrimas_!I24) -> 100 | K26: =IF(TDPrimas_!J24="","",TDPrimas_!J24) -> 100 | L26: =IF(TDPrimas_!K24="","",TDPrimas_!K24) -> 1.703371986
B27: =IF(TDPrimas_!A25="","",TDPrimas_!A25) -> 17 | C27: =IF(TDPrimas_!B25="","",TDPrimas_!B25) -> GMX Seguros | D27: =IF(TDPrimas_!C25="","",TDPrimas_!C25) -> 9804093.929 | E27: =IF(TDPrimas_!D25="","",TDPrimas_!D25) -> 10619077.69 | F27: =IF(TDPrimas_!E25="","",TDPrimas_!E25) -> 1.66885112 | G27: =IF(TDPrimas_!F25="","",TDPrimas_!F25) -> 2.065826462 | H27: =IF(TDPrimas_!G25="","",TDPrimas_!G25) -> -814983.7599 | I27: =IF(TDPrimas_!H25="","",TDPrimas_!H25) -> -7.674713226 | J27: =IF(TDPrimas_!I25="","",TDPrimas_!I25) -> 100 | K27: =IF(TDPrimas_!J25="","",TDPrimas_!J25) -> 100 | L27: =IF(TDPrimas_!K25="","",TDPrimas_!K25) -> 1.66885112
B28: =IF(TDPrimas_!A26="","",TDPrimas_!A26) -> 18 | C28: =IF(TDPrimas_!B26="","",TDPrimas_!B26) -> HDI Seguros | D28: =IF(TDPrimas_!C26="","",TDPrimas_!C26) -> 8672700.526 | E28: =IF(TDPrimas_!D26="","",TDPrimas_!D26) -> 6937182.147 | F28: =IF(TDPrimas_!E26="","",TDPrimas_!E26) -> 1.476265537 | G28: =IF(TDPrimas_!F26="","",TDPrimas_!F26) -> 1.349553593 | H28: =IF(TDPrimas_!G26="","",TDPrimas_!G26) -> 1735518.379 | I28: =IF(TDPrimas_!H26="","",TDPrimas_!H26) -> 25.01762736 | J28: =IF(TDPrimas_!I26="","",TDPrimas_!I26) -> 100 | K28: =IF(TDPrimas_!J26="","",TDPrimas_!J26) -> 100 | L28: =IF(TDPrimas_!K26="","",TDPrimas_!K26) -> 1.476265537
B29: =IF(TDPrimas_!A27="","",TDPrimas_!A27) -> 19 | C29: =IF(TDPrimas_!B27="","",TDPrimas_!B27) -> Zurich Aseguradora Mexicana | D29: =IF(TDPrimas_!C27="","",TDPrimas_!C27) -> 8533878.9 | E29: =IF(TDPrimas_!D27="","",TDPrimas_!D27) -> 2761368.283 | F29: =IF(TDPrimas_!E27="","",TDPrimas_!E27) -> 1.452635344 | G29: =IF(TDPrimas_!F27="","",TDPrimas_!F27) -> 0.5371942684 | H29: =IF(TDPrimas_!G27="","",TDPrimas_!G27) -> 5772510.617 | I29: =IF(TDPrimas_!H27="","",TDPrimas_!H27) -> 209.0453002 | J29: =IF(TDPrimas_!I27="","",TDPrimas_!I27) -> 100 | K29: =IF(TDPrimas_!J27="","",TDPrimas_!J27) -> 100 | L29: =IF(TDPrimas_!K27="","",TDPrimas_!K27) -> 1.452635344
B30: =IF(TDPrimas_!A28="","",TDPrimas_!A28) -> 20 | C30: =IF(TDPrimas_!B28="","",TDPrimas_!B28) -> Agroasemex | D30: =IF(TDPrimas_!C28="","",TDPrimas_!C28) -> 8513094.41 | E30: =IF(TDPrimas_!D28="","",TDPrimas_!D28) -> 6874534.11 | F30: =IF(TDPrimas_!E28="","",TDPrimas_!E28) -> 1.449097412 | G30: =IF(TDPrimas_!F28="","",TDPrimas_!F28) -> 1.337366097 | H30: =IF(TDPrimas_!G28="","",TDPrimas_!G28) -> 1638560.3 | I30: =IF(TDPrimas_!H28="","",TDPrimas_!H28) -> 23.83521958 | J30: =IF(TDPrimas_!I28="","",TDPrimas_!I28) -> 100 | K30: =IF(TDPrimas_!J28="","",TDPrimas_!J28) -> 100 | L30: =IF(TDPrimas_!K28="","",TDPrimas_!K28) -> 1.449097412
B31: =IF(TDPrimas_!A29="","",TDPrimas_!A29) -> 21 | C31: =IF(TDPrimas_!B29="","",TDPrimas_!B29) -> ProFuturo G.N.P. | D31: =IF(TDPrimas_!C29="","",TDPrimas_!C29) -> 6397672.835 | E31: =IF(TDPrimas_!D29="","",TDPrimas_!D29) -> 7777037.097 | F31: =IF(TDPrimas_!E29="","",TDPrimas_!E29) -> 1.089010729 | G31: =IF(TDPrimas_!F29="","",TDPrimas_!F29) -> 1.51293827 | H31: =IF(TDPrimas_!G29="","",TDPrimas_!G29) -> -1379364.262 | I31: =IF(TDPrimas_!H29="","",TDPrimas_!H29) -> -17.7363724 | J31: =IF(TDPrimas_!I29="","",TDPrimas_!I29) -> 100 | K31: =IF(TDPrimas_!J29="","",TDPrimas_!J29) -> 100 | L31: =IF(TDPrimas_!K29="","",TDPrimas_!K29) -> 1.089010729
B32: =IF(TDPrimas_!A30="","",TDPrimas_!A30) -> 22 | C32: =IF(TDPrimas_!B30="","",TDPrimas_!B30) -> AIG Seguros | D32: =IF(TDPrimas_!C30="","",TDPrimas_!C30) -> 6304657.663 | E32: =IF(TDPrimas_!D30="","",TDPrimas_!D30) -> 5126170.01 | F32: =IF(TDPrimas_!E30="","",TDPrimas_!E30) -> 1.073177703 | G32: =IF(TDPrimas_!F30="","",TDPrimas_!F30) -> 0.9972408119 | H32: =IF(TDPrimas_!G30="","",TDPrimas_!G30) -> 1178487.652 | I32: =IF(TDPrimas_!H30="","",TDPrimas_!H30) -> 22.98963261 | J32: =IF(TDPrimas_!I30="","",TDPrimas_!I30) -> 100 | K32: =IF(TDPrimas_!J30="","",TDPrimas_!J30) -> 100 | L32: =IF(TDPrimas_!K30="","",TDPrimas_!K30) -> 1.073177703
B33: =IF(TDPrimas_!A31="","",TDPrimas_!A31) -> 23 | C33: =IF(TDPrimas_!B31="","",TDPrimas_!B31) -> HSBC Seguros | D33: =IF(TDPrimas_!C31="","",TDPrimas_!C31) -> 6120455.987 | E33: =IF(TDPrimas_!D31="","",TDPrimas_!D31) -> 4630757.462 | F33: =IF(TDPrimas_!E31="","",TDPrimas_!E31) -> 1.041822927 | G33: =IF(TDPrimas_!F31="","",TDPrimas_!F31) -> 0.9008636704 | H33: =IF(TDPrimas_!G31="","",TDPrimas_!G31) -> 1489698.526 | I33: =IF(TDPrimas_!H31="","",TDPrimas_!H31) -> 32.16965125 | J33: =IF(TDPrimas_!I31="","",TDPrimas_!I31) -> 100 | K33: =IF(TDPrimas_!J31="","",TDPrimas_!J31) -> 100 | L33: =IF(TDPrimas_!K31="","",TDPrimas_!K31) -> 1.041822927
B34: =IF(TDPrimas_!A32="","",TDPrimas_!A32) -> 24 | C34: =IF(TDPrimas_!B32="","",TDPrimas_!B32) -> Afirme | D34: =IF(TDPrimas_!C32="","",TDPrimas_!C32) -> 5692551.025 | E34: =IF(TDPrimas_!D32="","",TDPrimas_!D32) -> 5607417.762 | F34: =IF(TDPrimas_!E32="","",TDPrimas_!E32) -> 0.9689850203 | G34: =IF(TDPrimas_!F32="","",TDPrimas_!F32) -> 1.090862346 | H34: =IF(TDPrimas_!G32="","",TDPrimas_!G32) -> 85133.26361 | I34: =IF(TDPrimas_!H32="","",TDPrimas_!H32) -> 1.518225808 | J34: =IF(TDPrimas_!I32="","",TDPrimas_!I32) -> 100 | K34: =IF(TDPrimas_!J32="","",TDPrimas_!J32) -> 100 | L34: =IF(TDPrimas_!K32="","",TDPrimas_!K32) -> 0.9689850203
B35: =IF(TDPrimas_!A33="","",TDPrimas_!A33) -> 25 | C35: =IF(TDPrimas_!B33="","",TDPrimas_!B33) -> Seguros SURA | D35: =IF(TDPrimas_!C33="","",TDPrimas_!C33) -> 4306787.997 | E35: =IF(TDPrimas_!D33="","",TDPrimas_!D33) -> 5306404.113 | F35: =IF(TDPrimas_!E33="","",TDPrimas_!E33) -> 0.7331006847 | G35: =IF(TDPrimas_!F33="","",TDPrimas_!F33) -> 1.032303403 | H35: =IF(TDPrimas_!G33="","",TDPrimas_!G33) -> -999616.1166 | I35: =IF(TDPrimas_!H33="","",TDPrimas_!H33) -> -18.83791915 | J35: =IF(TDPrimas_!I33="","",TDPrimas_!I33) -> 100 | K35: =IF(TDPrimas_!J33="","",TDPrimas_!J33) -> 100 | L35: =IF(TDPrimas_!K33="","",TDPrimas_!K33) -> 0.7331006847
B36: =IF(TDPrimas_!A34="","",TDPrimas_!A34) -> 26 | C36: =IF(TDPrimas_!B34="","",TDPrimas_!B34) -> Seguros Azteca | D36: =IF(TDPrimas_!C34="","",TDPrimas_!C34) -> 3540235.016 | E36: =IF(TDPrimas_!D34="","",TDPrimas_!D34) -> 3157216.237 | F36: =IF(TDPrimas_!E34="","",TDPrimas_!E34) -> 0.6026181731 | G36: =IF(TDPrimas_!F34="","",TDPrimas_!F34) -> 0.6142021971 | H36: =IF(TDPrimas_!G34="","",TDPrimas_!G34) -> 383018.7796 | I36: =IF(TDPrimas_!H34="","",TDPrimas_!H34) -> 12.13153458 | J36: =IF(TDPrimas_!I34="","",TDPrimas_!I34) -> 100 | K36: =IF(TDPrimas_!J34="","",TDPrimas_!J34) -> 100 | L36: =IF(TDPrimas_!K34="","",TDPrimas_!K34) -> 0.6026181731
B37: =IF(TDPrimas_!A35="","",TDPrimas_!A35) -> 27 | C37: =IF(TDPrimas_!B35="","",TDPrimas_!B35) -> Hir Seguros | D37: =IF(TDPrimas_!C35="","",TDPrimas_!C35) -> 3256773.907 | E37: =IF(TDPrimas_!D35="","",TDPrimas_!D35) -> 2675564.433 | F37: =IF(TDPrimas_!E35="","",TDPrimas_!E35) -> 0.5543674735 | G37: =IF(TDPrimas_!F35="","",TDPrimas_!F35) -> 0.5205020594 | H37: =IF(TDPrimas_!G35="","",TDPrimas_!G35) -> 581209.4736 | I37: =IF(TDPrimas_!H35="","",TDPrimas_!H35) -> 21.72287337 | J37: =IF(TDPrimas_!I35="","",TDPrimas_!I35) -> 100 | K37: =IF(TDPrimas_!J35="","",TDPrimas_!J35) -> 100 | L37: =IF(TDPrimas_!K35="","",TDPrimas_!K35) -> 0.5543674735
B38: =IF(TDPrimas_!A36="","",TDPrimas_!A36) -> 28 | C38: =IF(TDPrimas_!B36="","",TDPrimas_!B36) -> BUPA México | D38: =IF(TDPrimas_!C36="","",TDPrimas_!C36) -> 3098553.801 | E38: =IF(TDPrimas_!D36="","",TDPrimas_!D36) -> 2813660.554 | F38: =IF(TDPrimas_!E36="","",TDPrimas_!E36) -> 0.5274352753 | G38: =IF(TDPrimas_!F36="","",TDPrimas_!F36) -> 0.547367163 | H38: =IF(TDPrimas_!G36="","",TDPrimas_!G36) -> 284893.2466 | I38: =IF(TDPrimas_!H36="","",TDPrimas_!H36) -> 10.12535951 | J38: =IF(TDPrimas_!I36="","",TDPrimas_!I36) -> 100 | K38: =IF(TDPrimas_!J36="","",TDPrimas_!J36) -> 100 | L38: =IF(TDPrimas_!K36="","",TDPrimas_!K36) -> 0.5274352753
B39: =IF(TDPrimas_!A37="","",TDPrimas_!A37) -> 29 | C39: =IF(TDPrimas_!B37="","",TDPrimas_!B37) -> Ve Por Más | D39: =IF(TDPrimas_!C37="","",TDPrimas_!C37) -> 2931433.719 | E39: =IF(TDPrimas_!D37="","",TDPrimas_!D37) -> 2414387.37 | F39: =IF(TDPrimas_!E37="","",TDPrimas_!E37) -> 0.4989881249 | G39: =IF(TDPrimas_!F37="","",TDPrimas_!F37) -> 0.4696928927 | H39: =IF(TDPrimas_!G37="","",TDPrimas_!G37) -> 517046.3499 | I39: =IF(TDPrimas_!H37="","",TDPrimas_!H37) -> 21.4152193 | J39: =IF(TDPrimas_!I37="","",TDPrimas_!I37) -> 100 | K39: =IF(TDPrimas_!J37="","",TDPrimas_!J37) -> 100 | L39: =IF(TDPrimas_!K37="","",TDPrimas_!K37) -> 0.4989881249
B40: =IF(TDPrimas_!A38="","",TDPrimas_!A38) -> 30 | C40: =IF(TDPrimas_!B38="","",TDPrimas_!B38) -> FM Global | D40: =IF(TDPrimas_!C38="","",TDPrimas_!C38) -> 2851934.331 | E40: =IF(TDPrimas_!D38="","",TDPrimas_!D38) -> 2720564.875 | F40: =IF(TDPrimas_!E38="","",TDPrimas_!E38) -> 0.4854557531 | G40: =IF(TDPrimas_!F38="","",TDPrimas_!F38) -> 0.5292564077 | H40: =IF(TDPrimas_!G38="","",TDPrimas_!G38) -> 131369.4559 | I40: =IF(TDPrimas_!H38="","",TDPrimas_!H38) -> 4.828756597 | J40: =IF(TDPrimas_!I38="","",TDPrimas_!I38) -> 100 | K40: =IF(TDPrimas_!J38="","",TDPrimas_!J38) -> 100 | L40: =IF(TDPrimas_!K38="","",TDPrimas_!K38) -> 0.4854557531
B41: =IF(TDPrimas_!A39="","",TDPrimas_!A39) -> 31 | C41: =IF(TDPrimas_!B39="","",TDPrimas_!B39) -> Seguros Argos | D41: =IF(TDPrimas_!C39="","",TDPrimas_!C39) -> 2824083.374 | E41: =IF(TDPrimas_!D39="","",TDPrimas_!D39) -> 2440808.703 | F41: =IF(TDPrimas_!E39="","",TDPrimas_!E39) -> 0.4807149682 | G41: =IF(TDPrimas_!F39="","",TDPrimas_!F39) -> 0.4748328768 | H41: =IF(TDPrimas_!G39="","",TDPrimas_!G39) -> 383274.6704 | I41: =IF(TDPrimas_!H39="","",TDPrimas_!H39) -> 15.70277383 | J41: =IF(TDPrimas_!I39="","",TDPrimas_!I39) -> 100 | K41: =IF(TDPrimas_!J39="","",TDPrimas_!J39) -> 100 | L41: =IF(TDPrimas_!K39="","",TDPrimas_!K39) -> 0.4807149682
B42: =IF(TDPrimas_!A40="","",TDPrimas_!A40) -> 32 | C42: =IF(TDPrimas_!B40="","",TDPrimas_!B40) -> ANA | D42: =IF(TDPrimas_!C40="","",TDPrimas_!C40) -> 2392641.08 | E42: =IF(TDPrimas_!D40="","",TDPrimas_!D40) -> 2218461.756 | F42: =IF(TDPrimas_!E40="","",TDPrimas_!E40) -> 0.4072749378 | G42: =IF(TDPrimas_!F40="","",TDPrimas_!F40) -> 0.4315776884 | H42: =IF(TDPrimas_!G40="","",TDPrimas_!G40) -> 174179.3231 | I42: =IF(TDPrimas_!H40="","",TDPrimas_!H40) -> 7.851355679 | J42: =IF(TDPrimas_!I40="","",TDPrimas_!I40) -> 100 | K42: =IF(TDPrimas_!J40="","",TDPrimas_!J40) -> 100 | L42: =IF(TDPrimas_!K40="","",TDPrimas_!K40) -> 0.4072749378
B43: =IF(TDPrimas_!A41="","",TDPrimas_!A41) -> 33 | C43: =IF(TDPrimas_!B41="","",TDPrimas_!B41) -> Plan Seguro | D43: =IF(TDPrimas_!C41="","",TDPrimas_!C41) -> 2011777.375 | E43: =IF(TDPrimas_!D41="","",TDPrimas_!D41) -> 2297238.449 | F43: =IF(TDPrimas_!E41="","",TDPrimas_!E41) -> 0.342444386 | G43: =IF(TDPrimas_!F41="","",TDPrimas_!F41) -> 0.4469028401 | H43: =IF(TDPrimas_!G41="","",TDPrimas_!G41) -> -285461.0745 | I43: =IF(TDPrimas_!H41="","",TDPrimas_!H41) -> -12.42627097 | J43: =IF(TDPrimas_!I41="","",TDPrimas_!I41) -> 100 | K43: =IF(TDPrimas_!J41="","",TDPrimas_!J41) -> 100 | L43: =IF(TDPrimas_!K41="","",TDPrimas_!K41) -> 0.342444386
B44: =IF(TDPrimas_!A42="","",TDPrimas_!A42) -> 34 | C44: =IF(TDPrimas_!B42="","",TDPrimas_!B42) -> General de Seguros | D44: =IF(TDPrimas_!C42="","",TDPrimas_!C42) -> 1971809.215 | E44: =IF(TDPrimas_!D42="","",TDPrimas_!D42) -> 1927344.375 | F44: =IF(TDPrimas_!E42="","",TDPrimas_!E42) -> 0.335641013 | G44: =IF(TDPrimas_!F42="","",TDPrimas_!F42) -> 0.3749439573 | H44: =IF(TDPrimas_!G42="","",TDPrimas_!G42) -> 44464.84012 | I44: =IF(TDPrimas_!H42="","",TDPrimas_!H42) -> 2.307052164 | J44: =IF(TDPrimas_!I42="","",TDPrimas_!I42) -> 100 | K44: =IF(TDPrimas_!J42="","",TDPrimas_!J42) -> 100 | L44: =IF(TDPrimas_!K42="","",TDPrimas_!K42) -> 0.335641013
B45: =IF(TDPrimas_!A43="","",TDPrimas_!A43) -> 35 | C45: =IF(TDPrimas_!B43="","",TDPrimas_!B43) -> Cardif Vida | D45: =IF(TDPrimas_!C43="","",TDPrimas_!C43) -> 1796205.071 | E45: =IF(TDPrimas_!D43="","",TDPrimas_!D43) -> 2297569.831 | F45: =IF(TDPrimas_!E43="","",TDPrimas_!E43) -> 0.3057497068 | G45: =IF(TDPrimas_!F43="","",TDPrimas_!F43) -> 0.4469673069 | H45: =IF(TDPrimas_!G43="","",TDPrimas_!G43) -> -501364.7605 | I45: =IF(TDPrimas_!H43="","",TDPrimas_!H43) -> -21.82152436 | J45: =IF(TDPrimas_!I43="","",TDPrimas_!I43) -> 100 | K45: =IF(TDPrimas_!J43="","",TDPrimas_!J43) -> 100 | L45: =IF(TDPrimas_!K43="","",TDPrimas_!K43) -> 0.3057497068
B46: =IF(TDPrimas_!A44="","",TDPrimas_!A44) -> 36 | C46: =IF(TDPrimas_!B44="","",TDPrimas_!B44) -> Seguros Azteca Daños | D46: =IF(TDPrimas_!C44="","",TDPrimas_!C44) -> 1661194.535 | E46: =IF(TDPrimas_!D44="","",TDPrimas_!D44) -> 2353425.752 | F46: =IF(TDPrimas_!E44="","",TDPrimas_!E44) -> 0.2827682375 | G46: =IF(TDPrimas_!F44="","",TDPrimas_!F44) -> 0.4578334707 | H46: =IF(TDPrimas_!G44="","",TDPrimas_!G44) -> -692231.2167 | I46: =IF(TDPrimas_!H44="","",TDPrimas_!H44) -> -29.41376911 | J46: =IF(TDPrimas_!I44="","",TDPrimas_!I44) -> 100 | K46: =IF(TDPrimas_!J44="","",TDPrimas_!J44) -> 100 | L46: =IF(TDPrimas_!K44="","",TDPrimas_!K44) -> 0.2827682375
B47: =IF(TDPrimas_!A45="","",TDPrimas_!A45) -> 37 | C47: =IF(TDPrimas_!B45="","",TDPrimas_!B45) -> Cardif Seguros Generales | D47: =IF(TDPrimas_!C45="","",TDPrimas_!C45) -> 1656218.03 | E47: =IF(TDPrimas_!D45="","",TDPrimas_!D45) -> 1437113.442 | F47: =IF(TDPrimas_!E45="","",TDPrimas_!E45) -> 0.2819211377 | G47: =IF(TDPrimas_!F45="","",TDPrimas_!F45) -> 0.279574843 | H47: =IF(TDPrimas_!G45="","",TDPrimas_!G45) -> 219104.5879 | I47: =IF(TDPrimas_!H45="","",TDPrimas_!H45) -> 15.24615813 | J47: =IF(TDPrimas_!I45="","",TDPrimas_!I45) -> 100 | K47: =IF(TDPrimas_!J45="","",TDPrimas_!J45) -> 100 | L47: =IF(TDPrimas_!K45="","",TDPrimas_!K45) -> 0.2819211377
B48: =IF(TDPrimas_!A46="","",TDPrimas_!A46) -> 38 | C48: =IF(TDPrimas_!B46="","",TDPrimas_!B46) -> El Potosí | D48: =IF(TDPrimas_!C46="","",TDPrimas_!C46) -> 1612866.846 | E48: =IF(TDPrimas_!D46="","",TDPrimas_!D46) -> 1545104.905 | F48: =IF(TDPrimas_!E46="","",TDPrimas_!E46) -> 0.2745419068 | G48: =IF(TDPrimas_!F46="","",TDPrimas_!F46) -> 0.3005834115 | H48: =IF(TDPrimas_!G46="","",TDPrimas_!G46) -> 67761.94108 | I48: =IF(TDPrimas_!H46="","",TDPrimas_!H46) -> 4.385588375 | J48: =IF(TDPrimas_!I46="","",TDPrimas_!I46) -> 100 | K48: =IF(TDPrimas_!J46="","",TDPrimas_!J46) -> 100 | L48: =IF(TDPrimas_!K46="","",TDPrimas_!K46) -> 0.2745419068
B49: =IF(TDPrimas_!A47="","",TDPrimas_!A47) -> 39 | C49: =IF(TDPrimas_!B47="","",TDPrimas_!B47) -> HDI Global Seguros | D49: =IF(TDPrimas_!C47="","",TDPrimas_!C47) -> 1569411.918 | E49: =IF(TDPrimas_!D47="","",TDPrimas_!D47) -> 917084.848 | F49: =IF(TDPrimas_!E47="","",TDPrimas_!E47) -> 0.2671450168 | G49: =IF(TDPrimas_!F47="","",TDPrimas_!F47) -> 0.1784089167 | H49: =IF(TDPrimas_!G47="","",TDPrimas_!G47) -> 652327.07 | I49: =IF(TDPrimas_!H47="","",TDPrimas_!H47) -> 71.13050351 | J49: =IF(TDPrimas_!I47="","",TDPrimas_!I47) -> 100 | K49: =IF(TDPrimas_!J47="","",TDPrimas_!J47) -> 100 | L49: =IF(TDPrimas_!K47="","",TDPrimas_!K47) -> 0.2671450168
B50: =IF(TDPrimas_!A48="","",TDPrimas_!A48) -> 40 | C50: =IF(TDPrimas_!B48="","",TDPrimas_!B48) -> BBVA Bancomer Salud | D50: =IF(TDPrimas_!C48="","",TDPrimas_!C48) -> 1544159.25 | E50: =IF(TDPrimas_!D48="","",TDPrimas_!D48) -> 1038359.191 | F50: =IF(TDPrimas_!E48="","",TDPrimas_!E48) -> 0.2628465122 | G50: =IF(TDPrimas_!F48="","",TDPrimas_!F48) -> 0.2020015255 | H50: =IF(TDPrimas_!G48="","",TDPrimas_!G48) -> 505800.0595 | I50: =IF(TDPrimas_!H48="","",TDPrimas_!H48) -> 48.71147327 | J50: =IF(TDPrimas_!I48="","",TDPrimas_!I48) -> 100 | K50: =IF(TDPrimas_!J48="","",TDPrimas_!J48) -> 100 | L50: =IF(TDPrimas_!K48="","",TDPrimas_!K48) -> 0.2628465122
B51: =IF(TDPrimas_!A49="","",TDPrimas_!A49) -> 41 | C51: =IF(TDPrimas_!B49="","",TDPrimas_!B49) -> Prudential | D51: =IF(TDPrimas_!C49="","",TDPrimas_!C49) -> 1351465.835 | E51: =IF(TDPrimas_!D49="","",TDPrimas_!D49) -> 1131408.34 | F51: =IF(TDPrimas_!E49="","",TDPrimas_!E49) -> 0.2300462734 | G51: =IF(TDPrimas_!F49="","",TDPrimas_!F49) -> 0.220103229 | H51: =IF(TDPrimas_!G49="","",TDPrimas_!G49) -> 220057.4948 | I51: =IF(TDPrimas_!H49="","",TDPrimas_!H49) -> 19.44987384 | J51: =IF(TDPrimas_!I49="","",TDPrimas_!I49) -> 100 | K51: =IF(TDPrimas_!J49="","",TDPrimas_!J49) -> 100 | L51: =IF(TDPrimas_!K49="","",TDPrimas_!K49) -> 0.2300462734
B52: =IF(TDPrimas_!A50="","",TDPrimas_!A50) -> 42 | C52: =IF(TDPrimas_!B50="","",TDPrimas_!B50) -> Insignia Life | D52: =IF(TDPrimas_!C50="","",TDPrimas_!C50) -> 1239121.683 | E52: =IF(TDPrimas_!D50="","",TDPrimas_!D50) -> 1114612.179 | F52: =IF(TDPrimas_!E50="","",TDPrimas_!E50) -> 0.210923072 | G52: =IF(TDPrimas_!F50="","",TDPrimas_!F50) -> 0.2168357179 | H52: =IF(TDPrimas_!G50="","",TDPrimas_!G50) -> 124509.5045 | I52: =IF(TDPrimas_!H50="","",TDPrimas_!H50) -> 11.1706571 | J52: =IF(TDPrimas_!I50="","",TDPrimas_!I50) -> 100 | K52: =IF(TDPrimas_!J50="","",TDPrimas_!J50) -> 100 | L52: =IF(TDPrimas_!K50="","",TDPrimas_!K50) -> 0.210923072
B53: =IF(TDPrimas_!A51="","",TDPrimas_!A51) -> 43 | C53: =IF(TDPrimas_!B51="","",TDPrimas_!B51) -> El Águila | D53: =IF(TDPrimas_!C51="","",TDPrimas_!C51) -> 1212681.111 | E53: =IF(TDPrimas_!D51="","",TDPrimas_!D51) -> 979590.2102 | F53: =IF(TDPrimas_!E51="","",TDPrimas_!E51) -> 0.2064223625 | G53: =IF(TDPrimas_!F51="","",TDPrimas_!F51) -> 0.1905686574 | H53: =IF(TDPrimas_!G51="","",TDPrimas_!G51) -> 233090.901 | I53: =IF(TDPrimas_!H51="","",TDPrimas_!H51) -> 23.79473565 | J53: =IF(TDPrimas_!I51="","",TDPrimas_!I51) -> 100 | K53: =IF(TDPrimas_!J51="","",TDPrimas_!J51) -> 100 | L53: =IF(TDPrimas_!K51="","",TDPrimas_!K51) -> 0.2064223625
B54: =IF(TDPrimas_!A52="","",TDPrimas_!A52) -> 44 | C54: =IF(TDPrimas_!B52="","",TDPrimas_!B52) -> Primero Seguros | D54: =IF(TDPrimas_!C52="","",TDPrimas_!C52) -> 1040269.574 | E54: =IF(TDPrimas_!D52="","",TDPrimas_!D52) -> 701519.2663 | F54: =IF(TDPrimas_!E52="","",TDPrimas_!E52) -> 0.1770745014 | G54: =IF(TDPrimas_!F52="","",TDPrimas_!F52) -> 0.1364729693 | H54: =IF(TDPrimas_!G52="","",TDPrimas_!G52) -> 338750.3077 | I54: =IF(TDPrimas_!H52="","",TDPrimas_!H52) -> 48.28809756 | J54: =IF(TDPrimas_!I52="","",TDPrimas_!I52) -> 100 | K54: =IF(TDPrimas_!J52="","",TDPrimas_!J52) -> 100 | L54: =IF(TDPrimas_!K52="","",TDPrimas_!K52) -> 0.1770745014
B55: =IF(TDPrimas_!A53="","",TDPrimas_!A53) -> 45 | C55: =IF(TDPrimas_!B53="","",TDPrimas_!B53) -> La Latinoamericana | D55: =IF(TDPrimas_!C53="","",TDPrimas_!C53) -> 957883.8902 | E55: =IF(TDPrimas_!D53="","",TDPrimas_!D53) -> 958536.2177 | F55: =IF(TDPrimas_!E53="","",TDPrimas_!E53) -> 0.163050825 | G55: =IF(TDPrimas_!F53="","",TDPrimas_!F53) -> 0.1864728314 | H55: =IF(TDPrimas_!G53="","",TDPrimas_!G53) -> -652.32742 | I55: =IF(TDPrimas_!H53="","",TDPrimas_!H53) -> -0.06805454066 | J55: =IF(TDPrimas_!I53="","",TDPrimas_!I53) -> 100 | K55: =IF(TDPrimas_!J53="","",TDPrimas_!J53) -> 100 | L55: =IF(TDPrimas_!K53="","",TDPrimas_!K53) -> 0.163050825
B56: =IF(TDPrimas_!A54="","",TDPrimas_!A54) -> 46 | C56: =IF(TDPrimas_!B54="","",TDPrimas_!B54) -> General de Salud | D56: =IF(TDPrimas_!C54="","",TDPrimas_!C54) -> 939209.7296 | E56: =IF(TDPrimas_!D54="","",TDPrimas_!D54) -> 835821.0441 | F56: =IF(TDPrimas_!E54="","",TDPrimas_!E54) -> 0.1598721127 | G56: =IF(TDPrimas_!F54="","",TDPrimas_!F54) -> 0.1625999245 | H56: =IF(TDPrimas_!G54="","",TDPrimas_!G54) -> 103388.6855 | I56: =IF(TDPrimas_!H54="","",TDPrimas_!H54) -> 12.36971553 | J56: =IF(TDPrimas_!I54="","",TDPrimas_!I54) -> 100 | K56: =IF(TDPrimas_!J54="","",TDPrimas_!J54) -> 100 | L56: =IF(TDPrimas_!K54="","",TDPrimas_!K54) -> 0.1598721127
B57: =IF(TDPrimas_!A55="","",TDPrimas_!A55) -> 47 | C57: =IF(TDPrimas_!B55="","",TDPrimas_!B55) -> Pan-American México | D57: =IF(TDPrimas_!C55="","",TDPrimas_!C55) -> 799499.2227 | E57: =IF(TDPrimas_!D55="","",TDPrimas_!D55) -> 684641.8948 | F57: =IF(TDPrimas_!E55="","",TDPrimas_!E55) -> 0.1360906151 | G57: =IF(TDPrimas_!F55="","",TDPrimas_!F55) -> 0.1331896597 | H57: =IF(TDPrimas_!G55="","",TDPrimas_!G55) -> 114857.3279 | I57: =IF(TDPrimas_!H55="","",TDPrimas_!H55) -> 16.77626344 | J57: =IF(TDPrimas_!I55="","",TDPrimas_!I55) -> 100 | K57: =IF(TDPrimas_!J55="","",TDPrimas_!J55) -> 100 | L57: =IF(TDPrimas_!K55="","",TDPrimas_!K55) -> 0.1360906151
B58: =IF(TDPrimas_!A56="","",TDPrimas_!A56) -> 48 | C58: =IF(TDPrimas_!B56="","",TDPrimas_!B56) -> Tokio Marine | D58: =IF(TDPrimas_!C56="","",TDPrimas_!C56) -> 787883.6976 | E58: =IF(TDPrimas_!D56="","",TDPrimas_!D56) -> 1108402.218 | F58: =IF(TDPrimas_!E56="","",TDPrimas_!E56) -> 0.1341134225 | G58: =IF(TDPrimas_!F56="","",TDPrimas_!F56) -> 0.2156276374 | H58: =IF(TDPrimas_!G56="","",TDPrimas_!G56) -> -320518.5207 | I58: =IF(TDPrimas_!H56="","",TDPrimas_!H56) -> -28.91716702 | J58: =IF(TDPrimas_!I56="","",TDPrimas_!I56) -> 100 | K58: =IF(TDPrimas_!J56="","",TDPrimas_!J56) -> 100 | L58: =IF(TDPrimas_!K56="","",TDPrimas_!K56) -> 0.1341134225
B59: =IF(TDPrimas_!A57="","",TDPrimas_!A57) -> 49 | C59: =IF(TDPrimas_!B57="","",TDPrimas_!B57) -> Swiss Re Corporate Solutions | D59: =IF(TDPrimas_!C57="","",TDPrimas_!C57) -> 654924.3793 | E59: =IF(TDPrimas_!D57="","",TDPrimas_!D57) -> 440535.6134 | F59: =IF(TDPrimas_!E57="","",TDPrimas_!E57) -> 0.111481111 | G59: =IF(TDPrimas_!F57="","",TDPrimas_!F57) -> 0.08570142853 | H59: =IF(TDPrimas_!G57="","",TDPrimas_!G57) -> 214388.7659 | I59: =IF(TDPrimas_!H57="","",TDPrimas_!H57) -> 48.66547887 | J59: =IF(TDPrimas_!I57="","",TDPrimas_!I57) -> 100 | K59: =IF(TDPrimas_!J57="","",TDPrimas_!J57) -> 100 | L59: =IF(TDPrimas_!K57="","",TDPrimas_!K57) -> 0.111481111
B60: =IF(TDPrimas_!A58="","",TDPrimas_!A58) -> 50 | C60: =IF(TDPrimas_!B58="","",TDPrimas_!B58) -> Atradius | D60: =IF(TDPrimas_!C58="","",TDPrimas_!C58) -> 609310.5625 | E60: =IF(TDPrimas_!D58="","",TDPrimas_!D58) -> 658409.0898 | F60: =IF(TDPrimas_!E58="","",TDPrimas_!E58) -> 0.1037167353 | G60: =IF(TDPrimas_!F58="","",TDPrimas_!F58) -> 0.1280863518 | H60: =IF(TDPrimas_!G58="","",TDPrimas_!G58) -> -49098.52728 | I60: =IF(TDPrimas_!H58="","",TDPrimas_!H58) -> -7.457146026 | J60: =IF(TDPrimas_!I58="","",TDPrimas_!I58) -> 100 | K60: =IF(TDPrimas_!J58="","",TDPrimas_!J58) -> 100 | L60: =IF(TDPrimas_!K58="","",TDPrimas_!K58) -> 0.1037167353
B61: =IF(TDPrimas_!A59="","",TDPrimas_!A59) -> 51 | C61: =IF(TDPrimas_!B59="","",TDPrimas_!B59) -> Assurant Vida | D61: =IF(TDPrimas_!C59="","",TDPrimas_!C59) -> 598107.3176 | E61: =IF(TDPrimas_!D59="","",TDPrimas_!D59) -> 970628.4561 | F61: =IF(TDPrimas_!E59="","",TDPrimas_!E59) -> 0.1018097209 | G61: =IF(TDPrimas_!F59="","",TDPrimas_!F59) -> 0.1888252453 | H61: =IF(TDPrimas_!G59="","",TDPrimas_!G59) -> -372521.1385 | I61: =IF(TDPrimas_!H59="","",TDPrimas_!H59) -> -38.37937536 | J61: =IF(TDPrimas_!I59="","",TDPrimas_!I59) -> 100 | K61: =IF(TDPrimas_!J59="","",TDPrimas_!J59) -> 100 | L61: =IF(TDPrimas_!K59="","",TDPrimas_!K59) -> 0.1018097209
B62: =IF(TDPrimas_!A60="","",TDPrimas_!A60) -> 52 | C62: =IF(TDPrimas_!B60="","",TDPrimas_!B60) -> Berkley Seguros | D62: =IF(TDPrimas_!C60="","",TDPrimas_!C60) -> 570550.3757 | E62: =IF(TDPrimas_!D60="","",TDPrimas_!D60) -> 445437.8514 | F62: =IF(TDPrimas_!E60="","",TDPrimas_!E60) -> 0.09711898319 | G62: =IF(TDPrimas_!F60="","",TDPrimas_!F60) -> 0.0866551058 | H62: =IF(TDPrimas_!G60="","",TDPrimas_!G60) -> 125112.5243 | I62: =IF(TDPrimas_!H60="","",TDPrimas_!H60) -> 28.08753766 | J62: =IF(TDPrimas_!I60="","",TDPrimas_!I60) -> 100 | K62: =IF(TDPrimas_!J60="","",TDPrimas_!J60) -> 100 | L62: =IF(TDPrimas_!K60="","",TDPrimas_!K60) -> 0.09711898319
B63: =IF(TDPrimas_!A61="","",TDPrimas_!A61) -> 53 | C63: =IF(TDPrimas_!B61="","",TDPrimas_!B61) -> AXA Salud | D63: =IF(TDPrimas_!C61="","",TDPrimas_!C61) -> 569036.8629 | E63: =IF(TDPrimas_!D61="","",TDPrimas_!D61) -> 550201.6028 | F63: =IF(TDPrimas_!E61="","",TDPrimas_!E61) -> 0.09686135332 | G63: =IF(TDPrimas_!F61="","",TDPrimas_!F61) -> 0.1070357581 | H63: =IF(TDPrimas_!G61="","",TDPrimas_!G61) -> 18835.26006 | I63: =IF(TDPrimas_!H61="","",TDPrimas_!H61) -> 3.423337912 | J63: =IF(TDPrimas_!I61="","",TDPrimas_!I61) -> 100 | K63: =IF(TDPrimas_!J61="","",TDPrimas_!J61) -> 100 | L63: =IF(TDPrimas_!K61="","",TDPrimas_!K61) -> 0.09686135332
B64: =IF(TDPrimas_!A62="","",TDPrimas_!A62) -> 54 | C64: =IF(TDPrimas_!B62="","",TDPrimas_!B62) -> Sompo Japan | D64: =IF(TDPrimas_!C62="","",TDPrimas_!C62) -> 538831.8908 | E64: =IF(TDPrimas_!D62="","",TDPrimas_!D62) -> 617465.5557 | F64: =IF(TDPrimas_!E62="","",TDPrimas_!E62) -> 0.09171986835 | G64: =IF(TDPrimas_!F62="","",TDPrimas_!F62) -> 0.120121231 | H64: =IF(TDPrimas_!G62="","",TDPrimas_!G62) -> -78633.66496 | I64: =IF(TDPrimas_!H62="","",TDPrimas_!H62) -> -12.73490711 | J64: =IF(TDPrimas_!I62="","",TDPrimas_!I62) -> 100 | K64: =IF(TDPrimas_!J62="","",TDPrimas_!J62) -> 100 | L64: =IF(TDPrimas_!K62="","",TDPrimas_!K62) -> 0.09171986835
B65: =IF(TDPrimas_!A63="","",TDPrimas_!A63) -> 55 | C65: =IF(TDPrimas_!B63="","",TDPrimas_!B63) -> Patrimonial Vida | D65: =IF(TDPrimas_!C63="","",TDPrimas_!C63) -> 531626.2864 | E65: =IF(TDPrimas_!D63="","",TDPrimas_!D63) -> 2312178.076 | F65: =IF(TDPrimas_!E63="","",TDPrimas_!E63) -> 0.09049333166 | G65: =IF(TDPrimas_!F63="","",TDPrimas_!F63) -> 0.4498091825 | H65: =IF(TDPrimas_!G63="","",TDPrimas_!G63) -> -1780551.79 | I65: =IF(TDPrimas_!H63="","",TDPrimas_!H63) -> -77.00755439 | J65: =IF(TDPrimas_!I63="","",TDPrimas_!I63) -> 100 | K65: =IF(TDPrimas_!J63="","",TDPrimas_!J63) -> 100 | L65: =IF(TDPrimas_!K63="","",TDPrimas_!K63) -> 0.09049333166
B66: =IF(TDPrimas_!A64="","",TDPrimas_!A64) -> 56 | C66: =IF(TDPrimas_!B64="","",TDPrimas_!B64) -> Solunion Crédito | D66: =IF(TDPrimas_!C64="","",TDPrimas_!C64) -> 488652.4583 | E66: =IF(TDPrimas_!D64="","",TDPrimas_!D64) -> 544250.0983 | F66: =IF(TDPrimas_!E64="","",TDPrimas_!E64) -> 0.0831783343 | G66: =IF(TDPrimas_!F64="","",TDPrimas_!F64) -> 0.1058779574 | H66: =IF(TDPrimas_!G64="","",TDPrimas_!G64) -> -55597.63998 | I66: =IF(TDPrimas_!H64="","",TDPrimas_!H64) -> -10.21545796 | J66: =IF(TDPrimas_!I64="","",TDPrimas_!I64) -> 100 | K66: =IF(TDPrimas_!J64="","",TDPrimas_!J64) -> 100 | L66: =IF(TDPrimas_!K64="","",TDPrimas_!K64) -> 0.0831783343
B67: =IF(TDPrimas_!A65="","",TDPrimas_!A65) -> 57 | C67: =IF(TDPrimas_!B65="","",TDPrimas_!B65) -> Patrimonial Inbursa | D67: =IF(TDPrimas_!C65="","",TDPrimas_!C65) -> 476051.1423 | E67: =IF(TDPrimas_!D65="","",TDPrimas_!D65) -> 516299.3422 | F67: =IF(TDPrimas_!E65="","",TDPrimas_!E65) -> 0.08103334054 | G67: =IF(TDPrimas_!F65="","",TDPrimas_!F65) -> 0.1004404408 | H67: =IF(TDPrimas_!G65="","",TDPrimas_!G65) -> -40248.19997 | I67: =IF(TDPrimas_!H65="","",TDPrimas_!H65) -> -7.795516414 | J67: =IF(TDPrimas_!I65="","",TDPrimas_!I65) -> 100 | K67: =IF(TDPrimas_!J65="","",TDPrimas_!J65) -> 100 | L67: =IF(TDPrimas_!K65="","",TDPrimas_!K65) -> 0.08103334054
B68: =IF(TDPrimas_!A66="","",TDPrimas_!A66) -> 58 | C68: =IF(TDPrimas_!B66="","",TDPrimas_!B66) -> PREVEM Seguros | D68: =IF(TDPrimas_!C66="","",TDPrimas_!C66) -> 445468.8725 | E68: =IF(TDPrimas_!D66="","",TDPrimas_!D66) -> 399237.9814 | F68: =IF(TDPrimas_!E66="","",TDPrimas_!E66) -> 0.07582763202 | G68: =IF(TDPrimas_!F66="","",TDPrimas_!F66) -> 0.07766742185 | H68: =IF(TDPrimas_!G66="","",TDPrimas_!G66) -> 46230.89111 | I68: =IF(TDPrimas_!H66="","",TDPrimas_!H66) -> 11.5797828 | J68: =IF(TDPrimas_!I66="","",TDPrimas_!I66) -> 100 | K68: =IF(TDPrimas_!J66="","",TDPrimas_!J66) -> 100 | L68: =IF(TDPrimas_!K66="","",TDPrimas_!K66) -> 0.07582763202
B69: =IF(TDPrimas_!A67="","",TDPrimas_!A67) -> 59 | C69: =IF(TDPrimas_!B67="","",TDPrimas_!B67) -> Dentegra | D69: =IF(TDPrimas_!C67="","",TDPrimas_!C67) -> 407667.881 | E69: =IF(TDPrimas_!D67="","",TDPrimas_!D67) -> 363244.9645 | F69: =IF(TDPrimas_!E67="","",TDPrimas_!E67) -> 0.069393154 | G69: =IF(TDPrimas_!F67="","",TDPrimas_!F67) -> 0.07066537056 | H69: =IF(TDPrimas_!G67="","",TDPrimas_!G67) -> 44422.91652 | I69: =IF(TDPrimas_!H67="","",TDPrimas_!H67) -> 12.2294652 | J69: =IF(TDPrimas_!I67="","",TDPrimas_!I67) -> 100 | K69: =IF(TDPrimas_!J67="","",TDPrimas_!J67) -> 100 | L69: =IF(TDPrimas_!K67="","",TDPrimas_!K67) -> 0.069393154
B70: =IF(TDPrimas_!A68="","",TDPrimas_!A68) -> 60 | C70: =IF(TDPrimas_!B68="","",TDPrimas_!B68) -> SHF Cred Vivienda | D70: =IF(TDPrimas_!C68="","",TDPrimas_!C68) -> 383722.2222 | E70: =IF(TDPrimas_!D68="","",TDPrimas_!D68) -> 283822.5376 | F70: =IF(TDPrimas_!E68="","",TDPrimas_!E68) -> 0.06531712823 | G70: =IF(TDPrimas_!F68="","",TDPrimas_!F68) -> 0.05521459828 | H70: =IF(TDPrimas_!G68="","",TDPrimas_!G68) -> 99899.68458 | I70: =IF(TDPrimas_!H68="","",TDPrimas_!H68) -> 35.19793932 | J70: =IF(TDPrimas_!I68="","",TDPrimas_!I68) -> 100 | K70: =IF(TDPrimas_!J68="","",TDPrimas_!J68) -> 100 | L70: =IF(TDPrimas_!K68="","",TDPrimas_!K68) -> 0.06531712823
B71: =IF(TDPrimas_!A69="","",TDPrimas_!A69) -> 61 | C71: =IF(TDPrimas_!B69="","",TDPrimas_!B69) -> Coface | D71: =IF(TDPrimas_!C69="","",TDPrimas_!C69) -> 312582.4004 | E71: =IF(TDPrimas_!D69="","",TDPrimas_!D69) -> 310673.9387 | F71: =IF(TDPrimas_!E69="","",TDPrimas_!E69) -> 0.05320772045 | G71: =IF(TDPrimas_!F69="","",TDPrimas_!F69) -> 0.06043824731 | H71: =IF(TDPrimas_!G69="","",TDPrimas_!G69) -> 1908.46173 | I71: =IF(TDPrimas_!H69="","",TDPrimas_!H69) -> 0.6142973363 | J71: =IF(TDPrimas_!I69="","",TDPrimas_!I69) -> 100 | K71: =IF(TDPrimas_!J69="","",TDPrimas_!J69) -> 100 | L71: =IF(TDPrimas_!K69="","",TDPrimas_!K69) -> 0.05320772045
B72: =IF(TDPrimas_!A70="","",TDPrimas_!A70) -> 62 | C72: =IF(TDPrimas_!B70="","",TDPrimas_!B70) -> Skandia Life | D72: =IF(TDPrimas_!C70="","",TDPrimas_!C70) -> 280734.2574 | E72: =IF(TDPrimas_!D70="","",TDPrimas_!D70) -> 345769.4366 | F72: =IF(TDPrimas_!E70="","",TDPrimas_!E70) -> 0.04778653522 | G72: =IF(TDPrimas_!F70="","",TDPrimas_!F70) -> 0.06726569603 | H72: =IF(TDPrimas_!G70="","",TDPrimas_!G70) -> -65035.17926 | I72: =IF(TDPrimas_!H70="","",TDPrimas_!H70) -> -18.80882819 | J72: =IF(TDPrimas_!I70="","",TDPrimas_!I70) -> 100 | K72: =IF(TDPrimas_!J70="","",TDPrimas_!J70) -> 100 | L72: =IF(TDPrimas_!K70="","",TDPrimas_!K70) -> 0.04778653522
B73: =IF(TDPrimas_!A71="","",TDPrimas_!A71) -> 63 | C73: =IF(TDPrimas_!B71="","",TDPrimas_!B71) -> Patrimonial Daños | D73: =IF(TDPrimas_!C71="","",TDPrimas_!C71) -> 231199.6199 | E73: =IF(TDPrimas_!D71="","",TDPrimas_!D71) -> 188268.496 | F73: =IF(TDPrimas_!E71="","",TDPrimas_!E71) -> 0.03935475806 | G73: =IF(TDPrimas_!F71="","",TDPrimas_!F71) -> 0.03662559521 | H73: =IF(TDPrimas_!G71="","",TDPrimas_!G71) -> 42931.12393 | I73: =IF(TDPrimas_!H71="","",TDPrimas_!H71) -> 22.80313746 | J73: =IF(TDPrimas_!I71="","",TDPrimas_!I71) -> 100 | K73: =IF(TDPrimas_!J71="","",TDPrimas_!J71) -> 100 | L73: =IF(TDPrimas_!K71="","",TDPrimas_!K71) -> 0.03935475806
B74: =IF(TDPrimas_!A72="","",TDPrimas_!A72) -> 64 | C74: =IF(TDPrimas_!B72="","",TDPrimas_!B72) -> Centauro | D74: =IF(TDPrimas_!C72="","",TDPrimas_!C72) -> 217174.4571 | E74: =IF(TDPrimas_!D72="","",TDPrimas_!D72) -> 112760.1684 | F74: =IF(TDPrimas_!E72="","",TDPrimas_!E72) -> 0.03696739735 | G74: =IF(TDPrimas_!F72="","",TDPrimas_!F72) -> 0.02193626854 | H74: =IF(TDPrimas_!G72="","",TDPrimas_!G72) -> 104414.2887 | I74: =IF(TDPrimas_!H72="","",TDPrimas_!H72) -> 92.59855686 | J74: =IF(TDPrimas_!I72="","",TDPrimas_!I72) -> 100 | K74: =IF(TDPrimas_!J72="","",TDPrimas_!J72) -> 100 | L74: =IF(TDPrimas_!K72="","",TDPrimas_!K72) -> 0.03696739735
B75: =IF(TDPrimas_!A73="","",TDPrimas_!A73) -> 65 | C75: =IF(TDPrimas_!B73="","",TDPrimas_!B73) -> MediAccess | D75: =IF(TDPrimas_!C73="","",TDPrimas_!C73) -> 209673.7863 | E75: =IF(TDPrimas_!D73="","",TDPrimas_!D73) -> 185978.6929 | F75: =IF(TDPrimas_!E73="","",TDPrimas_!E73) -> 0.03569063451 | G75: =IF(TDPrimas_!F73="","",TDPrimas_!F73) -> 0.03618013885 | H75: =IF(TDPrimas_!G73="","",TDPrimas_!G73) -> 23695.09339 | I75: =IF(TDPrimas_!H73="","",TDPrimas_!H73) -> 12.74075703 | J75: =IF(TDPrimas_!I73="","",TDPrimas_!I73) -> 100 | K75: =IF(TDPrimas_!J73="","",TDPrimas_!J73) -> 100 | L75: =IF(TDPrimas_!K73="","",TDPrimas_!K73) -> 0.03569063451
B76: =IF(TDPrimas_!A74="","",TDPrimas_!A74) -> 66 | C76: =IF(TDPrimas_!B74="","",TDPrimas_!B74) -> Assurant Daños | D76: =IF(TDPrimas_!C74="","",TDPrimas_!C74) -> 198386.6924 | E76: =IF(TDPrimas_!D74="","",TDPrimas_!D74) -> 167165.5292 | F76: =IF(TDPrimas_!E74="","",TDPrimas_!E74) -> 0.0337693474 | G76: =IF(TDPrimas_!F74="","",TDPrimas_!F74) -> 0.03252024176 | H76: =IF(TDPrimas_!G74="","",TDPrimas_!G74) -> 31221.1632 | I76: =IF(TDPrimas_!H74="","",TDPrimas_!H74) -> 18.676795 | J76: =IF(TDPrimas_!I74="","",TDPrimas_!I74) -> 100 | K76: =IF(TDPrimas_!J74="","",TDPrimas_!J74) -> 100 | L76: =IF(TDPrimas_!K74="","",TDPrimas_!K74) -> 0.0337693474
B77: =IF(TDPrimas_!A75="","",TDPrimas_!A75) -> 67 | C77: =IF(TDPrimas_!B75="","",TDPrimas_!B75) -> Odontoprev | D77: =IF(TDPrimas_!C75="","",TDPrimas_!C75) -> 106585.7348 | E77: =IF(TDPrimas_!D75="","",TDPrimas_!D75) -> 68622.05742 | F77: =IF(TDPrimas_!E75="","",TDPrimas_!E75) -> 0.01814300476 | G77: =IF(TDPrimas_!F75="","",TDPrimas_!F75) -> 0.01334967746 | H77: =IF(TDPrimas_!G75="","",TDPrimas_!G75) -> 37963.67735 | I77: =IF(TDPrimas_!H75="","",TDPrimas_!H75) -> 55.32284921 | J77: =IF(TDPrimas_!I75="","",TDPrimas_!I75) -> 100 | K77: =IF(TDPrimas_!J75="","",TDPrimas_!J75) -> 100 | L77: =IF(TDPrimas_!K75="","",TDPrimas_!K75) -> 0.01814300476
B78: =IF(TDPrimas_!A76="","",TDPrimas_!A76) -> 68 | C78: =IF(TDPrimas_!B76="","",TDPrimas_!B76) -> Virginia Surety | D78: =IF(TDPrimas_!C76="","",TDPrimas_!C76) -> 93997.07677 | E78: =IF(TDPrimas_!D76="","",TDPrimas_!D76) -> 77349.98663 | F78: =IF(TDPrimas_!E76="","",TDPrimas_!E76) -> 0.01600016564 | G78: =IF(TDPrimas_!F76="","",TDPrimas_!F76) -> 0.01504760149 | H78: =IF(TDPrimas_!G76="","",TDPrimas_!G76) -> 16647.09014 | I78: =IF(TDPrimas_!H76="","",TDPrimas_!H76) -> 21.52177507 | J78: =IF(TDPrimas_!I76="","",TDPrimas_!I76) -> 100 | K78: =IF(TDPrimas_!J76="","",TDPrimas_!J76) -> 100 | L78: =IF(TDPrimas_!K76="","",TDPrimas_!K76) -> 0.01600016564
B79: =IF(TDPrimas_!A77="","",TDPrimas_!A77) -> 69 | C79: =IF(TDPrimas_!B77="","",TDPrimas_!B77) -> Genworth Seg. de Crédito | D79: =IF(TDPrimas_!C77="","",TDPrimas_!C77) -> 84326.68807 | E79: =IF(TDPrimas_!D77="","",TDPrimas_!D77) -> 49751.01884 | F79: =IF(TDPrimas_!E77="","",TDPrimas_!E77) -> 0.0143540738 | G79: =IF(TDPrimas_!F77="","",TDPrimas_!F77) -> 0.009678521454 | H79: =IF(TDPrimas_!G77="","",TDPrimas_!G77) -> 34575.66923 | I79: =IF(TDPrimas_!H77="","",TDPrimas_!H77) -> 69.49740937 | J79: =IF(TDPrimas_!I77="","",TDPrimas_!I77) -> 100 | K79: =IF(TDPrimas_!J77="","",TDPrimas_!J77) -> 100 | L79: =IF(TDPrimas_!K77="","",TDPrimas_!K77) -> 0.0143540738
B80: =IF(TDPrimas_!A78="","",TDPrimas_!A78) -> 70 | C80: =IF(TDPrimas_!B78="","",TDPrimas_!B78) -> Crabi | D80: =IF(TDPrimas_!C78="","",TDPrimas_!C78) -> 60704.47976 | E80: =IF(TDPrimas_!D78="","",TDPrimas_!D78) -> 20106.53554 | F80: =IF(TDPrimas_!E78="","",TDPrimas_!E78) -> 0.01033310572 | G80: =IF(TDPrimas_!F78="","",TDPrimas_!F78) -> 0.00391150855 | H80: =IF(TDPrimas_!G78="","",TDPrimas_!G78) -> 40597.94422 | I80: =IF(TDPrimas_!H78="","",TDPrimas_!H78) -> 201.9141693 | J80: =IF(TDPrimas_!I78="","",TDPrimas_!I78) -> 100 | K80: =IF(TDPrimas_!J78="","",TDPrimas_!J78) -> 100 | L80: =IF(TDPrimas_!K78="","",TDPrimas_!K78) -> 0.01033310572
B81: =IF(TDPrimas_!A79="","",TDPrimas_!A79) -> 71 | C81: =IF(TDPrimas_!B79="","",TDPrimas_!B79) -> SPP Seguros | D81: =IF(TDPrimas_!C79="","",TDPrimas_!C79) -> 54230.54129 | E81: =IF(TDPrimas_!D79="","",TDPrimas_!D79) -> 39785.98031 | F81: =IF(TDPrimas_!E79="","",TDPrimas_!E79) -> 0.009231113067 | G81: =IF(TDPrimas_!F79="","",TDPrimas_!F79) -> 0.007739931221 | H81: =IF(TDPrimas_!G79="","",TDPrimas_!G79) -> 14444.56098 | I81: =IF(TDPrimas_!H79="","",TDPrimas_!H79) -> 36.30565558 | J81: =IF(TDPrimas_!I79="","",TDPrimas_!I79) -> 100 | K81: =IF(TDPrimas_!J79="","",TDPrimas_!J79) -> 100 | L81: =IF(TDPrimas_!K79="","",TDPrimas_!K79) -> 0.009231113067
B82: =IF(TDPrimas_!A80="","",TDPrimas_!A80) -> 72 | C82: =IF(TDPrimas_!B80="","",TDPrimas_!B80) -> Metlife Pensiones | D82: =IF(TDPrimas_!C80="","",TDPrimas_!C80) -> 37040.9753 | E82: =IF(TDPrimas_!D80="","",TDPrimas_!D80) -> 17873.45007 | F82: =IF(TDPrimas_!E80="","",TDPrimas_!E80) -> 0.006305108209 | G82: =IF(TDPrimas_!F80="","",TDPrimas_!F80) -> 0.003477085977 | H82: =IF(TDPrimas_!G80="","",TDPrimas_!G80) -> 19167.52523 | I82: =IF(TDPrimas_!H80="","",TDPrimas_!H80) -> 107.2402091 | J82: =IF(TDPrimas_!I80="","",TDPrimas_!I80) -> 100 | K82: =IF(TDPrimas_!J80="","",TDPrimas_!J80) -> 100 | L82: =IF(TDPrimas_!K80="","",TDPrimas_!K80) -> 0.006305108209
B83: =IF(TDPrimas_!A81="","",TDPrimas_!A81) -> 73 | C83: =IF(TDPrimas_!B81="","",TDPrimas_!B81) -> Metlife Más | D83: =IF(TDPrimas_!C81="","",TDPrimas_!C81) -> 34905.85634 | E83: =IF(TDPrimas_!D81="","",TDPrimas_!D81) -> 27590.89299 | F83: =IF(TDPrimas_!E81="","",TDPrimas_!E81) -> 0.005941668641 | G83: =IF(TDPrimas_!F81="","",TDPrimas_!F81) -> 0.005367509168 | H83: =IF(TDPrimas_!G81="","",TDPrimas_!G81) -> 7314.96335 | I83: =IF(TDPrimas_!H81="","",TDPrimas_!H81) -> 26.51223849 | J83: =IF(TDPrimas_!I81="","",TDPrimas_!I81) -> 100 | K83: =IF(TDPrimas_!J81="","",TDPrimas_!J81) -> 100 | L83: =IF(TDPrimas_!K81="","",TDPrimas_!K81) -> 0.005941668641
B84: =IF(TDPrimas_!A82="","",TDPrimas_!A82) -> 74 | C84: =IF(TDPrimas_!B82="","",TDPrimas_!B82) -> SPT | D84: =IF(TDPrimas_!C82="","",TDPrimas_!C82) -> 32331.35817 | E84: =IF(TDPrimas_!D82="","",TDPrimas_!D82) -> 21801.08078 | F84: =IF(TDPrimas_!E82="","",TDPrimas_!E82) -> 0.005503438021 | G84: =IF(TDPrimas_!F82="","",TDPrimas_!F82) -> 0.004241163959 | H84: =IF(TDPrimas_!G82="","",TDPrimas_!G82) -> 10530.27739 | I84: =IF(TDPrimas_!H82="","",TDPrimas_!H82) -> 48.30163007 | J84: =IF(TDPrimas_!I82="","",TDPrimas_!I82) -> 100 | K84: =IF(TDPrimas_!J82="","",TDPrimas_!J82) -> 100 | L84: =IF(TDPrimas_!K82="","",TDPrimas_!K82) -> 0.005503438021
B85: =IF(TDPrimas_!A83="","",TDPrimas_!A83) -> 75 | C85: =IF(TDPrimas_!B83="","",TDPrimas_!B83) -> Quálitas Salud | D85: =IF(TDPrimas_!C83="","",TDPrimas_!C83) -> 12852.04491 | E85: =IF(TDPrimas_!D83="","",TDPrimas_!D83) -> 15724.5065 | F85: =IF(TDPrimas_!E83="","",TDPrimas_!E83) -> 0.002187672792 | G85: =IF(TDPrimas_!F83="","",TDPrimas_!F83) -> 0.003059032298 | H85: =IF(TDPrimas_!G83="","",TDPrimas_!G83) -> -2872.46159 | I85: =IF(TDPrimas_!H83="","",TDPrimas_!H83) -> -18.26741965 | J85: =IF(TDPrimas_!I83="","",TDPrimas_!I83) -> 100 | K85: =IF(TDPrimas_!J83="","",TDPrimas_!J83) -> 100 | L85: =IF(TDPrimas_!K83="","",TDPrimas_!K83) -> 0.002187672792
B86: =IF(TDPrimas_!A84="","",TDPrimas_!A84) -> 76 | C86: =IF(TDPrimas_!B84="","",TDPrimas_!B84) -> Citibanamex Pensiones | D86: =IF(TDPrimas_!C84="","",TDPrimas_!C84) -> 6207.07364 | E86: =IF(TDPrimas_!D84="","",TDPrimas_!D84) -> 16251.42186 | F86: =IF(TDPrimas_!E84="","",TDPrimas_!E84) -> 0.001056566968 | G86: =IF(TDPrimas_!F84="","",TDPrimas_!F84) -> 0.00316153797 | H86: =IF(TDPrimas_!G84="","",TDPrimas_!G84) -> -10044.34822 | I86: =IF(TDPrimas_!H84="","",TDPrimas_!H84) -> -61.8059657 | J86: =IF(TDPrimas_!I84="","",TDPrimas_!I84) -> 100 | K86: =IF(TDPrimas_!J84="","",TDPrimas_!J84) -> 100 | L86: =IF(TDPrimas_!K84="","",TDPrimas_!K84) -> 0.001056566968
B87: =IF(TDPrimas_!A85="","",TDPrimas_!A85) -> 77 | C87: =IF(TDPrimas_!B85="","",TDPrimas_!B85) -> Pensiones Inbursa | D87: =IF(TDPrimas_!C85="","",TDPrimas_!C85) -> 502.70093 | E87: =IF(TDPrimas_!D85="","",TDPrimas_!D85) -> 1186.17977 | F87: =IF(TDPrimas_!E85="","",TDPrimas_!E85) -> 8.556966265e-05 | G87: =IF(TDPrimas_!F85="","",TDPrimas_!F85) -> 0.000230758417 | H87: =IF(TDPrimas_!G85="","",TDPrimas_!G85) -> -683.47884 | I87: =IF(TDPrimas_!H85="","",TDPrimas_!H85) -> -57.62017337 | J87: =IF(TDPrimas_!I85="","",TDPrimas_!I85) -> 100 | K87: =IF(TDPrimas_!J85="","",TDPrimas_!J85) -> 100 | L87: =IF(TDPrimas_!K85="","",TDPrimas_!K85) -> 8.556966265e-05
B88: =IF(TDPrimas_!A86="","",TDPrimas_!A86) -> 78 | C88: =IF(TDPrimas_!B86="","",TDPrimas_!B86) -> Momento Seguros | D88: =IF(TDPrimas_!C86="","",TDPrimas_!C86) -> 468.89204 | E88: =IF(TDPrimas_!D86="","",TDPrimas_!D86) -> 0 | F88: =IF(TDPrimas_!E86="","",TDPrimas_!E86) -> 7.981471942e-05 | G88: =IF(TDPrimas_!F86="","",TDPrimas_!F86) -> 0 | H88: =IF(TDPrimas_!G86="","",TDPrimas_!G86) -> 0 | I88: =IF(TDPrimas_!H86="","",TDPrimas_!H86) -> 0 | J88: =IF(TDPrimas_!I86="","",TDPrimas_!I86) -> 100 | K88: =IF(TDPrimas_!J86="","",TDPrimas_!J86) -> 100 | L88: =IF(TDPrimas_!K86="","",TDPrimas_!K86) -> 7.981471942e-05
B89: =IF(TDPrimas_!A87="","",TDPrimas_!A87) -> 79 | C89: =IF(TDPrimas_!B87="","",TDPrimas_!B87) -> Aserta Seguros de Vida | D89: =IF(TDPrimas_!C87="","",TDPrimas_!C87) -> 0 | E89: =IF(TDPrimas_!D87="","",TDPrimas_!D87) -> 596.24644 | F89: =IF(TDPrimas_!E87="","",TDPrimas_!E87) -> 0 | G89: =IF(TDPrimas_!F87="","",TDPrimas_!F87) -> 0.0001159932821 | H89: =IF(TDPrimas_!G87="","",TDPrimas_!G87) -> 0 | I89: =IF(TDPrimas_!H87="","",TDPrimas_!H87) -> 0 | J89: =IF(TDPrimas_!I87="","",TDPrimas_!I87) -> 0 | K89: =IF(TDPrimas_!J87="","",TDPrimas_!J87) -> 0 | L89: =IF(TDPrimas_!K87="","",TDPrimas_!K87) -> 0
B90: =IF(TDPrimas_!A88="","",TDPrimas_!A88) -> 79 | C90: =IF(TDPrimas_!B88="","",TDPrimas_!B88) -> Zurich Daños | D90: =IF(TDPrimas_!C88="","",TDPrimas_!C88) -> 0 | E90: =IF(TDPrimas_!D88="","",TDPrimas_!D88) -> 4063560.402 | F90: =IF(TDPrimas_!E88="","",TDPrimas_!E88) -> 0 | G90: =IF(TDPrimas_!F88="","",TDPrimas_!F88) -> 0.7905216305 | H90: =IF(TDPrimas_!G88="","",TDPrimas_!G88) -> 0 | I90: =IF(TDPrimas_!H88="","",TDPrimas_!H88) -> 0 | J90: =IF(TDPrimas_!I88="","",TDPrimas_!I88) -> 0 | K90: =IF(TDPrimas_!J88="","",TDPrimas_!J88) -> 0 | L90: =IF(TDPrimas_!K88="","",TDPrimas_!K88) -> 0
B91: =IF(TDPrimas_!A89="","",TDPrimas_!A89) -> 79 | C91: =IF(TDPrimas_!B89="","",TDPrimas_!B89) -> Zurich Vida | D91: =IF(TDPrimas_!C89="","",TDPrimas_!C89) -> 0 | E91: =IF(TDPrimas_!D89="","",TDPrimas_!D89) -> 706727.7084 | F91: =IF(TDPrimas_!E89="","",TDPrimas_!E89) -> 0 | G91: =IF(TDPrimas_!F89="","",TDPrimas_!F89) -> 0.1374862153 | H91: =IF(TDPrimas_!G89="","",TDPrimas_!G89) -> 0 | I91: =IF(TDPrimas_!H89="","",TDPrimas_!H89) -> 0 | J91: =IF(TDPrimas_!I89="","",TDPrimas_!I89) -> 0 | K91: =IF(TDPrimas_!J89="","",TDPrimas_!J89) -> 0 | L91: =IF(TDPrimas_!K89="","",TDPrimas_!K89) -> 0
B92: =IF(TDPrimas_!A90="","",TDPrimas_!A90) -> 150.1 | C92: =IF(TDPrimas_!B90="","",TDPrimas_!B90) -> TOTAL RESTO | D92: =IF(TDPrimas_!C90="","",TDPrimas_!C90) -> 125647956 | E92: =IF(TDPrimas_!D90="","",TDPrimas_!D90) -> 119294033.2 | F92: =IF(TDPrimas_!E90="","",TDPrimas_!E90) -> 21.38777266 | G92: =IF(TDPrimas_!F90="","",TDPrimas_!F90) -> 23.20736111 | H92: =IF(TDPrimas_!G90="","",TDPrimas_!G90) -> 6353922.754 | I92: =IF(TDPrimas_!H90="","",TDPrimas_!H90) -> 5.326270378 | J92: =IF(TDPrimas_!I90="","",TDPrimas_!I90) -> 100 | K92: =IF(TDPrimas_!J90="","",TDPrimas_!J90) -> 100 | L92: =IF(TDPrimas_!K90="","",TDPrimas_!K90) -> 21.38777266
B93: =IF(TDPrimas_!A91="","",TDPrimas_!A91) -> 200 | C93: =IF(TDPrimas_!B91="","",TDPrimas_!B91) -> Patria | D93: =IF(TDPrimas_!C91="","",TDPrimas_!C91) -> 0 | E93: =IF(TDPrimas_!D91="","",TDPrimas_!D91) -> 0 | F93: =IF(TDPrimas_!E91="","",TDPrimas_!E91) -> 0 | G93: =IF(TDPrimas_!F91="","",TDPrimas_!F91) -> 0 | H93: =IF(TDPrimas_!G91="","",TDPrimas_!G91) -> 0 | I93: =IF(TDPrimas_!H91="","",TDPrimas_!H91) -> 0 | J93: =IF(TDPrimas_!I91="","",TDPrimas_!I91) -> 0 | K93: =IF(TDPrimas_!J91="","",TDPrimas_!J91) -> 0 | L93: =IF(TDPrimas_!K91="","",TDPrimas_!K91) -> 0
B94: =IF(TDPrimas_!A92="","",TDPrimas_!A92) -> 201.1 | C94: =IF(TDPrimas_!B92="","",TDPrimas_!B92) -> TOTAL | D94: =IF(TDPrimas_!C92="","",TDPrimas_!C92) -> 587475647.8 | E94: =IF(TDPrimas_!D92="","",TDPrimas_!D92) -> 514035321.2 | F94: =IF(TDPrimas_!E92="","",TDPrimas_!E92) -> 100 | G94: =IF(TDPrimas_!F92="","",TDPrimas_!F92) -> 100 | H94: =IF(TDPrimas_!G92="","",TDPrimas_!G92) -> 73440326.67 | I94: =IF(TDPrimas_!H92="","",TDPrimas_!H92) -> 14.28701952 | J94: =IF(TDPrimas_!I92="","",TDPrimas_!I92) -> 100 | K94: =IF(TDPrimas_!J92="","",TDPrimas_!J92) -> 100 | L94: =IF(TDPrimas_!K92="","",TDPrimas_!K92) -> 100
B95: =IF(TDPrimas_!A93="","",TDPrimas_!A93) ->  | C95: =IF(TDPrimas_!B93="","",TDPrimas_!B93) ->  | D95: =IF(TDPrimas_!C93="","",TDPrimas_!C93) ->  | E95: =IF(TDPrimas_!D93="","",TDPrimas_!D93) ->  | F95: =IF(TDPrimas_!E93="","",TDPrimas_!E93) ->  | G95: =IF(TDPrimas_!F93="","",TDPrimas_!F93) ->  | H95: =IF(TDPrimas_!G93="","",TDPrimas_!G93) ->  | I95: =IF(TDPrimas_!H93="","",TDPrimas_!H93) ->  | J95: =IF(TDPrimas_!I93="","",TDPrimas_!I93) ->  | K95: =IF(TDPrimas_!J93="","",TDPrimas_!J93) ->  | L95: =IF(TDPrimas_!K93="","",TDPrimas_!K93) -> 
B96: =IF(TDPrimas_!A94="","",TDPrimas_!A94) ->  | C96: =IF(TDPrimas_!B94="","",TDPrimas_!B94) ->  | D96: =IF(TDPrimas_!C94="","",TDPrimas_!C94) ->  | E96: =IF(TDPrimas_!D94="","",TDPrimas_!D94) ->  | F96: =IF(TDPrimas_!E94="","",TDPrimas_!E94) ->  | G96: =IF(TDPrimas_!F94="","",TDPrimas_!F94) ->  | H96: =IF(TDPrimas_!G94="","",TDPrimas_!G94) ->  | I96: =IF(TDPrimas_!H94="","",TDPrimas_!H94) ->  | J96: =IF(TDPrimas_!I94="","",TDPrimas_!I94) ->  | K96: =IF(TDPrimas_!J94="","",TDPrimas_!J94) ->  | L96: =IF(TDPrimas_!K94="","",TDPrimas_!K94) -> 
B97: =IF(TDPrimas_!A95="","",TDPrimas_!A95) ->  | C97: =IF(TDPrimas_!B95="","",TDPrimas_!B95) ->  | D97: =IF(TDPrimas_!C95="","",TDPrimas_!C95) ->  | E97: =IF(TDPrimas_!D95="","",TDPrimas_!D95) ->  | F97: =IF(TDPrimas_!E95="","",TDPrimas_!E95) ->  | G97: =IF(TDPrimas_!F95="","",TDPrimas_!F95) ->  | H97: =IF(TDPrimas_!G95="","",TDPrimas_!G95) ->  | I97: =IF(TDPrimas_!H95="","",TDPrimas_!H95) ->  | J97: =IF(TDPrimas_!I95="","",TDPrimas_!I95) ->  | K97: =IF(TDPrimas_!J95="","",TDPrimas_!J95) ->  | L97: =IF(TDPrimas_!K95="","",TDPrimas_!K95) -> 
B98: =IF(TDPrimas_!A96="","",TDPrimas_!A96) ->  | C98: =IF(TDPrimas_!B96="","",TDPrimas_!B96) ->  | D98: =IF(TDPrimas_!C96="","",TDPrimas_!C96) ->  | E98: =IF(TDPrimas_!D96="","",TDPrimas_!D96) ->  | F98: =IF(TDPrimas_!E96="","",TDPrimas_!E96) ->  | G98: =IF(TDPrimas_!F96="","",TDPrimas_!F96) ->  | H98: =IF(TDPrimas_!G96="","",TDPrimas_!G96) ->  | I98: =IF(TDPrimas_!H96="","",TDPrimas_!H96) ->  | J98: =IF(TDPrimas_!I96="","",TDPrimas_!I96) ->  | K98: =IF(TDPrimas_!J96="","",TDPrimas_!J96) ->  | L98: =IF(TDPrimas_!K96="","",TDPrimas_!K96) -> 
B99: =IF(TDPrimas_!A97="","",TDPrimas_!A97) ->  | C99: =IF(TDPrimas_!B97="","",TDPrimas_!B97) ->  | D99: =IF(TDPrimas_!C97="","",TDPrimas_!C97) ->  | E99: =IF(TDPrimas_!D97="","",TDPrimas_!D97) ->  | F99: =IF(TDPrimas_!E97="","",TDPrimas_!E97) ->  | G99: =IF(TDPrimas_!F97="","",TDPrimas_!F97) ->  | H99: =IF(TDPrimas_!G97="","",TDPrimas_!G97) ->  | I99: =IF(TDPrimas_!H97="","",TDPrimas_!H97) ->  | J99: =IF(TDPrimas_!I97="","",TDPrimas_!I97) ->  | K99: =IF(TDPrimas_!J97="","",TDPrimas_!J97) ->  | L99: =IF(TDPrimas_!K97="","",TDPrimas_!K97) -> 
B100: =IF(TDPrimas_!A98="","",TDPrimas_!A98) ->  | C100: =IF(TDPrimas_!B98="","",TDPrimas_!B98) ->  | D100: =IF(TDPrimas_!C98="","",TDPrimas_!C98) ->  | E100: =IF(TDPrimas_!D98="","",TDPrimas_!D98) ->  | F100: =IF(TDPrimas_!E98="","",TDPrimas_!E98) ->  | G100: =IF(TDPrimas_!F98="","",TDPrimas_!F98) ->  | H100: =IF(TDPrimas_!G98="","",TDPrimas_!G98) ->  | I100: =IF(TDPrimas_!H98="","",TDPrimas_!H98) ->  | J100: =IF(TDPrimas_!I98="","",TDPrimas_!I98) ->  | K100: =IF(TDPrimas_!J98="","",TDPrimas_!J98) ->  | L100: =IF(TDPrimas_!K98="","",TDPrimas_!K98) -> 
B101: =IF(TDPrimas_!A99="","",TDPrimas_!A99) ->  | C101: =IF(TDPrimas_!B99="","",TDPrimas_!B99) ->  | D101: =IF(TDPrimas_!C99="","",TDPrimas_!C99) ->  | E101: =IF(TDPrimas_!D99="","",TDPrimas_!D99) ->  | F101: =IF(TDPrimas_!E99="","",TDPrimas_!E99) ->  | G101: =IF(TDPrimas_!F99="","",TDPrimas_!F99) ->  | H101: =IF(TDPrimas_!G99="","",TDPrimas_!G99) ->  | I101: =IF(TDPrimas_!H99="","",TDPrimas_!H99) ->  | J101: =IF(TDPrimas_!I99="","",TDPrimas_!I99) ->  | K101: =IF(TDPrimas_!J99="","",TDPrimas_!J99) ->  | L101: =IF(TDPrimas_!K99="","",TDPrimas_!K99) -> 
B102: =IF(TDPrimas_!A100="","",TDPrimas_!A100) ->  | C102: =IF(TDPrimas_!B100="","",TDPrimas_!B100) ->  | D102: =IF(TDPrimas_!C100="","",TDPrimas_!C100) ->  | E102: =IF(TDPrimas_!D100="","",TDPrimas_!D100) ->  | F102: =IF(TDPrimas_!E100="","",TDPrimas_!E100) ->  | G102: =IF(TDPrimas_!F100="","",TDPrimas_!F100) ->  | H102: =IF(TDPrimas_!G100="","",TDPrimas_!G100) ->  | I102: =IF(TDPrimas_!H100="","",TDPrimas_!H100) ->  | J102: =IF(TDPrimas_!I100="","",TDPrimas_!I100) ->  | K102: =IF(TDPrimas_!J100="","",TDPrimas_!J100) ->  | L102: =IF(TDPrimas_!K100="","",TDPrimas_!K100) -> 
B103: =IF(TDPrimas_!A101="","",TDPrimas_!A101) ->  | C103: =IF(TDPrimas_!B101="","",TDPrimas_!B101) ->  | D103: =IF(TDPrimas_!C101="","",TDPrimas_!C101) ->  | E103: =IF(TDPrimas_!D101="","",TDPrimas_!D101) ->  | F103: =IF(TDPrimas_!E101="","",TDPrimas_!E101) ->  | G103: =IF(TDPrimas_!F101="","",TDPrimas_!F101) ->  | H103: =IF(TDPrimas_!G101="","",TDPrimas_!G101) ->  | I103: =IF(TDPrimas_!H101="","",TDPrimas_!H101) ->  | J103: =IF(TDPrimas_!I101="","",TDPrimas_!I101) ->  | K103: =IF(TDPrimas_!J101="","",TDPrimas_!J101) ->  | L103: =IF(TDPrimas_!K101="","",TDPrimas_!K101) -> 
B104: =IF(TDPrimas_!A102="","",TDPrimas_!A102) ->  | C104: =IF(TDPrimas_!B102="","",TDPrimas_!B102) ->  | D104: =IF(TDPrimas_!C102="","",TDPrimas_!C102) ->  | E104: =IF(TDPrimas_!D102="","",TDPrimas_!D102) ->  | F104: =IF(TDPrimas_!E102="","",TDPrimas_!E102) ->  | G104: =IF(TDPrimas_!F102="","",TDPrimas_!F102) ->  | H104: =IF(TDPrimas_!G102="","",TDPrimas_!G102) ->  | I104: =IF(TDPrimas_!H102="","",TDPrimas_!H102) ->  | J104: =IF(TDPrimas_!I102="","",TDPrimas_!I102) ->  | K104: =IF(TDPrimas_!J102="","",TDPrimas_!J102) ->  | L104: =IF(TDPrimas_!K102="","",TDPrimas_!K102) -> 
B105: =IF(TDPrimas_!A103="","",TDPrimas_!A103) ->  | C105: =IF(TDPrimas_!B103="","",TDPrimas_!B103) ->  | D105: =IF(TDPrimas_!C103="","",TDPrimas_!C103) ->  | E105: =IF(TDPrimas_!D103="","",TDPrimas_!D103) ->  | F105: =IF(TDPrimas_!E103="","",TDPrimas_!E103) ->  | G105: =IF(TDPrimas_!F103="","",TDPrimas_!F103) ->  | H105: =IF(TDPrimas_!G103="","",TDPrimas_!G103) ->  | I105: =IF(TDPrimas_!H103="","",TDPrimas_!H103) ->  | J105: =IF(TDPrimas_!I103="","",TDPrimas_!I103) ->  | K105: =IF(TDPrimas_!J103="","",TDPrimas_!J103) ->  | L105: =IF(TDPrimas_!K103="","",TDPrimas_!K103) -> 
B106: =IF(TDPrimas_!A104="","",TDPrimas_!A104) ->  | C106: =IF(TDPrimas_!B104="","",TDPrimas_!B104) ->  | D106: =IF(TDPrimas_!C104="","",TDPrimas_!C104) ->  | E106: =IF(TDPrimas_!D104="","",TDPrimas_!D104) ->  | F106: =IF(TDPrimas_!E104="","",TDPrimas_!E104) ->  | G106: =IF(TDPrimas_!F104="","",TDPrimas_!F104) ->  | H106: =IF(TDPrimas_!G104="","",TDPrimas_!G104) ->  | I106: =IF(TDPrimas_!H104="","",TDPrimas_!H104) ->  | J106: =IF(TDPrimas_!I104="","",TDPrimas_!I104) ->  | K106: =IF(TDPrimas_!J104="","",TDPrimas_!J104) ->  | L106: =IF(TDPrimas_!K104="","",TDPrimas_!K104) -> 
B107: =IF(TDPrimas_!A105="","",TDPrimas_!A105) ->  | C107: =IF(TDPrimas_!B105="","",TDPrimas_!B105) ->  | D107: =IF(TDPrimas_!C105="","",TDPrimas_!C105) ->  | E107: =IF(TDPrimas_!D105="","",TDPrimas_!D105) ->  | F107: =IF(TDPrimas_!E105="","",TDPrimas_!E105) ->  | G107: =IF(TDPrimas_!F105="","",TDPrimas_!F105) ->  | H107: =IF(TDPrimas_!G105="","",TDPrimas_!G105) ->  | I107: =IF(TDPrimas_!H105="","",TDPrimas_!H105) ->  | J107: =IF(TDPrimas_!I105="","",TDPrimas_!I105) ->  | K107: =IF(TDPrimas_!J105="","",TDPrimas_!J105) ->  | L107: =IF(TDPrimas_!K105="","",TDPrimas_!K105) -> 
B108: =IF(TDPrimas_!A106="","",TDPrimas_!A106) ->  | C108: =IF(TDPrimas_!B106="","",TDPrimas_!B106) ->  | D108: =IF(TDPrimas_!C106="","",TDPrimas_!C106) ->  | E108: =IF(TDPrimas_!D106="","",TDPrimas_!D106) ->  | F108: =IF(TDPrimas_!E106="","",TDPrimas_!E106) ->  | G108: =IF(TDPrimas_!F106="","",TDPrimas_!F106) ->  | H108: =IF(TDPrimas_!G106="","",TDPrimas_!G106) ->  | I108: =IF(TDPrimas_!H106="","",TDPrimas_!H106) ->  | J108: =IF(TDPrimas_!I106="","",TDPrimas_!I106) ->  | K108: =IF(TDPrimas_!J106="","",TDPrimas_!J106) ->  | L108: =IF(TDPrimas_!K106="","",TDPrimas_!K106) -> 
B109: =IF(TDPrimas_!A107="","",TDPrimas_!A107) ->  | C109: =IF(TDPrimas_!B107="","",TDPrimas_!B107) ->  | D109: =IF(TDPrimas_!C107="","",TDPrimas_!C107) ->  | E109: =IF(TDPrimas_!D107="","",TDPrimas_!D107) ->  | F109: =IF(TDPrimas_!E107="","",TDPrimas_!E107) ->  | G109: =IF(TDPrimas_!F107="","",TDPrimas_!F107) ->  | H109: =IF(TDPrimas_!G107="","",TDPrimas_!G107) ->  | I109: =IF(TDPrimas_!H107="","",TDPrimas_!H107) ->  | J109: =IF(TDPrimas_!I107="","",TDPrimas_!I107) ->  | K109: =IF(TDPrimas_!J107="","",TDPrimas_!J107) ->  | L109: =IF(TDPrimas_!K107="","",TDPrimas_!K107) -> 
B110: =IF(TDPrimas_!A108="","",TDPrimas_!A108) ->  | C110: =IF(TDPrimas_!B108="","",TDPrimas_!B108) ->  | D110: =IF(TDPrimas_!C108="","",TDPrimas_!C108) ->  | E110: =IF(TDPrimas_!D108="","",TDPrimas_!D108) ->  | F110: =IF(TDPrimas_!E108="","",TDPrimas_!E108) ->  | G110: =IF(TDPrimas_!F108="","",TDPrimas_!F108) ->  | H110: =IF(TDPrimas_!G108="","",TDPrimas_!G108) ->  | I110: =IF(TDPrimas_!H108="","",TDPrimas_!H108) ->  | J110: =IF(TDPrimas_!I108="","",TDPrimas_!I108) ->  | K110: =IF(TDPrimas_!J108="","",TDPrimas_!J108) ->  | L110: =IF(TDPrimas_!K108="","",TDPrimas_!K108) -> 
B111: =IF(TDPrimas_!A109="","",TDPrimas_!A109) ->  | C111: =IF(TDPrimas_!B109="","",TDPrimas_!B109) ->  | D111: =IF(TDPrimas_!C109="","",TDPrimas_!C109) ->  | E111: =IF(TDPrimas_!D109="","",TDPrimas_!D109) ->  | F111: =IF(TDPrimas_!E109="","",TDPrimas_!E109) ->  | G111: =IF(TDPrimas_!F109="","",TDPrimas_!F109) ->  | H111: =IF(TDPrimas_!G109="","",TDPrimas_!G109) ->  | I111: =IF(TDPrimas_!H109="","",TDPrimas_!H109) ->  | J111: =IF(TDPrimas_!I109="","",TDPrimas_!I109) ->  | K111: =IF(TDPrimas_!J109="","",TDPrimas_!J109) ->  | L111: =IF(TDPrimas_!K109="","",TDPrimas_!K109) -> 
B112: =IF(TDPrimas_!A110="","",TDPrimas_!A110) ->  | C112: =IF(TDPrimas_!B110="","",TDPrimas_!B110) ->  | D112: =IF(TDPrimas_!C110="","",TDPrimas_!C110) ->  | E112: =IF(TDPrimas_!D110="","",TDPrimas_!D110) ->  | F112: =IF(TDPrimas_!E110="","",TDPrimas_!E110) ->  | G112: =IF(TDPrimas_!F110="","",TDPrimas_!F110) ->  | H112: =IF(TDPrimas_!G110="","",TDPrimas_!G110) ->  | I112: =IF(TDPrimas_!H110="","",TDPrimas_!H110) ->  | J112: =IF(TDPrimas_!I110="","",TDPrimas_!I110) ->  | K112: =IF(TDPrimas_!J110="","",TDPrimas_!J110) ->  | L112: =IF(TDPrimas_!K110="","",TDPrimas_!K110) -> 
B113: =IF(TDPrimas_!A111="","",TDPrimas_!A111) ->  | C113: =IF(TDPrimas_!B111="","",TDPrimas_!B111) ->  | D113: =IF(TDPrimas_!C111="","",TDPrimas_!C111) ->  | E113: =IF(TDPrimas_!D111="","",TDPrimas_!D111) ->  | F113: =IF(TDPrimas_!E111="","",TDPrimas_!E111) ->  | G113: =IF(TDPrimas_!F111="","",TDPrimas_!F111) ->  | H113: =IF(TDPrimas_!G111="","",TDPrimas_!G111) ->  | I113: =IF(TDPrimas_!H111="","",TDPrimas_!H111) ->  | J113: =IF(TDPrimas_!I111="","",TDPrimas_!I111) ->  | K113: =IF(TDPrimas_!J111="","",TDPrimas_!J111) ->  | L113: =IF(TDPrimas_!K111="","",TDPrimas_!K111) -> 
B114: =IF(TDPrimas_!A112="","",TDPrimas_!A112) ->  | C114: =IF(TDPrimas_!B112="","",TDPrimas_!B112) ->  | D114: =IF(TDPrimas_!C112="","",TDPrimas_!C112) ->  | E114: =IF(TDPrimas_!D112="","",TDPrimas_!D112) ->  | F114: =IF(TDPrimas_!E112="","",TDPrimas_!E112) ->  | G114: =IF(TDPrimas_!F112="","",TDPrimas_!F112) ->  | H114: =IF(TDPrimas_!G112="","",TDPrimas_!G112) ->  | I114: =IF(TDPrimas_!H112="","",TDPrimas_!H112) ->  | J114: =IF(TDPrimas_!I112="","",TDPrimas_!I112) ->  | K114: =IF(TDPrimas_!J112="","",TDPrimas_!J112) ->  | L114: =IF(TDPrimas_!K112="","",TDPrimas_!K112) -> 
B115: =IF(TDPrimas_!A113="","",TDPrimas_!A113) ->  | C115: =IF(TDPrimas_!B113="","",TDPrimas_!B113) ->  | D115: =IF(TDPrimas_!C113="","",TDPrimas_!C113) ->  | E115: =IF(TDPrimas_!D113="","",TDPrimas_!D113) ->  | F115: =IF(TDPrimas_!E113="","",TDPrimas_!E113) ->  | G115: =IF(TDPrimas_!F113="","",TDPrimas_!F113) ->  | H115: =IF(TDPrimas_!G113="","",TDPrimas_!G113) ->  | I115: =IF(TDPrimas_!H113="","",TDPrimas_!H113) ->  | J115: =IF(TDPrimas_!I113="","",TDPrimas_!I113) ->  | K115: =IF(TDPrimas_!J113="","",TDPrimas_!J113) ->  | L115: =IF(TDPrimas_!K113="","",TDPrimas_!K113) -> 
B116: =IF(TDPrimas_!A114="","",TDPrimas_!A114) ->  | C116: =IF(TDPrimas_!B114="","",TDPrimas_!B114) ->  | D116: =IF(TDPrimas_!C114="","",TDPrimas_!C114) ->  | E116: =IF(TDPrimas_!D114="","",TDPrimas_!D114) ->  | F116: =IF(TDPrimas_!E114="","",TDPrimas_!E114) ->  | G116: =IF(TDPrimas_!F114="","",TDPrimas_!F114) ->  | H116: =IF(TDPrimas_!G114="","",TDPrimas_!G114) ->  | I116: =IF(TDPrimas_!H114="","",TDPrimas_!H114) ->  | J116: =IF(TDPrimas_!I114="","",TDPrimas_!I114) ->  | K116: =IF(TDPrimas_!J114="","",TDPrimas_!J114) ->  | L116: =IF(TDPrimas_!K114="","",TDPrimas_!K114) -> 
B117: =IF(TDPrimas_!A115="","",TDPrimas_!A115) ->  | C117: =IF(TDPrimas_!B115="","",TDPrimas_!B115) ->  | D117: =IF(TDPrimas_!C115="","",TDPrimas_!C115) ->  | E117: =IF(TDPrimas_!D115="","",TDPrimas_!D115) ->  | F117: =IF(TDPrimas_!E115="","",TDPrimas_!E115) ->  | G117: =IF(TDPrimas_!F115="","",TDPrimas_!F115) ->  | H117: =IF(TDPrimas_!G115="","",TDPrimas_!G115) ->  | I117: =IF(TDPrimas_!H115="","",TDPrimas_!H115) ->  | J117: =IF(TDPrimas_!I115="","",TDPrimas_!I115) ->  | K117: =IF(TDPrimas_!J115="","",TDPrimas_!J115) ->  | L117: =IF(TDPrimas_!K115="","",TDPrimas_!K115) -> 
B118: =IF(TDPrimas_!A116="","",TDPrimas_!A116) ->  | C118: =IF(TDPrimas_!B116="","",TDPrimas_!B116) ->  | D118: =IF(TDPrimas_!C116="","",TDPrimas_!C116) ->  | E118: =IF(TDPrimas_!D116="","",TDPrimas_!D116) ->  | F118: =IF(TDPrimas_!E116="","",TDPrimas_!E116) ->  | G118: =IF(TDPrimas_!F116="","",TDPrimas_!F116) ->  | H118: =IF(TDPrimas_!G116="","",TDPrimas_!G116) ->  | I118: =IF(TDPrimas_!H116="","",TDPrimas_!H116) ->  | J118: =IF(TDPrimas_!I116="","",TDPrimas_!I116) ->  | K118: =IF(TDPrimas_!J116="","",TDPrimas_!J116) ->  | L118: =IF(TDPrimas_!K116="","",TDPrimas_!K116) -> 
B119: =IF(TDPrimas_!A117="","",TDPrimas_!A117) ->  | C119: =IF(TDPrimas_!B117="","",TDPrimas_!B117) ->  | D119: =IF(TDPrimas_!C117="","",TDPrimas_!C117) ->  | E119: =IF(TDPrimas_!D117="","",TDPrimas_!D117) ->  | F119: =IF(TDPrimas_!E117="","",TDPrimas_!E117) ->  | G119: =IF(TDPrimas_!F117="","",TDPrimas_!F117) ->  | H119: =IF(TDPrimas_!G117="","",TDPrimas_!G117) ->  | I119: =IF(TDPrimas_!H117="","",TDPrimas_!H117) ->  | J119: =IF(TDPrimas_!I117="","",TDPrimas_!I117) ->  | K119: =IF(TDPrimas_!J117="","",TDPrimas_!J117) ->  | L119: =IF(TDPrimas_!K117="","",TDPrimas_!K117) -> 
B120: =IF(TDPrimas_!A118="","",TDPrimas_!A118) ->  | C120: =IF(TDPrimas_!B118="","",TDPrimas_!B118) ->  | D120: =IF(TDPrimas_!C118="","",TDPrimas_!C118) ->  | E120: =IF(TDPrimas_!D118="","",TDPrimas_!D118) ->  | F120: =IF(TDPrimas_!E118="","",TDPrimas_!E118) ->  | G120: =IF(TDPrimas_!F118="","",TDPrimas_!F118) ->  | H120: =IF(TDPrimas_!G118="","",TDPrimas_!G118) ->  | I120: =IF(TDPrimas_!H118="","",TDPrimas_!H118) ->  | J120: =IF(TDPrimas_!I118="","",TDPrimas_!I118) ->  | K120: =IF(TDPrimas_!J118="","",TDPrimas_!J118) ->  | L120: =IF(TDPrimas_!K118="","",TDPrimas_!K118) -> 
B121: =IF(TDPrimas_!A119="","",TDPrimas_!A119) ->  | C121: =IF(TDPrimas_!B119="","",TDPrimas_!B119) ->  | D121: =IF(TDPrimas_!C119="","",TDPrimas_!C119) ->  | E121: =IF(TDPrimas_!D119="","",TDPrimas_!D119) ->  | F121: =IF(TDPrimas_!E119="","",TDPrimas_!E119) ->  | G121: =IF(TDPrimas_!F119="","",TDPrimas_!F119) ->  | H121: =IF(TDPrimas_!G119="","",TDPrimas_!G119) ->  | I121: =IF(TDPrimas_!H119="","",TDPrimas_!H119) ->  | J121: =IF(TDPrimas_!I119="","",TDPrimas_!I119) ->  | K121: =IF(TDPrimas_!J119="","",TDPrimas_!J119) ->  | L121: =IF(TDPrimas_!K119="","",TDPrimas_!K119) -> 
B122: =IF(TDPrimas_!A120="","",TDPrimas_!A120) ->  | C122: =IF(TDPrimas_!B120="","",TDPrimas_!B120) ->  | D122: =IF(TDPrimas_!C120="","",TDPrimas_!C120) ->  | E122: =IF(TDPrimas_!D120="","",TDPrimas_!D120) ->  | F122: =IF(TDPrimas_!E120="","",TDPrimas_!E120) ->  | G122: =IF(TDPrimas_!F120="","",TDPrimas_!F120) ->  | H122: =IF(TDPrimas_!G120="","",TDPrimas_!G120) ->  | I122: =IF(TDPrimas_!H120="","",TDPrimas_!H120) ->  | J122: =IF(TDPrimas_!I120="","",TDPrimas_!I120) ->  | K122: =IF(TDPrimas_!J120="","",TDPrimas_!J120) ->  | L122: =IF(TDPrimas_!K120="","",TDPrimas_!K120) -> 
B123: =IF(TDPrimas_!A121="","",TDPrimas_!A121) ->  | C123: =IF(TDPrimas_!B121="","",TDPrimas_!B121) ->  | D123: =IF(TDPrimas_!C121="","",TDPrimas_!C121) ->  | E123: =IF(TDPrimas_!D121="","",TDPrimas_!D121) ->  | F123: =IF(TDPrimas_!E121="","",TDPrimas_!E121) ->  | G123: =IF(TDPrimas_!F121="","",TDPrimas_!F121) ->  | H123: =IF(TDPrimas_!G121="","",TDPrimas_!G121) ->  | I123: =IF(TDPrimas_!H121="","",TDPrimas_!H121) ->  | J123: =IF(TDPrimas_!I121="","",TDPrimas_!I121) ->  | K123: =IF(TDPrimas_!J121="","",TDPrimas_!J121) ->  | L123: =IF(TDPrimas_!K121="","",TDPrimas_!K121) -> 
B124: =IF(TDPrimas_!A122="","",TDPrimas_!A122) ->  | C124: =IF(TDPrimas_!B122="","",TDPrimas_!B122) ->  | D124: =IF(TDPrimas_!C122="","",TDPrimas_!C122) ->  | E124: =IF(TDPrimas_!D122="","",TDPrimas_!D122) ->  | F124: =IF(TDPrimas_!E122="","",TDPrimas_!E122) ->  | G124: =IF(TDPrimas_!F122="","",TDPrimas_!F122) ->  | H124: =IF(TDPrimas_!G122="","",TDPrimas_!G122) ->  | I124: =IF(TDPrimas_!H122="","",TDPrimas_!H122) ->  | J124: =IF(TDPrimas_!I122="","",TDPrimas_!I122) ->  | K124: =IF(TDPrimas_!J122="","",TDPrimas_!J122) ->  | L124: =IF(TDPrimas_!K122="","",TDPrimas_!K122) -> 
B125: =IF(TDPrimas_!A123="","",TDPrimas_!A123) ->  | C125: =IF(TDPrimas_!B123="","",TDPrimas_!B123) ->  | D125: =IF(TDPrimas_!C123="","",TDPrimas_!C123) ->  | E125: =IF(TDPrimas_!D123="","",TDPrimas_!D123) ->  | F125: =IF(TDPrimas_!E123="","",TDPrimas_!E123) ->  | G125: =IF(TDPrimas_!F123="","",TDPrimas_!F123) ->  | H125: =IF(TDPrimas_!G123="","",TDPrimas_!G123) ->  | I125: =IF(TDPrimas_!H123="","",TDPrimas_!H123) ->  | J125: =IF(TDPrimas_!I123="","",TDPrimas_!I123) ->  | K125: =IF(TDPrimas_!J123="","",TDPrimas_!J123) ->  | L125: =IF(TDPrimas_!K123="","",TDPrimas_!K123) -> 
B128: NE = No Existe
B129: * % Extraordinario mayor de 1000%

Sheet Siniestros
B1: SINIESTROS DIRECTOS | I1: =VLOOKUP(RIGHT('TD Siniestros'!B3,2),Cat!$N$2:$O$5,2,0)&" "&LEFT('TD Siniestros'!B3,4) -> Tercer Trimestre 2023
B2: =UPPER(RIGHT(TDPrimas!$B$4,LEN(TDPrimas!$B$4)-3)) -> TOTAL GENERAL
D4: Siniestros Directos
B5: Compañías | D5: Importe | E5: Incr. % | F5: Inc. Rva. Dividendos | G5: % vs. Prima Directa | I5: % Participac de Mercado
D6: ='Primas Directas'!D6 -> 2023 | G6: ='Primas Directas'!D6 -> 2023 | H6: ='Primas Directas'!E6 -> 2022
C7: TOTAL | D7: =VLOOKUP(C7,'TD Siniestros'!$B$7:$M$154,2,0) -> 329970278 | E7: =VLOOKUP(C7,'TD Siniestros'!$B$7:$M$154,3,0) -> 9.063835509 | F7: =VLOOKUP(C7,'TD Siniestros'!$B$7:$M$154,4,0) -> 1949567.062 | G7: =VLOOKUP(C7,'TD Siniestros'!$B$7:$M$154,5,0) -> 56.16748186 | H7: =VLOOKUP(C7,'TD Siniestros'!$B$7:$M$154,6,0) -> 58.85740279 | I7: =IFERROR(D7/VLOOKUP("TOTAL",$C$8:$D$124,2,0)*100,"") -> 100
B8: =IF('TD Siniestros'!A7="","",'TD Siniestros'!A7) -> 1 | C8: =IF('TD Siniestros'!B7="","",'TD Siniestros'!B7) -> G.N.P. | D8: =IF('TD Siniestros'!C7="","",'TD Siniestros'!C7) -> 45612532.9 | E8: =IF('TD Siniestros'!D7="","",'TD Siniestros'!D7) -> 8.552695244 | F8: =IF('TD Siniestros'!E7="","",'TD Siniestros'!E7) -> 205015.3468 | G8: =IF('TD Siniestros'!F7="","",'TD Siniestros'!F7) -> 62.1641191 | H8: =IF('TD Siniestros'!G7="","",'TD Siniestros'!G7) -> 65.47666602 | I8: =IFERROR(D8/VLOOKUP("TOTAL",$C$8:$D$124,2,0)*100,"") -> 13.82322468
B9: =IF('TD Siniestros'!A8="","",'TD Siniestros'!A8) -> 2 | C9: =IF('TD Siniestros'!B8="","",'TD Siniestros'!B8) -> Metlife México | D9: =IF('TD Siniestros'!C8="","",'TD Siniestros'!C8) -> 40022840.24 | E9: =IF('TD Siniestros'!D8="","",'TD Siniestros'!D8) -> 10.24541877 | F9: =IF('TD Siniestros'!E8="","",'TD Siniestros'!E8) -> 101995.4338 | G9: =IF('TD Siniestros'!F8="","",'TD Siniestros'!F8) -> 68.28724936 | H9: =IF('TD Siniestros'!G8="","",'TD Siniestros'!G8) -> 66.99596192 | I9: =IFERROR(D9/VLOOKUP("TOTAL",$C$8:$D$124,2,0)*100,"") -> 12.12922585
B10: =IF('TD Siniestros'!A9="","",'TD Siniestros'!A9) -> 3 | C10: =IF('TD Siniestros'!B9="","",'TD Siniestros'!B9) -> BBVA Bancomer | D10: =IF('TD Siniestros'!C9="","",'TD Siniestros'!C9) -> 25601627.5 | E10: =IF('TD Siniestros'!D9="","",'TD Siniestros'!D9) -> 22.12398603 | F10: =IF('TD Siniestros'!E9="","",'TD Siniestros'!E9) -> 0 | G10: =IF('TD Siniestros'!F9="","",'TD Siniestros'!F9) -> 49.02271521 | H10: =IF('TD Siniestros'!G9="","",'TD Siniestros'!G9) -> 48.11617527 | I10: 7.758767747
B11: =IF('TD Siniestros'!A10="","",'TD Siniestros'!A10) -> 4 | C11: =IF('TD Siniestros'!B10="","",'TD Siniestros'!B10) -> AXA Seguros | D11: =IF('TD Siniestros'!C10="","",'TD Siniestros'!C10) -> 26588553.59 | E11: =IF('TD Siniestros'!D10="","",'TD Siniestros'!D10) -> 9.047143834 | F11: =IF('TD Siniestros'!E10="","",'TD Siniestros'!E10) -> 305789.9512 | G11: =IF('TD Siniestros'!F10="","",'TD Siniestros'!F10) -> 63.59878661 | H11: =IF('TD Siniestros'!G10="","",'TD Siniestros'!G10) -> 67.25686739 | I11: 8.057863196
B12: =IF('TD Siniestros'!A11="","",'TD Siniestros'!A11) -> 5 | C12: =IF('TD Siniestros'!B11="","",'TD Siniestros'!B11) -> Quálitas | D12: =IF('TD Siniestros'!C11="","",'TD Siniestros'!C11) -> 23308919.18 | E12: =IF('TD Siniestros'!D11="","",'TD Siniestros'!D11) -> 26.74548341 | F12: =IF('TD Siniestros'!E11="","",'TD Siniestros'!E11) -> 68561.22548 | G12: =IF('TD Siniestros'!F11="","",'TD Siniestros'!F11) -> 66.75344602 | H12: =IF('TD Siniestros'!G11="","",'TD Siniestros'!G11) -> 68.22322929 | I12: 7.06394507
B13: =IF('TD Siniestros'!A12="","",'TD Siniestros'!A12) -> 5.1 | C13: =IF('TD Siniestros'!B12="","",'TD Siniestros'!B12) -> TOTAL GRANDES | D13: =IF('TD Siniestros'!C12="","",'TD Siniestros'!C12) -> 161134473.4 | E13: =IF('TD Siniestros'!D12="","",'TD Siniestros'!D12) -> 13.42801933 | F13: =IF('TD Siniestros'!E12="","",'TD Siniestros'!E12) -> 681361.9573 | G13: =IF('TD Siniestros'!F12="","",'TD Siniestros'!F12) -> 61.75330609 | H13: =IF('TD Siniestros'!G12="","",'TD Siniestros'!G12) -> 63.09824905 | I13: 48.83302654
B14: =IF('TD Siniestros'!A13="","",'TD Siniestros'!A13) -> 6 | C14: =IF('TD Siniestros'!B13="","",'TD Siniestros'!B13) -> Banorte | D14: =IF('TD Siniestros'!C13="","",'TD Siniestros'!C13) -> 13363853.59 | E14: =IF('TD Siniestros'!D13="","",'TD Siniestros'!D13) -> 3.522689896 | F14: =IF('TD Siniestros'!E13="","",'TD Siniestros'!E13) -> 248778.3986 | G14: =IF('TD Siniestros'!F13="","",'TD Siniestros'!F13) -> 46.52852787 | H14: =IF('TD Siniestros'!G13="","",'TD Siniestros'!G13) -> 55.74098259 | I14: 4.050017376
B15: =IF('TD Siniestros'!A14="","",'TD Siniestros'!A14) -> 7 | C15: =IF('TD Siniestros'!B14="","",'TD Siniestros'!B14) -> Monterrey New York Life | D15: =IF('TD Siniestros'!C14="","",'TD Siniestros'!C14) -> 18189477.93 | E15: =IF('TD Siniestros'!D14="","",'TD Siniestros'!D14) -> 0.1557242063 | F15: =IF('TD Siniestros'!E14="","",'TD Siniestros'!E14) -> 30288.24346 | G15: =IF('TD Siniestros'!F14="","",'TD Siniestros'!F14) -> 64.79573527 | H15: =IF('TD Siniestros'!G14="","",'TD Siniestros'!G14) -> 66.60518388 | I15: 5.512459497
B16: =IF('TD Siniestros'!A15="","",'TD Siniestros'!A15) -> 8 | C16: =IF('TD Siniestros'!B15="","",'TD Siniestros'!B15) -> Citibanamex Seguros | D16: =IF('TD Siniestros'!C15="","",'TD Siniestros'!C15) -> 19475883.15 | E16: =IF('TD Siniestros'!D15="","",'TD Siniestros'!D15) -> -10.83872221 | F16: =IF('TD Siniestros'!E15="","",'TD Siniestros'!E15) -> 0 | G16: =IF('TD Siniestros'!F15="","",'TD Siniestros'!F15) -> 78.97790752 | H16: =IF('TD Siniestros'!G15="","",'TD Siniestros'!G15) -> 170.5543123 | I16: 5.902314376
B17: =IF('TD Siniestros'!A16="","",'TD Siniestros'!A16) -> 9 | C17: =IF('TD Siniestros'!B16="","",'TD Siniestros'!B16) -> Mapfre México | D17: =IF('TD Siniestros'!C16="","",'TD Siniestros'!C16) -> 10792790.83 | E17: =IF('TD Siniestros'!D16="","",'TD Siniestros'!D16) -> 1.456384361 | F17: =IF('TD Siniestros'!E16="","",'TD Siniestros'!E16) -> 359312.0947 | G17: =IF('TD Siniestros'!F16="","",'TD Siniestros'!F16) -> 48.23240594 | H17: =IF('TD Siniestros'!G16="","",'TD Siniestros'!G16) -> 60.33747623 | I17: 3.270837268
B18: =IF('TD Siniestros'!A17="","",'TD Siniestros'!A17) -> 10 | C18: =IF('TD Siniestros'!B17="","",'TD Siniestros'!B17) -> Inbursa | D18: =IF('TD Siniestros'!C17="","",'TD Siniestros'!C17) -> 11007442.21 | E18: =IF('TD Siniestros'!D17="","",'TD Siniestros'!D17) -> 26.41116133 | F18: =IF('TD Siniestros'!E17="","",'TD Siniestros'!E17) -> 147246.6088 | G18: =IF('TD Siniestros'!F17="","",'TD Siniestros'!F17) -> 52.59140683 | H18: =IF('TD Siniestros'!G17="","",'TD Siniestros'!G17) -> 47.39569592 | I18: 3.335889001
B19: =IF('TD Siniestros'!A18="","",'TD Siniestros'!A18) -> 11 | C19: =IF('TD Siniestros'!B18="","",'TD Siniestros'!B18) -> Chubb Seguros México | D19: =IF('TD Siniestros'!C18="","",'TD Siniestros'!C18) -> 9432791.094 | E19: =IF('TD Siniestros'!D18="","",'TD Siniestros'!D18) -> 7.642478426 | F19: =IF('TD Siniestros'!E18="","",'TD Siniestros'!E18) -> 51627.68894 | G19: =IF('TD Siniestros'!F18="","",'TD Siniestros'!F18) -> 53.22987458 | H19: =IF('TD Siniestros'!G18="","",'TD Siniestros'!G18) -> 53.06500664 | I19: 2.858679016
B20: =IF('TD Siniestros'!A19="","",'TD Siniestros'!A19) -> 12 | C20: =IF('TD Siniestros'!B19="","",'TD Siniestros'!B19) -> Zurich Santander | D20: =IF('TD Siniestros'!C19="","",'TD Siniestros'!C19) -> 3013393.588 | E20: =IF('TD Siniestros'!D19="","",'TD Siniestros'!D19) -> 28.43002648 | F20: =IF('TD Siniestros'!E19="","",'TD Siniestros'!E19) -> 0 | G20: =IF('TD Siniestros'!F19="","",'TD Siniestros'!F19) -> 19.39513052 | H20: =IF('TD Siniestros'!G19="","",'TD Siniestros'!G19) -> 21.32083586 | I20: 0.9132318239
B21: =IF('TD Siniestros'!A20="","",'TD Siniestros'!A20) -> 13 | C21: =IF('TD Siniestros'!B20="","",'TD Siniestros'!B20) -> Atlas | D21: =IF('TD Siniestros'!C20="","",'TD Siniestros'!C20) -> 7799893.442 | E21: =IF('TD Siniestros'!D20="","",'TD Siniestros'!D20) -> 12.97085572 | F21: =IF('TD Siniestros'!E20="","",'TD Siniestros'!E20) -> 23400.09523 | G21: =IF('TD Siniestros'!F20="","",'TD Siniestros'!F20) -> 51.66900164 | H21: =IF('TD Siniestros'!G20="","",'TD Siniestros'!G20) -> 51.34140492 | I21: 2.363816975
B22: =IF('TD Siniestros'!A21="","",'TD Siniestros'!A21) -> 14 | C22: =IF('TD Siniestros'!B21="","",'TD Siniestros'!B21) -> Allianz México | D22: =IF('TD Siniestros'!C21="","",'TD Siniestros'!C21) -> 7911204.236 | E22: =IF('TD Siniestros'!D21="","",'TD Siniestros'!D21) -> -11.03254217 | F22: =IF('TD Siniestros'!E21="","",'TD Siniestros'!E21) -> 20739.56244 | G22: =IF('TD Siniestros'!F21="","",'TD Siniestros'!F21) -> 52.63149478 | H22: =IF('TD Siniestros'!G21="","",'TD Siniestros'!G21) -> 62.36303503 | I22: 2.397550557
B23: =IF('TD Siniestros'!A22="","",'TD Siniestros'!A22) -> 15 | C23: =IF('TD Siniestros'!B22="","",'TD Siniestros'!B22) -> Pensiones Banorte | D23: =IF('TD Siniestros'!C22="","",'TD Siniestros'!C22) -> 9832201.48 | E23: =IF('TD Siniestros'!D22="","",'TD Siniestros'!D22) -> 11.94479193 | F23: =IF('TD Siniestros'!E22="","",'TD Siniestros'!E22) -> 0 | G23: =IF('TD Siniestros'!F22="","",'TD Siniestros'!F22) -> 77.11719165 | H23: =IF('TD Siniestros'!G22="","",'TD Siniestros'!G22) -> 58.01016263 | I23: 2.979723368
B24: =IF('TD Siniestros'!A23="","",'TD Siniestros'!A23) -> 15.1 | C24: =IF('TD Siniestros'!B23="","",'TD Siniestros'!B23) -> TOTAL MEDIANAS | D24: =IF('TD Siniestros'!C23="","",'TD Siniestros'!C23) -> 110818931.5 | E24: =IF('TD Siniestros'!D23="","",'TD Siniestros'!D23) -> 2.659245523 | F24: =IF('TD Siniestros'!E23="","",'TD Siniestros'!E23) -> 881392.6922 | G24: =IF('TD Siniestros'!F23="","",'TD Siniestros'!F23) -> 55.16257284 | H24: =IF('TD Siniestros'!G23="","",'TD Siniestros'!G23) -> 63.64792993 | I24: 33.58451926
B25: =IF('TD Siniestros'!A24="","",'TD Siniestros'!A24) -> 16 | C25: =IF('TD Siniestros'!B24="","",'TD Siniestros'!B24) -> Pensiones BBVA Bancomer | D25: =IF('TD Siniestros'!C24="","",'TD Siniestros'!C24) -> 6564723.815 | E25: =IF('TD Siniestros'!D24="","",'TD Siniestros'!D24) -> 15.01999576 | F25: =IF('TD Siniestros'!E24="","",'TD Siniestros'!E24) -> 0 | G25: =IF('TD Siniestros'!F24="","",'TD Siniestros'!F24) -> 65.60200155 | H25: =IF('TD Siniestros'!G24="","",'TD Siniestros'!G24) -> 61.06594014 | I25: 1.989489434
B26: =IF('TD Siniestros'!A25="","",'TD Siniestros'!A25) -> 17 | C26: =IF('TD Siniestros'!B25="","",'TD Siniestros'!B25) -> GMX Seguros | D26: =IF('TD Siniestros'!C25="","",'TD Siniestros'!C25) -> 2866637.128 | E26: =IF('TD Siniestros'!D25="","",'TD Siniestros'!D25) -> -23.24751875 | F26: =IF('TD Siniestros'!E25="","",'TD Siniestros'!E25) -> 0 | G26: =IF('TD Siniestros'!F25="","",'TD Siniestros'!F25) -> 29.23918466 | H26: =IF('TD Siniestros'!G25="","",'TD Siniestros'!G25) -> 35.17171126 | I26: 0.8687561637
B27: =IF('TD Siniestros'!A26="","",'TD Siniestros'!A26) -> 18 | C27: =IF('TD Siniestros'!B26="","",'TD Siniestros'!B26) -> HDI Seguros | D27: =IF('TD Siniestros'!C26="","",'TD Siniestros'!C26) -> 5116539.382 | E27: =IF('TD Siniestros'!D26="","",'TD Siniestros'!D26) -> 19.60671854 | F27: =IF('TD Siniestros'!E26="","",'TD Siniestros'!E26) -> 0 | G27: =IF('TD Siniestros'!F26="","",'TD Siniestros'!F26) -> 58.99591905 | H27: =IF('TD Siniestros'!G26="","",'TD Siniestros'!G26) -> 61.66484554 | I27: 1.550606138
B28: =IF('TD Siniestros'!A27="","",'TD Siniestros'!A27) -> 19 | C28: =IF('TD Siniestros'!B27="","",'TD Siniestros'!B27) -> Zurich Aseguradora Mexicana | D28: =IF('TD Siniestros'!C27="","",'TD Siniestros'!C27) -> 3361605.828 | E28: =IF('TD Siniestros'!D27="","",'TD Siniestros'!D27) -> 18.93444939 | F28: =IF('TD Siniestros'!E27="","",'TD Siniestros'!E27) -> 12368.66383 | G28: =IF('TD Siniestros'!F27="","",'TD Siniestros'!F27) -> 39.39129987 | H28: =IF('TD Siniestros'!G27="","",'TD Siniestros'!G27) -> 102.3563497 | I28: 1.018760189
B29: =IF('TD Siniestros'!A28="","",'TD Siniestros'!A28) -> 20 | C29: =IF('TD Siniestros'!B28="","",'TD Siniestros'!B28) -> Agroasemex | D29: =IF('TD Siniestros'!C28="","",'TD Siniestros'!C28) -> 2580444.365 | E29: =IF('TD Siniestros'!D28="","",'TD Siniestros'!D28) -> 217.689647 | F29: =IF('TD Siniestros'!E28="","",'TD Siniestros'!E28) -> -1704.4324 | G29: =IF('TD Siniestros'!F28="","",'TD Siniestros'!F28) -> 30.3114736 | H29: =IF('TD Siniestros'!G28="","",'TD Siniestros'!G28) -> 11.81539287 | I29: 0.7820232721
B30: =IF('TD Siniestros'!A29="","",'TD Siniestros'!A29) -> 21 | C30: =IF('TD Siniestros'!B29="","",'TD Siniestros'!B29) -> ProFuturo G.N.P. | D30: =IF('TD Siniestros'!C29="","",'TD Siniestros'!C29) -> 4219744.461 | E30: =IF('TD Siniestros'!D29="","",'TD Siniestros'!D29) -> 17.9625446 | F30: =IF('TD Siniestros'!E29="","",'TD Siniestros'!E29) -> 0 | G30: =IF('TD Siniestros'!F29="","",'TD Siniestros'!F29) -> 65.95749063 | H30: =IF('TD Siniestros'!G29="","",'TD Siniestros'!G29) -> 45.99682437 | I30: 1.278825622
B31: =IF('TD Siniestros'!A30="","",'TD Siniestros'!A30) -> 22 | C31: =IF('TD Siniestros'!B30="","",'TD Siniestros'!B30) -> AIG Seguros | D31: =IF('TD Siniestros'!C30="","",'TD Siniestros'!C30) -> 825718.0328 | E31: =IF('TD Siniestros'!D30="","",'TD Siniestros'!D30) -> -10.09430967 | F31: =IF('TD Siniestros'!E30="","",'TD Siniestros'!E30) -> 5150.30019 | G31: =IF('TD Siniestros'!F30="","",'TD Siniestros'!F30) -> 13.09695271 | H31: =IF('TD Siniestros'!G30="","",'TD Siniestros'!G30) -> 17.91643439 | I31: 0.250240124
B32: =IF('TD Siniestros'!A31="","",'TD Siniestros'!A31) -> 23 | C32: =IF('TD Siniestros'!B31="","",'TD Siniestros'!B31) -> HSBC Seguros | D32: =IF('TD Siniestros'!C31="","",'TD Siniestros'!C31) -> 2198253.286 | E32: =IF('TD Siniestros'!D31="","",'TD Siniestros'!D31) -> 3.96701008 | F32: =IF('TD Siniestros'!E31="","",'TD Siniestros'!E31) -> 0 | G32: =IF('TD Siniestros'!F31="","",'TD Siniestros'!F31) -> 35.91649528 | H32: =IF('TD Siniestros'!G31="","",'TD Siniestros'!G31) -> 45.6593938 | I32: 0.6661973617
B33: =IF('TD Siniestros'!A32="","",'TD Siniestros'!A32) -> 24 | C33: =IF('TD Siniestros'!B32="","",'TD Siniestros'!B32) -> Afirme | D33: =IF('TD Siniestros'!C32="","",'TD Siniestros'!C32) -> 3485614.467 | E33: =IF('TD Siniestros'!D32="","",'TD Siniestros'!D32) -> -24.10925341 | F33: =IF('TD Siniestros'!E32="","",'TD Siniestros'!E32) -> 3918.72589 | G33: =IF('TD Siniestros'!F32="","",'TD Siniestros'!F32) -> 61.23115017 | H33: =IF('TD Siniestros'!G32="","",'TD Siniestros'!G32) -> 81.90824322 | I33: 1.056341949
B34: =IF('TD Siniestros'!A33="","",'TD Siniestros'!A33) -> 25 | C34: =IF('TD Siniestros'!B33="","",'TD Siniestros'!B33) -> Seguros SURA | D34: =IF('TD Siniestros'!C33="","",'TD Siniestros'!C33) -> 1827817.331 | E34: =IF('TD Siniestros'!D33="","",'TD Siniestros'!D33) -> 0 | F34: =IF('TD Siniestros'!E33="","",'TD Siniestros'!E33) -> 15648.3316 | G34: =IF('TD Siniestros'!F33="","",'TD Siniestros'!F33) -> 42.44038323 | H34: =IF('TD Siniestros'!G33="","",'TD Siniestros'!G33) -> 0 | I34: 0.5539339306
B35: =IF('TD Siniestros'!A34="","",'TD Siniestros'!A34) -> 26 | C35: =IF('TD Siniestros'!B34="","",'TD Siniestros'!B34) -> Seguros Azteca | D35: =IF('TD Siniestros'!C34="","",'TD Siniestros'!C34) -> 1626123.391 | E35: =IF('TD Siniestros'!D34="","",'TD Siniestros'!D34) -> -28.22817771 | F35: =IF('TD Siniestros'!E34="","",'TD Siniestros'!E34) -> 0 | G35: =IF('TD Siniestros'!F34="","",'TD Siniestros'!F34) -> 45.93263959 | H35: =IF('TD Siniestros'!G34="","",'TD Siniestros'!G34) -> 71.76210942 | I35: 0.4928090496
B36: =IF('TD Siniestros'!A35="","",'TD Siniestros'!A35) -> 27 | C36: =IF('TD Siniestros'!B35="","",'TD Siniestros'!B35) -> Hir Seguros | D36: =IF('TD Siniestros'!C35="","",'TD Siniestros'!C35) -> 1381357.46 | E36: =IF('TD Siniestros'!D35="","",'TD Siniestros'!D35) -> 21.92251319 | F36: =IF('TD Siniestros'!E35="","",'TD Siniestros'!E35) -> 270345.7653 | G36: =IF('TD Siniestros'!F35="","",'TD Siniestros'!F35) -> 42.41490197 | H36: =IF('TD Siniestros'!G35="","",'TD Siniestros'!G35) -> 42.34545046 | I36: 0.4186308744
B37: =IF('TD Siniestros'!A36="","",'TD Siniestros'!A36) -> 28 | C37: =IF('TD Siniestros'!B36="","",'TD Siniestros'!B36) -> BUPA México | D37: =IF('TD Siniestros'!C36="","",'TD Siniestros'!C36) -> 2168246.161 | E37: =IF('TD Siniestros'!D36="","",'TD Siniestros'!D36) -> 6.236680655 | F37: =IF('TD Siniestros'!E36="","",'TD Siniestros'!E36) -> 0 | G37: =IF('TD Siniestros'!F36="","",'TD Siniestros'!F36) -> 69.97606951 | H37: =IF('TD Siniestros'!G36="","",'TD Siniestros'!G36) -> 72.53746789 | I37: 0.6571034745
B38: =IF('TD Siniestros'!A37="","",'TD Siniestros'!A37) -> 29 | C38: =IF('TD Siniestros'!B37="","",'TD Siniestros'!B37) -> Ve Por Más | D38: =IF('TD Siniestros'!C37="","",'TD Siniestros'!C37) -> 1740872.777 | E38: =IF('TD Siniestros'!D37="","",'TD Siniestros'!D37) -> 13.74883845 | F38: =IF('TD Siniestros'!E37="","",'TD Siniestros'!E37) -> 12395.94402 | G38: =IF('TD Siniestros'!F37="","",'TD Siniestros'!F37) -> 59.38639395 | H38: =IF('TD Siniestros'!G37="","",'TD Siniestros'!G37) -> 63.38888505 | I38: 0.527584723
B39: =IF('TD Siniestros'!A38="","",'TD Siniestros'!A38) -> 30 | C39: =IF('TD Siniestros'!B38="","",'TD Siniestros'!B38) -> FM Global | D39: =IF('TD Siniestros'!C38="","",'TD Siniestros'!C38) -> 396493.0612 | E39: =IF('TD Siniestros'!D38="","",'TD Siniestros'!D38) -> 57.09285463 | F39: =IF('TD Siniestros'!E38="","",'TD Siniestros'!E38) -> 0 | G39: =IF('TD Siniestros'!F38="","",'TD Siniestros'!F38) -> 13.90260137 | H39: =IF('TD Siniestros'!G38="","",'TD Siniestros'!G38) -> 9.277267372 | I39: 0.1201602349
B40: =IF('TD Siniestros'!A39="","",'TD Siniestros'!A39) -> 31 | C40: =IF('TD Siniestros'!B39="","",'TD Siniestros'!B39) -> Seguros Argos | D40: =IF('TD Siniestros'!C39="","",'TD Siniestros'!C39) -> 1886421.353 | E40: =IF('TD Siniestros'!D39="","",'TD Siniestros'!D39) -> -3.70774938 | F40: =IF('TD Siniestros'!E39="","",'TD Siniestros'!E39) -> -841.98502 | G40: =IF('TD Siniestros'!F39="","",'TD Siniestros'!F39) -> 66.79765091 | H40: =IF('TD Siniestros'!G39="","",'TD Siniestros'!G39) -> 80.26267375 | I40: 0.5716943251
B41: =IF('TD Siniestros'!A40="","",'TD Siniestros'!A40) -> 32 | C41: =IF('TD Siniestros'!B40="","",'TD Siniestros'!B40) -> ANA | D41: =IF('TD Siniestros'!C40="","",'TD Siniestros'!C40) -> 1753553.625 | E41: =IF('TD Siniestros'!D40="","",'TD Siniestros'!D40) -> 18.99478288 | F41: =IF('TD Siniestros'!E40="","",'TD Siniestros'!E40) -> 22014.20797 | G41: =IF('TD Siniestros'!F40="","",'TD Siniestros'!F40) -> 73.28945574 | H41: =IF('TD Siniestros'!G40="","",'TD Siniestros'!G40) -> 66.42616565 | I41: 0.5314277504
B42: =IF('TD Siniestros'!A41="","",'TD Siniestros'!A41) -> 33 | C42: =IF('TD Siniestros'!B41="","",'TD Siniestros'!B41) -> Plan Seguro | D42: =IF('TD Siniestros'!C41="","",'TD Siniestros'!C41) -> 1258580.958 | E42: =IF('TD Siniestros'!D41="","",'TD Siniestros'!D41) -> -9.346691893 | F42: =IF('TD Siniestros'!E41="","",'TD Siniestros'!E41) -> 0 | G42: =IF('TD Siniestros'!F41="","",'TD Siniestros'!F41) -> 62.56064779 | H42: =IF('TD Siniestros'!G41="","",'TD Siniestros'!G41) -> 60.4354031 | I42: 0.3814225225
B43: =IF('TD Siniestros'!A42="","",'TD Siniestros'!A42) -> 34 | C43: =IF('TD Siniestros'!B42="","",'TD Siniestros'!B42) -> General de Seguros | D43: =IF('TD Siniestros'!C42="","",'TD Siniestros'!C42) -> 1310649.923 | E43: =IF('TD Siniestros'!D42="","",'TD Siniestros'!D42) -> -14.68793498 | F43: =IF('TD Siniestros'!E42="","",'TD Siniestros'!E42) -> -10340.45652 | G43: =IF('TD Siniestros'!F42="","",'TD Siniestros'!F42) -> 66.46940856 | H43: =IF('TD Siniestros'!G42="","",'TD Siniestros'!G42) -> 79.71075659 | I43: 0.3972024182
B44: =IF('TD Siniestros'!A43="","",'TD Siniestros'!A43) -> 35 | C44: =IF('TD Siniestros'!B43="","",'TD Siniestros'!B43) -> Cardif Vida | D44: =IF('TD Siniestros'!C43="","",'TD Siniestros'!C43) -> 564636.7317 | E44: =IF('TD Siniestros'!D43="","",'TD Siniestros'!D43) -> -17.9845806 | F44: =IF('TD Siniestros'!E43="","",'TD Siniestros'!E43) -> -28392.7131 | G44: =IF('TD Siniestros'!F43="","",'TD Siniestros'!F43) -> 31.43498149 | H44: =IF('TD Siniestros'!G43="","",'TD Siniestros'!G43) -> 29.96435247 | I44: 0.1711174519
B45: =IF('TD Siniestros'!A44="","",'TD Siniestros'!A44) -> 36 | C45: =IF('TD Siniestros'!B44="","",'TD Siniestros'!B44) -> Seguros Azteca Daños | D45: =IF('TD Siniestros'!C44="","",'TD Siniestros'!C44) -> 683175.5898 | E45: =IF('TD Siniestros'!D44="","",'TD Siniestros'!D44) -> 32.88294104 | F45: =IF('TD Siniestros'!E44="","",'TD Siniestros'!E44) -> 0.00183 | G45: =IF('TD Siniestros'!F44="","",'TD Siniestros'!F44) -> 41.12556209 | H45: =IF('TD Siniestros'!G44="","",'TD Siniestros'!G44) -> 21.8455311 | I45: 0.2070415536
B46: =IF('TD Siniestros'!A45="","",'TD Siniestros'!A45) -> 37 | C46: =IF('TD Siniestros'!B45="","",'TD Siniestros'!B45) -> Cardif Seguros Generales | D46: =IF('TD Siniestros'!C45="","",'TD Siniestros'!C45) -> 127678.0244 | E46: =IF('TD Siniestros'!D45="","",'TD Siniestros'!D45) -> -5.313731277 | F46: =IF('TD Siniestros'!E45="","",'TD Siniestros'!E45) -> 0 | G46: =IF('TD Siniestros'!F45="","",'TD Siniestros'!F45) -> 7.709010653 | H46: =IF('TD Siniestros'!G45="","",'TD Siniestros'!G45) -> 9.382921862 | I46: 0.03869379545
B47: =IF('TD Siniestros'!A46="","",'TD Siniestros'!A46) -> 38 | C47: =IF('TD Siniestros'!B46="","",'TD Siniestros'!B46) -> El Potosí | D47: =IF('TD Siniestros'!C46="","",'TD Siniestros'!C46) -> 745106.8141 | E47: =IF('TD Siniestros'!D46="","",'TD Siniestros'!D46) -> -22.2152228 | F47: =IF('TD Siniestros'!E46="","",'TD Siniestros'!E46) -> 912.05034 | G47: =IF('TD Siniestros'!F46="","",'TD Siniestros'!F46) -> 46.19766449 | H47: =IF('TD Siniestros'!G46="","",'TD Siniestros'!G46) -> 61.9963258 | I47: 0.2258102817
B48: =IF('TD Siniestros'!A47="","",'TD Siniestros'!A47) -> 39 | C48: =IF('TD Siniestros'!B47="","",'TD Siniestros'!B47) -> HDI Global Seguros | D48: =IF('TD Siniestros'!C47="","",'TD Siniestros'!C47) -> 433804.2159 | E48: =IF('TD Siniestros'!D47="","",'TD Siniestros'!D47) -> 111.2340675 | F48: =IF('TD Siniestros'!E47="","",'TD Siniestros'!E47) -> 0 | G48: =IF('TD Siniestros'!F47="","",'TD Siniestros'!F47) -> 27.64119547 | H48: =IF('TD Siniestros'!G47="","",'TD Siniestros'!G47) -> 22.39341293 | I48: 0.1314676639
B49: =IF('TD Siniestros'!A48="","",'TD Siniestros'!A48) -> 40 | C49: =IF('TD Siniestros'!B48="","",'TD Siniestros'!B48) -> BBVA Bancomer Salud | D49: =IF('TD Siniestros'!C48="","",'TD Siniestros'!C48) -> 680258.9154 | E49: =IF('TD Siniestros'!D48="","",'TD Siniestros'!D48) -> 31.39584997 | F49: =IF('TD Siniestros'!E48="","",'TD Siniestros'!E48) -> 0 | G49: =IF('TD Siniestros'!F48="","",'TD Siniestros'!F48) -> 44.05367616 | H49: =IF('TD Siniestros'!G48="","",'TD Siniestros'!G48) -> 49.85916287 | I49: 0.2061576332
B50: =IF('TD Siniestros'!A49="","",'TD Siniestros'!A49) -> 41 | C50: =IF('TD Siniestros'!B49="","",'TD Siniestros'!B49) -> Prudential | D50: =IF('TD Siniestros'!C49="","",'TD Siniestros'!C49) -> 207228.612 | E50: =IF('TD Siniestros'!D49="","",'TD Siniestros'!D49) -> 62.71790055 | F50: =IF('TD Siniestros'!E49="","",'TD Siniestros'!E49) -> 0 | G50: =IF('TD Siniestros'!F49="","",'TD Siniestros'!F49) -> 15.33361826 | H50: =IF('TD Siniestros'!G49="","",'TD Siniestros'!G49) -> 11.25628318 | I50: 0.06280220548
B51: =IF('TD Siniestros'!A50="","",'TD Siniestros'!A50) -> 42 | C51: =IF('TD Siniestros'!B50="","",'TD Siniestros'!B50) -> Insignia Life | D51: =IF('TD Siniestros'!C50="","",'TD Siniestros'!C50) -> 589783.5249 | E51: =IF('TD Siniestros'!D50="","",'TD Siniestros'!D50) -> 4.675360476 | F51: =IF('TD Siniestros'!E50="","",'TD Siniestros'!E50) -> 16887.89866 | G51: =IF('TD Siniestros'!F50="","",'TD Siniestros'!F50) -> 47.59690132 | H51: =IF('TD Siniestros'!G50="","",'TD Siniestros'!G50) -> 50.55037567 | I51: 0.1787383787
B52: =IF('TD Siniestros'!A51="","",'TD Siniestros'!A51) -> 43 | C52: =IF('TD Siniestros'!B51="","",'TD Siniestros'!B51) -> El Águila | D52: =IF('TD Siniestros'!C51="","",'TD Siniestros'!C51) -> 647739.0533 | E52: =IF('TD Siniestros'!D51="","",'TD Siniestros'!D51) -> 51.12166232 | F52: =IF('TD Siniestros'!E51="","",'TD Siniestros'!E51) -> 0 | G52: =IF('TD Siniestros'!F51="","",'TD Siniestros'!F51) -> 53.41379918 | H52: =IF('TD Siniestros'!G51="","",'TD Siniestros'!G51) -> 43.7551245 | I52: 0.1963022419
B53: =IF('TD Siniestros'!A52="","",'TD Siniestros'!A52) -> 44 | C53: =IF('TD Siniestros'!B52="","",'TD Siniestros'!B52) -> Primero Seguros | D53: =IF('TD Siniestros'!C52="","",'TD Siniestros'!C52) -> 458116.5386 | E53: =IF('TD Siniestros'!D52="","",'TD Siniestros'!D52) -> 16.33856367 | F53: =IF('TD Siniestros'!E52="","",'TD Siniestros'!E52) -> 0 | G53: =IF('TD Siniestros'!F52="","",'TD Siniestros'!F52) -> 44.03825221 | H53: =IF('TD Siniestros'!G52="","",'TD Siniestros'!G52) -> 56.13227836 | I53: 0.138835698
B54: =IF('TD Siniestros'!A53="","",'TD Siniestros'!A53) -> 45 | C54: =IF('TD Siniestros'!B53="","",'TD Siniestros'!B53) -> La Latinoamericana | D54: =IF('TD Siniestros'!C53="","",'TD Siniestros'!C53) -> 636604.3344 | E54: =IF('TD Siniestros'!D53="","",'TD Siniestros'!D53) -> 0.7716394314 | F54: =IF('TD Siniestros'!E53="","",'TD Siniestros'!E53) -> 2465.41248 | G54: =IF('TD Siniestros'!F53="","",'TD Siniestros'!F53) -> 66.45944679 | H54: =IF('TD Siniestros'!G53="","",'TD Siniestros'!G53) -> 65.90566403 | I54: 0.1929277807
B55: =IF('TD Siniestros'!A54="","",'TD Siniestros'!A54) -> 46 | C55: =IF('TD Siniestros'!B54="","",'TD Siniestros'!B54) -> General de Salud | D55: =IF('TD Siniestros'!C54="","",'TD Siniestros'!C54) -> 619673.0267 | E55: =IF('TD Siniestros'!D54="","",'TD Siniestros'!D54) -> 42.23567491 | F55: =IF('TD Siniestros'!E54="","",'TD Siniestros'!E54) -> 0 | G55: =IF('TD Siniestros'!F54="","",'TD Siniestros'!F54) -> 65.97813109 | H55: =IF('TD Siniestros'!G54="","",'TD Siniestros'!G54) -> 52.1243621 | I55: 0.1877966193
B56: =IF('TD Siniestros'!A55="","",'TD Siniestros'!A55) -> 47 | C56: =IF('TD Siniestros'!B55="","",'TD Siniestros'!B55) -> Pan-American México | D56: =IF('TD Siniestros'!C55="","",'TD Siniestros'!C55) -> 434309.9573 | E56: =IF('TD Siniestros'!D55="","",'TD Siniestros'!D55) -> 5.135709062 | F56: =IF('TD Siniestros'!E55="","",'TD Siniestros'!E55) -> 41178.09444 | G56: =IF('TD Siniestros'!F55="","",'TD Siniestros'!F55) -> 54.32274916 | H56: =IF('TD Siniestros'!G55="","",'TD Siniestros'!G55) -> 60.33732709 | I56: 0.1316209326
B57: =IF('TD Siniestros'!A56="","",'TD Siniestros'!A56) -> 48 | C57: =IF('TD Siniestros'!B56="","",'TD Siniestros'!B56) -> Tokio Marine | D57: =IF('TD Siniestros'!C56="","",'TD Siniestros'!C56) -> 287009.7817 | E57: =IF('TD Siniestros'!D56="","",'TD Siniestros'!D56) -> -32.98572148 | F57: =IF('TD Siniestros'!E56="","",'TD Siniestros'!E56) -> 1072.08484 | G57: =IF('TD Siniestros'!F56="","",'TD Siniestros'!F56) -> 36.4279376 | H57: =IF('TD Siniestros'!G56="","",'TD Siniestros'!G56) -> 38.63954162 | I57: 0.08698049517
B58: =IF('TD Siniestros'!A57="","",'TD Siniestros'!A57) -> 49 | C58: =IF('TD Siniestros'!B57="","",'TD Siniestros'!B57) -> Swiss Re Corporate Solutions | D58: =IF('TD Siniestros'!C57="","",'TD Siniestros'!C57) -> 76226.916 | E58: =IF('TD Siniestros'!D57="","",'TD Siniestros'!D57) -> 52.23584242 | F58: =IF('TD Siniestros'!E57="","",'TD Siniestros'!E57) -> 765.66129 | G58: =IF('TD Siniestros'!F57="","",'TD Siniestros'!F57) -> 11.63904084 | H58: =IF('TD Siniestros'!G57="","",'TD Siniestros'!G57) -> 11.36607223 | I58: 0.0231011461
B59: =IF('TD Siniestros'!A58="","",'TD Siniestros'!A58) -> 50 | C59: =IF('TD Siniestros'!B58="","",'TD Siniestros'!B58) -> Atradius | D59: =IF('TD Siniestros'!C58="","",'TD Siniestros'!C58) -> 218272.8151 | E59: =IF('TD Siniestros'!D58="","",'TD Siniestros'!D58) -> 117.411272 | F59: =IF('TD Siniestros'!E58="","",'TD Siniestros'!E58) -> 12336.25758 | G59: =IF('TD Siniestros'!F58="","",'TD Siniestros'!F58) -> 35.82291668 | H59: =IF('TD Siniestros'!G58="","",'TD Siniestros'!G58) -> 15.24831218 | I59: 0.06614923517
B60: =IF('TD Siniestros'!A59="","",'TD Siniestros'!A59) -> 51 | C60: =IF('TD Siniestros'!B59="","",'TD Siniestros'!B59) -> Assurant Vida | D60: =IF('TD Siniestros'!C59="","",'TD Siniestros'!C59) -> 166640.9272 | E60: =IF('TD Siniestros'!D59="","",'TD Siniestros'!D59) -> -15.61924894 | F60: =IF('TD Siniestros'!E59="","",'TD Siniestros'!E59) -> 488.22853 | G60: =IF('TD Siniestros'!F59="","",'TD Siniestros'!F59) -> 27.86137577 | H60: =IF('TD Siniestros'!G59="","",'TD Siniestros'!G59) -> 20.34629174 | I60: 0.05050179921
B61: =IF('TD Siniestros'!A60="","",'TD Siniestros'!A60) -> 52 | C61: =IF('TD Siniestros'!B60="","",'TD Siniestros'!B60) -> Berkley Seguros | D61: =IF('TD Siniestros'!C60="","",'TD Siniestros'!C60) -> 184059.9079 | E61: =IF('TD Siniestros'!D60="","",'TD Siniestros'!D60) -> -42.95961062 | F61: =IF('TD Siniestros'!E60="","",'TD Siniestros'!E60) -> 3570.21345 | G61: =IF('TD Siniestros'!F60="","",'TD Siniestros'!F60) -> 32.26006253 | H61: =IF('TD Siniestros'!G60="","",'TD Siniestros'!G60) -> 72.44186126 | I61: 0.05578075367
B62: =IF('TD Siniestros'!A61="","",'TD Siniestros'!A61) -> 53 | C62: =IF('TD Siniestros'!B61="","",'TD Siniestros'!B61) -> AXA Salud | D62: =IF('TD Siniestros'!C61="","",'TD Siniestros'!C61) -> 536351.1186 | E62: =IF('TD Siniestros'!D61="","",'TD Siniestros'!D61) -> 51.85615095 | F62: =IF('TD Siniestros'!E61="","",'TD Siniestros'!E61) -> 0 | G62: =IF('TD Siniestros'!F61="","",'TD Siniestros'!F61) -> 94.25595311 | H62: =IF('TD Siniestros'!G61="","",'TD Siniestros'!G61) -> 64.19407596 | I62: 0.1625452819
B63: =IF('TD Siniestros'!A62="","",'TD Siniestros'!A62) -> 54 | C63: =IF('TD Siniestros'!B62="","",'TD Siniestros'!B62) -> Sompo Japan | D63: =IF('TD Siniestros'!C62="","",'TD Siniestros'!C62) -> 104283.0903 | E63: =IF('TD Siniestros'!D62="","",'TD Siniestros'!D62) -> 904.4574843 | F63: =IF('TD Siniestros'!E62="","",'TD Siniestros'!E62) -> 2.56884 | G63: =IF('TD Siniestros'!F62="","",'TD Siniestros'!F62) -> 19.35354831 | H63: =IF('TD Siniestros'!G62="","",'TD Siniestros'!G62) -> 1.681394402 | I63: 0.03160378291
B64: =IF('TD Siniestros'!A63="","",'TD Siniestros'!A63) -> 55 | C64: =IF('TD Siniestros'!B63="","",'TD Siniestros'!B63) -> Patrimonial Vida | D64: =IF('TD Siniestros'!C63="","",'TD Siniestros'!C63) -> 1066316.712 | E64: =IF('TD Siniestros'!D63="","",'TD Siniestros'!D63) -> -13.78835322 | F64: =IF('TD Siniestros'!E63="","",'TD Siniestros'!E63) -> 6383.86239 | G64: =IF('TD Siniestros'!F63="","",'TD Siniestros'!F63) -> 200.5763709 | H64: =IF('TD Siniestros'!G63="","",'TD Siniestros'!G63) -> 53.49325143 | I64: 0.323155382
B65: =IF('TD Siniestros'!A64="","",'TD Siniestros'!A64) -> 56 | C65: =IF('TD Siniestros'!B64="","",'TD Siniestros'!B64) -> Solunion Crédito | D65: =IF('TD Siniestros'!C64="","",'TD Siniestros'!C64) -> 98226.97451 | E65: =IF('TD Siniestros'!D64="","",'TD Siniestros'!D64) -> 17.66635756 | F65: =IF('TD Siniestros'!E64="","",'TD Siniestros'!E64) -> 517.20687 | G65: =IF('TD Siniestros'!F64="","",'TD Siniestros'!F64) -> 20.10160245 | H65: =IF('TD Siniestros'!G64="","",'TD Siniestros'!G64) -> 15.33839585 | I65: 0.029768431
B66: =IF('TD Siniestros'!A65="","",'TD Siniestros'!A65) -> 57 | C66: =IF('TD Siniestros'!B65="","",'TD Siniestros'!B65) -> Patrimonial Inbursa | D66: =IF('TD Siniestros'!C65="","",'TD Siniestros'!C65) -> 29121.33298 | E66: =IF('TD Siniestros'!D65="","",'TD Siniestros'!D65) -> -36.08397375 | F66: =IF('TD Siniestros'!E65="","",'TD Siniestros'!E65) -> 0 | G66: =IF('TD Siniestros'!F65="","",'TD Siniestros'!F65) -> 6.117269846 | H66: =IF('TD Siniestros'!G65="","",'TD Siniestros'!G65) -> 8.824699222 | I66: 0.008825441237
B67: =IF('TD Siniestros'!A66="","",'TD Siniestros'!A66) -> 58 | C67: =IF('TD Siniestros'!B66="","",'TD Siniestros'!B66) -> PREVEM Seguros | D67: =IF('TD Siniestros'!C66="","",'TD Siniestros'!C66) -> 344275.9081 | E67: =IF('TD Siniestros'!D66="","",'TD Siniestros'!D66) -> 31.01961589 | F67: =IF('TD Siniestros'!E66="","",'TD Siniestros'!E66) -> 0 | G67: =IF('TD Siniestros'!F66="","",'TD Siniestros'!F66) -> 77.28394268 | H67: =IF('TD Siniestros'!G66="","",'TD Siniestros'!G66) -> 65.81705708 | I67: 0.1043354299
B68: =IF('TD Siniestros'!A67="","",'TD Siniestros'!A67) -> 59 | C68: =IF('TD Siniestros'!B67="","",'TD Siniestros'!B67) -> Dentegra | D68: =IF('TD Siniestros'!C67="","",'TD Siniestros'!C67) -> 139240.4076 | E68: =IF('TD Siniestros'!D67="","",'TD Siniestros'!D67) -> 0 | F68: =IF('TD Siniestros'!E67="","",'TD Siniestros'!E67) -> 92.98029 | G68: =IF('TD Siniestros'!F67="","",'TD Siniestros'!F67) -> 34.15535392 | H68: =IF('TD Siniestros'!G67="","",'TD Siniestros'!G67) -> 0 | I68: 0.04219786353
B69: =IF('TD Siniestros'!A68="","",'TD Siniestros'!A68) -> 60 | C69: =IF('TD Siniestros'!B68="","",'TD Siniestros'!B68) -> SHF Cred Vivienda | D69: =IF('TD Siniestros'!C68="","",'TD Siniestros'!C68) -> -170063.9653 | E69: =IF('TD Siniestros'!D68="","",'TD Siniestros'!D68) -> -1812.278173 | F69: =IF('TD Siniestros'!E68="","",'TD Siniestros'!E68) -> 0 | G69: =IF('TD Siniestros'!F68="","",'TD Siniestros'!F68) -> -44.31955084 | H69: =IF('TD Siniestros'!G68="","",'TD Siniestros'!G68) -> 3.499379973 | I69: -0.05153917692
B70: =IF('TD Siniestros'!A69="","",'TD Siniestros'!A69) -> 61 | C70: =IF('TD Siniestros'!B69="","",'TD Siniestros'!B69) -> Coface | D70: =IF('TD Siniestros'!C69="","",'TD Siniestros'!C69) -> 45837.32632 | E70: =IF('TD Siniestros'!D69="","",'TD Siniestros'!D69) -> 44.58555127 | F70: =IF('TD Siniestros'!E69="","",'TD Siniestros'!E69) -> 438.96096 | G70: =IF('TD Siniestros'!F69="","",'TD Siniestros'!F69) -> 14.66407778 | H70: =IF('TD Siniestros'!G69="","",'TD Siniestros'!G69) -> 10.20444898 | I70: 0.01389135003
B71: =IF('TD Siniestros'!A70="","",'TD Siniestros'!A70) -> 62 | C71: =IF('TD Siniestros'!B70="","",'TD Siniestros'!B70) -> Skandia Life | D71: =IF('TD Siniestros'!C70="","",'TD Siniestros'!C70) -> 116386.4606 | E71: =IF('TD Siniestros'!D70="","",'TD Siniestros'!D70) -> 123.8734429 | F71: =IF('TD Siniestros'!E70="","",'TD Siniestros'!E70) -> 0 | G71: =IF('TD Siniestros'!F70="","",'TD Siniestros'!F70) -> 41.4578761 | H71: =IF('TD Siniestros'!G70="","",'TD Siniestros'!G70) -> 15.03534094 | I71: 0.03527180124
B72: =IF('TD Siniestros'!A71="","",'TD Siniestros'!A71) -> 63 | C72: =IF('TD Siniestros'!B71="","",'TD Siniestros'!B71) -> Patrimonial Daños | D72: =IF('TD Siniestros'!C71="","",'TD Siniestros'!C71) -> 56710.89757 | E72: =IF('TD Siniestros'!D71="","",'TD Siniestros'!D71) -> 88.04947001 | F72: =IF('TD Siniestros'!E71="","",'TD Siniestros'!E71) -> 0 | G72: =IF('TD Siniestros'!F71="","",'TD Siniestros'!F71) -> 24.52897526 | H72: =IF('TD Siniestros'!G71="","",'TD Siniestros'!G71) -> 16.01831221 | I72: 0.01718666842
B73: =IF('TD Siniestros'!A72="","",'TD Siniestros'!A72) -> 64 | C73: =IF('TD Siniestros'!B72="","",'TD Siniestros'!B72) -> Centauro | D73: =IF('TD Siniestros'!C72="","",'TD Siniestros'!C72) -> 87856.00109 | E73: =IF('TD Siniestros'!D72="","",'TD Siniestros'!D72) -> 29.09820184 | F73: =IF('TD Siniestros'!E72="","",'TD Siniestros'!E72) -> 175.47428 | G73: =IF('TD Siniestros'!F72="","",'TD Siniestros'!F72) -> 40.45411337 | H73: =IF('TD Siniestros'!G72="","",'TD Siniestros'!G72) -> 60.35253585 | I73: =IFERROR(D73/VLOOKUP("TOTAL",$C$8:$D$124,2,0)*100,"") -> 0.0266254287
B74: =IF('TD Siniestros'!A73="","",'TD Siniestros'!A73) -> 65 | C74: =IF('TD Siniestros'!B73="","",'TD Siniestros'!B73) -> MediAccess | D74: =IF('TD Siniestros'!C73="","",'TD Siniestros'!C73) -> 157398.2656 | E74: =IF('TD Siniestros'!D73="","",'TD Siniestros'!D73) -> 60.06245269 | F74: =IF('TD Siniestros'!E73="","",'TD Siniestros'!E73) -> 0 | G74: =IF('TD Siniestros'!F73="","",'TD Siniestros'!F73) -> 75.06816582 | H74: =IF('TD Siniestros'!G73="","",'TD Siniestros'!G73) -> 52.874623 | I74: 0.04770074037
B75: =IF('TD Siniestros'!A74="","",'TD Siniestros'!A74) -> 66 | C75: =IF('TD Siniestros'!B74="","",'TD Siniestros'!B74) -> Assurant Daños | D75: =IF('TD Siniestros'!C74="","",'TD Siniestros'!C74) -> 34063.67107 | E75: =IF('TD Siniestros'!D74="","",'TD Siniestros'!D74) -> -23.22944312 | F75: =IF('TD Siniestros'!E74="","",'TD Siniestros'!E74) -> -740.3987 | G75: =IF('TD Siniestros'!F74="","",'TD Siniestros'!F74) -> 17.17034074 | H75: =IF('TD Siniestros'!G74="","",'TD Siniestros'!G74) -> 26.54300152 | I75: 0.01032325435
B76: =IF('TD Siniestros'!A75="","",'TD Siniestros'!A75) -> 67 | C76: =IF('TD Siniestros'!B75="","",'TD Siniestros'!B75) -> Odontoprev | D76: =IF('TD Siniestros'!C75="","",'TD Siniestros'!C75) -> 20635.93421 | E76: =IF('TD Siniestros'!D75="","",'TD Siniestros'!D75) -> 29.02380962 | F76: =IF('TD Siniestros'!E75="","",'TD Siniestros'!E75) -> 0 | G76: =IF('TD Siniestros'!F75="","",'TD Siniestros'!F75) -> 19.36087813 | H76: =IF('TD Siniestros'!G75="","",'TD Siniestros'!G75) -> 23.30722339 | I76: 0.006253876664
B77: =IF('TD Siniestros'!A76="","",'TD Siniestros'!A76) -> 68 | C77: =IF('TD Siniestros'!B76="","",'TD Siniestros'!B76) -> Virginia Surety | D77: =IF('TD Siniestros'!C76="","",'TD Siniestros'!C76) -> 31675.19506 | E77: =IF('TD Siniestros'!D76="","",'TD Siniestros'!D76) -> 60.72506193 | F77: =IF('TD Siniestros'!E76="","",'TD Siniestros'!E76) -> 0 | G77: =IF('TD Siniestros'!F76="","",'TD Siniestros'!F76) -> 33.69806397 | H77: =IF('TD Siniestros'!G76="","",'TD Siniestros'!G76) -> 25.4785937 | I77: 0.009599408546
B78: =IF('TD Siniestros'!A77="","",'TD Siniestros'!A77) -> 69 | C78: =IF('TD Siniestros'!B77="","",'TD Siniestros'!B77) -> Genworth Seg. de Crédito | D78: =IF('TD Siniestros'!C77="","",'TD Siniestros'!C77) -> 17318.47091 | E78: =IF('TD Siniestros'!D77="","",'TD Siniestros'!D77) -> 158.1734474 | F78: =IF('TD Siniestros'!E77="","",'TD Siniestros'!E77) -> 0 | G78: =IF('TD Siniestros'!F77="","",'TD Siniestros'!F77) -> 20.53735455 | H78: =IF('TD Siniestros'!G77="","",'TD Siniestros'!G77) -> 13.4832936 | I78: 0.005248494203
B79: =IF('TD Siniestros'!A78="","",'TD Siniestros'!A78) -> 70 | C79: =IF('TD Siniestros'!B78="","",'TD Siniestros'!B78) -> Crabi | D79: =IF('TD Siniestros'!C78="","",'TD Siniestros'!C78) -> 41685.98071 | E79: =IF('TD Siniestros'!D78="","",'TD Siniestros'!D78) -> 64.2198332 | F79: =IF('TD Siniestros'!E78="","",'TD Siniestros'!E78) -> 0 | G79: =IF('TD Siniestros'!F78="","",'TD Siniestros'!F78) -> 68.67035328 | H79: =IF('TD Siniestros'!G78="","",'TD Siniestros'!G78) -> 126.2487744 | I79: 0.0126332532
B80: =IF('TD Siniestros'!A79="","",'TD Siniestros'!A79) -> 71 | C80: =IF('TD Siniestros'!B79="","",'TD Siniestros'!B79) -> SPP Seguros | D80: =IF('TD Siniestros'!C79="","",'TD Siniestros'!C79) -> 1158.59548 | E80: =IF('TD Siniestros'!D79="","",'TD Siniestros'!D79) -> 0 | F80: =IF('TD Siniestros'!E79="","",'TD Siniestros'!E79) -> 0 | G80: =IF('TD Siniestros'!F79="","",'TD Siniestros'!F79) -> 2.136426177 | H80: =IF('TD Siniestros'!G79="","",'TD Siniestros'!G79) -> 0 | I80: 0.0003511211638
B81: =IF('TD Siniestros'!A80="","",'TD Siniestros'!A80) -> 72 | C81: =IF('TD Siniestros'!B80="","",'TD Siniestros'!B80) -> Metlife Pensiones | D81: =IF('TD Siniestros'!C80="","",'TD Siniestros'!C80) -> 279636.7298 | E81: =IF('TD Siniestros'!D80="","",'TD Siniestros'!D80) -> 5.589976936 | F81: =IF('TD Siniestros'!E80="","",'TD Siniestros'!E80) -> 0 | G81: =IF('TD Siniestros'!F80="","",'TD Siniestros'!F80) -> 754.9388955 | H81: =IF('TD Siniestros'!G80="","",'TD Siniestros'!G80) -> 1481.709714 | I81: 0.08474603578
B82: =IF('TD Siniestros'!A81="","",'TD Siniestros'!A81) -> 73 | C82: =IF('TD Siniestros'!B81="","",'TD Siniestros'!B81) -> Metlife Más | D82: =IF('TD Siniestros'!C81="","",'TD Siniestros'!C81) -> 2177.79826 | E82: =IF('TD Siniestros'!D81="","",'TD Siniestros'!D81) -> -22.14075457 | F82: =IF('TD Siniestros'!E81="","",'TD Siniestros'!E81) -> 0 | G82: =IF('TD Siniestros'!F81="","",'TD Siniestros'!F81) -> 6.239062691 | H82: =IF('TD Siniestros'!G81="","",'TD Siniestros'!G81) -> 10.13775285 | I82: 0.0006599983106
B83: =IF('TD Siniestros'!A82="","",'TD Siniestros'!A82) -> 74 | C83: =IF('TD Siniestros'!B82="","",'TD Siniestros'!B82) -> SPT | D83: =IF('TD Siniestros'!C82="","",'TD Siniestros'!C82) -> 19594.39173 | E83: =IF('TD Siniestros'!D82="","",'TD Siniestros'!D82) -> 53.21696087 | F83: =IF('TD Siniestros'!E82="","",'TD Siniestros'!E82) -> 0 | G83: =IF('TD Siniestros'!F82="","",'TD Siniestros'!F82) -> 60.60491374 | H83: =IF('TD Siniestros'!G82="","",'TD Siniestros'!G82) -> 58.66065641 | I83: 0.005938229301
B84: =IF('TD Siniestros'!A83="","",'TD Siniestros'!A83) -> 75 | C84: =IF('TD Siniestros'!B83="","",'TD Siniestros'!B83) -> Quálitas Salud | D84: =IF('TD Siniestros'!C83="","",'TD Siniestros'!C83) -> 11814.66581 | E84: =IF('TD Siniestros'!D83="","",'TD Siniestros'!D83) -> 1024.155717 | F84: =IF('TD Siniestros'!E83="","",'TD Siniestros'!E83) -> 0 | G84: =IF('TD Siniestros'!F83="","",'TD Siniestros'!F83) -> 91.9282954 | H84: =IF('TD Siniestros'!G83="","",'TD Siniestros'!G83) -> 6.68371532 | I84: 0.003580524247
B85: =IF('TD Siniestros'!A84="","",'TD Siniestros'!A84) -> 76 | C85: =IF('TD Siniestros'!B84="","",'TD Siniestros'!B84) -> Citibanamex Pensiones | D85: =IF('TD Siniestros'!C84="","",'TD Siniestros'!C84) -> 596238.7648 | E85: =IF('TD Siniestros'!D84="","",'TD Siniestros'!D84) -> 4.808468508 | F85: =IF('TD Siniestros'!E84="","",'TD Siniestros'!E84) -> 0 | G85: =IF('TD Siniestros'!F84="","",'TD Siniestros'!F84) -> 9605.794926 | H85: =IF('TD Siniestros'!G84="","",'TD Siniestros'!G84) -> 3500.519244 | I85: 0.1806946882
B86: =IF('TD Siniestros'!A85="","",'TD Siniestros'!A85) -> 77 | C86: =IF('TD Siniestros'!B85="","",'TD Siniestros'!B85) -> Pensiones Inbursa | D86: =IF('TD Siniestros'!C85="","",'TD Siniestros'!C85) -> 20801.92086 | E86: =IF('TD Siniestros'!D85="","",'TD Siniestros'!D85) -> 13.9669465 | F86: =IF('TD Siniestros'!E85="","",'TD Siniestros'!E85) -> 0 | G86: =IF('TD Siniestros'!F85="","",'TD Siniestros'!F85) -> 4138.031107 | H86: =IF('TD Siniestros'!G85="","",'TD Siniestros'!G85) -> 1538.771076 | I86: 0.006304180179
B87: =IF('TD Siniestros'!A86="","",'TD Siniestros'!A86) -> 78 | C87: =IF('TD Siniestros'!B86="","",'TD Siniestros'!B86) -> Momento Seguros | D87: =IF('TD Siniestros'!C86="","",'TD Siniestros'!C86) -> 97.46623 | E87: =IF('TD Siniestros'!D86="","",'TD Siniestros'!D86) -> 0 | F87: =IF('TD Siniestros'!E86="","",'TD Siniestros'!E86) -> 0 | G87: =IF('TD Siniestros'!F86="","",'TD Siniestros'!F86) -> 20.78649704 | H87: =IF('TD Siniestros'!G86="","",'TD Siniestros'!G86) -> 0 | I87: 2.953788159e-05
B88: =IF('TD Siniestros'!A87="","",'TD Siniestros'!A87) -> 79 | C88: =IF('TD Siniestros'!B87="","",'TD Siniestros'!B87) -> Aserta Seguros de Vida | D88: =IF('TD Siniestros'!C87="","",'TD Siniestros'!C87) -> -1689.60261 | E88: =IF('TD Siniestros'!D87="","",'TD Siniestros'!D87) -> -106.7798118 | F88: =IF('TD Siniestros'!E87="","",'TD Siniestros'!E87) -> -296.49778 | G88: =IF('TD Siniestros'!F87="","",'TD Siniestros'!F87) -> 0 | H88: =IF('TD Siniestros'!G87="","",'TD Siniestros'!G87) -> 4179.661737 | I88: -0.0005120469093
B89: =IF('TD Siniestros'!A88="","",'TD Siniestros'!A88) -> 79 | C89: =IF('TD Siniestros'!B88="","",'TD Siniestros'!B88) -> Zurich Daños | D89: =IF('TD Siniestros'!C88="","",'TD Siniestros'!C88) -> 0 | E89: =IF('TD Siniestros'!D88="","",'TD Siniestros'!D88) -> 0 | F89: =IF('TD Siniestros'!E88="","",'TD Siniestros'!E88) -> 0 | G89: =IF('TD Siniestros'!F88="","",'TD Siniestros'!F88) -> 0 | H89: =IF('TD Siniestros'!G88="","",'TD Siniestros'!G88) -> 0 | I89: 0
B90: =IF('TD Siniestros'!A89="","",'TD Siniestros'!A89) -> 79 | C90: =IF('TD Siniestros'!B89="","",'TD Siniestros'!B89) -> Zurich Vida | D90: =IF('TD Siniestros'!C89="","",'TD Siniestros'!C89) -> 0 | E90: =IF('TD Siniestros'!D89="","",'TD Siniestros'!D89) -> 0 | F90: =IF('TD Siniestros'!E89="","",'TD Siniestros'!E89) -> 0 | G90: =IF('TD Siniestros'!F89="","",'TD Siniestros'!F89) -> 0 | H90: =IF('TD Siniestros'!G89="","",'TD Siniestros'!G89) -> 0 | I90: 0
B91: =IF('TD Siniestros'!A90="","",'TD Siniestros'!A90) -> 150.1 | C91: =IF('TD Siniestros'!B90="","",'TD Siniestros'!B90) -> TOTAL RESTO | D91: =IF('TD Siniestros'!C90="","",'TD Siniestros'!C90) -> 58016873 | E91: =IF('TD Siniestros'!D90="","",'TD Siniestros'!D90) -> 10.42266813 | F91: =IF('TD Siniestros'!E90="","",'TD Siniestros'!E90) -> 386812.4124 | G91: =IF('TD Siniestros'!F90="","",'TD Siniestros'!F90) -> 46.17414788 | H91: =IF('TD Siniestros'!G90="","",'TD Siniestros'!G90) -> 44.0430472 | I91: 17.5824542
B92: =IF('TD Siniestros'!A91="","",'TD Siniestros'!A91) -> 200 | C92: =IF('TD Siniestros'!B91="","",'TD Siniestros'!B91) -> Patria | D92: =IF('TD Siniestros'!C91="","",'TD Siniestros'!C91) -> 0 | E92: =IF('TD Siniestros'!D91="","",'TD Siniestros'!D91) -> 0 | F92: =IF('TD Siniestros'!E91="","",'TD Siniestros'!E91) -> 0 | G92: =IF('TD Siniestros'!F91="","",'TD Siniestros'!F91) -> 0 | H92: =IF('TD Siniestros'!G91="","",'TD Siniestros'!G91) -> 0 | I92: 0
B93: =IF('TD Siniestros'!A92="","",'TD Siniestros'!A92) -> 201.1 | C93: =IF('TD Siniestros'!B92="","",'TD Siniestros'!B92) -> TOTAL | D93: =IF('TD Siniestros'!C92="","",'TD Siniestros'!C92) -> 329970278 | E93: =IF('TD Siniestros'!D92="","",'TD Siniestros'!D92) -> 9.063835509 | F93: =IF('TD Siniestros'!E92="","",'TD Siniestros'!E92) -> 1949567.062 | G93: =IF('TD Siniestros'!F92="","",'TD Siniestros'!F92) -> 56.16748186 | H93: =IF('TD Siniestros'!G92="","",'TD Siniestros'!G92) -> 58.85740279 | I93: 100
B94: =IF('TD Siniestros'!A93="","",'TD Siniestros'!A93) ->  | C94: =IF('TD Siniestros'!B93="","",'TD Siniestros'!B93) ->  | D94: =IF('TD Siniestros'!C93="","",'TD Siniestros'!C93) ->  | E94: =IF('TD Siniestros'!D93="","",'TD Siniestros'!D93) ->  | F94: =IF('TD Siniestros'!E93="","",'TD Siniestros'!E93) ->  | G94: =IF('TD Siniestros'!F93="","",'TD Siniestros'!F93) ->  | H94: =IF('TD Siniestros'!G93="","",'TD Siniestros'!G93) -> 
B95: =IF('TD Siniestros'!A94="","",'TD Siniestros'!A94) ->  | C95: =IF('TD Siniestros'!B94="","",'TD Siniestros'!B94) ->  | D95: =IF('TD Siniestros'!C94="","",'TD Siniestros'!C94) ->  | E95: =IF('TD Siniestros'!D94="","",'TD Siniestros'!D94) ->  | F95: =IF('TD Siniestros'!E94="","",'TD Siniestros'!E94) ->  | G95: =IF('TD Siniestros'!F94="","",'TD Siniestros'!F94) ->  | H95: =IF('TD Siniestros'!G94="","",'TD Siniestros'!G94) -> 
B96: =IF('TD Siniestros'!A95="","",'TD Siniestros'!A95) ->  | C96: =IF('TD Siniestros'!B95="","",'TD Siniestros'!B95) ->  | D96: =IF('TD Siniestros'!C95="","",'TD Siniestros'!C95) ->  | E96: =IF('TD Siniestros'!D95="","",'TD Siniestros'!D95) ->  | F96: =IF('TD Siniestros'!E95="","",'TD Siniestros'!E95) ->  | G96: =IF('TD Siniestros'!F95="","",'TD Siniestros'!F95) ->  | H96: =IF('TD Siniestros'!G95="","",'TD Siniestros'!G95) -> 
B97: =IF('TD Siniestros'!A96="","",'TD Siniestros'!A96) ->  | C97: =IF('TD Siniestros'!B96="","",'TD Siniestros'!B96) ->  | D97: =IF('TD Siniestros'!C96="","",'TD Siniestros'!C96) ->  | E97: =IF('TD Siniestros'!D96="","",'TD Siniestros'!D96) ->  | F97: =IF('TD Siniestros'!E96="","",'TD Siniestros'!E96) ->  | G97: =IF('TD Siniestros'!F96="","",'TD Siniestros'!F96) ->  | H97: =IF('TD Siniestros'!G96="","",'TD Siniestros'!G96) -> 
B98: =IF('TD Siniestros'!A97="","",'TD Siniestros'!A97) ->  | C98: =IF('TD Siniestros'!B97="","",'TD Siniestros'!B97) ->  | D98: =IF('TD Siniestros'!C97="","",'TD Siniestros'!C97) ->  | E98: =IF('TD Siniestros'!D97="","",'TD Siniestros'!D97) ->  | F98: =IF('TD Siniestros'!E97="","",'TD Siniestros'!E97) ->  | G98: =IF('TD Siniestros'!F97="","",'TD Siniestros'!F97) ->  | H98: =IF('TD Siniestros'!G97="","",'TD Siniestros'!G97) -> 
B99: =IF('TD Siniestros'!A98="","",'TD Siniestros'!A98) ->  | C99: =IF('TD Siniestros'!B98="","",'TD Siniestros'!B98) ->  | D99: =IF('TD Siniestros'!C98="","",'TD Siniestros'!C98) ->  | E99: =IF('TD Siniestros'!D98="","",'TD Siniestros'!D98) ->  | F99: =IF('TD Siniestros'!E98="","",'TD Siniestros'!E98) ->  | G99: =IF('TD Siniestros'!F98="","",'TD Siniestros'!F98) ->  | H99: =IF('TD Siniestros'!G98="","",'TD Siniestros'!G98) -> 
B100: =IF('TD Siniestros'!A99="","",'TD Siniestros'!A99) ->  | C100: =IF('TD Siniestros'!B99="","",'TD Siniestros'!B99) ->  | D100: =IF('TD Siniestros'!C99="","",'TD Siniestros'!C99) ->  | E100: =IF('TD Siniestros'!D99="","",'TD Siniestros'!D99) ->  | F100: =IF('TD Siniestros'!E99="","",'TD Siniestros'!E99) ->  | G100: =IF('TD Siniestros'!F99="","",'TD Siniestros'!F99) ->  | H100: =IF('TD Siniestros'!G99="","",'TD Siniestros'!G99) -> 
B101: =IF('TD Siniestros'!A100="","",'TD Siniestros'!A100) ->  | C101: =IF('TD Siniestros'!B100="","",'TD Siniestros'!B100) ->  | D101: =IF('TD Siniestros'!C100="","",'TD Siniestros'!C100) ->  | E101: =IF('TD Siniestros'!D100="","",'TD Siniestros'!D100) ->  | F101: =IF('TD Siniestros'!E100="","",'TD Siniestros'!E100) ->  | G101: =IF('TD Siniestros'!F100="","",'TD Siniestros'!F100) ->  | H101: =IF('TD Siniestros'!G100="","",'TD Siniestros'!G100) -> 
B102: =IF('TD Siniestros'!A101="","",'TD Siniestros'!A101) ->  | C102: =IF('TD Siniestros'!B101="","",'TD Siniestros'!B101) ->  | D102: =IF('TD Siniestros'!C101="","",'TD Siniestros'!C101) ->  | E102: =IF('TD Siniestros'!D101="","",'TD Siniestros'!D101) ->  | F102: =IF('TD Siniestros'!E101="","",'TD Siniestros'!E101) ->  | G102: =IF('TD Siniestros'!F101="","",'TD Siniestros'!F101) ->  | H102: =IF('TD Siniestros'!G101="","",'TD Siniestros'!G101) -> 
B103: =IF('TD Siniestros'!A102="","",'TD Siniestros'!A102) ->  | C103: =IF('TD Siniestros'!B102="","",'TD Siniestros'!B102) ->  | D103: =IF('TD Siniestros'!C102="","",'TD Siniestros'!C102) ->  | E103: =IF('TD Siniestros'!D102="","",'TD Siniestros'!D102) ->  | F103: =IF('TD Siniestros'!E102="","",'TD Siniestros'!E102) ->  | G103: =IF('TD Siniestros'!F102="","",'TD Siniestros'!F102) ->  | H103: =IF('TD Siniestros'!G102="","",'TD Siniestros'!G102) -> 
B104: =IF('TD Siniestros'!A103="","",'TD Siniestros'!A103) ->  | C104: =IF('TD Siniestros'!B103="","",'TD Siniestros'!B103) ->  | D104: =IF('TD Siniestros'!C103="","",'TD Siniestros'!C103) ->  | E104: =IF('TD Siniestros'!D103="","",'TD Siniestros'!D103) ->  | F104: =IF('TD Siniestros'!E103="","",'TD Siniestros'!E103) ->  | G104: =IF('TD Siniestros'!F103="","",'TD Siniestros'!F103) ->  | H104: =IF('TD Siniestros'!G103="","",'TD Siniestros'!G103) -> 
B105: =IF('TD Siniestros'!A104="","",'TD Siniestros'!A104) ->  | C105: =IF('TD Siniestros'!B104="","",'TD Siniestros'!B104) ->  | D105: =IF('TD Siniestros'!C104="","",'TD Siniestros'!C104) ->  | E105: =IF('TD Siniestros'!D104="","",'TD Siniestros'!D104) ->  | F105: =IF('TD Siniestros'!E104="","",'TD Siniestros'!E104) ->  | G105: =IF('TD Siniestros'!F104="","",'TD Siniestros'!F104) ->  | H105: =IF('TD Siniestros'!G104="","",'TD Siniestros'!G104) -> 
B106: =IF('TD Siniestros'!A105="","",'TD Siniestros'!A105) ->  | C106: =IF('TD Siniestros'!B105="","",'TD Siniestros'!B105) ->  | D106: =IF('TD Siniestros'!C105="","",'TD Siniestros'!C105) ->  | E106: =IF('TD Siniestros'!D105="","",'TD Siniestros'!D105) ->  | F106: =IF('TD Siniestros'!E105="","",'TD Siniestros'!E105) ->  | G106: =IF('TD Siniestros'!F105="","",'TD Siniestros'!F105) ->  | H106: =IF('TD Siniestros'!G105="","",'TD Siniestros'!G105) -> 
B107: =IF('TD Siniestros'!A106="","",'TD Siniestros'!A106) ->  | C107: =IF('TD Siniestros'!B106="","",'TD Siniestros'!B106) ->  | D107: =IF('TD Siniestros'!C106="","",'TD Siniestros'!C106) ->  | E107: =IF('TD Siniestros'!D106="","",'TD Siniestros'!D106) ->  | F107: =IF('TD Siniestros'!E106="","",'TD Siniestros'!E106) ->  | G107: =IF('TD Siniestros'!F106="","",'TD Siniestros'!F106) ->  | H107: =IF('TD Siniestros'!G106="","",'TD Siniestros'!G106) -> 
B108: =IF('TD Siniestros'!A107="","",'TD Siniestros'!A107) ->  | C108: =IF('TD Siniestros'!B107="","",'TD Siniestros'!B107) ->  | D108: =IF('TD Siniestros'!C107="","",'TD Siniestros'!C107) ->  | E108: =IF('TD Siniestros'!D107="","",'TD Siniestros'!D107) ->  | F108: =IF('TD Siniestros'!E107="","",'TD Siniestros'!E107) ->  | G108: =IF('TD Siniestros'!F107="","",'TD Siniestros'!F107) ->  | H108: =IF('TD Siniestros'!G107="","",'TD Siniestros'!G107) -> 
B109: =IF('TD Siniestros'!A108="","",'TD Siniestros'!A108) ->  | C109: =IF('TD Siniestros'!B108="","",'TD Siniestros'!B108) ->  | D109: =IF('TD Siniestros'!C108="","",'TD Siniestros'!C108) ->  | E109: =IF('TD Siniestros'!D108="","",'TD Siniestros'!D108) ->  | F109: =IF('TD Siniestros'!E108="","",'TD Siniestros'!E108) ->  | G109: =IF('TD Siniestros'!F108="","",'TD Siniestros'!F108) ->  | H109: =IF('TD Siniestros'!G108="","",'TD Siniestros'!G108) -> 
B110: =IF('TD Siniestros'!A109="","",'TD Siniestros'!A109) ->  | C110: =IF('TD Siniestros'!B109="","",'TD Siniestros'!B109) ->  | D110: =IF('TD Siniestros'!C109="","",'TD Siniestros'!C109) ->  | E110: =IF('TD Siniestros'!D109="","",'TD Siniestros'!D109) ->  | F110: =IF('TD Siniestros'!E109="","",'TD Siniestros'!E109) ->  | G110: =IF('TD Siniestros'!F109="","",'TD Siniestros'!F109) ->  | H110: =IF('TD Siniestros'!G109="","",'TD Siniestros'!G109) -> 
B111: =IF('TD Siniestros'!A110="","",'TD Siniestros'!A110) ->  | C111: =IF('TD Siniestros'!B110="","",'TD Siniestros'!B110) ->  | D111: =IF('TD Siniestros'!C110="","",'TD Siniestros'!C110) ->  | E111: =IF('TD Siniestros'!D110="","",'TD Siniestros'!D110) ->  | F111: =IF('TD Siniestros'!E110="","",'TD Siniestros'!E110) ->  | G111: =IF('TD Siniestros'!F110="","",'TD Siniestros'!F110) ->  | H111: =IF('TD Siniestros'!G110="","",'TD Siniestros'!G110) -> 
B112: =IF('TD Siniestros'!A111="","",'TD Siniestros'!A111) ->  | C112: =IF('TD Siniestros'!B111="","",'TD Siniestros'!B111) ->  | D112: =IF('TD Siniestros'!C111="","",'TD Siniestros'!C111) ->  | E112: =IF('TD Siniestros'!D111="","",'TD Siniestros'!D111) ->  | F112: =IF('TD Siniestros'!E111="","",'TD Siniestros'!E111) ->  | G112: =IF('TD Siniestros'!F111="","",'TD Siniestros'!F111) ->  | H112: =IF('TD Siniestros'!G111="","",'TD Siniestros'!G111) -> 
B113: =IF('TD Siniestros'!A112="","",'TD Siniestros'!A112) ->  | C113: =IF('TD Siniestros'!B112="","",'TD Siniestros'!B112) ->  | D113: =IF('TD Siniestros'!C112="","",'TD Siniestros'!C112) ->  | E113: =IF('TD Siniestros'!D112="","",'TD Siniestros'!D112) ->  | F113: =IF('TD Siniestros'!E112="","",'TD Siniestros'!E112) ->  | G113: =IF('TD Siniestros'!F112="","",'TD Siniestros'!F112) ->  | H113: =IF('TD Siniestros'!G112="","",'TD Siniestros'!G112) -> 
B114: =IF('TD Siniestros'!A113="","",'TD Siniestros'!A113) ->  | C114: =IF('TD Siniestros'!B113="","",'TD Siniestros'!B113) ->  | D114: =IF('TD Siniestros'!C113="","",'TD Siniestros'!C113) ->  | E114: =IF('TD Siniestros'!D113="","",'TD Siniestros'!D113) ->  | F114: =IF('TD Siniestros'!E113="","",'TD Siniestros'!E113) ->  | G114: =IF('TD Siniestros'!F113="","",'TD Siniestros'!F113) ->  | H114: =IF('TD Siniestros'!G113="","",'TD Siniestros'!G113) -> 
B115: =IF('TD Siniestros'!A114="","",'TD Siniestros'!A114) ->  | C115: =IF('TD Siniestros'!B114="","",'TD Siniestros'!B114) ->  | D115: =IF('TD Siniestros'!C114="","",'TD Siniestros'!C114) ->  | E115: =IF('TD Siniestros'!D114="","",'TD Siniestros'!D114) ->  | F115: =IF('TD Siniestros'!E114="","",'TD Siniestros'!E114) ->  | G115: =IF('TD Siniestros'!F114="","",'TD Siniestros'!F114) ->  | H115: =IF('TD Siniestros'!G114="","",'TD Siniestros'!G114) -> 
B116: =IF('TD Siniestros'!A115="","",'TD Siniestros'!A115) ->  | C116: =IF('TD Siniestros'!B115="","",'TD Siniestros'!B115) ->  | D116: =IF('TD Siniestros'!C115="","",'TD Siniestros'!C115) ->  | E116: =IF('TD Siniestros'!D115="","",'TD Siniestros'!D115) ->  | F116: =IF('TD Siniestros'!E115="","",'TD Siniestros'!E115) ->  | G116: =IF('TD Siniestros'!F115="","",'TD Siniestros'!F115) ->  | H116: =IF('TD Siniestros'!G115="","",'TD Siniestros'!G115) -> 
B117: =IF('TD Siniestros'!A116="","",'TD Siniestros'!A116) ->  | C117: =IF('TD Siniestros'!B116="","",'TD Siniestros'!B116) ->  | D117: =IF('TD Siniestros'!C116="","",'TD Siniestros'!C116) ->  | E117: =IF('TD Siniestros'!D116="","",'TD Siniestros'!D116) ->  | F117: =IF('TD Siniestros'!E116="","",'TD Siniestros'!E116) ->  | G117: =IF('TD Siniestros'!F116="","",'TD Siniestros'!F116) ->  | H117: =IF('TD Siniestros'!G116="","",'TD Siniestros'!G116) -> 
B118: =IF('TD Siniestros'!A117="","",'TD Siniestros'!A117) ->  | C118: =IF('TD Siniestros'!B117="","",'TD Siniestros'!B117) ->  | D118: =IF('TD Siniestros'!C117="","",'TD Siniestros'!C117) ->  | E118: =IF('TD Siniestros'!D117="","",'TD Siniestros'!D117) ->  | F118: =IF('TD Siniestros'!E117="","",'TD Siniestros'!E117) ->  | G118: =IF('TD Siniestros'!F117="","",'TD Siniestros'!F117) ->  | H118: =IF('TD Siniestros'!G117="","",'TD Siniestros'!G117) -> 
B119: =IF('TD Siniestros'!A118="","",'TD Siniestros'!A118) ->  | C119: =IF('TD Siniestros'!B118="","",'TD Siniestros'!B118) ->  | D119: =IF('TD Siniestros'!C118="","",'TD Siniestros'!C118) ->  | E119: =IF('TD Siniestros'!D118="","",'TD Siniestros'!D118) ->  | F119: =IF('TD Siniestros'!E118="","",'TD Siniestros'!E118) ->  | G119: =IF('TD Siniestros'!F118="","",'TD Siniestros'!F118) ->  | H119: =IF('TD Siniestros'!G118="","",'TD Siniestros'!G118) -> 
B120: =IF('TD Siniestros'!A119="","",'TD Siniestros'!A119) ->  | C120: =IF('TD Siniestros'!B119="","",'TD Siniestros'!B119) ->  | D120: =IF('TD Siniestros'!C119="","",'TD Siniestros'!C119) ->  | E120: =IF('TD Siniestros'!D119="","",'TD Siniestros'!D119) ->  | F120: =IF('TD Siniestros'!E119="","",'TD Siniestros'!E119) ->  | G120: =IF('TD Siniestros'!F119="","",'TD Siniestros'!F119) ->  | H120: =IF('TD Siniestros'!G119="","",'TD Siniestros'!G119) -> 
B121: =IF('TD Siniestros'!A120="","",'TD Siniestros'!A120) ->  | C121: =IF('TD Siniestros'!B120="","",'TD Siniestros'!B120) ->  | D121: =IF('TD Siniestros'!C120="","",'TD Siniestros'!C120) ->  | E121: =IF('TD Siniestros'!D120="","",'TD Siniestros'!D120) ->  | F121: =IF('TD Siniestros'!E120="","",'TD Siniestros'!E120) ->  | G121: =IF('TD Siniestros'!F120="","",'TD Siniestros'!F120) ->  | H121: =IF('TD Siniestros'!G120="","",'TD Siniestros'!G120) -> 
B122: =IF('TD Siniestros'!A121="","",'TD Siniestros'!A121) ->  | C122: =IF('TD Siniestros'!B121="","",'TD Siniestros'!B121) ->  | D122: =IF('TD Siniestros'!C121="","",'TD Siniestros'!C121) ->  | E122: =IF('TD Siniestros'!D121="","",'TD Siniestros'!D121) ->  | F122: =IF('TD Siniestros'!E121="","",'TD Siniestros'!E121) ->  | G122: =IF('TD Siniestros'!F121="","",'TD Siniestros'!F121) ->  | H122: =IF('TD Siniestros'!G121="","",'TD Siniestros'!G121) -> 
B123: =IF('TD Siniestros'!A122="","",'TD Siniestros'!A122) ->  | C123: =IF('TD Siniestros'!B122="","",'TD Siniestros'!B122) ->  | D123: =IF('TD Siniestros'!C122="","",'TD Siniestros'!C122) ->  | E123: =IF('TD Siniestros'!D122="","",'TD Siniestros'!D122) ->  | F123: =IF('TD Siniestros'!E122="","",'TD Siniestros'!E122) ->  | G123: =IF('TD Siniestros'!F122="","",'TD Siniestros'!F122) ->  | H123: =IF('TD Siniestros'!G122="","",'TD Siniestros'!G122) -> 
B124: =IF('TD Siniestros'!A123="","",'TD Siniestros'!A123) ->  | C124: =IF('TD Siniestros'!B123="","",'TD Siniestros'!B123) ->  | D124: =IF('TD Siniestros'!C123="","",'TD Siniestros'!C123) ->  | E124: =IF('TD Siniestros'!D123="","",'TD Siniestros'!D123) ->  | F124: =IF('TD Siniestros'!E123="","",'TD Siniestros'!E123) ->  | G124: =IF('TD Siniestros'!F123="","",'TD Siniestros'!F123) ->  | H124: =IF('TD Siniestros'!G123="","",'TD Siniestros'!G123) -> 

Sheet Primas Directas (Vida)
C1: Análisis de Primas Directas | L1: =VLOOKUP(RIGHT('TDPrimas Vida'!B2,2),Cat!$N$2:$O$5,2,0)&" "&LEFT('TDPrimas Vida'!B2,4) -> Tercer Trimestre 2023
C2: =UPPER(RIGHT('TDPrimas Vida'!B3,LEN('TDPrimas Vida'!B3)-3)) -> VIDA TOTAL
L3: Cifras en miles
E4: 2 | F4: 3 | G4: 4 | H4: 5 | I4: 6 | J4: 7 | K4: 8 | L4: 9
E5: Primas Directas | G5: % Part. en Merc. | I5: Incremento | K5: % de Cartera
C6: Compañías | E6: ='Primas Directas'!$D$6 -> 2023 | F6: ='Primas Directas'!$E$6 -> 2022 | G6: =$E$6 -> 2023 | H6: =$F$6 -> 2022 | I6: Importe | J6: % | K6: Por | L6: Total
E7: Importe | F7: Importe | K7: Operación | L7: Cartera
B8: =IF(C8="",B2,D8) -> TOTAL | C8: 151.1 | D8: TOTAL | E8: =VLOOKUP($D8,$D$12:$L$211,E$4,0) -> 228995804.9 | F8: =VLOOKUP($D8,$D$12:$L$211,F$4,0) -> 198602143.5 | G8: 100 | H8: 115.3037932 | I8: 30393661.41 | J8: 15.30379324 | K8: 38.97962507 | L8: 0
B9: =IF(C9="",B8,D9) -> TOTAL | D9: =IF(D8="","","1er Año") -> 1er Año | E9: =IF(E8="","",(VLOOKUP(B9,'TDPrimas Vida'!$B:$N,5,0))) -> 106001125.2 | F9: =IF(E8="","",(VLOOKUP(B9,'TDPrimas Vida'!$B:$N,6,0))) -> 87993281.32 | G9: =IFERROR((E9/VLOOKUP("TOTAL",$D$12:$L$312,2,0))*100,"") -> 46.28954896 | H9: =IFERROR((E9/VLOOKUP("TOTAL",$D$12:$L$312,3,0))*100,"") -> 53.37360582 | I9: =IF(E8="","",E9-F9) -> 18007843.9 | J9: =IF(E8="","",IFERROR((E9/F9-1)*100,"ND")) -> 20.46502145 | K9: =IF(E8="","",IFERROR((E9/VLOOKUP(B9&"|"&VLOOKUP(TDPrimas!$B$4,Cat!R:T,2,0),'TD Operación'!A:D,4,0))*100,"ND")) -> 18.04349263 | L9: =IF(E8="","",(VLOOKUP(B9,'TDPrimas Vida'!$B:$N,7,0))) -> 0
B10: TOTAL | D10: =IF(D9="","","Renovación") -> Renovación | E10: =IF(E8="","",(VLOOKUP(B10,'TDPrimas Vida'!$B:$N,8,0))) -> 94903135.63 | F10: =IF(E8="","",(VLOOKUP(B10,'TDPrimas Vida'!$B:$N,9,0))) -> 86775834.94 | G10: =IFERROR((E10/VLOOKUP("TOTAL",$D$12:$L$312,2,0))*100,"") -> 41.44317651 | H10: =IFERROR((E10/VLOOKUP("TOTAL",$D$12:$L$312,3,0))*100,"") -> 47.78555456 | I10: =IF(E8="","",E10-F10) -> 8127300.684 | J10: =IF(E8="","",IFERROR((E10/F10-1)*100,"ND")) -> 9.365857084 | K10: =IF(E8="","",IFERROR((E10/VLOOKUP(B10&"|"&VLOOKUP(TDPrimas!$B$4,Cat!R:T,2,0),'TD Operación'!A:D,4,0))*100,"ND")) -> 16.15439482 | L10: =IF(E8="","",(VLOOKUP(B10,'TDPrimas Vida'!$B:$N,10,0))) -> 0
B11: TOTAL | D11: =IF(D10="","","Únicas") -> Únicas | E11: =IF(E9="","",(VLOOKUP(B11,'TDPrimas Vida'!$B:$N,11,0))) -> 28091550.34 | F11: =IF(E9="","",(VLOOKUP(B11,'TDPrimas Vida'!$B:$N,12,0))) -> 23592867.78 | G11: =IFERROR((E11/VLOOKUP("TOTAL",$D$12:$L$312,2,0))*100,"") -> 12.26727728 | H11: =IFERROR((E11/VLOOKUP("TOTAL",$D$12:$L$312,3,0))*100,"") -> 14.14463603 | I11: =IF(E8="","",E11-F11) -> 4498682.559 | J11: =IF(E8="","",IFERROR((E11/F11-1)*100,"ND")) -> 19.06797682 | K11: =IF(E8="","",IFERROR((E11/VLOOKUP(B11&"|"&VLOOKUP(TDPrimas!$B$4,Cat!R:T,2,0),'TD Operación'!A:D,4,0))*100,"ND")) -> 4.781738688 | L11: =IF(E8="","",(VLOOKUP(B11,'TDPrimas Vida'!$B:$N,13,0))) -> 0
B12: =IF(C12="",B7,D12) -> BBVA Bancomer | C12: =IF('TDPrimas Vida'!A7="","",'TDPrimas Vida'!A7) -> 1 | D12: =IF('TDPrimas Vida'!B7="","",'TDPrimas Vida'!B7) -> BBVA Bancomer | E12: =IF('TDPrimas Vida'!C7="","",'TDPrimas Vida'!C7) -> 41267678.08 | F12: =IF('TDPrimas Vida'!D7="","",'TDPrimas Vida'!D7) -> 35057662.31 | G12: =IF('TDPrimas Vida'!C7="","",IFERROR((E12/VLOOKUP("TOTAL",$D$12:$L$312,2,0))*100,"")) -> 18.02115025 | H12: =IF('TDPrimas Vida'!C7="","",IFERROR((E12/VLOOKUP("TOTAL",$D$12:$L$312,3,0))*100,"")) -> 20.77906983 | I12: =IF('TDPrimas Vida'!C7="","",E12-F12) -> 6210015.771 | J12: =IFERROR(IF('TDPrimas Vida'!C7="","",(E12/F12-1)*100),"ND") -> 17.71371895 | K12: =IFERROR((E12/VLOOKUP(B12&"|"&VLOOKUP(TDPrimas!$B$4,Cat!R:T,2,0),'TD Operación'!A:D,4,0))*100,"ND") -> 79.02050875 | L12: =IF('TDPrimas Vida'!E7="","",'TDPrimas Vida'!E7) -> 0
B13: =IF(C13="",B12,D13) -> BBVA Bancomer | D13: =IF(D12="","","1er Año") -> 1er Año | E13: =IF(E12="","",(VLOOKUP(B13,'TDPrimas Vida'!$B:$N,5,0))) -> 35729321.52 | F13: =IF(E12="","",(VLOOKUP(B13,'TDPrimas Vida'!$B:$N,6,0))) -> 30724108.5 | G13: =IFERROR((E13/VLOOKUP("TOTAL",$D$12:$L$312,2,0))*100,"") -> 15.60260963 | H13: =IFERROR((E13/VLOOKUP("TOTAL",$D$12:$L$312,3,0))*100,"") -> 17.99040075 | I13: =IF(E12="","",E13-F13) -> 5005213.016 | J13: =IF(E12="","",IFERROR((E13/F13-1)*100,"ND")) -> 16.29083238 | K13: =IF(E12="","",IFERROR((E13/VLOOKUP(B13&"|"&VLOOKUP(TDPrimas!$B$4,Cat!R:T,2,0),'TD Operación'!A:D,4,0))*100,"ND")) -> 68.41550809 | L13: =IF(E12="","",(VLOOKUP(B13,'TDPrimas Vida'!$B:$N,7,0))) -> 0
B14: BBVA Bancomer | D14: =IF(D13="","","Renovación") -> Renovación | E14: =IF(E12="","",(VLOOKUP(B14,'TDPrimas Vida'!$B:$N,8,0))) -> 3722413.174 | F14: =IF(E12="","",(VLOOKUP(B14,'TDPrimas Vida'!$B:$N,9,0))) -> 2699290.781 | G14: =IFERROR((E14/VLOOKUP("TOTAL",$D$12:$L$312,2,0))*100,"") -> 1.625537715 | H14: =IFERROR((E14/VLOOKUP("TOTAL",$D$12:$L$312,3,0))*100,"") -> 1.874306646 | I14: =IF(E12="","",E14-F14) -> 1023122.393 | J14: =IF(E12="","",IFERROR((E14/F14-1)*100,"ND")) -> 37.90337817 | K14: =IF(E12="","",IFERROR((E14/VLOOKUP(B14&"|"&VLOOKUP(TDPrimas!$B$4,Cat!R:T,2,0),'TD Operación'!A:D,4,0))*100,"ND")) -> 7.127781268 | L14: =IF(E12="","",(VLOOKUP(B14,'TDPrimas Vida'!$B:$N,10,0))) -> 0
B15: BBVA Bancomer | D15: =IF(D14="","","Únicas") -> Únicas | E15: =IF(E13="","",(VLOOKUP(B15,'TDPrimas Vida'!$B:$N,11,0))) -> 1815943.386 | F15: =IF(E13="","",(VLOOKUP(B15,'TDPrimas Vida'!$B:$N,12,0))) -> 1634263.024 | G15: =IFERROR((E15/VLOOKUP("TOTAL",$D$12:$L$312,2,0))*100,"") -> 0.7930029055 | H15: =IFERROR((E15/VLOOKUP("TOTAL",$D$12:$L$312,3,0))*100,"") -> 0.9143624305 | I15: =IF(E12="","",E15-F15) -> 181680.3624 | J15: =IF(E12="","",IFERROR((E15/F15-1)*100,"ND")) -> 11.11695974 | K15: =IF(E12="","",IFERROR((E15/VLOOKUP(B15&"|"&VLOOKUP(TDPrimas!$B$4,Cat!R:T,2,0),'TD Operación'!A:D,4,0))*100,"ND")) -> 3.477219386 | L15: =IF(E12="","",(VLOOKUP(B15,'TDPrimas Vida'!$B:$N,13,0))) -> 0
B16: Metlife México | C16: =IF('TDPrimas Vida'!A8="","",'TDPrimas Vida'!A8) -> 2 | D16: =IF('TDPrimas Vida'!B8="","",'TDPrimas Vida'!B8) -> Metlife México | E16: =IF('TDPrimas Vida'!C8="","",'TDPrimas Vida'!C8) -> 39227155.83 | F16: =IF('TDPrimas Vida'!D8="","",'TDPrimas Vida'!D8) -> 37640049.23 | G16: =IF('TDPrimas Vida'!C8="","",IFERROR((E16/VLOOKUP("TOTAL",$D$12:$L$312,2,0))*100,"")) -> 17.13007618 | H16: =IF('TDPrimas Vida'!C8="","",IFERROR((E16/VLOOKUP("TOTAL",$D$12:$L$312,3,0))*100,"")) -> 19.75162762 | I16: =IF('TDPrimas Vida'!C8="","",E16-F16) -> 1587106.596 | J16: =IFERROR(IF('TDPrimas Vida'!C8="","",(E16/F16-1)*100),"ND") -> 4.216536982 | K16: =IF(E16="","",IFERROR((E16/VLOOKUP(D16&"|"&VLOOKUP(TDPrimas!$B$4,Cat!R:T,2,0),'TD Operación'!A:D,4,0))*100,"ND")) -> 66.92964707 | L16: =IF('TDPrimas Vida'!E8="","",'TDPrimas Vida'!E8) -> 0
B17: Metlife México | D17: =IF(D16="","","1er Año") -> 1er Año | E17: =IF(E16="","",(VLOOKUP(B17,'TDPrimas Vida'!$B:$N,5,0))) -> 7346891.272 | F17: =IF(E16="","",(VLOOKUP(B17,'TDPrimas Vida'!$B:$N,6,0))) -> 6841571.384 | G17: =IFERROR((E17/VLOOKUP("TOTAL",$D$12:$L$312,2,0))*100,"") -> 3.208308237 | H17: =IFERROR((E17/VLOOKUP("TOTAL",$D$12:$L$312,3,0))*100,"") -> 3.699301097 | I17: =IF(E16="","",E17-F17) -> 505319.8883 | J17: =IF(E16="","",IFERROR((E17/F17-1)*100,"ND")) -> 7.386020842 | K17: =IF(E16="","",IFERROR((E17/VLOOKUP(B17&"|"&VLOOKUP(TDPrimas!$B$4,Cat!R:T,2,0),'TD Operación'!A:D,4,0))*100,"ND")) -> 12.53531717 | L17: =IF(E16="","",(VLOOKUP(B17,'TDPrimas Vida'!$B:$N,7,0))) -> 0
B18: Metlife México | D18: =IF(D17="","","Renovación") -> Renovación | E18: =IF(E16="","",(VLOOKUP(B18,'TDPrimas Vida'!$B:$N,8,0))) -> 26487530.93 | F18: =IF(E16="","",(VLOOKUP(B18,'TDPrimas Vida'!$B:$N,9,0))) -> 25829171.54 | G18: =IFERROR((E18/VLOOKUP("TOTAL",$D$12:$L$312,2,0))*100,"") -> 11.56681929 | H18: =IFERROR((E18/VLOOKUP("TOTAL",$D$12:$L$312,3,0))*100,"") -> 13.3369814 | I18: =IF(E16="","",E18-F18) -> 658359.393 | J18: =IF(E16="","",IFERROR((E18/F18-1)*100,"ND")) -> 2.548898605 | K18: =IF(E16="","",IFERROR((E18/VLOOKUP(B18&"|"&VLOOKUP(TDPrimas!$B$4,Cat!R:T,2,0),'TD Operación'!A:D,4,0))*100,"ND")) -> 45.19321014 | L18: =IF(E16="","",(VLOOKUP(B18,'TDPrimas Vida'!$B:$N,10,0))) -> 0
B19: Metlife México | D19: =IF(D18="","","Únicas") -> Únicas | E19: =IF(E17="","",(VLOOKUP(B19,'TDPrimas Vida'!$B:$N,11,0))) -> 5392733.63 | F19: =IF(E17="","",(VLOOKUP(B19,'TDPrimas Vida'!$B:$N,12,0))) -> 4969306.315 | G19: =IFERROR((E19/VLOOKUP("TOTAL",$D$12:$L$312,2,0))*100,"") -> 2.354948656 | H19: =IFERROR((E19/VLOOKUP("TOTAL",$D$12:$L$312,3,0))*100,"") -> 2.715345129 | I19: =IF(E16="","",E19-F19) -> 423427.3147 | J19: =IF(E16="","",IFERROR((E19/F19-1)*100,"ND")) -> 8.520853574 | K19: =IF(E16="","",IFERROR((E19/VLOOKUP(B19&"|"&VLOOKUP(TDPrimas!$B$4,Cat!R:T,2,0),'TD Operación'!A:D,4,0))*100,"ND")) -> 9.201119758 | L19: =IF(E16="","",(VLOOKUP(B19,'TDPrimas Vida'!$B:$N,13,0))) -> 0
B20: =IF(C20="",B16,D20) -> G.N.P. | C20: =IF('TDPrimas Vida'!A9="","",'TDPrimas Vida'!A9) -> 3 | D20: =IF('TDPrimas Vida'!B9="","",'TDPrimas Vida'!B9) -> G.N.P. | E20: =IF('TDPrimas Vida'!C9="","",'TDPrimas Vida'!C9) -> 26297045.35 | F20: =IF('TDPrimas Vida'!D9="","",'TDPrimas Vida'!D9) -> 24345185.57 | G20: =IF('TDPrimas Vida'!C9="","",IFERROR((E20/VLOOKUP("TOTAL",$D$12:$L$312,2,0))*100,"")) -> 11.48363629 | H20: =IF('TDPrimas Vida'!C9="","",IFERROR((E20/VLOOKUP("TOTAL",$D$12:$L$312,3,0))*100,"")) -> 13.24106824 | I20: =IF('TDPrimas Vida'!C9="","",E20-F20) -> 1951859.78 | J20: =IFERROR(IF('TDPrimas Vida'!C9="","",(E20/F20-1)*100),"ND") -> 8.017436442 | K20: =IF(E20="","",IFERROR((E20/VLOOKUP(D20&"|"&VLOOKUP(TDPrimas!$B$4,Cat!R:T,2,0),'TD Operación'!A:D,4,0))*100,"ND")) -> 35.83955013 | L20: =IF('TDPrimas Vida'!E9="","",'TDPrimas Vida'!E9) -> 0
B21: =IF(C21="",B20,D21) -> G.N.P. | D21: =IF(D20="","","1er Año") -> 1er Año | E21: =IF(E20="","",(VLOOKUP(B21,'TDPrimas Vida'!$B:$N,5,0))) -> 7228265.317 | F21: =IF(E20="","",(VLOOKUP(B21,'TDPrimas Vida'!$B:$N,6,0))) -> 5810559.518 | G21: =IFERROR((E21/VLOOKUP("TOTAL",$D$12:$L$312,2,0))*100,"") -> 3.156505561 | H21: =IFERROR((E21/VLOOKUP("TOTAL",$D$12:$L$312,3,0))*100,"") -> 3.639570646 | I21: =IF(E20="","",E21-F21) -> 1417705.798 | J21: =IF(E20="","",IFERROR((E21/F21-1)*100,"ND")) -> 24.39878283 | K21: =IF(E20="","",IFERROR((E21/VLOOKUP(B21&"|"&VLOOKUP(TDPrimas!$B$4,Cat!R:T,2,0),'TD Operación'!A:D,4,0))*100,"ND")) -> 9.851212319 | L21: =IF(E20="","",(VLOOKUP(B21,'TDPrimas Vida'!$B:$N,7,0))) -> 0
B22: =IF(C22="",B21,D22) -> G.N.P. | D22: =IF(D21="","","Renovación") -> Renovación | E22: =IF(E20="","",(VLOOKUP(B22,'TDPrimas Vida'!$B:$N,8,0))) -> 12920964 | F22: =IF(E20="","",(VLOOKUP(B22,'TDPrimas Vida'!$B:$N,9,0))) -> 12826316.06 | G22: =IFERROR((E22/VLOOKUP("TOTAL",$D$12:$L$312,2,0))*100,"") -> 5.642445724 | H22: =IFERROR((E22/VLOOKUP("TOTAL",$D$12:$L$312,3,0))*100,"") -> 6.505953951 | I22: =IF(E20="","",E22-F22) -> 94647.9401 | J22: =IF(E20="","",IFERROR((E22/F22-1)*100,"ND")) -> 0.7379199113 | K22: =IF(E20="","",IFERROR((E22/VLOOKUP(B22&"|"&VLOOKUP(TDPrimas!$B$4,Cat!R:T,2,0),'TD Operación'!A:D,4,0))*100,"ND")) -> 17.60964134 | L22: =IF(E20="","",(VLOOKUP(B22,'TDPrimas Vida'!$B:$N,10,0))) -> 0
B23: =IF(C23="",B22,D23) -> G.N.P. | D23: =IF(D22="","","Únicas") -> Únicas | E23: =IF(E21="","",(VLOOKUP(B23,'TDPrimas Vida'!$B:$N,11,0))) -> 6147816.036 | F23: =IF(E21="","",(VLOOKUP(B23,'TDPrimas Vida'!$B:$N,12,0))) -> 5708309.994 | G23: =IFERROR((E23/VLOOKUP("TOTAL",$D$12:$L$312,2,0))*100,"") -> 2.684685005 | H23: =IFERROR((E23/VLOOKUP("TOTAL",$D$12:$L$312,3,0))*100,"") -> 3.095543647 | I23: =IF(E20="","",E23-F23) -> 439506.0417 | J23: =IF(E20="","",IFERROR((E23/F23-1)*100,"ND")) -> 7.699407392 | K23: =IF(E20="","",IFERROR((E23/VLOOKUP(B23&"|"&VLOOKUP(TDPrimas!$B$4,Cat!R:T,2,0),'TD Operación'!A:D,4,0))*100,"ND")) -> 8.378696466 | L23: =IF(E20="","",(VLOOKUP(B23,'TDPrimas Vida'!$B:$N,13,0))) -> 0
B24: =IF(C24="",B20,D24) -> Citibanamex Seguros | C24: =IF('TDPrimas Vida'!A10="","",'TDPrimas Vida'!A10) -> 4 | D24: =IF('TDPrimas Vida'!B10="","",'TDPrimas Vida'!B10) -> Citibanamex Seguros | E24: =IF('TDPrimas Vida'!C10="","",'TDPrimas Vida'!C10) -> 24036154.06 | F24: =IF('TDPrimas Vida'!D10="","",'TDPrimas Vida'!D10) -> 12114763.92 | G24: =IF('TDPrimas Vida'!C10="","",IFERROR((E24/VLOOKUP("TOTAL",$D$12:$L$312,2,0))*100,"")) -> 10.49632943 | H24: =IF('TDPrimas Vida'!C10="","",IFERROR((E24/VLOOKUP("TOTAL",$D$12:$L$312,3,0))*100,"")) -> 12.10266598 | I24: =IF('TDPrimas Vida'!C10="","",E24-F24) -> 11921390.14 | J24: =IFERROR(IF('TDPrimas Vida'!C10="","",(E24/F24-1)*100),"ND") -> 98.40381722 | K24: =IF(E24="","",IFERROR((E24/VLOOKUP(D24&"|"&VLOOKUP(TDPrimas!$B$4,Cat!R:T,2,0),'TD Operación'!A:D,4,0))*100,"ND")) -> 97.47055566 | L24: =IF('TDPrimas Vida'!E10="","",'TDPrimas Vida'!E10) -> 0
B25: =IF(C25="",B24,D25) -> Citibanamex Seguros | D25: =IF(D24="","","1er Año") -> 1er Año | E25: =IF(E24="","",(VLOOKUP(B25,'TDPrimas Vida'!$B:$N,5,0))) -> 13383060.37 | F25: =IF(E24="","",(VLOOKUP(B25,'TDPrimas Vida'!$B:$N,6,0))) -> 7097320.929 | G25: =IFERROR((E25/VLOOKUP("TOTAL",$D$12:$L$312,2,0))*100,"") -> 5.84423823 | H25: =IFERROR((E25/VLOOKUP("TOTAL",$D$12:$L$312,3,0))*100,"") -> 6.738628365 | I25: =IF(E24="","",E25-F25) -> 6285739.446 | J25: =IF(E24="","",IFERROR((E25/F25-1)*100,"ND")) -> 88.56496007 | K25: =IF(E24="","",IFERROR((E25/VLOOKUP(B25&"|"&VLOOKUP(TDPrimas!$B$4,Cat!R:T,2,0),'TD Operación'!A:D,4,0))*100,"ND")) -> 54.27050966 | L25: =IF(E24="","",(VLOOKUP(B25,'TDPrimas Vida'!$B:$N,7,0))) -> 0
B26: =IF(C26="",B25,D26) -> Citibanamex Seguros | D26: =IF(D25="","","Renovación") -> Renovación | E26: =IF(E24="","",(VLOOKUP(B26,'TDPrimas Vida'!$B:$N,8,0))) -> 10653093.69 | F26: =IF(E24="","",(VLOOKUP(B26,'TDPrimas Vida'!$B:$N,9,0))) -> 5017442.991 | G26: =IFERROR((E26/VLOOKUP("TOTAL",$D$12:$L$312,2,0))*100,"") -> 4.6520912 | H26: =IFERROR((E26/VLOOKUP("TOTAL",$D$12:$L$312,3,0))*100,"") -> 5.364037619 | I26: =IF(E24="","",E26-F26) -> 5635650.697 | J26: =IF(E24="","",IFERROR((E26/F26-1)*100,"ND")) -> 112.3211705 | K26: =IF(E24="","",IFERROR((E26/VLOOKUP(B26&"|"&VLOOKUP(TDPrimas!$B$4,Cat!R:T,2,0),'TD Operación'!A:D,4,0))*100,"ND")) -> 43.20004601 | L26: =IF(E24="","",(VLOOKUP(B26,'TDPrimas Vida'!$B:$N,10,0))) -> 0
B27: =IF(C27="",B26,D27) -> Citibanamex Seguros | D27: =IF(D26="","","Únicas") -> Únicas | E27: =IF(E25="","",(VLOOKUP(B27,'TDPrimas Vida'!$B:$N,11,0))) -> 0 | F27: =IF(E25="","",(VLOOKUP(B27,'TDPrimas Vida'!$B:$N,12,0))) -> 0 | G27: =IFERROR((E27/VLOOKUP("TOTAL",$D$12:$L$312,2,0))*100,"") -> 0 | H27: =IFERROR((E27/VLOOKUP("TOTAL",$D$12:$L$312,3,0))*100,"") -> 0 | I27: =IF(E24="","",E27-F27) -> 0 | J27: =IF(E24="","",IFERROR((E27/F27-1)*100,"ND")) -> ND | K27: =IF(E24="","",IFERROR((E27/VLOOKUP(B27&"|"&VLOOKUP(TDPrimas!$B$4,Cat!R:T,2,0),'TD Operación'!A:D,4,0))*100,"ND")) -> 0 | L27: =IF(E24="","",(VLOOKUP(B27,'TDPrimas Vida'!$B:$N,13,0))) -> 0
B28: =IF(C28="",B24,D28) -> Monterrey New York Life | C28: =IF('TDPrimas Vida'!A11="","",'TDPrimas Vida'!A11) -> 5 | D28: =IF('TDPrimas Vida'!B11="","",'TDPrimas Vida'!B11) -> Monterrey New York Life | E28: =IF('TDPrimas Vida'!C11="","",'TDPrimas Vida'!C11) -> 18624780.16 | F28: =IF('TDPrimas Vida'!D11="","",'TDPrimas Vida'!D11) -> 18430517.94 | G28: =IF('TDPrimas Vida'!C11="","",IFERROR((E28/VLOOKUP("TOTAL",$D$12:$L$312,2,0))*100,"")) -> 8.133240767 | H28: =IF('TDPrimas Vida'!C11="","",IFERROR((E28/VLOOKUP("TOTAL",$D$12:$L$312,3,0))*100,"")) -> 9.377935118 | I28: =IF('TDPrimas Vida'!C11="","",E28-F28) -> 194262.217 | J28: =IFERROR(IF('TDPrimas Vida'!C11="","",(E28/F28-1)*100),"ND") -> 1.05402473 | K28: =IF(E28="","",IFERROR((E28/VLOOKUP(D28&"|"&VLOOKUP(TDPrimas!$B$4,Cat!R:T,2,0),'TD Operación'!A:D,4,0))*100,"ND")) -> 66.34639705 | L28: =IF('TDPrimas Vida'!E11="","",'TDPrimas Vida'!E11) -> 0
B29: =IF(C29="",B28,D29) -> Monterrey New York Life | D29: =IF(D28="","","1er Año") -> 1er Año | E29: =IF(E28="","",(VLOOKUP(B29,'TDPrimas Vida'!$B:$N,5,0))) -> 1907241.134 | F29: =IF(E28="","",(VLOOKUP(B29,'TDPrimas Vida'!$B:$N,6,0))) -> 1671923.476 | G29: =IFERROR((E29/VLOOKUP("TOTAL",$D$12:$L$312,2,0))*100,"") -> 0.8328716481 | H29: =IFERROR((E29/VLOOKUP("TOTAL",$D$12:$L$312,3,0))*100,"") -> 0.9603326031 | I29: =IF(E28="","",E29-F29) -> 235317.6584 | J29: =IF(E28="","",IFERROR((E29/F29-1)*100,"ND")) -> 14.0746668 | K29: =IF(E28="","",IFERROR((E29/VLOOKUP(B29&"|"&VLOOKUP(TDPrimas!$B$4,Cat!R:T,2,0),'TD Operación'!A:D,4,0))*100,"ND")) -> 6.794097782 | L29: =IF(E28="","",(VLOOKUP(B29,'TDPrimas Vida'!$B:$N,7,0))) -> 0
B30: =IF(C30="",B29,D30) -> Monterrey New York Life | D30: =IF(D29="","","Renovación") -> Renovación | E30: =IF(E28="","",(VLOOKUP(B30,'TDPrimas Vida'!$B:$N,8,0))) -> 12176277.46 | F30: =IF(E28="","",(VLOOKUP(B30,'TDPrimas Vida'!$B:$N,9,0))) -> 12108435.42 | G30: =IFERROR((E30/VLOOKUP("TOTAL",$D$12:$L$312,2,0))*100,"") -> 5.317249135 | H30: =IFERROR((E30/VLOOKUP("TOTAL",$D$12:$L$312,3,0))*100,"") -> 6.130989949 | I30: =IF(E28="","",E30-F30) -> 67842.03464 | J30: =IF(E28="","",IFERROR((E30/F30-1)*100,"ND")) -> 0.5602873722 | K30: =IF(E28="","",IFERROR((E30/VLOOKUP(B30&"|"&VLOOKUP(TDPrimas!$B$4,Cat!R:T,2,0),'TD Operación'!A:D,4,0))*100,"ND")) -> 43.37512345 | L30: =IF(E28="","",(VLOOKUP(B30,'TDPrimas Vida'!$B:$N,10,0))) -> 0
B31: =IF(C31="",B30,D31) -> Monterrey New York Life | D31: =IF(D30="","","Únicas") -> Únicas | E31: =IF(E29="","",(VLOOKUP(B31,'TDPrimas Vida'!$B:$N,11,0))) -> 4541261.568 | F31: =IF(E29="","",(VLOOKUP(B31,'TDPrimas Vida'!$B:$N,12,0))) -> 4650159.044 | G31: =IFERROR((E31/VLOOKUP("TOTAL",$D$12:$L$312,2,0))*100,"") -> 1.983119984 | H31: =IFERROR((E31/VLOOKUP("TOTAL",$D$12:$L$312,3,0))*100,"") -> 2.286612565 | I31: =IF(E28="","",E31-F31) -> -108897.476 | J31: =IF(E28="","",IFERROR((E31/F31-1)*100,"ND")) -> -2.341801108 | K31: =IF(E28="","",IFERROR((E31/VLOOKUP(B31&"|"&VLOOKUP(TDPrimas!$B$4,Cat!R:T,2,0),'TD Operación'!A:D,4,0))*100,"ND")) -> 16.17717581 | L31: =IF(E28="","",(VLOOKUP(B31,'TDPrimas Vida'!$B:$N,13,0))) -> 0
B32: =IF(C32="",B28,D32) -> TOTAL GRANDES | C32: =IF('TDPrimas Vida'!A12="","",'TDPrimas Vida'!A12) -> 5.1 | D32: =IF('TDPrimas Vida'!B12="","",'TDPrimas Vida'!B12) -> TOTAL GRANDES | E32: =IF('TDPrimas Vida'!C12="","",'TDPrimas Vida'!C12) -> 149452813.5 | F32: =IF('TDPrimas Vida'!D12="","",'TDPrimas Vida'!D12) -> 127588179 | G32: =IF('TDPrimas Vida'!C12="","",IFERROR((E32/VLOOKUP("TOTAL",$D$12:$L$312,2,0))*100,"")) -> 65.26443292 | H32: =IF('TDPrimas Vida'!C12="","",IFERROR((E32/VLOOKUP("TOTAL",$D$12:$L$312,3,0))*100,"")) -> 75.2523668 | I32: =IF('TDPrimas Vida'!C12="","",E32-F32) -> 21864634.51 | J32: =IFERROR(IF('TDPrimas Vida'!C12="","",(E32/F32-1)*100),"ND") -> 17.13688108 | K32: =IF(E32="","",IFERROR((E32/VLOOKUP(D32&"|"&VLOOKUP(TDPrimas!$B$4,Cat!R:T,2,0),'TD Operación'!A:D,4,0))*100,"ND")) -> 57.27641728 | L32: =IF('TDPrimas Vida'!E12="","",'TDPrimas Vida'!E12) -> 0
B33: =IF(C33="",B32,D33) -> TOTAL GRANDES | D33: =IF(D32="","","1er Año") -> 1er Año | E33: =IF(E32="","",(VLOOKUP(B33,'TDPrimas Vida'!$B:$N,5,0))) -> 65594779.61 | F33: =IF(E32="","",(VLOOKUP(B33,'TDPrimas Vida'!$B:$N,6,0))) -> 52145483.81 | G33: =IFERROR((E33/VLOOKUP("TOTAL",$D$12:$L$312,2,0))*100,"") -> 28.64453331 | H33: =IFERROR((E33/VLOOKUP("TOTAL",$D$12:$L$312,3,0))*100,"") -> 33.02823346 | I33: =IF(E32="","",E33-F33) -> 13449295.81 | J33: =IF(E32="","",IFERROR((E33/F33-1)*100,"ND")) -> 25.79187079 | K33: =IF(E32="","",IFERROR((E33/VLOOKUP(B33&"|"&VLOOKUP(TDPrimas!$B$4,Cat!R:T,2,0),'TD Operación'!A:D,4,0))*100,"ND")) -> 25.13859646 | L33: =IF(E32="","",(VLOOKUP(B33,'TDPrimas Vida'!$B:$N,7,0))) -> 0
B34: =IF(C34="",B33,D34) -> TOTAL GRANDES | D34: =IF(D33="","","Renovación") -> Renovación | E34: =IF(E32="","",(VLOOKUP(B34,'TDPrimas Vida'!$B:$N,8,0))) -> 65960279.25 | F34: =IF(E32="","",(VLOOKUP(B34,'TDPrimas Vida'!$B:$N,9,0))) -> 58480656.79 | G34: =IFERROR((E34/VLOOKUP("TOTAL",$D$12:$L$312,2,0))*100,"") -> 28.80414306 | H34: =IFERROR((E34/VLOOKUP("TOTAL",$D$12:$L$312,3,0))*100,"") -> 33.21226956 | I34: =IF(E32="","",E34-F34) -> 7479622.458 | J34: =IF(E32="","",IFERROR((E34/F34-1)*100,"ND")) -> 12.78990844 | K34: =IF(E32="","",IFERROR((E34/VLOOKUP(B34&"|"&VLOOKUP(TDPrimas!$B$4,Cat!R:T,2,0),'TD Operación'!A:D,4,0))*100,"ND")) -> 25.27867084 | L34: =IF(E32="","",(VLOOKUP(B34,'TDPrimas Vida'!$B:$N,10,0))) -> 0
B35: =IF(C35="",B34,D35) -> TOTAL GRANDES | D35: =IF(D34="","","Únicas") -> Únicas | E35: =IF(E33="","",(VLOOKUP(B35,'TDPrimas Vida'!$B:$N,11,0))) -> 17897754.62 | F35: =IF(E33="","",(VLOOKUP(B35,'TDPrimas Vida'!$B:$N,12,0))) -> 16962038.38 | G35: =IFERROR((E35/VLOOKUP("TOTAL",$D$12:$L$312,2,0))*100,"") -> 7.81575655 | H35: =IFERROR((E35/VLOOKUP("TOTAL",$D$12:$L$312,3,0))*100,"") -> 9.011863772 | I35: =IF(E32="","",E35-F35) -> 935716.2427 | J35: =IF(E32="","",IFERROR((E35/F35-1)*100,"ND")) -> 5.51653181 | K35: =IF(E32="","",IFERROR((E35/VLOOKUP(B35&"|"&VLOOKUP(TDPrimas!$B$4,Cat!R:T,2,0),'TD Operación'!A:D,4,0))*100,"ND")) -> 6.859149976 | L35: =IF(E32="","",(VLOOKUP(B35,'TDPrimas Vida'!$B:$N,13,0))) -> 0
B36: =IF(C36="",B32,D36) -> Banorte | C36: =IF('TDPrimas Vida'!A13="","",'TDPrimas Vida'!A13) -> 6 | D36: =IF('TDPrimas Vida'!B13="","",'TDPrimas Vida'!B13) -> Banorte | E36: =IF('TDPrimas Vida'!C13="","",'TDPrimas Vida'!C13) -> 17792711.93 | F36: =IF('TDPrimas Vida'!D13="","",'TDPrimas Vida'!D13) -> 13859190.94 | G36: =IF('TDPrimas Vida'!C13="","",IFERROR((E36/VLOOKUP("TOTAL",$D$12:$L$312,2,0))*100,"")) -> 7.76988554 | H36: =IF('TDPrimas Vida'!C13="","",IFERROR((E36/VLOOKUP("TOTAL",$D$12:$L$312,3,0))*100,"")) -> 8.958972758 | I36: =IF('TDPrimas Vida'!C13="","",E36-F36) -> 3933520.992 | J36: =IFERROR(IF('TDPrimas Vida'!C13="","",(E36/F36-1)*100),"ND") -> 28.38203911 | K36: =IF(E36="","",IFERROR((E36/VLOOKUP(D36&"|"&VLOOKUP(TDPrimas!$B$4,Cat!R:T,2,0),'TD Operación'!A:D,4,0))*100,"ND")) -> 61.948351 | L36: =IF('TDPrimas Vida'!E13="","",'TDPrimas Vida'!E13) -> 0
B37: =IF(C37="",B36,D37) -> Banorte | D37: =IF(D36="","","1er Año") -> 1er Año | E37: =IF(E36="","",(VLOOKUP(B37,'TDPrimas Vida'!$B:$N,5,0))) -> 3941434.754 | F37: =IF(E36="","",(VLOOKUP(B37,'TDPrimas Vida'!$B:$N,6,0))) -> 4048059.029 | G37: =IFERROR((E37/VLOOKUP("TOTAL",$D$12:$L$312,2,0))*100,"") -> 1.721182078 | H37: =IFERROR((E37/VLOOKUP("TOTAL",$D$12:$L$312,3,0))*100,"") -> 1.984588225 | I37: =IF(E36="","",E37-F37) -> -106624.2749 | J37: =IF(E36="","",IFERROR((E37/F37-1)*100,"ND")) -> -2.633960477 | K37: =IF(E36="","",IFERROR((E37/VLOOKUP(B37&"|"&VLOOKUP(TDPrimas!$B$4,Cat!R:T,2,0),'TD Operación'!A:D,4,0))*100,"ND")) -> 13.72277506 | L37: =IF(E36="","",(VLOOKUP(B37,'TDPrimas Vida'!$B:$N,7,0))) -> 0
B38: =IF(C38="",B37,D38) -> Banorte | D38: =IF(D37="","","Renovación") -> Renovación | E38: =IF(E36="","",(VLOOKUP(B38,'TDPrimas Vida'!$B:$N,8,0))) -> 8957597.782 | F38: =IF(E36="","",(VLOOKUP(B38,'TDPrimas Vida'!$B:$N,9,0))) -> 7755195.251 | G38: =IFERROR((E38/VLOOKUP("TOTAL",$D$12:$L$312,2,0))*100,"") -> 3.911686411 | H38: =IFERROR((E38/VLOOKUP("TOTAL",$D$12:$L$312,3,0))*100,"") -> 4.510322812 | I38: =IF(E36="","",E38-F38) -> 1202402.531 | J38: =IF(E36="","",IFERROR((E38/F38-1)*100,"ND")) -> 15.50447786 | K38: =IF(E36="","",IFERROR((E38/VLOOKUP(B38&"|"&VLOOKUP(TDPrimas!$B$4,Cat!R:T,2,0),'TD Operación'!A:D,4,0))*100,"ND")) -> 31.18739929 | L38: =IF(E36="","",(VLOOKUP(B38,'TDPrimas Vida'!$B:$N,10,0))) -> 0
B39: =IF(C39="",B38,D39) -> Banorte | D39: =IF(D38="","","Únicas") -> Únicas | E39: =IF(E37="","",(VLOOKUP(B39,'TDPrimas Vida'!$B:$N,11,0))) -> 4893679.396 | F39: =IF(E37="","",(VLOOKUP(B39,'TDPrimas Vida'!$B:$N,12,0))) -> 2055936.66 | G39: =IFERROR((E39/VLOOKUP("TOTAL",$D$12:$L$312,2,0))*100,"") -> 2.137017051 | H39: =IFERROR((E39/VLOOKUP("TOTAL",$D$12:$L$312,3,0))*100,"") -> 2.464061722 | I39: =IF(E36="","",E39-F39) -> 2837742.736 | J39: =IF(E36="","",IFERROR((E39/F39-1)*100,"ND")) -> 138.0267589 | K39: =IF(E36="","",IFERROR((E39/VLOOKUP(B39&"|"&VLOOKUP(TDPrimas!$B$4,Cat!R:T,2,0),'TD Operación'!A:D,4,0))*100,"ND")) -> 17.03817665 | L39: =IF(E36="","",(VLOOKUP(B39,'TDPrimas Vida'!$B:$N,13,0))) -> 0
B40: =IF(C40="",B36,D40) -> Zurich Santander | C40: =IF('TDPrimas Vida'!A14="","",'TDPrimas Vida'!A14) -> 7 | D40: =IF('TDPrimas Vida'!B14="","",'TDPrimas Vida'!B14) -> Zurich Santander | E40: =IF('TDPrimas Vida'!C14="","",'TDPrimas Vida'!C14) -> 11872659.72 | F40: =IF('TDPrimas Vida'!D14="","",'TDPrimas Vida'!D14) -> 7465284.196 | G40: =IF('TDPrimas Vida'!C14="","",IFERROR((E40/VLOOKUP("TOTAL",$D$12:$L$312,2,0))*100,"")) -> 5.184662542 | H40: =IF('TDPrimas Vida'!C14="","",IFERROR((E40/VLOOKUP("TOTAL",$D$12:$L$312,3,0))*100,"")) -> 5.978112578 | I40: =IF('TDPrimas Vida'!C14="","",E40-F40) -> 4407375.524 | J40: =IFERROR(IF('TDPrimas Vida'!C14="","",(E40/F40-1)*100),"ND") -> 59.03828184 | K40: =IF(E40="","",IFERROR((E40/VLOOKUP(D40&"|"&VLOOKUP(TDPrimas!$B$4,Cat!R:T,2,0),'TD Operación'!A:D,4,0))*100,"ND")) -> 76.41609973 | L40: =IF('TDPrimas Vida'!E14="","",'TDPrimas Vida'!E14) -> 0
B41: =IF(C41="",B40,D41) -> Zurich Santander | D41: =IF(D40="","","1er Año") -> 1er Año | E41: =IF(E40="","",(VLOOKUP(B41,'TDPrimas Vida'!$B:$N,5,0))) -> 6643921.136 | F41: =IF(E40="","",(VLOOKUP(B41,'TDPrimas Vida'!$B:$N,6,0))) -> 2967066.487 | G41: =IFERROR((E41/VLOOKUP("TOTAL",$D$12:$L$312,2,0))*100,"") -> 2.901328755 | H41: =IFERROR((E41/VLOOKUP("TOTAL",$D$12:$L$312,3,0))*100,"") -> 3.345342109 | I41: =IF(E40="","",E41-F41) -> 3676854.649 | J41: =IF(E40="","",IFERROR((E41/F41-1)*100,"ND")) -> 123.9222196 | K41: =IF(E40="","",IFERROR((E41/VLOOKUP(B41&"|"&VLOOKUP(TDPrimas!$B$4,Cat!R:T,2,0),'TD Operación'!A:D,4,0))*100,"ND")) -> 42.76232555 | L41: =IF(E40="","",(VLOOKUP(B41,'TDPrimas Vida'!$B:$N,7,0))) -> 0
B42: =IF(C42="",B41,D42) -> Zurich Santander | D42: =IF(D41="","","Renovación") -> Renovación | E42: =IF(E40="","",(VLOOKUP(B42,'TDPrimas Vida'!$B:$N,8,0))) -> 1070122.955 | F42: =IF(E40="","",(VLOOKUP(B42,'TDPrimas Vida'!$B:$N,9,0))) -> 1030190.774 | G42: =IFERROR((E42/VLOOKUP("TOTAL",$D$12:$L$312,2,0))*100,"") -> 0.4673111612 | H42: =IFERROR((E42/VLOOKUP("TOTAL",$D$12:$L$312,3,0))*100,"") -> 0.5388274952 | I42: =IF(E40="","",E42-F42) -> 39932.18158 | J42: =IF(E40="","",IFERROR((E42/F42-1)*100,"ND")) -> 3.876192896 | K42: =IF(E40="","",IFERROR((E42/VLOOKUP(B42&"|"&VLOOKUP(TDPrimas!$B$4,Cat!R:T,2,0),'TD Operación'!A:D,4,0))*100,"ND")) -> 6.887641386 | L42: =IF(E40="","",(VLOOKUP(B42,'TDPrimas Vida'!$B:$N,10,0))) -> 0
B43: =IF(C43="",B42,D43) -> Zurich Santander | D43: =IF(D42="","","Únicas") -> Únicas | E43: =IF(E41="","",(VLOOKUP(B43,'TDPrimas Vida'!$B:$N,11,0))) -> 4158615.629 | F43: =IF(E41="","",(VLOOKUP(B43,'TDPrimas Vida'!$B:$N,12,0))) -> 3468026.935 | G43: =IFERROR((E43/VLOOKUP("TOTAL",$D$12:$L$312,2,0))*100,"") -> 1.816022626 | H43: =IFERROR((E43/VLOOKUP("TOTAL",$D$12:$L$312,3,0))*100,"") -> 2.093942974 | I43: =IF(E40="","",E43-F43) -> 690588.6938 | J43: =IF(E40="","",IFERROR((E43/F43-1)*100,"ND")) -> 19.91301413 | K43: =IF(E40="","",IFERROR((E43/VLOOKUP(B43&"|"&VLOOKUP(TDPrimas!$B$4,Cat!R:T,2,0),'TD Operación'!A:D,4,0))*100,"ND")) -> 26.76613279 | L43: =IF(E40="","",(VLOOKUP(B43,'TDPrimas Vida'!$B:$N,13,0))) -> 0
B44: =IF(C44="",B40,D44) -> Allianz México | C44: =IF('TDPrimas Vida'!A15="","",'TDPrimas Vida'!A15) -> 8 | D44: =IF('TDPrimas Vida'!B15="","",'TDPrimas Vida'!B15) -> Allianz México | E44: =IF('TDPrimas Vida'!C15="","",'TDPrimas Vida'!C15) -> 8022515.088 | F44: =IF('TDPrimas Vida'!D15="","",'TDPrimas Vida'!D15) -> 7691525.384 | G44: =IF('TDPrimas Vida'!C15="","",IFERROR((E44/VLOOKUP("TOTAL",$D$12:$L$312,2,0))*100,"")) -> 3.503345876 | H44: =IF('TDPrimas Vida'!C15="","",IFERROR((E44/VLOOKUP("TOTAL",$D$12:$L$312,3,0))*100,"")) -> 4.039490686 | I44: =IF('TDPrimas Vida'!C15="","",E44-F44) -> 330989.7039 | J44: =IFERROR(IF('TDPrimas Vida'!C15="","",(E44/F44-1)*100),"ND") -> 4.303303797 | K44: =IF(E44="","",IFERROR((E44/VLOOKUP(D44&"|"&VLOOKUP(TDPrimas!$B$4,Cat!R:T,2,0),'TD Operación'!A:D,4,0))*100,"ND")) -> 53.3720213 | L44: =IF('TDPrimas Vida'!E15="","",'TDPrimas Vida'!E15) -> 0
B45: =IF(C45="",B44,D45) -> Allianz México | D45: =IF(D44="","","1er Año") -> 1er Año | E45: =IF(E44="","",(VLOOKUP(B45,'TDPrimas Vida'!$B:$N,5,0))) -> 4323169.687 | F45: =IF(E44="","",(VLOOKUP(B45,'TDPrimas Vida'!$B:$N,6,0))) -> 3379146.298 | G45: =IFERROR((E45/VLOOKUP("TOTAL",$D$12:$L$312,2,0))*100,"") -> 1.88788161 | H45: =IFERROR((E45/VLOOKUP("TOTAL",$D$12:$L$312,3,0))*100,"") -> 2.176799108 | I45: =IF(E44="","",E45-F45) -> 944023.3895 | J45: =IF(E44="","",IFERROR((E45/F45-1)*100,"ND")) -> 27.93674219 | K45: =IF(E44="","",IFERROR((E45/VLOOKUP(B45&"|"&VLOOKUP(TDPrimas!$B$4,Cat!R:T,2,0),'TD Operación'!A:D,4,0))*100,"ND")) -> 28.76109326 | L45: =IF(E44="","",(VLOOKUP(B45,'TDPrimas Vida'!$B:$N,7,0))) -> 0
B46: =IF(C46="",B45,D46) -> Allianz México | D46: =IF(D45="","","Renovación") -> Renovación | E46: =IF(E44="","",(VLOOKUP(B46,'TDPrimas Vida'!$B:$N,8,0))) -> 3699345.4 | F46: =IF(E44="","",(VLOOKUP(B46,'TDPrimas Vida'!$B:$N,9,0))) -> 4312379.086 | G46: =IFERROR((E46/VLOOKUP("TOTAL",$D$12:$L$312,2,0))*100,"") -> 1.615464267 | H46: =IFERROR((E46/VLOOKUP("TOTAL",$D$12:$L$312,3,0))*100,"") -> 1.862691578 | I46: =IF(E44="","",E46-F46) -> -613033.6856 | J46: =IF(E44="","",IFERROR((E46/F46-1)*100,"ND")) -> -14.21567245 | K46: =IF(E44="","",IFERROR((E46/VLOOKUP(B46&"|"&VLOOKUP(TDPrimas!$B$4,Cat!R:T,2,0),'TD Operación'!A:D,4,0))*100,"ND")) -> 24.61092804 | L46: =IF(E44="","",(VLOOKUP(B46,'TDPrimas Vida'!$B:$N,10,0))) -> 0
B47: =IF(C47="",B46,D47) -> Allianz México | D47: =IF(D46="","","Únicas") -> Únicas | E47: =IF(E45="","",(VLOOKUP(B47,'TDPrimas Vida'!$B:$N,11,0))) -> 0 | F47: =IF(E45="","",(VLOOKUP(B47,'TDPrimas Vida'!$B:$N,12,0))) -> 0 | G47: =IFERROR((E47/VLOOKUP("TOTAL",$D$12:$L$312,2,0))*100,"") -> 0 | H47: =IFERROR((E47/VLOOKUP("TOTAL",$D$12:$L$312,3,0))*100,"") -> 0 | I47: =IF(E44="","",E47-F47) -> 0 | J47: =IF(E44="","",IFERROR((E47/F47-1)*100,"ND")) -> ND | K47: =IF(E44="","",IFERROR((E47/VLOOKUP(B47&"|"&VLOOKUP(TDPrimas!$B$4,Cat!R:T,2,0),'TD Operación'!A:D,4,0))*100,"ND")) -> 0 | L47: =IF(E44="","",(VLOOKUP(B47,'TDPrimas Vida'!$B:$N,13,0))) -> 0
B48: =IF(C48="",B44,D48) -> HSBC Seguros | C48: =IF('TDPrimas Vida'!A16="","",'TDPrimas Vida'!A16) -> 9 | D48: =IF('TDPrimas Vida'!B16="","",'TDPrimas Vida'!B16) -> HSBC Seguros | E48: =IF('TDPrimas Vida'!C16="","",'TDPrimas Vida'!C16) -> 5777868.473 | F48: =IF('TDPrimas Vida'!D16="","",'TDPrimas Vida'!D16) -> 4345336.402 | G48: =IF('TDPrimas Vida'!C16="","",IFERROR((E48/VLOOKUP("TOTAL",$D$12:$L$312,2,0))*100,"")) -> 2.523132891 | H48: =IF('TDPrimas Vida'!C16="","",IFERROR((E48/VLOOKUP("TOTAL",$D$12:$L$312,3,0))*100,"")) -> 2.909267932 | I48: =IF('TDPrimas Vida'!C16="","",E48-F48) -> 1432532.071 | J48: =IFERROR(IF('TDPrimas Vida'!C16="","",(E48/F48-1)*100),"ND") -> 32.96711551 | K48: =IF(E48="","",IFERROR((E48/VLOOKUP(D48&"|"&VLOOKUP(TDPrimas!$B$4,Cat!R:T,2,0),'TD Operación'!A:D,4,0))*100,"ND")) -> 94.40258184 | L48: =IF('TDPrimas Vida'!E16="","",'TDPrimas Vida'!E16) -> 0
B49: =IF(C49="",B48,D49) -> HSBC Seguros | D49: =IF(D48="","","1er Año") -> 1er Año | E49: =IF(E48="","",(VLOOKUP(B49,'TDPrimas Vida'!$B:$N,5,0))) -> 4351416.92 | F49: =IF(E48="","",(VLOOKUP(B49,'TDPrimas Vida'!$B:$N,6,0))) -> 2657947.876 | G49: =IFERROR((E49/VLOOKUP("TOTAL",$D$12:$L$312,2,0))*100,"") -> 1.900216872 | H49: =IFERROR((E49/VLOOKUP("TOTAL",$D$12:$L$312,3,0))*100,"") -> 2.191022133 | I49: =IF(E48="","",E49-F49) -> 1693469.044 | J49: =IF(E48="","",IFERROR((E49/F49-1)*100,"ND")) -> 63.71340308 | K49: =IF(E48="","",IFERROR((E49/VLOOKUP(B49&"|"&VLOOKUP(TDPrimas!$B$4,Cat!R:T,2,0),'TD Operación'!A:D,4,0))*100,"ND")) -> 71.09628644 | L49: =IF(E48="","",(VLOOKUP(B49,'TDPrimas Vida'!$B:$N,7,0))) -> 0
B50: =IF(C50="",B49,D50) -> HSBC Seguros | D50: =IF(D49="","","Renovación") -> Renovación | E50: =IF(E48="","",(VLOOKUP(B50,'TDPrimas Vida'!$B:$N,8,0))) -> 1426451.552 | F50: =IF(E48="","",(VLOOKUP(B50,'TDPrimas Vida'!$B:$N,9,0))) -> 1687388.525 | G50: =IFERROR((E50/VLOOKUP("TOTAL",$D$12:$L$312,2,0))*100,"") -> 0.6229160192 | H50: =IFERROR((E50/VLOOKUP("TOTAL",$D$12:$L$312,3,0))*100,"") -> 0.7182457989 | I50: =IF(E48="","",E50-F50) -> -260936.9733 | J50: =IF(E48="","",IFERROR((E50/F50-1)*100,"ND")) -> -15.46395328 | K50: =IF(E48="","",IFERROR((E50/VLOOKUP(B50&"|"&VLOOKUP(TDPrimas!$B$4,Cat!R:T,2,0),'TD Operación'!A:D,4,0))*100,"ND")) -> 23.3062954 | L50: =IF(E48="","",(VLOOKUP(B50,'TDPrimas Vida'!$B:$N,10,0))) -> 0
B51: =IF(C51="",B50,D51) -> HSBC Seguros | D51: =IF(D50="","","Únicas") -> Únicas | E51: =IF(E49="","",(VLOOKUP(B51,'TDPrimas Vida'!$B:$N,11,0))) -> 0 | F51: =IF(E49="","",(VLOOKUP(B51,'TDPrimas Vida'!$B:$N,12,0))) -> 0 | G51: =IFERROR((E51/VLOOKUP("TOTAL",$D$12:$L$312,2,0))*100,"") -> 0 | H51: =IFERROR((E51/VLOOKUP("TOTAL",$D$12:$L$312,3,0))*100,"") -> 0 | I51: =IF(E48="","",E51-F51) -> 0 | J51: =IF(E48="","",IFERROR((E51/F51-1)*100,"ND")) -> ND | K51: =IF(E48="","",IFERROR((E51/VLOOKUP(B51&"|"&VLOOKUP(TDPrimas!$B$4,Cat!R:T,2,0),'TD Operación'!A:D,4,0))*100,"ND")) -> 0 | L51: =IF(E48="","",(VLOOKUP(B51,'TDPrimas Vida'!$B:$N,13,0))) -> 0
B52: =IF(C52="",B48,D52) -> Mapfre México | C52: =IF('TDPrimas Vida'!A17="","",'TDPrimas Vida'!A17) -> 10 | D52: =IF('TDPrimas Vida'!B17="","",'TDPrimas Vida'!B17) -> Mapfre México | E52: =IF('TDPrimas Vida'!C17="","",'TDPrimas Vida'!C17) -> 4515190.906 | F52: =IF('TDPrimas Vida'!D17="","",'TDPrimas Vida'!D17) -> 4232465.331 | G52: =IF('TDPrimas Vida'!C17="","",IFERROR((E52/VLOOKUP("TOTAL",$D$12:$L$312,2,0))*100,"")) -> 1.971735206 | H52: =IF('TDPrimas Vida'!C17="","",IFERROR((E52/VLOOKUP("TOTAL",$D$12:$L$312,3,0))*100,"")) -> 2.273485485 | I52: =IF('TDPrimas Vida'!C17="","",E52-F52) -> 282725.5754 | J52: =IFERROR(IF('TDPrimas Vida'!C17="","",(E52/F52-1)*100),"ND") -> 6.679926551 | K52: =IF(E52="","",IFERROR((E52/VLOOKUP(D52&"|"&VLOOKUP(TDPrimas!$B$4,Cat!R:T,2,0),'TD Operación'!A:D,4,0))*100,"ND")) -> 20.17814708 | L52: =IF('TDPrimas Vida'!E17="","",'TDPrimas Vida'!E17) -> 0
B53: =IF(C53="",B52,D53) -> Mapfre México | D53: =IF(D52="","","1er Año") -> 1er Año | E53: =IF(E52="","",(VLOOKUP(B53,'TDPrimas Vida'!$B:$N,5,0))) -> 3895125.88 | F53: =IF(E52="","",(VLOOKUP(B53,'TDPrimas Vida'!$B:$N,6,0))) -> 3597860.675 | G53: =IFERROR((E53/VLOOKUP("TOTAL",$D$12:$L$312,2,0))*100,"") -> 1.700959492 | H53: =IFERROR((E53/VLOOKUP("TOTAL",$D$12:$L$312,3,0))*100,"") -> 1.961270816 | I53: =IF(E52="","",E53-F53) -> 297265.2053 | J53: =IF(E52="","",IFERROR((E53/F53-1)*100,"ND")) -> 8.262276731 | K53: =IF(E52="","",IFERROR((E53/VLOOKUP(B53&"|"&VLOOKUP(TDPrimas!$B$4,Cat!R:T,2,0),'TD Operación'!A:D,4,0))*100,"ND")) -> 17.40710959 | L53: =IF(E52="","",(VLOOKUP(B53,'TDPrimas Vida'!$B:$N,7,0))) -> 0
B54: =IF(C54="",B53,D54) -> Mapfre México | D54: =IF(D53="","","Renovación") -> Renovación | E54: =IF(E52="","",(VLOOKUP(B54,'TDPrimas Vida'!$B:$N,8,0))) -> 610219.4248 | F54: =IF(E52="","",(VLOOKUP(B54,'TDPrimas Vida'!$B:$N,9,0))) -> 631236.1286 | G54: =IFERROR((E54/VLOOKUP("TOTAL",$D$12:$L$312,2,0))*100,"") -> 0.2664762462 | H54: =IFERROR((E54/VLOOKUP("TOTAL",$D$12:$L$312,3,0))*100,"") -> 0.3072572199 | I54: =IF(E52="","",E54-F54) -> -21016.70373 | J54: =IF(E52="","",IFERROR((E54/F54-1)*100,"ND")) -> -3.329451972 | K54: =IF(E52="","",IFERROR((E54/VLOOKUP(B54&"|"&VLOOKUP(TDPrimas!$B$4,Cat!R:T,2,0),'TD Operación'!A:D,4,0))*100,"ND")) -> 2.727038028 | L54: =IF(E52="","",(VLOOKUP(B54,'TDPrimas Vida'!$B:$N,10,0))) -> 0
B55: =IF(C55="",B54,D55) -> Mapfre México | D55: =IF(D54="","","Únicas") -> Únicas | E55: =IF(E53="","",(VLOOKUP(B55,'TDPrimas Vida'!$B:$N,11,0))) -> 9845.60125 | F55: =IF(E53="","",(VLOOKUP(B55,'TDPrimas Vida'!$B:$N,12,0))) -> 3368.52744 | G55: =IFERROR((E55/VLOOKUP("TOTAL",$D$12:$L$312,2,0))*100,"") -> 0.004299467955 | H55: =IFERROR((E55/VLOOKUP("TOTAL",$D$12:$L$312,3,0))*100,"") -> 0.004957449641 | I55: =IF(E52="","",E55-F55) -> 6477.07381 | J55: =IF(E52="","",IFERROR((E55/F55-1)*100,"ND")) -> 192.2820557 | K55: =IF(E52="","",IFERROR((E55/VLOOKUP(B55&"|"&VLOOKUP(TDPrimas!$B$4,Cat!R:T,2,0),'TD Operación'!A:D,4,0))*100,"ND")) -> 0.0439994663 | L55: =IF(E52="","",(VLOOKUP(B55,'TDPrimas Vida'!$B:$N,13,0))) -> 0
B56: =IF(C56="",B52,D56) -> AXA Seguros | C56: =IF('TDPrimas Vida'!A18="","",'TDPrimas Vida'!A18) -> 11 | D56: =IF('TDPrimas Vida'!B18="","",'TDPrimas Vida'!B18) -> AXA Seguros | E56: =IF('TDPrimas Vida'!C18="","",'TDPrimas Vida'!C18) -> 4432978.375 | F56: =IF('TDPrimas Vida'!D18="","",'TDPrimas Vida'!D18) -> 4020917.33 | G56: =IF('TDPrimas Vida'!C18="","",IFERROR((E56/VLOOKUP("TOTAL",$D$12:$L$312,2,0))*100,"")) -> 1.93583388 | H56: =IF('TDPrimas Vida'!C18="","",IFERROR((E56/VLOOKUP("TOTAL",$D$12:$L$312,3,0))*100,"")) -> 2.232089894 | I56: =IF('TDPrimas Vida'!C18="","",E56-F56) -> 412061.045 | J56: =IFERROR(IF('TDPrimas Vida'!C18="","",(E56/F56-1)*100),"ND") -> 10.24793626 | K56: =IF(E56="","",IFERROR((E56/VLOOKUP(D56&"|"&VLOOKUP(TDPrimas!$B$4,Cat!R:T,2,0),'TD Operación'!A:D,4,0))*100,"ND")) -> 10.60351195 | L56: =IF('TDPrimas Vida'!E18="","",'TDPrimas Vida'!E18) -> 0
B57: =IF(C57="",B56,D57) -> AXA Seguros | D57: =IF(D56="","","1er Año") -> 1er Año | E57: =IF(E56="","",(VLOOKUP(B57,'TDPrimas Vida'!$B:$N,5,0))) -> 969378.1962 | F57: =IF(E56="","",(VLOOKUP(B57,'TDPrimas Vida'!$B:$N,6,0))) -> 837883.561 | G57: =IFERROR((E57/VLOOKUP("TOTAL",$D$12:$L$312,2,0))*100,"") -> 0.4233170108 | H57: =IFERROR((E57/VLOOKUP("TOTAL",$D$12:$L$312,3,0))*100,"") -> 0.4881005709 | I57: =IF(E56="","",E57-F57) -> 131494.6352 | J57: =IF(E56="","",IFERROR((E57/F57-1)*100,"ND")) -> 15.69366453 | K57: =IF(E56="","",IFERROR((E57/VLOOKUP(B57&"|"&VLOOKUP(TDPrimas!$B$4,Cat!R:T,2,0),'TD Operación'!A:D,4,0))*100,"ND")) -> 2.318714963 | L57: =IF(E56="","",(VLOOKUP(B57,'TDPrimas Vida'!$B:$N,7,0))) -> 0
B58: =IF(C58="",B57,D58) -> AXA Seguros | D58: =IF(D57="","","Renovación") -> Renovación | E58: =IF(E56="","",(VLOOKUP(B58,'TDPrimas Vida'!$B:$N,8,0))) -> 3454818.439 | F58: =IF(E56="","",(VLOOKUP(B58,'TDPrimas Vida'!$B:$N,9,0))) -> 3176990.606 | G58: =IFERROR((E58/VLOOKUP("TOTAL",$D$12:$L$312,2,0))*100,"") -> 1.508681978 | H58: =IFERROR((E58/VLOOKUP("TOTAL",$D$12:$L$312,3,0))*100,"") -> 1.739567549 | I58: =IF(E56="","",E58-F58) -> 277827.8332 | J58: =IF(E56="","",IFERROR((E58/F58-1)*100,"ND")) -> 8.745000148 | K58: =IF(E56="","",IFERROR((E58/VLOOKUP(B58&"|"&VLOOKUP(TDPrimas!$B$4,Cat!R:T,2,0),'TD Operación'!A:D,4,0))*100,"ND")) -> 8.263791408 | L58: =IF(E56="","",(VLOOKUP(B58,'TDPrimas Vida'!$B:$N,10,0))) -> 0
B59: =IF(C59="",B58,D59) -> AXA Seguros | D59: =IF(D58="","","Únicas") -> Únicas | E59: =IF(E57="","",(VLOOKUP(B59,'TDPrimas Vida'!$B:$N,11,0))) -> 8781.73951 | F59: =IF(E57="","",(VLOOKUP(B59,'TDPrimas Vida'!$B:$N,12,0))) -> 6043.16297 | G59: =IFERROR((E59/VLOOKUP("TOTAL",$D$12:$L$312,2,0))*100,"") -> 0.003834890999 | H59: =IFERROR((E59/VLOOKUP("TOTAL",$D$12:$L$312,3,0))*100,"") -> 0.004421774788 | I59: =IF(E56="","",E59-F59) -> 2738.57654 | J59: =IF(E56="","",IFERROR((E59/F59-1)*100,"ND")) -> 45.31694005 | K59: =IF(E56="","",IFERROR((E59/VLOOKUP(B59&"|"&VLOOKUP(TDPrimas!$B$4,Cat!R:T,2,0),'TD Operación'!A:D,4,0))*100,"ND")) -> 0.02100557954 | L59: =IF(E56="","",(VLOOKUP(B59,'TDPrimas Vida'!$B:$N,13,0))) -> 0
B60: =IF(C60="",B56,D60) -> Inbursa | C60: =IF('TDPrimas Vida'!A19="","",'TDPrimas Vida'!A19) -> 12 | D60: =IF('TDPrimas Vida'!B19="","",'TDPrimas Vida'!B19) -> Inbursa | E60: =IF('TDPrimas Vida'!C19="","",'TDPrimas Vida'!C19) -> 3925225.845 | F60: =IF('TDPrimas Vida'!D19="","",'TDPrimas Vida'!D19) -> 4233175.385 | G60: =IF('TDPrimas Vida'!C19="","",IFERROR((E60/VLOOKUP("TOTAL",$D$12:$L$312,2,0))*100,"")) -> 1.714103823 | H60: =IF('TDPrimas Vida'!C19="","",IFERROR((E60/VLOOKUP("TOTAL",$D$12:$L$312,3,0))*100,"")) -> 1.976426728 | I60: =IF('TDPrimas Vida'!C19="","",E60-F60) -> -307949.5396 | J60: =IFERROR(IF('TDPrimas Vida'!C19="","",(E60/F60-1)*100),"ND") -> -7.274669995 | K60: =IF(E60="","",IFERROR((E60/VLOOKUP(D60&"|"&VLOOKUP(TDPrimas!$B$4,Cat!R:T,2,0),'TD Operación'!A:D,4,0))*100,"ND")) -> 18.75396168 | L60: =IF('TDPrimas Vida'!E19="","",'TDPrimas Vida'!E19) -> 0
B61: =IF(C61="",B60,D61) -> Inbursa | D61: =IF(D60="","","1er Año") -> 1er Año | E61: =IF(E60="","",(VLOOKUP(B61,'TDPrimas Vida'!$B:$N,5,0))) -> 2195424.889 | F61: =IF(E60="","",(VLOOKUP(B61,'TDPrimas Vida'!$B:$N,6,0))) -> 2539822.621 | G61: =IFERROR((E61/VLOOKUP("TOTAL",$D$12:$L$312,2,0))*100,"") -> 0.958718388 | H61: =IFERROR((E61/VLOOKUP("TOTAL",$D$12:$L$312,3,0))*100,"") -> 1.105438668 | I61: =IF(E60="","",E61-F61) -> -344397.7317 | J61: =IF(E60="","",IFERROR((E61/F61-1)*100,"ND")) -> -13.55991276 | K61: =IF(E60="","",IFERROR((E61/VLOOKUP(B61&"|"&VLOOKUP(TDPrimas!$B$4,Cat!R:T,2,0),'TD Operación'!A:D,4,0))*100,"ND")) -> 10.4893109 | L61: =IF(E60="","",(VLOOKUP(B61,'TDPrimas Vida'!$B:$N,7,0))) -> 0
B62: =IF(C62="",B61,D62) -> Inbursa | D62: =IF(D61="","","Renovación") -> Renovación | E62: =IF(E60="","",(VLOOKUP(B62,'TDPrimas Vida'!$B:$N,8,0))) -> 1729800.956 | F62: =IF(E60="","",(VLOOKUP(B62,'TDPrimas Vida'!$B:$N,9,0))) -> 1693352.764 | G62: =IFERROR((E62/VLOOKUP("TOTAL",$D$12:$L$312,2,0))*100,"") -> 0.7553854347 | H62: =IFERROR((E62/VLOOKUP("TOTAL",$D$12:$L$312,3,0))*100,"") -> 0.8709880598 | I62: =IF(E60="","",E62-F62) -> 36448.19216 | J62: =IF(E60="","",IFERROR((E62/F62-1)*100,"ND")) -> 2.152427594 | K62: =IF(E60="","",IFERROR((E62/VLOOKUP(B62&"|"&VLOOKUP(TDPrimas!$B$4,Cat!R:T,2,0),'TD Operación'!A:D,4,0))*100,"ND")) -> 8.26465078 | L62: =IF(E60="","",(VLOOKUP(B62,'TDPrimas Vida'!$B:$N,10,0))) -> 0
B63: =IF(C63="",B62,D63) -> Inbursa | D63: =IF(D62="","","Únicas") -> Únicas | E63: =IF(E61="","",(VLOOKUP(B63,'TDPrimas Vida'!$B:$N,11,0))) -> 0 | F63: =IF(E61="","",(VLOOKUP(B63,'TDPrimas Vida'!$B:$N,12,0))) -> 0 | G63: =IFERROR((E63/VLOOKUP("TOTAL",$D$12:$L$312,2,0))*100,"") -> 0 | H63: =IFERROR((E63/VLOOKUP("TOTAL",$D$12:$L$312,3,0))*100,"") -> 0 | I63: =IF(E60="","",E63-F63) -> 0 | J63: =IF(E60="","",IFERROR((E63/F63-1)*100,"ND")) -> ND | K63: =IF(E60="","",IFERROR((E63/VLOOKUP(B63&"|"&VLOOKUP(TDPrimas!$B$4,Cat!R:T,2,0),'TD Operación'!A:D,4,0))*100,"ND")) -> 0 | L63: =IF(E60="","",(VLOOKUP(B63,'TDPrimas Vida'!$B:$N,13,0))) -> 0
B64: =IF(C64="",B60,D64) -> Seguros Azteca | C64: =IF('TDPrimas Vida'!A20="","",'TDPrimas Vida'!A20) -> 13 | D64: =IF('TDPrimas Vida'!B20="","",'TDPrimas Vida'!B20) -> Seguros Azteca | E64: =IF('TDPrimas Vida'!C20="","",'TDPrimas Vida'!C20) -> 3210392.082 | F64: =IF('TDPrimas Vida'!D20="","",'TDPrimas Vida'!D20) -> 3037397.68 | G64: =IF('TDPrimas Vida'!C20="","",IFERROR((E64/VLOOKUP("TOTAL",$D$12:$L$312,2,0))*100,"")) -> 1.401943622 | H64: =IF('TDPrimas Vida'!C20="","",IFERROR((E64/VLOOKUP("TOTAL",$D$12:$L$312,3,0))*100,"")) -> 1.616494175 | I64: =IF('TDPrimas Vida'!C20="","",E64-F64) -> 172994.4015 | J64: =IFERROR(IF('TDPrimas Vida'!C20="","",(E64/F64-1)*100),"ND") -> 5.695480795 | K64: =IF(E64="","",IFERROR((E64/VLOOKUP(D64&"|"&VLOOKUP(TDPrimas!$B$4,Cat!R:T,2,0),'TD Operación'!A:D,4,0))*100,"ND")) -> 90.68302153 | L64: =IF('TDPrimas Vida'!E20="","",'TDPrimas Vida'!E20) -> 0
B65: =IF(C65="",B64,D65) -> Seguros Azteca | D65: =IF(D64="","","1er Año") -> 1er Año | E65: =IF(E64="","",(VLOOKUP(B65,'TDPrimas Vida'!$B:$N,5,0))) -> 3118270.423 | F65: =IF(E64="","",(VLOOKUP(B65,'TDPrimas Vida'!$B:$N,6,0))) -> 2965811.633 | G65: =IFERROR((E65/VLOOKUP("TOTAL",$D$12:$L$312,2,0))*100,"") -> 1.361715087 | H65: =IFERROR((E65/VLOOKUP("TOTAL",$D$12:$L$312,3,0))*100,"") -> 1.570109148 | I65: =IF(E64="","",E65-F65) -> 152458.7902 | J65: =IF(E64="","",IFERROR((E65/F65-1)*100,"ND")) -> 5.140541918 | K65: =IF(E64="","",IFERROR((E65/VLOOKUP(B65&"|"&VLOOKUP(TDPrimas!$B$4,Cat!R:T,2,0),'TD Operación'!A:D,4,0))*100,"ND")) -> 88.08088754 | L65: =IF(E64="","",(VLOOKUP(B65,'TDPrimas Vida'!$B:$N,7,0))) -> 0
B66: =IF(C66="",B65,D66) -> Seguros Azteca | D66: =IF(D65="","","Renovación") -> Renovación | E66: =IF(E64="","",(VLOOKUP(B66,'TDPrimas Vida'!$B:$N,8,0))) -> 6877.13085 | F66: =IF(E64="","",(VLOOKUP(B66,'TDPrimas Vida'!$B:$N,9,0))) -> 6546.9306 | G66: =IFERROR((E66/VLOOKUP("TOTAL",$D$12:$L$312,2,0))*100,"") -> 0.003003168924 | H66: =IFERROR((E66/VLOOKUP("TOTAL",$D$12:$L$312,3,0))*100,"") -> 0.003462767687 | I66: =IF(E64="","",E66-F66) -> 330.20025 | J66: =IF(E64="","",IFERROR((E66/F66-1)*100,"ND")) -> 5.04358867 | K66: =IF(E64="","",IFERROR((E66/VLOOKUP(B66&"|"&VLOOKUP(TDPrimas!$B$4,Cat!R:T,2,0),'TD Operación'!A:D,4,0))*100,"ND")) -> 0.1942563366 | L66: =IF(E64="","",(VLOOKUP(B66,'TDPrimas Vida'!$B:$N,10,0))) -> 0
B67: =IF(C67="",B66,D67) -> Seguros Azteca | D67: =IF(D66="","","Únicas") -> Únicas | E67: =IF(E65="","",(VLOOKUP(B67,'TDPrimas Vida'!$B:$N,11,0))) -> 85244.52769 | F67: =IF(E65="","",(VLOOKUP(B67,'TDPrimas Vida'!$B:$N,12,0))) -> 65039.11662 | G67: =IFERROR((E67/VLOOKUP("TOTAL",$D$12:$L$312,2,0))*100,"") -> 0.03722536652 | H67: =IFERROR((E67/VLOOKUP("TOTAL",$D$12:$L$312,3,0))*100,"") -> 0.04292225965 | I67: =IF(E64="","",E67-F67) -> 20205.41107 | J67: =IF(E64="","",IFERROR((E67/F67-1)*100,"ND")) -> 31.06655213 | K67: =IF(E64="","",IFERROR((E67/VLOOKUP(B67&"|"&VLOOKUP(TDPrimas!$B$4,Cat!R:T,2,0),'TD Operación'!A:D,4,0))*100,"ND")) -> 2.407877649 | L67: =IF(E64="","",(VLOOKUP(B67,'TDPrimas Vida'!$B:$N,13,0))) -> 0
B68: =IF(C68="",B64,D68) -> Hir Seguros | C68: =IF('TDPrimas Vida'!A21="","",'TDPrimas Vida'!A21) -> 14 | D68: =IF('TDPrimas Vida'!B21="","",'TDPrimas Vida'!B21) -> Hir Seguros | E68: =IF('TDPrimas Vida'!C21="","",'TDPrimas Vida'!C21) -> 3195969.609 | F68: =IF('TDPrimas Vida'!D21="","",'TDPrimas Vida'!D21) -> 2648757.616 | G68: =IF('TDPrimas Vida'!C21="","",IFERROR((E68/VLOOKUP("TOTAL",$D$12:$L$312,2,0))*100,"")) -> 1.395645484 | H68: =IF('TDPrimas Vida'!C21="","",IFERROR((E68/VLOOKUP("TOTAL",$D$12:$L$312,3,0))*100,"")) -> 1.609232183 | I68: =IF('TDPrimas Vida'!C21="","",E68-F68) -> 547211.9929 | J68: =IFERROR(IF('TDPrimas Vida'!C21="","",(E68/F68-1)*100),"ND") -> 20.6591947 | K68: =IF(E68="","",IFERROR((E68/VLOOKUP(D68&"|"&VLOOKUP(TDPrimas!$B$4,Cat!R:T,2,0),'TD Operación'!A:D,4,0))*100,"ND")) -> 98.13298991 | L68: =IF('TDPrimas Vida'!E21="","",'TDPrimas Vida'!E21) -> 0
B69: =IF(C69="",B68,D69) -> Hir Seguros | D69: =IF(D68="","","1er Año") -> 1er Año | E69: =IF(E68="","",(VLOOKUP(B69,'TDPrimas Vida'!$B:$N,5,0))) -> 1898344.369 | F69: =IF(E68="","",(VLOOKUP(B69,'TDPrimas Vida'!$B:$N,6,0))) -> 980249.7552 | G69: =IFERROR((E69/VLOOKUP("TOTAL",$D$12:$L$312,2,0))*100,"") -> 0.8289865267 | H69: =IFERROR((E69/VLOOKUP("TOTAL",$D$12:$L$312,3,0))*100,"") -> 0.9558529107 | I69: =IF(E68="","",E69-F69) -> 918094.614 | J69: =IF(E68="","",IFERROR((E69/F69-1)*100,"ND")) -> 93.65925461 | K69: =IF(E68="","",IFERROR((E69/VLOOKUP(B69&"|"&VLOOKUP(TDPrimas!$B$4,Cat!R:T,2,0),'TD Operación'!A:D,4,0))*100,"ND")) -> 58.28910522 | L69: =IF(E68="","",(VLOOKUP(B69,'TDPrimas Vida'!$B:$N,7,0))) -> 0
B70: =IF(C70="",B69,D70) -> Hir Seguros | D70: =IF(D69="","","Renovación") -> Renovación | E70: =IF(E68="","",(VLOOKUP(B70,'TDPrimas Vida'!$B:$N,8,0))) -> 1297625.24 | F70: =IF(E68="","",(VLOOKUP(B70,'TDPrimas Vida'!$B:$N,9,0))) -> 1668507.861 | G70: =IFERROR((E70/VLOOKUP("TOTAL",$D$12:$L$312,2,0))*100,"") -> 0.5666589571 | H70: =IFERROR((E70/VLOOKUP("TOTAL",$D$12:$L$312,3,0))*100,"") -> 0.6533792723 | I70: =IF(E68="","",E70-F70) -> -370882.6211 | J70: =IF(E68="","",IFERROR((E70/F70-1)*100,"ND")) -> -22.22840118 | K70: =IF(E68="","",IFERROR((E70/VLOOKUP(B70&"|"&VLOOKUP(TDPrimas!$B$4,Cat!R:T,2,0),'TD Operación'!A:D,4,0))*100,"ND")) -> 39.84388469 | L70: =IF(E68="","",(VLOOKUP(B70,'TDPrimas Vida'!$B:$N,10,0))) -> 0
B71: =IF(C71="",B70,D71) -> Hir Seguros | D71: =IF(D70="","","Únicas") -> Únicas | E71: =IF(E69="","",(VLOOKUP(B71,'TDPrimas Vida'!$B:$N,11,0))) -> 0 | F71: =IF(E69="","",(VLOOKUP(B71,'TDPrimas Vida'!$B:$N,12,0))) -> 0 | G71: =IFERROR((E71/VLOOKUP("TOTAL",$D$12:$L$312,2,0))*100,"") -> 0 | H71: =IFERROR((E71/VLOOKUP("TOTAL",$D$12:$L$312,3,0))*100,"") -> 0 | I71: =IF(E68="","",E71-F71) -> 0 | J71: =IF(E68="","",IFERROR((E71/F71-1)*100,"ND")) -> ND | K71: =IF(E68="","",IFERROR((E71/VLOOKUP(B71&"|"&VLOOKUP(TDPrimas!$B$4,Cat!R:T,2,0),'TD Operación'!A:D,4,0))*100,"ND")) -> 0 | L71: =IF(E68="","",(VLOOKUP(B71,'TDPrimas Vida'!$B:$N,13,0))) -> 0
B72: =IF(C72="",B68,D72) -> Seguros Argos | C72: =IF('TDPrimas Vida'!A22="","",'TDPrimas Vida'!A22) -> 15 | D72: =IF('TDPrimas Vida'!B22="","",'TDPrimas Vida'!B22) -> Seguros Argos | E72: =IF('TDPrimas Vida'!C22="","",'TDPrimas Vida'!C22) -> 2824083.374 | F72: =IF('TDPrimas Vida'!D22="","",'TDPrimas Vida'!D22) -> 2440808.703 | G72: =IF('TDPrimas Vida'!C22="","",IFERROR((E72/VLOOKUP("TOTAL",$D$12:$L$312,2,0))*100,"")) -> 1.233246773 | H72: =IF('TDPrimas Vida'!C22="","",IFERROR((E72/VLOOKUP("TOTAL",$D$12:$L$312,3,0))*100,"")) -> 1.421980309 | I72: =IF('TDPrimas Vida'!C22="","",E72-F72) -> 383274.6704 | J72: =IFERROR(IF('TDPrimas Vida'!C22="","",(E72/F72-1)*100),"ND") -> 15.70277383 | K72: =IF(E72="","",IFERROR((E72/VLOOKUP(D72&"|"&VLOOKUP(TDPrimas!$B$4,Cat!R:T,2,0),'TD Operación'!A:D,4,0))*100,"ND")) -> 100 | L72: =IF('TDPrimas Vida'!E22="","",'TDPrimas Vida'!E22) -> 0
B73: =IF(C73="",B72,D73) -> Seguros Argos | D73: =IF(D72="","","1er Año") -> 1er Año | E73: =IF(E72="","",(VLOOKUP(B73,'TDPrimas Vida'!$B:$N,5,0))) -> 1338268.666 | F73: =IF(E72="","",(VLOOKUP(B73,'TDPrimas Vida'!$B:$N,6,0))) -> 780011.6509 | G73: =IFERROR((E73/VLOOKUP("TOTAL",$D$12:$L$312,2,0))*100,"") -> 0.5844075031 | H73: =IFERROR((E73/VLOOKUP("TOTAL",$D$12:$L$312,3,0))*100,"") -> 0.673844019 | I73: =IF(E72="","",E73-F73) -> 558257.0147 | J73: =IF(E72="","",IFERROR((E73/F73-1)*100,"ND")) -> 71.57034309 | K73: =IF(E72="","",IFERROR((E73/VLOOKUP(B73&"|"&VLOOKUP(TDPrimas!$B$4,Cat!R:T,2,0),'TD Operación'!A:D,4,0))*100,"ND")) -> 47.38771801 | L73: =IF(E72="","",(VLOOKUP(B73,'TDPrimas Vida'!$B:$N,7,0))) -> 0
B74: =IF(C74="",B73,D74) -> Seguros Argos | D74: =IF(D73="","","Renovación") -> Renovación | E74: =IF(E72="","",(VLOOKUP(B74,'TDPrimas Vida'!$B:$N,8,0))) -> 1319175.685 | F74: =IF(E72="","",(VLOOKUP(B74,'TDPrimas Vida'!$B:$N,9,0))) -> 1441795.811 | G74: =IFERROR((E74/VLOOKUP("TOTAL",$D$12:$L$312,2,0))*100,"") -> 0.5760698041 | H74: =IFERROR((E74/VLOOKUP("TOTAL",$D$12:$L$312,3,0))*100,"") -> 0.6642303359 | I74: =IF(E72="","",E74-F74) -> -122620.1262 | J74: =IF(E72="","",IFERROR((E74/F74-1)*100,"ND")) -> -8.504680429 | K74: =IF(E72="","",IFERROR((E74/VLOOKUP(B74&"|"&VLOOKUP(TDPrimas!$B$4,Cat!R:T,2,0),'TD Operación'!A:D,4,0))*100,"ND")) -> 46.71164091 | L74: =IF(E72="","",(VLOOKUP(B74,'TDPrimas Vida'!$B:$N,10,0))) -> 0
B75: =IF(C75="",B74,D75) -> Seguros Argos | D75: =IF(D74="","","Únicas") -> Únicas | E75: =IF(E73="","",(VLOOKUP(B75,'TDPrimas Vida'!$B:$N,11,0))) -> 166639.0236 | F75: =IF(E73="","",(VLOOKUP(B75,'TDPrimas Vida'!$B:$N,12,0))) -> 219001.2417 | G75: =IFERROR((E75/VLOOKUP("TOTAL",$D$12:$L$312,2,0))*100,"") -> 0.07276946564 | H75: =IFERROR((E75/VLOOKUP("TOTAL",$D$12:$L$312,3,0))*100,"") -> 0.08390595421 | I75: =IF(E72="","",E75-F75) -> -52362.21812 | J75: =IF(E72="","",IFERROR((E75/F75-1)*100,"ND")) -> -23.90955308 | K75: =IF(E72="","",IFERROR((E75/VLOOKUP(B75&"|"&VLOOKUP(TDPrimas!$B$4,Cat!R:T,2,0),'TD Operación'!A:D,4,0))*100,"ND")) -> 5.900641076 | L75: =IF(E72="","",(VLOOKUP(B75,'TDPrimas Vida'!$B:$N,13,0))) -> 0
B76: =IF(C76="",B72,D76) -> TOTAL MEDIANAS | C76: =IF('TDPrimas Vida'!A23="","",'TDPrimas Vida'!A23) -> 15.1 | D76: =IF('TDPrimas Vida'!B23="","",'TDPrimas Vida'!B23) -> TOTAL MEDIANAS | E76: =IF('TDPrimas Vida'!C23="","",'TDPrimas Vida'!C23) -> 65569595.4 | F76: =IF('TDPrimas Vida'!D23="","",'TDPrimas Vida'!D23) -> 53974858.97 | G76: =IF('TDPrimas Vida'!C23="","",IFERROR((E76/VLOOKUP("TOTAL",$D$12:$L$312,2,0))*100,"")) -> 28.63353564 | H76: =IF('TDPrimas Vida'!C23="","",IFERROR((E76/VLOOKUP("TOTAL",$D$12:$L$312,3,0))*100,"")) -> 33.01555273 | I76: =IF('TDPrimas Vida'!C23="","",E76-F76) -> 11594736.44 | J76: =IFERROR(IF('TDPrimas Vida'!C23="","",(E76/F76-1)*100),"ND") -> 21.48173549 | K76: =IF(E76="","",IFERROR((E76/VLOOKUP(D76&"|"&VLOOKUP(TDPrimas!$B$4,Cat!R:T,2,0),'TD Operación'!A:D,4,0))*100,"ND")) -> 32.63871554 | L76: =IF('TDPrimas Vida'!E23="","",'TDPrimas Vida'!E23) -> 0
B77: =IF(C77="",B76,D77) -> TOTAL MEDIANAS | D77: =IF(D76="","","1er Año") -> 1er Año | E77: =IF(E76="","",(VLOOKUP(B77,'TDPrimas Vida'!$B:$N,5,0))) -> 32674754.92 | F77: =IF(E76="","",(VLOOKUP(B77,'TDPrimas Vida'!$B:$N,6,0))) -> 24753859.59 | G77: =IFERROR((E77/VLOOKUP("TOTAL",$D$12:$L$312,2,0))*100,"") -> 14.26871332 | H77: =IFERROR((E77/VLOOKUP("TOTAL",$D$12:$L$312,3,0))*100,"") -> 16.45236771 | I77: =IF(E76="","",E77-F77) -> 7920895.335 | J77: =IF(E76="","",IFERROR((E77/F77-1)*100,"ND")) -> 31.99862756 | K77: =IF(E76="","",IFERROR((E77/VLOOKUP(B77&"|"&VLOOKUP(TDPrimas!$B$4,Cat!R:T,2,0),'TD Operación'!A:D,4,0))*100,"ND")) -> 16.26458154 | L77: =IF(E76="","",(VLOOKUP(B77,'TDPrimas Vida'!$B:$N,7,0))) -> 0
B78: =IF(C78="",B77,D78) -> TOTAL MEDIANAS | D78: =IF(D77="","","Renovación") -> Renovación | E78: =IF(E76="","",(VLOOKUP(B78,'TDPrimas Vida'!$B:$N,8,0))) -> 23572034.57 | F78: =IF(E76="","",(VLOOKUP(B78,'TDPrimas Vida'!$B:$N,9,0))) -> 23403583.74 | G78: =IFERROR((E78/VLOOKUP("TOTAL",$D$12:$L$312,2,0))*100,"") -> 10.29365345 | H78: =IFERROR((E78/VLOOKUP("TOTAL",$D$12:$L$312,3,0))*100,"") -> 11.86897289 | I78: =IF(E76="","",E78-F78) -> 168450.8283 | J78: =IF(E76="","",IFERROR((E78/F78-1)*100,"ND")) -> 0.7197651017 | K78: =IF(E76="","",IFERROR((E78/VLOOKUP(B78&"|"&VLOOKUP(TDPrimas!$B$4,Cat!R:T,2,0),'TD Operación'!A:D,4,0))*100,"ND")) -> 11.73350127 | L78: =IF(E76="","",(VLOOKUP(B78,'TDPrimas Vida'!$B:$N,10,0))) -> 0
B79: =IF(C79="",B78,D79) -> TOTAL MEDIANAS | D79: =IF(D78="","","Únicas") -> Únicas | E79: =IF(E77="","",(VLOOKUP(B79,'TDPrimas Vida'!$B:$N,11,0))) -> 9322805.918 | F79: =IF(E77="","",(VLOOKUP(B79,'TDPrimas Vida'!$B:$N,12,0))) -> 5817415.644 | G79: =IFERROR((E79/VLOOKUP("TOTAL",$D$12:$L$312,2,0))*100,"") -> 4.071168868 | H79: =IFERROR((E79/VLOOKUP("TOTAL",$D$12:$L$312,3,0))*100,"") -> 4.694212134 | I79: =IF(E76="","",E79-F79) -> 3505390.273 | J79: =IF(E76="","",IFERROR((E79/F79-1)*100,"ND")) -> 60.25683032 | K79: =IF(E76="","",IFERROR((E79/VLOOKUP(B79&"|"&VLOOKUP(TDPrimas!$B$4,Cat!R:T,2,0),'TD Operación'!A:D,4,0))*100,"ND")) -> 4.640632727 | L79: =IF(E76="","",(VLOOKUP(B79,'TDPrimas Vida'!$B:$N,13,0))) -> 0
B80: =IF(C80="",B76,D80) -> Cardif Vida | C80: =IF('TDPrimas Vida'!A24="","",'TDPrimas Vida'!A24) -> 16 | D80: =IF('TDPrimas Vida'!B24="","",'TDPrimas Vida'!B24) -> Cardif Vida | E80: =IF('TDPrimas Vida'!C24="","",'TDPrimas Vida'!C24) -> 1950834.362 | F80: =IF('TDPrimas Vida'!D24="","",'TDPrimas Vida'!D24) -> 2104536.276 | G80: =IF('TDPrimas Vida'!C24="","",IFERROR((E80/VLOOKUP("TOTAL",$D$12:$L$312,2,0))*100,"")) -> 0.851908341 | H80: =IF('TDPrimas Vida'!C24="","",IFERROR((E80/VLOOKUP("TOTAL",$D$12:$L$312,3,0))*100,"")) -> 0.9822826321 | I80: =IF('TDPrimas Vida'!C24="","",E80-F80) -> -153701.9132 | J80: =IFERROR(IF('TDPrimas Vida'!C24="","",(E80/F80-1)*100),"ND") -> -7.303362503 | K80: =IF(E80="","",IFERROR((E80/VLOOKUP(D80&"|"&VLOOKUP(TDPrimas!$B$4,Cat!R:T,2,0),'TD Operación'!A:D,4,0))*100,"ND")) -> 108.6086658 | L80: =IF('TDPrimas Vida'!E24="","",'TDPrimas Vida'!E24) -> 0
